Workbook

Sheet General Information
G1: =IF(X1,lang!A30,lang!A31) -> This sheet needs to be answered | X1: TRUE | Y1: =IF(R_GI,AB11,0) -> -2
G2: =IF(X1,IF(Y2,lang!A32,IF(X2,lang!A33,lang!A34)),"") -> This sheet is not yet completed | X2: =X11 -> FALSE | Y2: =Y11 -> FALSE
G3: =IF(Y3,lang!A35,IF(X3,lang!A36,lang!A37)) -> The document is not yet completed | X3: =NOT(Status!F20) -> FALSE | Y3: =Status!G20 -> FALSE
A5: Gulf SQAS 2025 Rev 4.0 - 8 July 2025
A6: =lang!A40 -> ASSESSMENT INFORMATION AND SCOPE - Part I
A7: =lang!A39 -> (Please, complete a PAD for every site to be assessed)
A8: =lang!A42 -> (Items marked with a (*) and/or magenta background must always be completed)
A9: =lang!A43 -> (For checkboxes "checked" means "Yes", "unchecked" - "No")
C11: 0.1 | D11: =lang!A48 -> Assessment information | X11: =AND(X14:X272) -> FALSE | Y11: =(OR(Y14:Y272)) -> FALSE | AB11: =SUM(AB13:AB272) -> -2
C12: 0.1.1 | D12: =lang!A49 -> Assessed Company | T12: value | U12: raw | W12: Validation | X12: Mand OK | Y12: Error
C14: (*) | D14: =lang!A50 -> Name | Q14: =lang!A51 -> (Use the same name used in the prenotification) | X14: =LEN(H14)>0 -> FALSE | Y14: =IF(ISERROR(H14),TRUE,LEN(H14)>=160) -> FALSE | Z14: 2 | AA14: H
C16: (*) | D16: =lang!A52 -> Location (=Town/City) | X16: =LEN(H16)>0 -> FALSE | Y16: =IF(ISERROR(H16),TRUE,LEN(H16)>=160) -> FALSE | Z16: =Z14+1 -> 3 | AA16: H
C18: (*) | D18: =lang!A53 -> Country | Q18: =lang!A54 -> (Select from the dropdown list) | T18: =IF(LEN(H18)>0,VLOOKUP(H18,countries_arab,2,FALSE),"") ->  | W18: =IF(ISNA(MATCH(H18,countries,0)), 0, MATCH(H18,countries,0)) -> 0 | X18: =AND(NOT(ISNA(MATCH(H18,countries_gulfsqas,0))),H18<>"") -> FALSE | Y18: =IF(ISERROR(H18), TRUE, IF(ISERROR(T18),TRUE,ISNA(T18))) -> FALSE | Z18: =Z16+1 -> 4 | AA18: H
C20: (*) | D20: =lang!A55 -> Postal code / P.O. Box | X20: =LEN(H20)>0 -> FALSE | Y20: =IF(ISERROR(H20),TRUE,LEN(H20)>=15) -> FALSE | Z20: =Z18+1 -> 5 | AA20: H
C22: (*) | D22: =lang!A56 -> Postal Address | X22: =LEN(H22)>0 -> FALSE | Y22: =IF(ISERROR(H22),TRUE,LEN(H22)>=400) -> FALSE | Z22: =Z20+1 -> 6 | AA22: H
C26: (*) | D26: =lang!A57 -> Phone | W26: =AND(NOT(OR(LEFT(H26,1)="+", LEN(TRIM(H26))=0)), LEN(H26)<30) -> FALSE | X26: =AND(LEN(H26)>0,NOT(W26)) -> FALSE | Y26: =IF(ISERROR(H26),TRUE,IF(ISERROR(W26),TRUE,W26)) -> FALSE | Z26: =Z22+1 -> 7 | AA26: H
D28: =lang!A58 -> Website | X28: TRUE | Y28: =IF(ISERROR(H28),TRUE,LEN(H28)>=50) -> FALSE | Z28: =Z26+1 -> 8 | AA28: H
C30: (*) | D30: =lang!A59 -> 1. Contact person | X30: =LEN(H30)>0 -> FALSE | Y30: =IF(ISERROR(H30),TRUE,LEN(H30)>=50) -> FALSE | Z30: =Z28+1 -> 9 | AA30: H
C32: (*) | D32: =lang!A60 -> Email | W32: =AND(NOT(OR(ISNUMBER(FIND(".",H32,FIND("@",H32))), LEN(TRIM(H32))=0)), LEN(H32)<99) -> FALSE | X32: =AND(LEN(H32)>0,NOT(W32)) -> FALSE | Y32: =IF(ISERROR(H32),TRUE,IF(ISERROR(W32),TRUE,W32)) -> FALSE | Z32: =Z30+1 -> 10 | AA32: H
D34: =lang!A61 -> 2. Contact person | X34: TRUE | Y34: =IF(ISERROR(H34),TRUE,LEN(H34)>=50) -> FALSE | Z34: =Z32+1 -> 11 | AA34: H
D36: =lang!A62 -> Email | W36: =AND(NOT(OR(ISNUMBER(FIND(".",H36,FIND("@",H36))), LEN(TRIM(H36))=0)), LEN(H36)<99) -> FALSE | X36: =AND(NOT(W36)) -> TRUE | Y36: =IF(ISERROR(H36),TRUE,IF(ISERROR(W36),TRUE,W36)) -> FALSE | Z36: =Z34+1 -> 12 | AA36: H
D38: =lang!A63 -> 3. Contact person | X38: TRUE | Y38: =IF(ISERROR(H38),TRUE,LEN(H38)>=50) -> FALSE | Z38: =Z36+1 -> 13 | AA38: H
W39: =NOT(OR(LEFT(H39,1)="+", LEN(TRIM(H39))=0)) -> FALSE
D40: =lang!A64 -> Email | W40: =AND(NOT(OR(ISNUMBER(FIND(".",H40,FIND("@",H40))), LEN(TRIM(H40))=0)), LEN(H40)<99) -> FALSE | X40: =AND(NOT(W40)) -> TRUE | Y40: =IF(ISERROR(H40),TRUE,IF(ISERROR(W40),TRUE,W40)) -> FALSE | Z40: =Z38+1 -> 14 | AA40: H
C42: (*) | D42: =lang!A65 -> Headquarter's Name | X42: =LEN(H42)>0 -> FALSE | Y42: =IF(ISERROR(H42),TRUE,LEN(H42)>=160) -> FALSE | Z42: =Z40+1 -> 15 | AA42: H
C44: (*) | D44: =lang!A66 -> Headquarter's Address | X44: =LEN(H44)>0 -> FALSE | Y44: =IF(ISERROR(H44),TRUE,LEN(H44)>=400) -> FALSE | Z44: =Z42+1 -> 16 | AA44: H
C48: (*) | D48: =lang!A67 -> Type of company | I48: =lang!A68 -> Stand alone | T48: =(V48-1) -> 0 | U48: =(V48=0) -> FALSE | V48: 1 | X48: =V48>0 -> TRUE
I49: =lang!A69 -> Headquarter | T49: =IF(V48=2,"Y",IF(V48>0,"N","")) -> N | U49: =(V48=2) -> FALSE | W49: =NOT(AND(U49,U50)) -> TRUE | Z49: =Z44+1 -> 17 | AA49: T | AB49: =IF(U49,6,0) -> 0
I50: =lang!A72 -> Subsidiary | T50: =IF(V48=3,"Y",IF(V48>0,"N","")) -> N | U50: =(V48=3) -> FALSE | W50: =NOT(AND(U50,U49)) -> TRUE | Z50: =Z52+1 -> 19 | AA50: T | AB50: =IF(U50,-4,0) -> 0
C52: =IF(IF(ISERROR(U49),FALSE,U49),"(*)","") ->  | D52: =lang!A70 -> For headquarter, name subsidiaries. | Q52: =IF(IF(ISERROR(I52),FALSE,AND(LEN(I52)>0,NOT(U49))),lang!A71,"") ->  | X52: =OR(AND(LEN(I52)>0,U49),AND(LEN(I52)=0,NOT(U49))) -> TRUE | Y52: =IF(ISERROR(I52),TRUE,LEN(I52)>=400) -> FALSE | Z52: =Z49+1 -> 18 | AA52: H
C56: =IF(IF(ISERROR(U50),FALSE,U50),"(*)","") ->  | D56: =lang!A73 -> For subsidiary, indicate the number of the report of the headquarter. | E56: =lang!B78 -> If yes, indicate the number of the report of the headquarter. | F56: =lang!C78 -> Wenn ja, bitte geben Sie die Berichtsnummer des Hauptsitzes an | G56: =lang!D78 -> Se sim, indique o número do relatório da Sede | Q56: =IF(IF(ISERROR(I56),TRUE,AND(LEN(I56)>0,NOT(U50))),lang!A74,"") ->  | W56: =OR(AND(ISNUMBER(VALUE(CONCATENATE(MID(I56,1,5),MID(I56,8,2)))),LEN(I56)<10,SUBSTITUTE(I56," ","")=I56),LEN(I56)=0) -> TRUE | X56: =OR(AND(LEN(I56)>0,U50),AND(LEN(I56)=0,NOT(U50))) -> TRUE | Y56: =IF(ISERROR(I56),TRUE,IF(ISERROR(W56),TRUE,NOT(W56))) -> FALSE | Z56: =Z50+1 -> 20 | AA56: I
D57: =lang!A79 -> Company Membership | E57: =lang!B79 -> Company Membership | F57: =lang!C79 -> Mitgliedschaften des Unternehmens | G57: =lang!D79 -> Entidades associadas
D58: =lang!A79 -> Company Membership | X58: TRUE | Y58: =IF(ISERROR(H58),TRUE,LEN(H58)>=400) -> FALSE | Z58: =Z56+2 -> 22 | AA58: H
D59: =lang!A80 -> GPCA | E59: =lang!B80 -> GPCA | F59: =lang!C80 -> GPCA | G59: =lang!D80 -> GPCA
D60: =lang!A81 -> Total number of employees for all assessed activities | E60: =lang!B81 -> Total number of employees for all assessed activities | F60: =lang!C81 -> Gesamtzahl der Mitarbeiter für alle bewerteten Aktivitäten | G60: =lang!D81 -> Número total de de empregados das actividades avaliadas
C62: (*) | D62: =lang!A81 -> Total number of employees for all assessed activities | I62: =lang!A771 -> Less than 10 | T62: Column1 | U62: Column2 | V62: Column3 | X62: =NOT(U63) -> TRUE | Y62: FALSE | Z62: =Z58+1 -> 23 | AA62: T | AB62: =IF(V63=2,2,IF(V63=3,3,0)) -> 0
I63: =lang!A772 -> 10-50 | T63: =IF(X62,CHOOSE(V63,lang!B771,lang!B772,lang!B773),"") -> Less than 10 | U63: =(V63=0) -> FALSE | V63: 1
I64: =lang!A773 -> more than 50
C66: 0.1.2 | D66: =lang!A82 -> Assessor
D67: u Lead Assessor
D69: (*) | F69: Name
F71: Assessment Agency
F73: Address
D77: (*) | F77: Country
D79: (*) | F79: Phone | W79: =NOT(OR(LEFT(H79,1)="+", LEN(TRIM(H79))=0)) -> FALSE
F81: Mobile Phone | W81: =NOT(OR(LEFT(H81,1)="+", LEN(TRIM(H81))=0)) -> FALSE
F83: Fax | W83: =NOT(OR(LEFT(H83,1)="+", LEN(TRIM(H83))=0)) -> FALSE
D85: (*) | F85: Email
D87: u Other assessors
F89: Name(s)
D93: u Observers
F95: 1. Name
F97: Company
F99: 2. Name
F101: Company
D104: =lang!A83 -> This section is intentionally left blank
C106: 0.1.3 | D106: =lang!A108 -> Activities Assessed | U106: =OR(U111,U113,U115,U117,U121) -> FALSE | Y106: =IF(ISERROR(V111+V115),FALSE, AND(V111=1,V115=1)) -> FALSE | AB106: =IF(U106,6,0) -> 0
D107: =lang!A83 -> This section is intentionally left blank
D109: =lang!A109 -> Road Transport
U110: =OR(U111,U115) -> FALSE | X110: =OR(U110:U121) -> FALSE | AB110: =IF(U110,4,0) -> 0
C111: (*) | D111: =lang!A109 -> Road Transport | K111: =lang!A$755 -> Yes | M111: =lang!A$756 -> No | O111: =IF(Y111,lang!A113,"") ->  | T111: =IF(V111=1,"Y",IF(V111=2,"N","")) -> N | U111: =(V111=1) -> FALSE | V111: 2 | W111: =$X$110 -> FALSE | X111: =AND(V111>0,W111) -> FALSE | Y111: =AND(U111,U115) -> FALSE | Z111: 81 | AA111: T
C113: (*) | D113: =lang!A111 -> Tank cleaning | K113: =lang!A$755 -> Yes | M113: =lang!A$756 -> No | T113: =IF(V113=3,"Y",IF(V113=4,"N","")) -> N | U113: =(V113=3) -> FALSE | V113: 4 | W113: =$X$110 -> FALSE | X113: =AND(V113>0,W113) -> FALSE | Y113: FALSE | Z113: =Z111+2 -> 83 | AA113: T | AB113: =IF(U113,7,0) -> 0
C115: (*) | D115: =lang!A112 -> Intermodal terminal | K115: =lang!A$755 -> Yes | M115: =lang!A$756 -> No | O115: =IF(Y115,lang!A113,"") ->  | T115: =IF(V115=1,"Y",IF(V115=2,"N","")) -> N | U115: =(V115=1) -> FALSE | V115: 2 | W115: =$X$110 -> FALSE | X115: =AND(V115>0,W115) -> FALSE | Y115: =AND(U111,U115) -> FALSE | Z115: =Z113+1 -> 84 | AA115: T
C117: (*) | D117: =lang!A114 -> Warehouse activities | K117: =lang!A$755 -> Yes | M117: =lang!A$756 -> No | T117: =IF(V117=1,"Y",IF(V117=2,"N","")) -> N | U117: =(V117=1) -> FALSE | V117: 2 | W117: =$X$110 -> FALSE | X117: =AND(V117>0,W117) -> FALSE | Y117: FALSE | Z117: =Z115+1 -> 85 | AA117: T | AB117: =IF(U117,4,0) -> 0
C119: (*) | D119: =lang!A115 -> Chemical distribution | K119: =lang!A$755 -> Yes | M119: =lang!A$756 -> No | T119: =IF(V119=1,"Y",IF(V119=2,"N","")) -> N | U119: =(V119=1) -> FALSE | V119: 2 | W119: =$X$110 -> FALSE | X119: =AND(V119>0,W119) -> FALSE | Y119: FALSE | Z119: =Z117+1 -> 86 | AA119: T
C121: (*) | D121: =lang!A116 -> Rail transport | K121: =lang!A$755 -> Yes | M121: =lang!A$756 -> No | N121: =lang!A117 -> (Rail Carrier) | T121: =IF(V121=1,"Y",IF(V121=2,"N","")) -> N | U121: =(V121=1) -> FALSE | V121: 2 | W121: =$X$110 -> FALSE | X121: =AND(V121>0,W121) -> FALSE | Y121: FALSE | Z121: =Z119+1 -> 87 | AA121: T | AB121: =IF(U121,6,0) -> 0
C124: 0.1.4 | D124: =lang!A84 -> Assessment
C126: =IF(V126<>2,"(*)","") -> (*) | D126: =lang!A85 -> First assessment | T126: =IF(V126=1,"Y",IF(V126=2,"N","")) -> Y | U126: =(V126=1) -> TRUE | V126: 1 | X126: =V126>0 -> TRUE | Z126: 38 | AA126: T | AB126: =IF(U126,-2,0) -> -2
C128: =IF(V126<>1,"(*)","") ->  | D128: =lang!A86 -> Re-assessment | T128: =IF(V126=2,"Y",IF(V126=1,"N","")) -> N | U128: =(V126=2) -> FALSE | Z128: 39_0 | AA128: T | AB128: =IF(U128,-8,0) -> 0
C129: =IF(V126=2,"(*)","") ->  | D129: =lang!A87 -> Report number | M129: =IF(IF(ISERROR(I129),TRUE,AND(LEN(I129)>0,NOT(U$128))),lang!A$89,"") ->  | W129: =OR(AND(ISNUMBER(VALUE(CONCATENATE(MID(I129,1,5),MID(I129,8,2)))),LEN(I129)<10,SUBSTITUTE(I129," ","")=I129),LEN(I129)=0) -> TRUE | X129: =OR(AND(LEN(I129)>0,$U$128),AND(LEN(I129)=0,NOT($U$128))) -> TRUE | Y129: =IF(ISERROR(I129),TRUE,IF(ISERROR(W129),TRUE,NOT(W129))) -> FALSE | Z129: 39 | AA129: I
D130: =IF(V126=2,lang!A88,"") -> 
M131: =IF(IF(ISERROR(I131),TRUE,AND(LEN(I131)>0,NOT(U$128))),lang!A$89,"") ->  | W131: =OR(AND(ISNUMBER(VALUE(CONCATENATE(MID(I131,1,5),MID(I131,8,2)))),LEN(I131)<10,SUBSTITUTE(I131," ","")=I131),LEN(I131)=0) -> TRUE | X131: =OR(AND($U$128),AND(LEN(I131)=0,NOT($U$128))) -> TRUE | Y131: =IF(ISERROR(I131),TRUE,IF(ISERROR(W131),TRUE,NOT(W131))) -> FALSE | Z131: 39_1 | AA131: I
M133: =IF(IF(ISERROR(I133),TRUE,AND(LEN(I133)>0,NOT(U$128))),lang!A$89,"") ->  | W133: =OR(AND(ISNUMBER(VALUE(CONCATENATE(MID(I133,1,5),MID(I133,8,2)))),LEN(I133)<10,SUBSTITUTE(I133," ","")=I133),LEN(I133)=0) -> TRUE | X133: =OR(AND($U$128),AND(LEN(I133)=0,NOT($U$128))) -> TRUE | Y133: =IF(ISERROR(I133),TRUE,IF(ISERROR(W133),TRUE,NOT(W133))) -> FALSE | Z133: 39_2 | AA133: I
C135: 0.2 | D135: =lang!A90 -> Assessed company profile
C137: 0.2.1 | D137: =lang!A91 -> Key Contacts | Q137: =lang!A92 -> Location
C139: (*) | D139: =lang!A93 -> General Manager | X139: =LEN(I139)>0 -> FALSE | Y139: =IF(ISERROR(I139),TRUE,LEN(I139)>=160) -> FALSE | Z139: 52|53 | AA139: I|P
X140: =LEN(Q139)>0 -> FALSE | Y140: =IF(ISERROR(Q139),TRUE,LEN(Q139)>=50) -> FALSE
C141: (*) | D141: =lang!A94 -> Operations Manager | X141: =LEN(I141)>0 -> FALSE | Y141: =IF(ISERROR(I141),TRUE,LEN(I141)>=160) -> FALSE | Z141: 54|55 | AA141: I|P
X142: =LEN(Q141)>0 -> FALSE | Y142: =IF(ISERROR(Q141),TRUE,LEN(Q141)>=50) -> FALSE
C143: (*) | D143: =lang!A95 -> Quality Assurance Manager | X143: =LEN(I143)>0 -> FALSE | Y143: =IF(ISERROR(I143),TRUE,LEN(I143)>=160) -> FALSE | Z143: 56|57 | AA143: I|P
X144: =LEN(Q143)>0 -> FALSE | Y144: =IF(ISERROR(Q143),TRUE,LEN(Q143)>=50) -> FALSE
C145: (*) | D145: =lang!A96 -> Safety & Health Manager | X145: =LEN(I145)>0 -> FALSE | Y145: =IF(ISERROR(I145),TRUE,LEN(I145)>=160) -> FALSE | Z145: 58|59 | AA145: I|P
X146: =LEN(Q145)>0 -> FALSE | Y146: =IF(ISERROR(Q145),TRUE,LEN(Q145)>=50) -> FALSE
C147: (*) | D147: =lang!A97 -> Environmental Manager | X147: =LEN(I147)>0 -> FALSE | Y147: =IF(ISERROR(I147),TRUE,LEN(I147)>=160) -> FALSE | Z147: 60|61 | AA147: I|P
X148: =LEN(Q147)>0 -> FALSE | Y148: =IF(ISERROR(Q147),TRUE,LEN(Q147)>=50) -> FALSE
C149: (*) | I149: - | Q149: - | X149: =LEN(I149)>0 -> TRUE | Y149: =IF(ISERROR(I149),TRUE,LEN(I149)>=160) -> FALSE | Z149: 62|63 | AA149: I|P
I150: =lang!A99 -> Number Certificate DGSA | P150: =lang!A100 -> Valid until | X150: =LEN(Q149)>0 -> TRUE | Y150: =IF(ISERROR(Q149),TRUE,LEN(Q149)>=50) -> FALSE
X151: TRUE | Y151: =IF(ISERROR(I151),TRUE,LEN(I151)>=160) -> FALSE | Z151: 64|65 | AA151: I|P
W152: =OR(LEN(Q151)=0,ISNUMBER(Q151)) -> TRUE | X152: TRUE | Y152: =IF(ISERROR(Q151),TRUE,IF(ISERROR(W152),TRUE,NOT(W152))) -> FALSE
D153: =lang!A101 -> Security Advisor | X153: TRUE | Y153: =IF(ISERROR(I153),TRUE,LEN(I153)>=160) -> FALSE | Z153: 66|67 | AA153: I|P
X154: TRUE | Y154: =IF(ISERROR(Q153),TRUE,LEN(Q153)>=50) -> FALSE
C156: 0.2.2 | D156: =lang!A102 -> Quality Management and Environmental Management System Certification
B159: =lang!A103 -> Type | F159: =lang!A104 -> Certification body | I159: =lang!A105 -> Scope | M159: =lang!A106 -> Registration Number | Q159: =lang!A107 -> Expiry Date
C162: ISO 9001 | V162: =OR(LEN(Q162)=0,ISNUMBER(Q162)) -> TRUE | W162: =IF(ISERROR(V162),TRUE,NOT(V162)) -> FALSE | Y162: =OR(ISERROR(CONCATENATE(F162,I162,M162,Q162)),W162) -> FALSE | Z162: 70|71|71_a|72 | AA162: F|I|M|P
C164: ISO 14001 | V164: =OR(LEN(Q164)=0,ISNUMBER(Q164)) -> TRUE | W164: =IF(ISERROR(V164),TRUE,NOT(V164)) -> FALSE | Y164: =OR(ISERROR(CONCATENATE(F164,I164,M164,Q164)),W164) -> FALSE | Z164: 74|75|75_a|76 | AA164: F|I|M|P
C166: RC 14001 | V166: =OR(LEN(Q166)=0,ISNUMBER(Q166)) -> TRUE | W166: =IF(ISERROR(V166),TRUE,NOT(V166)) -> FALSE | Y166: =OR(ISERROR(CONCATENATE(F166,I166,M166,Q166)),W166) -> FALSE | Z166: 77|78|79|79_a|80 | AA166: C|F|I|M|P
V168: =OR(LEN(Q168)=0,ISNUMBER(Q168)) -> TRUE | W168: =IF(ISERROR(V168),TRUE,NOT(V168)) -> FALSE | Y168: =OR(ISERROR(CONCATENATE(F168,I168,M168,Q168)),W168) -> FALSE | Z168: 77a|78a|79a|79a_a|80a | AA168: C|F|I|M|P
V170: =OR(LEN(Q170)=0,ISNUMBER(Q170)) -> TRUE | W170: =IF(ISERROR(V170),TRUE,NOT(V170)) -> FALSE | Y170: =OR(ISERROR(CONCATENATE(F170,I170,M170,Q170)),W170) -> FALSE | Z170: 77b|78b|79b|79b_a|80b | AA170: C|F|I|M|P
C173: 0.2.3 | D173: =lang!A118 -> Responsible Care
D175: =lang!A119 -> Is the company a member of an approved Responsible Care Programme? | K175: =lang!A$755 -> Yes | M175: =lang!A$756 -> No | T175: =IF(V175=1,"Y",IF(V175=2,"N","")) ->  | U175: =(V175=1) -> FALSE | V175: 4 | X175: =AND(NOT(AND(LEN(K177)>0,NOT(U175)))) -> TRUE | Z175: 90 | AA175: T
C177: =IF(U175,"(*)","") ->  | D177: =lang!A120 -> If yes, which? | Q177: =IF(U175,lang!A54, IF(IF(ISERROR(K177),TRUE,AND(LEN(K177)>0,NOT(U175))),lang!A121,"")) ->  | T177: =IF(LEN(K177)>0,VLOOKUP(K177,rc_typeeng,2,FALSE),"") ->  | V177: =IF(ISNA(MATCH(K177,rc_type,0)),"",MATCH(K177,rc_type,0)) ->  | W177: =OR(LEN(K177)=0,ISNUMBER(V177)) -> TRUE | X177: =OR(AND(IF(ISNA(V177),FALSE,V177>1),U175),AND(LEN(K177)=0,NOT(U175))) -> TRUE | Y177: =ISERROR(K177) -> FALSE | Z177: 91 | AA177: T
C179: =IF(AND(U175, IF(ISNA(V177),FALSE,V177=7)),"(*)","") ->  | D179: =lang!A122 -> For Other, specify | Q179: =IF(IF(ISERROR(L179),TRUE,AND(LEN(L179)>0,V177<>7)),lang!A123,"") ->  | X179: =OR(AND(U175, LEN(L179)>0,IF(ISNA(V177),FALSE,V177=7)),AND(LEN(L179)=0,OR(NOT(U175), IF(ISNA(V177),TRUE,V177<>7)))) -> TRUE | Y179: =IF(ISERROR(L179),TRUE,LEN(L179)>=160) -> FALSE | Z179: 92 | AA179: L
C181: 0.2.3 | D181: =lang!A124 -> Infrastructure
C183: (*) | D183: =lang!A125 -> Office building | K183: =lang!A$755 -> Yes | M183: =lang!A$756 -> No | T183: =IF(V183=1,"Y",IF(V183=2,"N","")) -> Y | V183: 1 | X183: =V183>0 -> TRUE | Y183: FALSE | Z183: 95 | AA183: T
C185: (*) | D185: =lang!A126 -> Parking of empty vehicles/tanks/containers | K185: =lang!A$755 -> Yes | M185: =lang!A$756 -> No | T185: =IF(V185=1,"Y",IF(V185=2,"N","")) -> N | V185: 2 | X185: =V185>0 -> TRUE | Y185: FALSE | Z185: =Z183+1 -> 96 | AA185: T
C187: (*) | D187: =lang!A127 -> Parking of loaded vehicles/tanks/containers | K187: =lang!A$755 -> Yes | M187: =lang!A$756 -> No | T187: =IF(V187=1,"Y",IF(V187=2,"N","")) -> N | V187: 2 | X187: =V187>0 -> TRUE | Y187: FALSE | Z187: =Z185+1 -> 97 | AA187: T
D189: =lang!A132 -> Canteen present for visiting operators/drivers | K189: =lang!A$755 -> Yes | M189: =lang!A$756 -> No | T189: =IF(V189=1,"Y",IF(V189=2,"N","")) -> N | V189: 2 | X189: TRUE | Y189: FALSE | Z189: =Z187+1 -> 98 | AA189: T
C191: (*) | D191: =lang!A133 -> Temporary storage of packaged products | K191: =lang!A$755 -> Yes | M191: =lang!A$756 -> No | T191: =IF(V191=1,"Y",IF(V191=2,"N","")) -> N | V191: 2 | X191: =V191>0 -> TRUE | Y191: FALSE | Z191: =Z189+1 -> 99 | AA191: T
C193: (*) | D193: =lang!A134 -> Fuel storage and refuelling | K193: =lang!A$755 -> Yes | M193: =lang!A$756 -> No | T193: =IF(V193=1,"Y",IF(V193=2,"N","")) -> N | V193: 2 | X193: =V193>0 -> TRUE | Y193: FALSE | Z193: =Z191+1 -> 100 | AA193: T
C195: (*) | D195: =lang!A135 -> Waste storage/treatment | K195: =lang!A$755 -> Yes | M195: =lang!A$756 -> No | T195: =IF(V195=1,"Y",IF(V195=2,"N","")) -> N | V195: 2 | X195: =V195>0 -> TRUE | Y195: FALSE | Z195: =Z193+1 -> 101 | AA195: T
C197: (*) | D197: =lang!A136 -> Railway connection | K197: =lang!A$755 -> Yes | M197: =lang!A$756 -> No | T197: =IF(V197=1,"Y",IF(V197=2,"N","")) -> N | V197: 2 | X197: =V197>0 -> TRUE | Y197: FALSE | Z197: =Z195+2 -> 103 | AA197: T
C199: (*) | D199: =lang!A137 -> Waste water connection | K199: =lang!A$755 -> Yes | M199: =lang!A$756 -> No | T199: =IF(V199=1,"Y",IF(V199=2,"N","")) -> N | V199: 2 | X199: =V199>0 -> TRUE | Y199: FALSE | Z199: =Z197+1 -> 104 | AA199: T
B201: Answer does not affect assessment hours | C201: (*) | D201: =lang!A138 -> Company provided employee accommodation | K201: =lang!A$755 -> Yes | M201: =lang!A$756 -> No | V201: 1 | X201: =V201>0 -> TRUE | Y201: FALSE
C203: (*) | D203: =lang!A139 -> Employee transportation (to/from work) | K203: =lang!A$755 -> Yes | M203: =lang!A$756 -> No | V203: 1 | X203: =V203>0 -> TRUE | Y203: FALSE
C205: 0.2.4 | D205: =lang!A140 -> Incident response
D207: =lang!A141 -> Description of onsite incident response team and equipment | X207: TRUE | Y207: =IF(ISERROR(I207),TRUE,LEN(I207)>=400) -> FALSE | Z207: 111 | AA207: I
D211: =lang!A142 -> Description of the local fire brigade (manpower, equipment, response time) | X211: TRUE | Y211: =IF(ISERROR(I211),TRUE,LEN(I211)>=400) -> FALSE | Z211: 112 | AA211: I
C215: 0.2.5 | D215: =lang!A143 -> Emergency equipment
C217: (*) | D217: =lang!A144 -> Description of emergency equipment that can be used for off-site emergencies. | X217: =LEN(I217)>0 -> FALSE | Y217: =IF(ISERROR(I217),TRUE,LEN(I217)>=400) -> FALSE | Z217: 113 | AA217: I
C221: 0.2.6 | D221: =lang!A145 -> Valid operating license
C223: (*) | D223: =lang!A146 -> Number | Q223: =lang!A147 -> (answer N.A. if is is not needed) | X223: =LEN(I223)>0 -> FALSE | Y223: =IF(ISERROR(I223),TRUE,LEN(I223)>=30) -> FALSE | Z223: 116 | AA223: I
C225: (*) | D225: =lang!A148 -> Scope | Q225: =lang!A149 -> (answer N.A. if it is not needed) | X225: =LEN(I225)>0 -> FALSE | Y225: =IF(ISERROR(I225),TRUE,LEN(I225)>=160) -> FALSE | Z225: =Z223+1 -> 117 | AA225: I
D227: =lang!A150 -> Validity until | Q227: =lang!A151 -> (answer "indefinite" if it has no expiration date) | X227: TRUE | Y227: =IF(ISERROR(I227),TRUE,LEN(I227)>=30) -> FALSE | Z227: =Z225+1 -> 118 | AA227: I
C229: (*) | D229: =lang!A152 -> Are all activities within the scope of the assessment mentioned in the operating license? | K229: =lang!A$755 -> Yes | M229: =lang!A$756 -> No | O229: =lang!A$757 -> N/A | T229: =IF(V229=1,"Y",IF(V229=2,"N",IF(V229=3,"X",""))) -> Y | U229: =OR(V229=2,V229=3) -> FALSE | V229: 1 | X229: =V229>0 -> TRUE | Y229: FALSE | Z229: =Z227+1 -> 119 | AA229: T
C232: =IF(V229=2,"(*)","") ->  | D232: =lang!A153 -> If not 'Yes' please specify | Q232: =IF(IF(ISERROR(I232),TRUE,AND(LEN(I232)>0,V229<2)),lang!A155,"") ->  | X232: =OR(AND(LEN(I232)=0,NOT(U229)),AND(LEN(I232)>0,(U229))) -> TRUE | Y232: =IF(ISERROR(I232),TRUE,LEN(I232)>=400) -> FALSE | Z232: =Z229+1 -> 120 | AA232: I
T235: end
D236: =lang!A154 -> Issuing Government Agency | X236: =LEN(I236)>0 -> FALSE | Y236: =IF(ISERROR(I236),TRUE,LEN(I236)>=120) -> FALSE | Z236: 116 | AA236: I
B239: =HYPERLINK(Status!$L$9,Status!$K$9) -> Please check the next sheet (Status) | C239: =HYPERLINK(B239,#REF!) ->  | K239: =HYPERLINK(I239,#REF!) ->  | O239: =HYPERLINK(M239,#REF!) -> 
B240: =Status!$K$9 -> Please check the next sheet (Status) | K240: =HYPERLINK(I240,#REF!) ->  | O240: =HYPERLINK(M240,#REF!) -> 

Sheet Transport Services
F1: =IF(X1,lang!A30,lang!A31) -> This sheet doesn't need to be answered | X1: ='General Information'!U110 -> FALSE | Y1: =IF(R_TS,AB10,0) -> 0
F2: =IF(X1,IF(Y2,lang!A32,IF(X2,lang!A33,lang!A34)),"") ->  | X2: =X10 -> FALSE | Y2: =Y10 -> FALSE
F3: =IF(Y3,lang!A35,IF(X3,lang!A36,lang!A37)) -> The document is not yet completed | X3: =NOT(Status!F20) -> FALSE | Y3: =Status!G20 -> FALSE
A5: Gulf SQAS 2025
A6: =lang!A40 -> ASSESSMENT INFORMATION AND SCOPE - Part I
A7: =lang!A11 -> Transport Services
A8: =lang!A42 -> (Items marked with a (*) and/or magenta background must always be completed)
A9: =lang!A43 -> (For checkboxes "checked" means "Yes", "unchecked" - "No")
X10: =AND(X12:X160) -> FALSE | Y10: =(OR(Y12:Y160)) -> FALSE | AB10: =SUM(AB12:AB219) -> 1
C11: 0.3.1 | D11: =lang!A157 -> Site information | T11: value | U11: yes | V11: raw | W11: Validation | X11: Mand OK | Y11: Error
C12: =IF(R_TS,"(*)","") ->  | D12: =lang!A158 -> Operational activities present at the site | E12: =lang!B158 -> Operational activities present at the site | F12: =lang!C158 -> Betriebliche Tätigkeiten am Standort | G12: =lang!D158 -> Actividades operacionais referidas no sítio internet | H12: =lang!E158 -> Activités opérationnelles présentes sur le site | I12: =lang!F158 -> Actividades operacionales presentes en la instalación | K12: =lang!A$755 -> Yes | O12: =lang!A$756 -> No | R12: =lang!A159 -> (any activity mentioned in 0.3.2) | T12: =IF(V12=1,"Y",IF(V12=2,"N","")) -> N | U12: =V12=2 -> TRUE | V12: 2 | X12: =OR(NOT(R_TS),V12>0) -> TRUE | Z12: 2 | AA12: T | AB12: =IF(U12,0,-1) -> 0
C14: 0.3.2 | D14: =lang!A160 -> Main Activities
D15: =lang!A161 -> Road transport service bulk liquids | K15: =lang!A$755 -> Yes | O15: =lang!A$756 -> No | T15: =IF(V15=1,"Y",IF(V15=2,"N","")) -> Y | U15: =V15=1 -> TRUE | V15: 1 | X15: TRUE | Z15: 4 | AA15: T
D16: =lang!A162 -> Road transport service bulk solids | K16: =lang!A$755 -> Yes | O16: =lang!A$756 -> No | T16: N | U16: FALSE | V16: 2 | X16: TRUE | Z16: =Z15+1 -> 5 | AA16: T
D17: =lang!A163 -> Road transport service packed goods | K17: =lang!A$755 -> Yes | O17: =lang!A$756 -> No | T17: Y | U17: TRUE | V17: 1 | X17: TRUE | Z17: =Z16+1 -> 6 | AA17: T
D18: =lang!A164 -> Intermodal transport | K18: =lang!A$755 -> Yes | O18: =lang!A$756 -> No | T18: Y | U18: TRUE | V18: 1 | X18: TRUE | Z18: =Z17+1 -> 7 | AA18: T
D19: =lang!A165 -> Freight forwarder | K19: =lang!A$755 -> Yes | O19: =lang!A$756 -> No | T19: Y | U19: TRUE | V19: 1 | X19: TRUE | Z19: =Z18+1 -> 8 | AA19: T
D20: =lang!A166 -> Transporting Hazardous Chemicals | K20: =lang!A$755 -> Yes | O20: =lang!A$756 -> No | T20: Y | U20: TRUE | V20: 1 | X20: TRUE | Z20: =Z19+1 -> 9 | AA20: T
C22: 0.3.3 | D22: =lang!A167 -> Subactivities
C23: =IF(R_TS,"(*)","") ->  | D23: =lang!A168 -> Temporary storage - transfer | K23: =lang!A$755 -> Yes | O23: =lang!A$756 -> No | T23: =IF(V23=1,"Y",IF(V23=2,"N","")) -> N | U23: =V23=1 -> FALSE | V23: 2 | X23: =OR(NOT(R_TS),V23>0) -> TRUE | Z23: 10 | AA23: T | AB23: =IF(U23,1,0) -> 0
D24: =lang!A169 -> Maintenance workshop | K24: =lang!A$755 -> Yes | O24: =lang!A$756 -> No | T24: Y | U24: TRUE | V24: 1 | X24: TRUE | Z24: =Z23+1 -> 11 | AA24: T
C25: =IF(R_TS,"(*)","") ->  | D25: =lang!A170 -> Transfer (intermodal) terminal | K25: =lang!A$755 -> Yes | O25: =lang!A$756 -> No | T25: N | U25: FALSE | V25: 2 | X25: =OR(NOT(R_TS),V25>0) -> TRUE | Z25: =Z24+1 -> 12 | AA25: T | AB25: =IF(U25,2,0) -> 0
D26: =lang!A171 -> Fixed storage tanks present (also tanks for fuel station) | K26: =lang!A$755 -> Yes | O26: =lang!A$756 -> No | T26: N | U26: FALSE | V26: 2 | X26: TRUE | Z26: 13 | AA26: T
D27: =lang!A172 -> Tankcontainer heating | K27: =lang!A$755 -> Yes | O27: =lang!A$756 -> No | T27: N | U27: FALSE | V27: 2 | X27: TRUE | Z27: 14 | AA27: T
D28: =lang!A173 -> Tank and/or trailer repair | K28: =lang!A$755 -> Yes | O28: =lang!A$756 -> No | T28: N | U28: FALSE | V28: 2 | X28: TRUE | Z28: 15 | AA28: T
D29: =lang!A174 -> Empty container handling | K29: =lang!A$755 -> Yes | O29: =lang!A$756 -> No | T29: N | U29: FALSE | V29: 2 | X29: TRUE | Z29: 16 | AA29: T
D30: =lang!A175 -> Full container handling | K30: =lang!A$755 -> Yes | O30: =lang!A$756 -> No | T30: N | U30: FALSE | V30: 2 | X30: TRUE | Z30: 17 | AA30: T
D31: =lang!A176 -> Airfreight (linked) | K31: =lang!A$755 -> Yes | O31: =lang!A$756 -> No | T31: N | U31: FALSE | V31: 2 | X31: TRUE | Z31: 18 | AA31: T
D32: =lang!A177 -> Shuttle service | K32: =lang!A$755 -> Yes | O32: =lang!A$756 -> No | T32: N | U32: FALSE | V32: 2 | X32: TRUE | Z32: 19 | AA32: T
C34: 0.3.4 | D34: =lang!A178 -> Geographical coverage
D35: =lang!A179 -> National transport | K35: =lang!A$755 -> Yes | O35: =lang!A$756 -> No | T35: =IF(V35=1,"Y",IF(V35=2,"N","")) -> Y | U35: =V35=1 -> TRUE | V35: 1 | X35: TRUE | Z35: 22 | AA35: T
D36: =lang!A180 -> International transport | K36: =lang!A$755 -> Yes | O36: =lang!A$756 -> No | T36: =IF(V36=1,"Y",IF(V36=2,"N","")) -> Y | U36: =V36=1 -> TRUE | V36: 1 | X36: TRUE | Z36: =Z35+1 -> 23 | AA36: T
D37: =lang!A181 -> Member of GCC | K37: =lang!A$755 -> Yes | O37: =lang!A$756 -> No | T37: =IF(V37=1,"Y",IF(V37=2,"N","")) -> N | U37: =V37=1 -> FALSE | V37: 2 | X37: TRUE | Z37: =Z36+1 -> 24 | AA37: T
C39: 0.3.5 | D39: =lang!A182 -> Type of operators/ drivers
C40: =IF(R_TS,"(*)","") ->  | D40: =lang!A183 -> Own company drivers | K40: =lang!A$755 -> Yes | O40: =lang!A$756 -> No | T40: =IF(V40=1,"Y",IF(V40=2,"N","")) -> Y | U40: =V40=1 -> TRUE | V40: 1 | X40: =AND(OR(NOT(R_TS),V40>0),NOT(AND(LEN(K41)>0,NOT(U40)))) -> TRUE | Z40: 24 | AA40: T | AB40: =IF(U40,0,-1) -> 0
C41: =IF(AND(R_TS,U40),"(*)","") ->  | D41: =lang!A184 -> Number of own company drivers | E41: =lang!B184 -> Number of own company drivers | F41: =lang!C184 -> Anzahl eigene Fahrer | G41: =lang!D184 -> Número de motoristas próprios | H41: =lang!E184 -> Nombre de chauffeurs appartenant à la société | R41: =IF(IF(ISERROR(K41),FALSE,AND(LEN(K41)>0,NOT(U40))),lang!A185,"") ->  | U41: =OR(U43:U50) -> FALSE | W41: =OR(LEN(K41)=0,ISNUMBER(VALUE(K41))) -> TRUE | X41: =OR(AND(LEN(K41)>0,U40),AND(LEN(K41)=0,NOT(U40))) -> FALSE | Y41: =IF(ISERROR(K41),TRUE,IF(ISERROR(W41),TRUE,NOT(W41))) -> FALSE | Z41: =Z40+1 -> 25 | AA41: K | AB41: =IF(U41,2,0) -> 0
C43: =IF(R_TS,"(*)","") ->  | D43: =lang!A186 -> Fully integrated subcontractors | K43: =lang!A$755 -> Yes | O43: =lang!A$756 -> No | T43: =IF(V43=1,"Y",IF(V43=2,"N","")) -> N | U43: =V43=1 -> FALSE | V43: 2 | X43: =AND(OR(NOT(R_TS),V43>0),NOT(AND(LEN(K45)>0,NOT(U43)))) -> TRUE | Z43: 26 | AA43: T | AB43: =IF(U43,1,0) -> 0
C45: =IF(AND(R_TS,U43),"(*)","") ->  | D45: =lang!A187 -> Number of fully integrated drivers | E45: =lang!B187 -> Number of fully integrated drivers | F45: =lang!C187 -> Anzahl der vollintergrierten Fahrer | G45: =lang!D187 -> Número de motoristas totalmente integrados | H45: =lang!E187 -> Nombre de sous-traitants complètement intégrés | R45: =IF(IF(ISERROR(K45),FALSE,AND(LEN(K45)>0,NOT(U43))),lang!A188,"") ->  | W45: =OR(LEN(K45)=0,ISNUMBER(VALUE(K45))) -> TRUE | X45: =OR(AND(LEN(K45)>0,U43),AND(LEN(K45)=0,NOT(U43))) -> TRUE | Y45: =IF(ISERROR(K45),TRUE,IF(ISERROR(W45),TRUE,NOT(W45))) -> FALSE | Z45: =Z43+1 -> 27 | AA45: K
C47: =IF(R_TS,"(*)","") ->  | D47: =lang!A189 -> Non-integrated subcontractors | K47: =lang!A$755 -> Yes | O47: =lang!A$756 -> No | T47: =IF(V47=1,"Y",IF(V47=2,"N","")) -> N | U47: =V47=1 -> FALSE | V47: 2 | X47: =AND(OR(NOT(R_TS),V47>0),NOT(AND(LEN(K48)>0,NOT(U47)))) -> TRUE | Z47: 28 | AA47: T | AB47: =IF(U47,1,0) -> 0
C48: =IF(AND(R_TS,U47),"(*)","") ->  | D48: =lang!A190 -> Average of non-integrated drivers per day | E48: =lang!B190 -> Average of non-integrated drivers per day | F48: =lang!C190 -> Durchschnitt nicht integrierter Fahrer pro Tag | G48: =lang!D190 -> Média diária de motoristas não integrados | H48: =lang!E190 -> Moyenne journalière des sous-traitants ponctuels | I48: =lang!F190 -> Media diaria de conductores no integrados | R48: =IF(IF(ISERROR(K48),FALSE,AND(LEN(K48)>0,NOT(U47))),lang!A191,"") ->  | W48: =OR(LEN(K48)=0,ISNUMBER(VALUE(K48))) -> TRUE | X48: =OR(AND(LEN(K48)>0,U47),AND(LEN(K48)=0,NOT(U47))) -> TRUE | Y48: =IF(ISERROR(K48),TRUE,IF(ISERROR(W48),TRUE,NOT(W48))) -> FALSE | Z48: =Z47+1 -> 29 | AA48: K
C50: =IF(R_TS,"(*)","") ->  | D50: =lang!A192 -> Spot subcontracting | K50: =lang!A$755 -> Yes | O50: =lang!A$756 -> No | T50: =IF(V50=1,"Y",IF(V50=2,"N","")) -> N | U50: =V50=1 -> FALSE | V50: 2 | X50: =AND(OR(NOT(R_TS),V50>0),NOT(AND(LEN(K52)>0,NOT(U50)))) -> TRUE | Z50: 30 | AA50: T
C52: =IF(AND(R_TS,U50),"(*)","") ->  | D52: =lang!A193 -> Average of spot drivers per day | E52: =lang!B193 -> Average of spot drivers per day | F52: =lang!C193 -> Durchschnitt Spot Fahrer pro Tag | G52: =lang!D193 -> Média diária de motoristas esporáricos (spot) | H52: =lang!E193 -> Moyenne journalière des sous-traitants ponctuels | R52: =IF(IF(ISERROR(K52),FALSE,AND(LEN(K52)>0,NOT(U50))),lang!A194,"") ->  | W52: =OR(LEN(K52)=0,ISNUMBER(VALUE(K52))) -> TRUE | X52: =OR(AND(LEN(K52)>0,U50),AND(LEN(K52)=0,NOT(U50))) -> TRUE | Y52: =IF(ISERROR(K52),TRUE,IF(ISERROR(W52),TRUE,NOT(W52))) -> FALSE | Z52: =Z50+1 -> 31 | AA52: K
C54: =IF(R_TS,"(*)","") ->  | D54: =lang!A195 -> Number of office employees | E54: =lang!B195 -> Number of office employees | F54: =lang!C195 -> Anzahl derBüroangestellten | G54: =lang!D195 -> Número de trabalhadores da área administrativa | H54: =lang!E195 -> Nombre d'employés | J54: 50 | W54: =OR(LEN(J54)=0,ISNUMBER(VALUE(J54))) -> TRUE | X54: =OR(NOT(R_TS),LEN(J54)>0) -> TRUE | Y54: =IF(ISERROR(J54),TRUE,IF(ISERROR(W54),TRUE,NOT(W54))) -> FALSE | Z54: 32 | AA54: J
C56: =IF(R_TS,"(*)","") ->  | D56: =lang!A196 -> Number of operators (others than drivers) | J56: 0 | W56: =OR(LEN(J56)=0,ISNUMBER(VALUE(J56))) -> TRUE | X56: =OR(NOT(R_TS),LEN(J56)>0) -> TRUE | Y56: =IF(ISERROR(J56),TRUE,IF(ISERROR(W56),TRUE,NOT(W56))) -> FALSE | Z56: 33 | AA56: J
C58: 0.3.6 | D58: =lang!A197 -> Percentage transported
C59: =IF(AND(R_TS,U40),"(*)","") ->  | D59: =lang!A198 -> Own company drivers | E59: =lang!B198 -> Own company drivers | F59: =lang!C198 -> Eigene Fahrer | G59: =lang!D198 -> Motoristas trabalhadores da empresa | H59: =lang!E198 -> Chauffeurs appartenant à la société | I59: % | J59: 100 | R59: =IF(IF(ISERROR(J59),FALSE,AND(LEN(J59)>0,NOT(U40))),lang!A185,"") ->  | W59: =OR(LEN(J59)=0,ISNUMBER(VALUE(J59))) -> TRUE | X59: =OR(AND(LEN(J59)>0,U40),AND(LEN(J59)=0,NOT(U40))) -> TRUE | Y59: =IF(ISERROR(J59),TRUE,IF(ISERROR(W59),TRUE,NOT(W59))) -> FALSE | Z59: 34 | AA59: J
C61: =IF(AND(R_TS,U43),"(*)","") ->  | D61: =lang!A199 -> Fully integrated subcontractors | E61: =lang!B199 -> Fully integrated subcontractors | F61: =lang!C199 -> Voll integrierte Unterauftragnehmer / Unternehmer | G61: =lang!D199 -> Subcontratados totalmente integrados | H61: =lang!E199 -> Sous-traitants complètement intégrés | I61: % | R61: =IF(IF(ISERROR(J61),FALSE,AND(LEN(J61)>0,NOT(U43))),lang!A188,"") ->  | W61: =OR(LEN(J61)=0,ISNUMBER(VALUE(J61))) -> TRUE | X61: =OR(AND(LEN(J61)>0,U43),AND(LEN(J61)=0,NOT(U43))) -> TRUE | Y61: =IF(ISERROR(J61),TRUE,IF(ISERROR(W61),TRUE,NOT(W61))) -> FALSE | Z61: =Z59+1 -> 35 | AA61: J
C63: =IF(AND(R_TS,U47),"(*)","") ->  | D63: =lang!A200 -> Non-integrated subcontractors | E63: =lang!B200 -> Non-integrated subcontractors | F63: =lang!C200 -> Nicht integrierte Unterauftragnehmer / Unternehmer | G63: =lang!D200 -> Subcontratados não integrados | H63: =lang!E200 -> Sous-traitants non intégrés | I63: % | R63: =IF(IF(ISERROR(J63),FALSE,AND(LEN(J63)>0,NOT(U47))),lang!A191,"") ->  | W63: =OR(LEN(J63)=0,ISNUMBER(VALUE(J63))) -> TRUE | X63: =OR(AND(LEN(J63)>0,U47),AND(LEN(J63)=0,NOT(U47))) -> TRUE | Y63: =IF(ISERROR(J63),TRUE,IF(ISERROR(W63),TRUE,NOT(W63))) -> FALSE | Z63: =Z61+1 -> 36 | AA63: J
C65: =IF(AND(R_TS,U50),"(*)","") ->  | D65: =lang!A201 -> Spot subcontracting | E65: =lang!B201 -> Spot subcontracting | F65: =lang!C201 -> Spotdienstleister | G65: =lang!D201 -> Subcontratação esporádica (spot) | H65: =lang!E201 -> Sous-traitants ponctuels | I65: % | R65: =IF(IF(ISERROR(J65),FALSE,AND(LEN(J65)>0,NOT(U50))),lang!A194,"") ->  | W65: =OR(LEN(J65)=0,ISNUMBER(VALUE(J65))) -> TRUE | X65: =OR(AND(LEN(J65)>0,U50),AND(LEN(J65)=0,NOT(U50))) -> TRUE | Y65: =IF(ISERROR(J65),TRUE,IF(ISERROR(W65),TRUE,NOT(W65))) -> FALSE | Z65: =Z63+1 -> 37 | AA65: J
C67: 0.3.7 | D67: =lang!A202 -> Type of transport transported by subcontractor
F68: =lang!A203 -> Bulk | I68: =lang!A204 -> Packed
D70: =CONCATENATE(" ",lang!A205) -> Liquid | F70: % | I70: % | T70: =IF(U70,"Y","") ->  | U70: FALSE | V70: =T71 ->  | W70: =OR(LEN(G70)=0,ISNUMBER(VALUE(G70))) -> TRUE | X70: =OR(AND(LEN(G70)>0,U70),AND(LEN(G70)=0,NOT(U70))) -> TRUE | Y70: =IF(ISERROR(G70),TRUE,IF(ISERROR(W70),TRUE,NOT(W70))) -> FALSE | Z70: 39|40|45|46 | AA70: T|G|V|K
U71: FALSE | W71: =OR(LEN(K70)=0,ISNUMBER(VALUE(K70))) -> TRUE | X71: =OR(AND(LEN(K70)>0,U71),AND(LEN(K70)=0,NOT(U71))) -> TRUE | Y71: =IF(ISERROR(K70),TRUE,IF(ISERROR(W71),TRUE,NOT(W71))) -> FALSE
D72: =CONCATENATE(" ",lang!A206) -> Solid | F72: % | G72: 0 | I72: % | K72: 100 | T72: Y | U72: TRUE | V72: =T73 -> Y | W72: =OR(LEN(G72)=0,ISNUMBER(VALUE(G72))) -> TRUE | X72: =OR(AND(LEN(G72)>0,U72),AND(LEN(G72)=0,NOT(U72))) -> TRUE | Y72: =IF(ISERROR(G72),TRUE,IF(ISERROR(W72),TRUE,NOT(W72))) -> FALSE | Z72: 41|42|47|48 | AA72: T|G|V|K
T73: Y | U73: TRUE | W73: =OR(LEN(K72)=0,ISNUMBER(VALUE(K72))) -> TRUE | X73: =OR(AND(LEN(K72)>0,U73),AND(LEN(K72)=0,NOT(U73))) -> TRUE | Y73: =IF(ISERROR(K72),TRUE,IF(ISERROR(W73),TRUE,NOT(W73))) -> FALSE
D74: =CONCATENATE(" ",lang!A207) -> Gas | F74: % | I74: % | U74: FALSE | V74: =T75 ->  | W74: =OR(LEN(G74)=0,ISNUMBER(VALUE(G74))) -> TRUE | X74: =OR(AND(LEN(G74)>0,U74),AND(LEN(G74)=0,NOT(U74))) -> TRUE | Y74: =IF(ISERROR(G74),TRUE,IF(ISERROR(W74),TRUE,NOT(W74))) -> FALSE | Z74: 43|44|49|50 | AA74: T|G|V|K
U75: FALSE | W75: =OR(LEN(K74)=0,ISNUMBER(VALUE(K74))) -> TRUE | X75: =OR(AND(LEN(K74)>0,U75),AND(LEN(K74)=0,NOT(U75))) -> TRUE | Y75: =IF(ISERROR(K74),TRUE,IF(ISERROR(W75),TRUE,NOT(W75))) -> FALSE
C77: 0.3.8 | D77: =lang!A208 -> Products
D78: =lang!A209 -> Tonnage chem. transported/handled per year | E78: =lang!B209 -> Tonnage chem. transported/handled per year | F78: =lang!C209 -> Gesamttonnage der transportierten chemischen Produkte pro Jahr? | G78: =lang!D209 -> Tonelagem de produtos químicos transportados por ano | H78: =lang!E209 -> Tonnage des produits chimiques transportés/ manutentionnés par an | W78: =OR(LEN(J78)=0,ISNUMBER(VALUE(J78))) -> TRUE | X78: TRUE | Y78: =IF(ISERROR(J78),TRUE,IF(ISERROR(W78),TRUE,NOT(W78))) -> FALSE | Z78: 52 | AA78: J
C80: =IF(R_TS,"(*)","") ->  | D80: =lang!A210 -> Are dangerous goods transported/handled? | E80: =lang!B210 -> Are dangerous goods transported/handled? | F80: =lang!C210 -> Werden Gefahrgüter transportiert / gehandelt? | G80: =lang!D210 -> Os produtos transportados são perigosos? | H80: =lang!E210 -> Des matières dangereuses sont-elles transportées ou manutentionnées ? | K80: =lang!A$755 -> Yes | O80: =lang!A$756 -> No | T80: =IF(V80=1,"Y",IF(V80=2,"N","")) -> N | U80: =V80=1 -> FALSE | V80: 2 | W80: =OR(U80,NOT(OR(U86:U131))) -> TRUE | X80: =AND(OR(NOT(R_TS),V80>0),W80) -> TRUE | Z80: 53 | AA80: T | AB80: =IF(U80,3,0) -> 0
D82: =lang!A211 -> If yes :
C83: =IF(U80,"(*)","") ->  | D83: =lang!A212 -> % dangerous goods in regard to the total tonnage | E83: =lang!B212 -> % dangerous goods in regard to the total tonnage | F83: =lang!C212 -> Prozentanteil der gefährlichen Güter an der Gesamttonnage | G83: =lang!D212 -> % de mercadorias perigosas sobre a tonelagem total | H83: =lang!E212 -> Quel pourcentage du tonnage total est effectué en matières dangereuses ? | I83: % | S83: =IF(IF(ISERROR(K83),FALSE,AND(LEN(K83)>0,NOT(U80))),lang!A213,"") ->  | W83: =OR(LEN(K83)=0,ISNUMBER(VALUE(K83))) -> TRUE | X83: =OR(AND(LEN(K83)>0,U80),AND(LEN(K83)=0,NOT(U80))) -> TRUE | Y83: =IF(ISERROR(J83),TRUE,IF(ISERROR(W83),TRUE,NOT(W83))) -> FALSE | Z83: 54 | AA83: K
D84: =lang!#REF! ->  | E84: =lang!#REF! ->  | F84: =lang!#REF! ->  | G84: =lang!#REF! ->  | H84: =lang!#REF! -> 
D85: =lang!A216 -> Class of products transported
D86: =lang!A217 -> Class 1 : Explosive substances and articles | E86: =lang!B217 -> Class 1 : Explosive substances and articles | F86: =lang!C217 -> Klasse 1: Explosive Stoffe und Gegenstände mit Explosivstoff | G86: =lang!D218 -> Classe 2 : Gases | H86: =lang!E217 -> Classe 1 : Matières et objets explosibles | I86: =lang!F217 -> Clase 1: Materias y objetos explosivos | L86: =lang!A$755 -> Yes | P86: =lang!A$756 -> No | S86: =IF(AND(U86,NOT($U$80)),lang!A$214,"") ->  | T86: =IF(V86=1,"Y",IF(V86=2,"N","")) -> N | U86: =V86=1 -> FALSE | V86: 2 | X86: =OR(NOT(U86),U$80) -> TRUE | Z86: 55 | AA86: T
C87: =IF(W87,"(*)","") ->  | D87: =lang!A218 -> Class 2 : Gases | E87: =lang!B218 -> Class 2 : Gases | F87: =lang!C218 -> Klasse 2: Gase | G87: =lang!D219 -> Estes produtos são MPAR - mercadorias perigosas de alto risco (ADR 1.10) ? | H87: =lang!E218 -> Class 2 : Gaz | I87: =lang!F218 -> Clase 2: Gases | L87: =lang!A$755 -> Yes | P87: =lang!A$756 -> No | S87: =IF(AND(U87,NOT($U$80)),lang!A$214,"") ->  | T87: =IF(V87=1,"Y",IF(V87=2,"N","")) -> N | U87: =V87=1 -> FALSE | V87: 2 | W87: =AND(U88,NOT(U87)) -> FALSE | X87: =AND(OR(NOT(U87),U$80),OR(U87,NOT(U88))) -> TRUE | Z87: =Z86+1 -> 56 | AA87: T
D88: =lang!A219 -> Are these products High Consequence Dangerous Goods? | M88: =lang!A$755 -> Yes | Q88: =lang!A$756 -> No | S88: =IF(AND(U88,NOT(U87)),lang!A$215,"") ->  | T88: =IF(V88=1,"Y",IF(V88=2,"N","")) -> N | U88: =V88=1 -> FALSE | V88: 2 | X88: =OR(NOT(U88),AND(U87,U$80)) -> TRUE | Z88: =Z87+1 -> 57 | AA88: T
D90: =lang!A220 -> Flammable gases : tank > 3000l or Toxic gases (excl. Aersols) | E90: =lang!B220 -> Flammable gases : tank > 3000l or Toxic gases (excl. Aersols) | F90: =lang!C220 -> Entzündbare Gase: Tank > 3000l oder Giftige Gase (exkl. Aerosole) | G90: =lang!D221 -> Classe 3 : Líquidos inflamáveis | H90: =lang!E220 -> Gaz inflammables : citernes >3000l ou gaz toxiques (excl. Aérosols) | I90: =lang!F220 -> :cisterna > 3000 l Gas Tossico | M90: =lang!G220 -> Gas infiammabili : cisterna > 3000 Lt o Gas Tossici (esclusi Aerosol) | N90: =lang!H220 -> Brandfarlige gasser : tank > 3000L eller giftige gasser (ekskl. Aersols) | Q90: =lang!I220 -> Syttyvät kaasut: säiliö > 3000l tai myrkyllisiä kaasuja (poislukien aerosolit) | R90: =lang!J220 -> Gazy palne: cysterny pow 3000l lub gazy toksyczne (za wyjątkiem aeorozoli)
C91: =IF(W91,"(*)","") ->  | D91: =lang!A221 -> Class 3 : Flammable liquids | E91: =lang!B221 -> Class 3 : Flammable liquids | F91: =lang!C221 -> Klasse 3: Entzündbare flüssige Stoffe | G91: =lang!D222 -> Estes produtos são MPAR - mercadorias perigosas de alto risco (ADR 1.10) ? | H91: =lang!E221 -> Classe 3 : liquides inflammables | I91: =lang!F221 -> Clase 3: Líquidos inflamables | L91: =lang!A$755 -> Yes | P91: =lang!A$756 -> No | S91: =IF(AND(U91,NOT($U$80)),lang!A$214,"") ->  | T91: =IF(V91=1,"Y",IF(V91=2,"N","")) -> N | U91: =V91=1 -> FALSE | V91: 2 | W91: =AND(U92,NOT(U91)) -> FALSE | X91: =AND(OR(NOT(U91),U$80),OR(U91,NOT(U92))) -> TRUE | Z91: =Z88+1 -> 58 | AA91: T
D92: =lang!A222 -> Are these products High Consequence Dangerous Goods? | M92: =lang!A$755 -> Yes | Q92: =lang!A$756 -> No | S92: =IF(AND(U92,NOT(U91)),lang!A$215,"") ->  | T92: =IF(V92=1,"Y",IF(V92=2,"N","")) -> N | U92: =V92=1 -> FALSE | V92: 2 | X92: =OR(NOT(U92),AND(U91,U$80)) -> TRUE | Z92: =Z91+1 -> 59 | AA92: T
D94: =lang!A223 -> Flammable liquids of packaging groups I and II : tanks > 3000l or Desenitized explosives | E94: =lang!B223 -> Flammable liquids of packaging groups I and II : tanks > 3000l or Desenitized explosives | F94: =lang!C223 -> Brennbare Flüssifgkeiten der Verpackungsgruppen I und II : Tanks > 3000l oder Densibilisierte explosive Stoffe | G94: =lang!D224 -> Classe 4.1. : Matérias sólidas inflamáveis, matérias auto-reactivas e matérias explosivas dessensibilizadas sólidas | H94: =lang!E224 -> Class 4.1. : Matières solides inflammables, matières autoréactives et matières solides explosibles désensibilisées | I94: =lang!F223 -> Líquidos inflamables de grupo de embalaje I y II: cisternas > 3000L o explosivos desensibilizados. | M94: =lang!G223 -> Liquidi infiammabili del gruppo di imballagio I e II: cisterne > 3000l o esplosivi desensibilizzati. | N94: =lang!H223 -> Brandfarlige væsker af emballagegruppe I og II : tanke > 3000L eller desensibiliserede sprængstoffer | Q94: =lang!I223 -> Pakkausluokkien I ja II palavat nesteet säiliöissä > 3000l tai epäherkistetyt kiinteät räjähdysaineet | R94: =lang!J223 -> Ciecze palne w grupach pakowania I lub II: cysterny pow 3000 l. Materiały wybuchowe odczulone
C95: =IF(W95,"(*)","") ->  | D95: =lang!A224 -> Class 4.1. : Flammable solids, self-reactive substances and solid desensitized explosives. | E95: =lang!B224 -> Class 4.1. : Flammable solids, self-reactive substances and solid desensitized explosives. | F95: =lang!C224 -> Klasse 4.1: Entzündbare feste Stoffe, selbstzersetzliche Stoffe und desensibilisierte Stoffe explosive feste Stoffe | G95: =lang!D225 -> Estes produtos são MPAR - mercadorias perigosas de alto risco (ADR 1.10) ? | H95: =lang!E225 -> Ces produits sont-ils des marchandises dangereuses à haut risque (MDHR) | I95: =lang!F224 -> Clase 4.1: Sólidos inflamables, autoreactivos y explosivos desensibilizados | L95: =lang!A$755 -> Yes | P95: =lang!A$756 -> No | S95: =IF(AND(U95,NOT($U$80)),lang!A$214,"") ->  | T95: =IF(V95=1,"Y",IF(V95=2,"N","")) -> N | U95: =V95=1 -> FALSE | V95: 2 | W95: =AND(U97,NOT(U95)) -> FALSE | X95: =AND(OR(NOT(U95),U$80),OR(U95,NOT(U97))) -> TRUE | Z95: =Z92+1 -> 60 | AA95: T
D97: =lang!A225 -> Are these products High Consequence Dangerous Goods? | M97: =lang!A$755 -> Yes | Q97: =lang!A$756 -> No | S97: =IF(AND(U97,NOT(U95)),lang!A$215,"") ->  | T97: =IF(V97=1,"Y",IF(V97=2,"N","")) -> N | U97: =V97=1 -> FALSE | V97: 2 | X97: =OR(NOT(U97),AND(U95,U$80)) -> TRUE | Z97: =Z95+1 -> 61 | AA97: T
D99: =lang!A226 -> Desensitized explosives | E99: =lang!B226 -> Desensitized explosives | F99: =lang!C226 -> Desensibilisierte explosive Stoffe | G99: =lang!D227 -> Classe 4.2. : Matérias espontaneamente inflamáveis | H99: =lang!E227 -> Class 4.2. : Matières sujettes à l'inflammation spontanée | I99: =lang!F226 -> Explosivos desensibilizados | M99: =lang!G226 -> Esplosivi desensibilizzati | N99: =lang!H226 -> Desensibiliserede sprængstoffer | Q99: =lang!I226 -> Epäherkistetyt kiinteät räjähdysaineet | R99: =lang!J226 -> Materiały wybuchowe odczulone
C100: =IF(W100,"(*)","") ->  | D100: =lang!A227 -> Class 4.2. : Substances liable for spontaneous combustion | E100: =lang!B227 -> Class 4.2. : Substances liable for spontaneous combustion | F100: =lang!C227 -> Klasse 4.2: Selbstentzündliche Stoffe | G100: =lang!D228 -> Estes produtos são MPAR - mercadorias perigosas de alto risco (ADR 1.10) ? | H100: =lang!E228 -> Ces produits sont-ils des produits dangereux à haut risque | I100: =lang!F227 -> Clase 4.2: Materias que reaccionan de forma espontánea | L100: =lang!A$755 -> Yes | P100: =lang!A$756 -> No | S100: =IF(AND(U100,NOT($U$80)),lang!A$214,"") ->  | T100: =IF(V100=1,"Y",IF(V100=2,"N","")) -> N | U100: =V100=1 -> FALSE | V100: 2 | W100: =AND(U102,NOT(U100)) -> FALSE | X100: =AND(OR(NOT(U100),U$80),OR(U100,NOT(U102))) -> TRUE | Z100: =Z97+1 -> 62 | AA100: T
D102: =lang!A228 -> Are these products High Consequence Dangerous Goods? | M102: =lang!A$755 -> Yes | Q102: =lang!A$756 -> No | S102: =IF(AND(U102,NOT(U100)),lang!A$215,"") ->  | T102: =IF(V102=1,"Y",IF(V102=2,"N","")) -> N | U102: =V102=1 -> FALSE | V102: 2 | X102: =OR(NOT(U102),AND(U100,U$80)) -> TRUE | Z102: =Z100+1 -> 63 | AA102: T
D104: =lang!A229 -> Packing group I : Tank > 3000l | E104: =lang!B229 -> Packing group I : Tank > 3000l | F104: =lang!C229 -> Verpackungsgruppe I : Tank > 3000 l | G104: =lang!D230 -> Classe 4.3. : Matérias que, em contacto com a àgua, libertem gases inflamáveis | H104: =lang!E230 -> Class 4.3. : Matières qui, au contact de l'eau, dégagent des gaz inflammables | I104: =lang!F229 -> Grupo de embalaje I: cisterna > 3000L | M104: =lang!G229 -> Gruppo di imballaggio I: Cisterna > 3000l | N104: =lang!H229 -> Emballagegruppe I: Tank > 3000L | Q104: =lang!I229 -> Pakkausryhmä I: Säiliö > 3000l | R104: =lang!J229 -> Grupa pakowania I: cysterny pow 3000 l
C105: =IF(W105,"(*)","") ->  | D105: =lang!A230 -> Class 4.3. : Substances which in contact with water, emit flammable gases | E105: =lang!B230 -> Class 4.3. : Substances which in contact with water, emit flammable gases | F105: =lang!C230 -> Klasse 4.3: Stoffe, die in Berührung mit Wasser entzündbare Gase entwickeln | G105: =lang!D231 -> Estes produtos são MPAR - mercadorias perigosas de alto risco (ADR 1.10) ? | H105: =lang!E231 -> Ces produits sont-ils des produits dangereux à haut risque | I105: =lang!F230 -> Clase 4.3: Materias que en contacto con el agua desprenden gases inflamables | L105: =lang!A$755 -> Yes | P105: =lang!A$756 -> No | S105: =IF(AND(U105,NOT($U$80)),lang!A$214,"") ->  | T105: =IF(V105=1,"Y",IF(V105=2,"N","")) -> N | U105: =V105=1 -> FALSE | V105: 2 | W105: =AND(U107,NOT(U105)) -> FALSE | X105: =AND(OR(NOT(U105),U$80),OR(U105,NOT(U107))) -> TRUE | Z105: =Z102+1 -> 64 | AA105: T
D107: =lang!A231 -> Are these products High Consequence Dangerous Goods? | M107: =lang!A$755 -> Yes | Q107: =lang!A$756 -> No | S107: =IF(AND(U107,NOT(U105)),lang!A$215,"") ->  | T107: =IF(V107=1,"Y",IF(V107=2,"N","")) -> N | U107: =V107=1 -> FALSE | V107: 2 | X107: =OR(NOT(U107),AND(U105,U$80)) -> TRUE | Z107: =Z105+1 -> 65 | AA107: T
D109: =lang!A232 -> Packing group I : Tank > 3000l | E109: =lang!B232 -> Packing group I : Tank > 3000l | F109: =lang!C232 -> Verpackungsgruppe I : Tank > 3000 l | G109: =lang!D233 -> Classe 5.1. : Matérias comburentes | H109: =lang!E233 -> Class 5.1. : Matières comburantes | I109: =lang!F232 -> Grupo de embalaje I: cisterna > 3000L | M109: =lang!G232 -> Gruppo di imballaggio I: Cisterna > 3000l | N109: =lang!H232 -> Emballagegruppe I: Tank > 3000L | Q109: =lang!I232 -> Pakkausryhmä I: Säiliö > 3000l | R109: =lang!J232 -> Grupa pakowania I: cysterny pow 3000 l
C110: =IF(W110,"(*)","") ->  | D110: =lang!A233 -> Class 5.1. : Oxidizing substances | E110: =lang!B233 -> Class 5.1. : Oxidizing substances | F110: =lang!C233 -> Klasse 5.1: Entzündend (oxydierend) wirkende Stoffe | G110: =lang!D234 -> Estes produtos são MPAR - mercadorias perigosas de alto risco (ADR 1.10) ? | H110: =lang!E234 -> Ces produits sont-ils des produits dangereux à haut risque | I110: =lang!F233 -> Clase 5.1: Materias comburentes | L110: =lang!A$755 -> Yes | P110: =lang!A$756 -> No | S110: =IF(AND(U110,NOT($U$80)),lang!A$214,"") ->  | T110: =IF(V110=1,"Y",IF(V110=2,"N","")) -> N | U110: =V110=1 -> FALSE | V110: 2 | W110: =AND(U111,NOT(U110)) -> FALSE | X110: =AND(OR(NOT(U110),U$80),OR(U110,NOT(U111))) -> TRUE | Z110: =Z107+1 -> 66 | AA110: T
D111: =lang!A234 -> Are these products High Consequence Dangerous Goods? | M111: =lang!A$755 -> Yes | Q111: =lang!A$756 -> No | S111: =IF(AND(U111,NOT(U110)),lang!A$215,"") ->  | T111: =IF(V111=1,"Y",IF(V111=2,"N","")) -> N | U111: =V111=1 -> FALSE | V111: 2 | X111: =OR(NOT(U111),AND(U110,U$80)) -> TRUE | Z111: =Z110+1 -> 67 | AA111: T
D113: =lang!A235 -> Oxidizing liquids of packing group I : Tank > 3000l or Perchlorates, ammonium nitrate, ammonium nitrate fertilisers and ammonium nitrate emulsions or suspensions or gels : Tanks > 3000l or Bulk > 3000l | E113: =lang!B235 -> Oxidizing liquids of packing group I : Tank > 3000l or Perchlorates, ammonium nitrate, ammonium nitrate fertilisers and ammonium nitrate emulsions or suspensions or gels : Tanks > 3000l or Bulk > 3000l | F113: =lang!C235 -> Oxidierende Flüssigkeiten der Verpackungsgruppe I : Tank > 3000l oder Perchlorate, Ammoniumnitrat, ammoniumnitrathaltige Düngemittel und Ammoniumnitrat-Emulsionen oder - Suspensionen oder Gele: Tank > 3000 l oder Bulk > 3000 kg | G113: =lang!D236 -> Classe 5.2. : Peróxidos organicos | H113: =lang!E236 -> Class 5.2. : Peroxydes organiques | I113: =lang!F235 -> Líquidos oxidantes de grupo de embalaje I: cisternas > 3000L o a granel Percloratos, nitrato amónico, fertilizantes de nitrato amónico o emulsiones, suspensiones o geles de nitrato amónico: cisternas > 3000L o a granel > 3000KG | M113: =lang!G235 -> Oxidizing liquidi del gruppo di imballaggio I: Cisterne > 3000l o Perclorati, nitrato ammonico, nitrato ammonico fertilizzante e nitratto ammonico emulsione o in sospensione o gel: Cisterne > 3000l o liquido > 3000 kg. | N113: =lang!H235 -> Brandnærende væsker af emballagegruppe I: Tank > 3000L eller uemballeret Perchlorates, ammonium nitrat, ammonium nitrat gødning og ammonium nitrat emulsioner eller suspensioner eller gel: Tanke > 3000L eller uemballeret > 3000 KG | Q113: =lang!I235 -> Pakkausryhmän I hapettavat nesteet: Säiliö > 3000l tai bulkkina Perkloratit, ammoniumnitraatti, ammoniumnitraatti lannoitteet ja ammoniumnitraatti emulsiot tai suspensiot tai geelit: Säiliöt > 3000l tai Bulkkina > 3000kg | R113: =lang!J235 -> Ciecze utleniajace grupa pakowanai I: cysterny pow 3000 l. Nadchlorany, azotan amonowy, nawozy na bazie azotanu amonowego oraz azotan amonowy w emulsji, zawiesinie lub żelu: W cysternach powyżej 3000 l lub luzem powyżej 3000 kg,
D114: =lang!A236 -> Class 5.2. : Organic peroxides | E114: =lang!B236 -> Class 5.2. : Organic peroxides | F114: =lang!C236 -> Klasse 5.2. Organische Peroxide | G114: =lang!D237 -> Classe 6.1. : Matérias tóxicas | H114: =lang!E237 -> Class 6.1. : Matières toxiques | I114: =lang!F236 -> Clase 5.2: Peróxidos Orgánicos | L114: =lang!A$755 -> Yes | P114: =lang!A$756 -> No | S114: =IF(AND(U114,NOT($U$80)),lang!A$214,"") ->  | T114: =IF(V114=1,"Y",IF(V114=2,"N","")) -> N | U114: =V114=1 -> FALSE | V114: 2 | X114: =OR(NOT(U114),U$80) -> TRUE | Z114: =Z111+1 -> 68 | AA114: T
C115: =IF(W115,"(*)","") ->  | D115: =lang!A237 -> Class 6.1. : Toxic substances | E115: =lang!B237 -> Class 6.1. : Toxic substances | F115: =lang!C237 -> Klasse 6.1: Giftige Stoffe | G115: =lang!D238 -> Estes produtos são MPAR - mercadorias perigosas de alto risco (ADR 1.10) ? | H115: =lang!E238 -> Ces produits sont-ils des produits dangereux à haut risque | I115: =lang!F237 -> Clase 6.1: Sustancias tóxicas | L115: =lang!A$755 -> Yes | P115: =lang!A$756 -> No | S115: =IF(AND(U115,NOT($U$80)),lang!A$214,"") ->  | T115: =IF(V115=1,"Y",IF(V115=2,"N","")) -> N | U115: =V115=1 -> FALSE | V115: 2 | W115: =AND(U116,NOT(U115)) -> FALSE | X115: =AND(OR(NOT(U115),U$80),OR(U115,NOT(U116))) -> TRUE | Z115: =Z114+1 -> 69 | AA115: T
D116: =lang!A238 -> Are these products High Consequence Dangerous Goods? | M116: =lang!A$755 -> Yes | Q116: =lang!A$756 -> No | S116: =IF(AND(U116,NOT(U115)),lang!A$215,"") ->  | T116: =IF(V116=1,"Y",IF(V116=2,"N","")) -> N | U116: =V116=1 -> FALSE | V116: 2 | X116: =OR(NOT(U116),AND(U115,U$80)) -> TRUE | Z116: =Z115+1 -> 70 | AA116: T
D118: =lang!A239 -> Toxic substances of packing group I
C119: =IF(W119,"(*)","") ->  | D119: =lang!A240 -> Class 6.2. : Infectious substances | E119: =lang!B240 -> Class 6.2. : Infectious substances | F119: =lang!C240 -> Klasse 6.2: Ansteckungsgefährliche Stoffe | G119: =lang!D241 -> Estes produtos são MPAR - mercadorias perigosas de alto risco (ADR 1.10) ? | H119: =lang!E241 -> Ces produits sont-ils des produits dangereux à haut risque | I119: =lang!F240 -> Clase 6.2: Sustancias infecciosas | L119: =lang!A$755 -> Yes | P119: =lang!A$756 -> No | S119: =IF(AND(U119,NOT($U$80)),lang!A$214,"") ->  | T119: =IF(V119=1,"Y",IF(V119=2,"N","")) -> N | U119: =V119=1 -> FALSE | V119: 2 | W119: =AND(U120,NOT(U119)) -> FALSE | X119: =AND(OR(NOT(U119),U$80),OR(U119,NOT(U120))) -> TRUE | Z119: =Z116+1 -> 71 | AA119: T
D120: =lang!A241 -> Are these products High Consequence Dangerous Goods? | M120: =lang!A$755 -> Yes | Q120: =lang!A$756 -> No | S120: =IF(AND(U120,NOT(U119)),lang!A$215,"") ->  | T120: =IF(V120=1,"Y",IF(V120=2,"N","")) -> N | U120: =V120=1 -> FALSE | V120: 2 | X120: =OR(NOT(U120),AND(U119,U$80)) -> TRUE | Z120: =Z119+1 -> 72 | AA120: T
D122: =lang!A242 -> Infectious substances of Cat A | E122: =lang!B242 -> Infectious substances of Cat A | F122: =lang!C242 -> Ansteckungsgefährliche Stoffe der Kategorie A | G122: =lang!D243 -> Classe 7 : Matérias radioactivas | H122: =lang!E243 -> Class 7 : Matières radioactives | I122: =lang!F242 -> Sustancias infecciosas de categoría A | M122: =lang!G242 -> Sostanze infettanti di Categoria A | N122: =lang!H242 -> Smittefarlige stoffer af Kat. A | Q122: =lang!I242 -> Kategoria A:n tartuntavaaralliset aineet | R122: =lang!J242 -> Substancje zakaźne Kat A
C123: =IF(V123,"(*)","") -> (*) | D123: =lang!A243 -> Class 7 : Radioactive material | E123: =lang!B243 -> Class 7 : Radioactive material | F123: =lang!C243 -> Klasse 7: Radioaktive Stoffe | G123: =lang!D244 -> Estes produtos são MPAR - mercadorias perigosas de alto risco (ADR 1.10) ? | H123: =lang!E244 -> Ces produits sont-ils des produits dangereux à haut risque | I123: =lang!F243 -> Clase 7: Materias radiactivas | L123: =lang!A$755 -> Yes | P123: =lang!A$756 -> No | S123: =IF(AND(U123,NOT($U$80)),lang!A$214,"") ->  | T123: =IF(V123=1,"Y",IF(V123=2,"N","")) -> N | U123: =V123=1 -> FALSE | V123: 2 | W123: =AND(U124,NOT(U123)) -> FALSE | X123: =AND(OR(NOT(U123),U$80),OR(U123,NOT(U124))) -> TRUE | Z123: =Z120+1 -> 73 | AA123: T
D124: =lang!A244 -> Are these products High Consequence Dangerous Goods? | M124: =lang!A$755 -> Yes | Q124: =lang!A$756 -> No | S124: =IF(AND(U124,NOT(U123)),lang!A$215,"") ->  | T124: =IF(V124=1,"Y",IF(V124=2,"N","")) -> N | U124: =V124=1 -> FALSE | V124: 2 | X124: =OR(NOT(U124),AND(U123,U$80)) -> TRUE | Z124: =Z123+1 -> 74 | AA124: T
D126: =lang!A245 -> Radioactive material see ADR table 1.10.5.for specs | E126: =lang!B245 -> Radioactive material see ADR table 1.10.5.for specs | F126: =lang!C245 -> Radioaktive Stoffe sieheAngaben in ADR Tabelle 1.10.5 | G126: =lang!D246 -> Classe 8 : Matérias corrosivas | H126: =lang!E246 -> Class 8 : Matières corrosives | I126: =lang!F245 -> Material radiactivo: ver tabla 1.10.5 para explicación | M126: =lang!G245 -> Materiali radioattivi vedere ADR tab. 1,10,5 per gli aspetti | N126: =lang!H245 -> Radioaktivt materiale se tabel 1.10.5 for specifikation | Q126: =lang!I245 -> Radioaktiiviset aineet, katso ADR talukkosta 1.10.5 yksilöinti | R126: =lang!J245 -> Materiały radioaktywne patrz tabela ADR 1.10.5
C127: =IF(V127,"(*)","") -> (*) | D127: =lang!A246 -> Class 8 : Corrosive substances | E127: =lang!B246 -> Class 8 : Corrosive substances | F127: =lang!C246 -> Klasse 8: Ätzende Stoffe | G127: =lang!D247 -> Estes produtos são MPAR - mercadorias perigosas de alto risco (ADR 1.10) ? | H127: =lang!E247 -> Ces produits sont-ils des produits dangereux à haut risque | I127: =lang!F246 -> Clase 8: Sustancias corrosivas | L127: =lang!A$755 -> Yes | P127: =lang!A$756 -> No | S127: =IF(AND(U127,NOT($U$80)),lang!A$214,"") ->  | T127: =IF(V127=1,"Y",IF(V127=2,"N","")) -> N | U127: =V127=1 -> FALSE | V127: 2 | W127: =AND(U128,NOT(U127)) -> FALSE | X127: =AND(OR(NOT(U127),U$80),OR(U127,NOT(U128))) -> TRUE | Z127: =Z124+1 -> 75 | AA127: T
D128: =lang!A247 -> Are these products High Consequence Dangerous Goods? | M128: =lang!A$755 -> Yes | Q128: =lang!A$756 -> No | S128: =IF(AND(U128,NOT(U127)),lang!A$215,"") ->  | T128: =IF(V128=1,"Y",IF(V128=2,"N","")) -> N | U128: =V128=1 -> FALSE | V128: 2 | X128: =OR(NOT(U128),AND(U127,U$80)) -> TRUE | Z128: =Z127+1 -> 76 | AA128: T
D130: =lang!A248 -> Packing group I : Tank > 3000l | E130: =lang!B248 -> Packing group I : Tank > 3000l | F130: =lang!C248 -> Verpackungsgruppe I : Tank > 3000 l | G130: =lang!D248 -> Grupo de embalagem GE I : Cisterna > 3000l | H130: =lang!E249 -> Class 9 : Matières et objets dangereux divers | I130: =lang!F248 -> Grupo de embalaje I: cisterna > 3000L | M130: =lang!G248 -> Gruppo di imballaggio I: Cisterna > 3000l | N130: =lang!H248 -> Emballagegruppe I: Tank > 3000L | Q130: =lang!I248 -> Pakkausluokka I: Säiliö > 3000l | R130: =lang!J248 -> Grupa pakowania I: cysterna pow 3000 l
D131: =lang!A249 -> Class 9 : Miscellaneous dangerous substances and articles | E131: =lang!B249 -> Class 9 : Miscellaneous dangerous substances and articles | F131: =lang!C249 -> Klasse 9: Verschiedene gefährliche Stoffe und Gegenstände | G131: =lang!D249 -> Classe 9 : Matérias e objectos perigosos | H131: =lang!#REF! ->  | I131: =lang!F249 -> Clase 9: Materias y objetos con riesgos diversos | L131: =lang!A$755 -> Yes | P131: =lang!A$756 -> No | S131: =IF(AND(U131,NOT($U$80)),lang!A$214,"") ->  | T131: =IF(V131=1,"Y",IF(V131=2,"N","")) -> N | U131: =V131=1 -> FALSE | V131: 2 | X131: =OR(NOT(U131),U$80) -> TRUE | Z131: =Z128+1 -> 77 | AA131: T
D133: =lang!A250 -> CMR : Category carcinogenic, mutagenic and reprotoxical | E133: =lang!B250 -> CMR : Category carcinogenic, mutagenic and reprotoxical | F133: =lang!C250 -> CMR: Kategorie krebserregend, erbgutverändernd und fortplanzungsgefährdend | G133: =lang!D250 -> CMR : Matérias categoria cancerígenos, mutagénicos e reprotoxical | H133: =lang!E250 -> CMR : Catégorie cancérigène, mutagène et reprotoxique | K133: =lang!A$755 -> Yes | O133: =lang!A$756 -> No | T133: =IF(V133=1,"Y",IF(V133=2,"N","")) -> N | U133: =V133=1 -> FALSE | V133: 2 | X133: TRUE | Z133: =Z131+1 -> 78 | AA133: T
D135: =lang!A251 -> Does the company handle/transport HCDG goods (ADR 1.10)? | E135: =lang!B251 -> Does the company handle/transport HCDG goods (ADR 1.10)? | F135: =lang!C251 -> Das Unternehmen hantiert mit / transportiert HCDG Güter (ADR 1.10)? | G135: =lang!D251 -> A empresa movimenta/transporta MPAR - mercadorias perigosas de alto risco (ADR 1.10)? | H135: =lang!E251 -> La société manutentionne-t-elle ou transporte-t-elle des marchandises dangereuses à haut risque MDHR (ADR 1.10)? | K135: =IF(U135,Combo!B83,Combo!B84) -> No | T135: =IF(U135,"Y","N") -> N | U135: =OR(U128,U124,U120,U116,U111,U107,U102,U97,U92,U88,U86) -> FALSE | Z135: =Z133+1 -> 79 | AA135: T
D136: =lang!A257 -> Handling of chlorinated solvents | E136: =lang!B257 -> Handling of chlorinated solvents | F136: =lang!C257 -> Umgang mit chlorierten Lösemitteln | G136: =lang!D257 -> Movimentação de solventes clorados | H136: =lang!E257 -> Manutention de solvants chlorés | K136: =lang!A$755 -> Yes | O136: =lang!A$756 -> No | T136: =IF(V136=1,"Y",IF(V136=2,"N","")) ->  | U136: =V136=1 -> FALSE | X136: TRUE | Z136: =#REF!+1 ->  | AA136: T
D137: =lang!A258 -> Handling of Pharma products | E137: =lang!B258 -> Handling of Pharma products | F137: =lang!C258 -> Umgang mit Pharmazeutischen Produkten | G137: =lang!D258 -> Movimentação de produtos farmacêuticos | H137: =lang!E258 -> Manutention de produits Pharma | K137: =lang!A$755 -> Yes | O137: =lang!A$756 -> No | T137: =IF(V137=1,"Y",IF(V137=2,"N","")) ->  | U137: =V137=1 -> FALSE | X137: TRUE | Z137: =Z136+1 ->  | AA137: T
C139: 0.3.9 | D139: =lang!A261 -> Type of equipment | U139: =OR(U140:U143) -> TRUE | AB139: =IF(U139,1,0) -> 1
C140: =IF(R_TS,"(*)","") ->  | D140: =lang!A262 -> Own company trucks | K140: =lang!A$755 -> Yes | O140: =lang!A$756 -> No | T140: =IF(V140=1,"Y",IF(V140=2,"N","")) -> Y | U140: =V140=1 -> TRUE | V140: 1 | X140: =OR(NOT(R_TS),V140>0) -> TRUE | Z140: 88 | AA140: T
C141: =IF(R_TS,"(*)","") ->  | D141: =lang!A263 -> Own company trailers | K141: =lang!A$755 -> Yes | O141: =lang!A$756 -> No | T141: =IF(V141=1,"Y",IF(V141=2,"N","")) -> Y | U141: =V141=1 -> TRUE | V141: 1 | X141: =OR(NOT(R_TS),V141>0) -> TRUE | Z141: =Z140+1 -> 89 | AA141: T
C142: =IF(R_TS,"(*)","") ->  | D142: =lang!A264 -> Own company tanks | K142: =lang!A$755 -> Yes | O142: =lang!A$756 -> No | T142: =IF(V142=1,"Y",IF(V142=2,"N","")) -> N | U142: =V142=1 -> FALSE | V142: 2 | X142: =OR(NOT(R_TS),V142>0) -> TRUE | Z142: =Z141+1 -> 90 | AA142: T
C143: =IF(R_TS,"(*)","") ->  | D143: =lang!A265 -> Own company containers | K143: =lang!A$755 -> Yes | O143: =lang!A$756 -> No | T143: =IF(V143=1,"Y",IF(V143=2,"N","")) -> N | U143: =V143=1 -> FALSE | V143: 2 | X143: =OR(NOT(R_TS),V143>0) -> TRUE | Z143: =Z142+1 -> 91 | AA143: T
C145: 0.3.10 | D145: =lang!A266 -> Subcontractor services includes : | U145: =NOT(OR(U40,U43,U140)) -> FALSE | AB145: =IF(U145,-4,0) -> 0
D146: =lang!A267 -> Trucks | K146: =lang!A$755 -> Yes | O146: =lang!A$756 -> No | T146: =IF(V146=1,"Y",IF(V146=2,"N","")) -> Y | U146: =V146=1 -> TRUE | V146: 1 | X146: TRUE | Z146: 92 | AA146: T
D147: =lang!A268 -> Trailers /tanks | K147: =lang!A$755 -> Yes | O147: =lang!A$756 -> No | T147: =IF(V147=1,"Y",IF(V147=2,"N","")) -> N | U147: =V147=1 -> FALSE | V147: 2 | X147: TRUE | Z147: =Z146+1 -> 93 | AA147: T
D148: =lang!A269 -> Containers | K148: =lang!A$755 -> Yes | O148: =lang!A$756 -> No | T148: =IF(V148=1,"Y",IF(V148=2,"N","")) -> N | U148: =V148=1 -> FALSE | V148: 2 | X148: TRUE | Z148: =Z147+1 -> 94 | AA148: T
T149: end
B150: =Status!$K$10 -> Please check the next sheet (Status)
B151: =HYPERLINK(Status!$L$10,Status!$K$10) -> Please check the next sheet (Status)
S244: 1

Sheet Tank Cleaning
F1: =IF(X1,lang!A30,lang!A31) -> This sheet doesn't need to be answered | X1: ='General Information'!U113 -> FALSE | Y1: =IF(R_TC,AB10,0) -> 0
F2: =IF(X1,IF(Y2,lang!A32,IF(X2,lang!A33,lang!A34)),"") ->  | X2: =X10 -> TRUE | Y2: =Y10 -> FALSE
F3: =IF(Y3,lang!A35,IF(X3,lang!A36,lang!A37)) -> The document is not yet completed | X3: =NOT(Status!F20) -> FALSE | Y3: =Status!G20 -> FALSE
A5: Gulf SQAS 2025
A6: =lang!A40 -> ASSESSMENT INFORMATION AND SCOPE - Part I
A7: =lang!A12 -> Tank Cleaning
A8: =lang!A42 -> (Items marked with a (*) and/or magenta background must always be completed)
A9: =lang!A43 -> (For checkboxes "checked" means "Yes", "unchecked" - "No")
X10: =AND(X12:X130) -> TRUE | Y10: =(OR(Y12:Y130)) -> FALSE | AB10: =SUM(AB12:AB230) -> -1
C11: 0.4.1 | D11: =lang!A271 -> Sub activities | T11: value | U11: raw | W11: Validation | X11: Mand OK | Y11: Error
D13: =lang!A272 -> Maintenance workshop | K13: =lang!A$755 -> Yes | O13: =lang!A$756 -> No | T13: =IF(V13=1,"Y",IF(V13=2,"N","")) ->  | U13: =V13=1 -> FALSE | X13: TRUE | Z13: 2 | AA13: T
D14: =lang!A273 -> Transfer (intermodal) terminal | K14: =lang!A$755 -> Yes | O14: =lang!A$756 -> No | T14: =IF(V14=1,"Y",IF(V14=2,"N","")) ->  | U14: =V14=1 -> FALSE | X14: TRUE | Z14: =Z13+1 -> 3 | AA14: T
D15: =lang!A274 -> Fixed storage tanks present | K15: =lang!A$755 -> Yes | O15: =lang!A$756 -> No | T15: =IF(V15=1,"Y",IF(V15=2,"N","")) ->  | U15: =V15=1 -> FALSE | X15: TRUE | Z15: 4 | AA15: T
C16: =IF(R_TC,"(*)","") ->  | D16: =lang!A275 -> Tankcontainer heating | K16: =lang!A$755 -> Yes | O16: =lang!A$756 -> No | T16: =IF(V16=1,"Y",IF(V16=2,"N","")) ->  | U16: =V16=1 -> FALSE | X16: =OR(NOT(R_TC),V16>0) -> TRUE | Z16: 5 | AA16: T | AB16: =IF(U16,0.5,0) -> 0
C17: =IF(R_TC,"(*)","") ->  | D17: =lang!A276 -> Tank and/or trailer repair | K17: =lang!A$755 -> Yes | O17: =lang!A$756 -> No | T17: =IF(V17=1,"Y",IF(V17=2,"N","")) ->  | U17: =V17=1 -> FALSE | X17: =OR(NOT(R_TC),V17>0) -> TRUE | Z17: 6 | AA17: T | AB17: =IF(U17,0.5,0) -> 0
C19: =IF(R_TC,"(*)","") ->  | D19: =lang!A277 -> Empty container handling | K19: =lang!A$755 -> Yes | O19: =lang!A$756 -> No | T19: =IF(V19=1,"Y",IF(V19=2,"N","")) ->  | U19: =V19=1 -> FALSE | W19: =OR(U19,U20) -> FALSE | X19: =OR(NOT(R_TC),V19>0) -> TRUE | Z19: =Z17+1 -> 7 | AA19: T | AB19: =IF(W19,0.5,0) -> 0
C20: =IF(R_TC,"(*)","") ->  | D20: =lang!A278 -> Full container handling | K20: =lang!A$755 -> Yes | O20: =lang!A$756 -> No | T20: =IF(V20=1,"Y",IF(V20=2,"N","")) ->  | U20: =V20=1 -> FALSE | X20: =OR(NOT(R_TC),V20>0) -> TRUE | Z20: 8 | AA20: T
C22: 0.4.2 | D22: =lang!A279 -> Type of operators
C23: =IF(R_TC,"(*)","") ->  | D23: =lang!A280 -> Own company operators | K23: =lang!A$755 -> Yes | O23: =lang!A$756 -> No | T23: =IF(V23=1,"Y",IF(V23=2,"N","")) ->  | U23: =V23=1 -> FALSE | X23: =AND(OR(NOT(R_TC),V23>0),NOT(AND(LEN(K24)>0,NOT(U23)))) -> TRUE | Z23: 10 | AA23: T | AB23: =IF(U23,0,-1) -> -1
C24: =IF(AND(R_TC,U23),"(*)","") ->  | D24: =lang!A281 -> Number of own operators | R24: =IF(IF(ISERROR(K24),FALSE,AND(LEN(K24)>0,NOT(U23))),lang!A282,"") ->  | W24: =OR(LEN(K24)=0,ISNUMBER(VALUE(K24))) -> TRUE | X24: =OR(AND(LEN(K24)>0,U23),AND(LEN(K24)=0,NOT(U23))) -> TRUE | Y24: =IF(ISERROR(K24),TRUE,IF(ISERROR(W24),TRUE,NOT(W24))) -> FALSE | Z24: =Z23+1 -> 11 | AA24: K
C26: =IF(IF(ISERROR(X26),FALSE,AND(R_TC,NOT(X26))),"(*)","") ->  | D26: =lang!A283 -> Temporary operators | K26: =lang!A$755 -> Yes | O26: =lang!A$756 -> No | T26: =IF(V26=1,"Y",IF(V26=2,"N","")) ->  | U26: =V26=1 -> FALSE | X26: =NOT(AND(LEN(K27)>0,NOT(U26))) -> TRUE | Z26: =Z24+1 -> 12 | AA26: T
C27: =IF(AND(R_TC,U26),"(*)","") ->  | D27: =lang!A284 -> Average of temporary operators | R27: =IF(IF(ISERROR(K27),FALSE,AND(LEN(K27)>0,NOT(U26))),lang!A285,"") ->  | W27: =OR(LEN(K27)=0,ISNUMBER(VALUE(K27))) -> TRUE | X27: =OR(AND(LEN(K27)>0,U26),AND(LEN(K27)=0,NOT(U26))) -> TRUE | Y27: =IF(ISERROR(K27),TRUE,IF(ISERROR(W27),TRUE,NOT(W27))) -> FALSE | Z27: =Z26+1 -> 13 | AA27: K
C29: =IF(R_TC,"(*)","") ->  | D29: =lang!A286 -> Number of office employees | W29: =OR(LEN(J29)=0,ISNUMBER(VALUE(J29))) -> TRUE | X29: =OR(NOT(R_TC),LEN(J29)>0) -> TRUE | Y29: =IF(ISERROR(J29),TRUE,IF(ISERROR(W29),TRUE,NOT(W29))) -> FALSE | Z29: =Z27+1 -> 14 | AA29: J
C31: =IF(R_TC,"(*)","") ->  | D31: =lang!A287 -> Number of employees | W31: =OR(LEN(J31)=0,ISNUMBER(VALUE(J31))) -> TRUE | X31: =OR(NOT(R_TC),LEN(J31)>0) -> TRUE | Y31: =IF(ISERROR(J31),TRUE,IF(ISERROR(W31),TRUE,NOT(W31))) -> FALSE | Z31: =Z29+1 -> 15 | AA31: J
C33: 0.4.3 | D33: =lang!A288 -> Cleaning infrastructure
C34: =IF(IF(ISERROR(X34),FALSE,AND(R_TC,NOT(X34))),"(*)","") ->  | D34: =lang!A289 -> Separate cleaning bays food | K34: =lang!A$755 -> Yes | O34: =lang!A$756 -> No | T34: =IF(V34=1,"Y",IF(V34=2,"N","")) ->  | U34: =V34=1 -> FALSE | X34: =NOT(AND(LEN(K36)>0,NOT(U34))) -> TRUE | Z34: =Z31+2 -> 17 | AA34: T
C36: =IF(IF(ISERROR(U34),FALSE,AND(R_TC,U34)),"(*)","") ->  | D36: =lang!A290 -> Number of separate cleaning bays food | R36: =IF(IF(ISERROR(K36),FALSE,AND(LEN(K36)>0,NOT(U34))),lang!A291,"") ->  | W36: =OR(LEN(K36)=0,ISNUMBER(VALUE(K36))) -> TRUE | X36: =OR(AND(LEN(K36)>0,U34),AND(LEN(K36)=0,NOT(U34))) -> TRUE | Y36: =IF(ISERROR(K36),TRUE,IF(ISERROR(W36),TRUE,NOT(W36))) -> FALSE | Z36: =Z34+1 -> 18 | AA36: K
C38: =IF(IF(ISERROR(X38),FALSE,AND(R_TC,NOT(X38))),"(*)","") ->  | D38: =lang!A292 -> Separate cleaning bays chemicals | K38: =lang!A$755 -> Yes | O38: =lang!A$756 -> No | T38: =IF(V38=1,"Y",IF(V38=2,"N","")) ->  | U38: =V38=1 -> FALSE | X38: =NOT(AND(LEN(K40)>0,NOT(U38))) -> TRUE | Z38: =Z36+1 -> 19 | AA38: T
C40: =IF(IF(ISERROR(U38),FALSE,AND(R_TC,U38)),"(*)","") ->  | D40: =lang!A293 -> Number of separate cleaning bays chemicals | R40: =IF(IF(ISERROR(K40),FALSE,AND(LEN(K40)>0,NOT(U38))),lang!A294,"") ->  | W40: =OR(LEN(K40)=0,ISNUMBER(VALUE(K40))) -> TRUE | X40: =OR(AND(LEN(K40)>0,U38),AND(LEN(K40)=0,NOT(U38))) -> TRUE | Y40: =IF(ISERROR(K40),TRUE,IF(ISERROR(W40),TRUE,NOT(W40))) -> FALSE | Z40: =Z38+1 -> 20 | AA40: K
D42: =lang!A295 -> Spinners | O42: =lang!A$146 -> Number | W42: =OR(LEN(J42)=0,ISNUMBER(VALUE(J42))) -> TRUE | X42: TRUE | Y42: =IF(ISERROR(J42),TRUE,IF(ISERROR(W42),TRUE,NOT(W42))) -> FALSE | Z42: =Z40+1 -> 21 | AA42: J
C44: =IF(IF(ISERROR(X44),FALSE,AND(R_TC,NOT(X44))),"(*)","") ->  | D44: =lang!A296 -> Steam boilers | O44: =lang!A$146 -> Number | U44: =IF(ISERROR(W44),FALSE,IF(ISNUMBER(J44),J44>0,FALSE)) -> FALSE | W44: =OR(LEN(J44)=0,ISNUMBER(VALUE(J44))) -> TRUE | X44: =NOT(AND(LEN(K46)>0,NOT(U44))) -> TRUE | Y44: =IF(ISERROR(J44),TRUE,IF(ISERROR(W44),TRUE,NOT(W44))) -> FALSE | Z44: =Z42+1 -> 22 | AA44: J
C46: =IF(IF(ISERROR(U44),FALSE,AND(R_TC,U44)),"(*)","") ->  | D46: =lang!A297 -> Steam boilers pressure | O46: =lang!A299 -> bar | R46: =IF(IF(ISERROR(OR(K46,U44)),FALSE,AND(LEN(K46)>0,NOT(U44))),lang!A298,"") ->  | W46: =OR(LEN(K46)=0,ISNUMBER(VALUE(K46))) -> TRUE | X46: =IF(IF(ISNUMBER(J44),J44>0,FALSE),LEN(K46)>0,LEN(K46)=0) -> TRUE | Y46: =IF(ISERROR(K46),TRUE,IF(ISERROR(W46),TRUE,NOT(W46))) -> FALSE | Z46: =Z44+1 -> 23 | AA46: K
D48: =lang!A300 -> Cleaning water temperature range | O48: =lang!A301 -> °C | W48: TRUE | X48: TRUE | Y48: =IF(ISERROR(J48),TRUE,IF(ISERROR(W48),TRUE,NOT(W48))) -> FALSE | Z48: =Z46+1 -> 24 | AA48: J
D50: =lang!A302 -> Dryers | O50: =lang!A$146 -> Number | W50: =OR(LEN(J50)=0,ISNUMBER(VALUE(J50))) -> TRUE | X50: TRUE | Y50: =IF(ISERROR(J50),TRUE,IF(ISERROR(W50),TRUE,NOT(W50))) -> FALSE | Z50: =Z48+1 -> 25 | AA50: J
C52: =IF(IF(ISERROR(X52),FALSE,AND(R_TC,NOT(X52))),"(*)","") ->  | D52: =lang!A303 -> Pressure pumps | O52: =lang!A$146 -> Number | U52: =IF(ISERROR(W52),FALSE,IF(ISNUMBER(J52),J52>0,FALSE)) -> FALSE | W52: =OR(LEN(J52)=0,ISNUMBER(VALUE(J52))) -> TRUE | X52: =NOT(AND(LEN(K54)>0,NOT(U52))) -> TRUE | Y52: =IF(ISERROR(J52),TRUE,IF(ISERROR(W52),TRUE,NOT(W52))) -> FALSE | Z52: =Z50+1 -> 26 | AA52: J
C54: =IF(IF(ISERROR(U52),FALSE,AND(R_TC,U52)),"(*)","") ->  | D54: =lang!A305 -> Pressure pumps - pressure range | O54: =lang!A306 -> bar | R54: =IF(IF(ISERROR(OR(K54,U52)),FALSE,AND(LEN(K54)>0,NOT(U52))),lang!A304,"") ->  | W54: TRUE | X54: =IF(IF(ISNUMBER(J52),J52>0,FALSE),LEN(K54)>0,LEN(K54)=0) -> TRUE | Y54: =ISERROR(K54) -> FALSE | Z54: =Z52+1 -> 27 | AA54: K
C56: =IF(IF(ISERROR(X56),FALSE,AND(R_TC,NOT(X56))),"(*)","") ->  | D56: =lang!A307 -> Tank heating of loaded tanks | K56: =lang!A$755 -> Yes | O56: =lang!A$756 -> No | T56: =IF(V56=1,"Y",IF(V56=2,"N","")) ->  | U56: =V56=1 -> FALSE | W56: =OR(W57:W61) -> FALSE | X56: =OR(U56,NOT(W56)) -> TRUE | Z56: =Z54+1 -> 28 | AA56: T
C57: =IF(IF(ISERROR($V$57),FALSE,($V$57)),"(*)","") ->  | D57: =lang!A308 -> Steam - pressure | O57: =lang!A309 -> bar | R57: =IF(IF(ISERROR(K57),FALSE,AND(W57,NOT(U56))),lang!A313,"") ->  | V57: =AND(U56,NOT(W56)) -> FALSE | W57: =LEN(K57)>0 -> FALSE | X57: =OR(AND($U$56,$W$56),AND(NOT($U$56),NOT(W57))) -> TRUE | Y57: =ISERROR(K57) -> FALSE | Z57: =Z56+1 -> 29 | AA57: K
C59: =IF(IF(ISERROR($V$57),FALSE,($V$57)),"(*)","") ->  | D59: =lang!A310 -> Hot water - temperature | O59: =lang!A311 -> °C | R59: =IF(IF(ISERROR(K59),FALSE,AND(W59,NOT(U56))),lang!A313,"") ->  | W59: =LEN(K59)>0 -> FALSE | X59: =OR(AND($U$56,$W$56),AND(NOT($U$56),NOT(W59))) -> TRUE | Y59: =ISERROR(K59) -> FALSE | Z59: =Z57+1 -> 30 | AA59: K
C61: =IF(IF(ISERROR($V$57),FALSE,($V$57)),"(*)","") ->  | D61: =lang!A312 -> Electrical | R61: =IF(IF(ISERROR(K61),FALSE,AND(W61,NOT(U56))),lang!A313,"") ->  | W61: =LEN(K61)>0 -> FALSE | X61: =OR(AND($U$56,$W$56),AND(NOT($U$56),NOT(W61))) -> TRUE | Y61: =ISERROR(K61) -> FALSE | Z61: =Z59+1 -> 31 | AA61: K
D63: =lang!A314 -> Provision of Nitrogen | K63: =lang!A$755 -> Yes | O63: =lang!A$756 -> No | T63: =IF(V63=1,"Y",IF(V63=2,"N","")) ->  | U63: =V63=1 -> FALSE | X63: TRUE | Z63: =Z61+1 -> 32 | AA63: T
D64: =lang!A315 -> De-gassing | K64: =lang!A$755 -> Yes | O64: =lang!A$756 -> No | T64: =IF(V64=1,"Y",IF(V64=2,"N","")) ->  | U64: =V64=1 -> FALSE | X64: TRUE | Z64: =Z63+1 -> 33 | AA64: T
D65: =lang!A316 -> Periodic testing | K65: =lang!A$755 -> Yes | O65: =lang!A$756 -> No | T65: =IF(V65=1,"Y",IF(V65=2,"N","")) ->  | U65: =V65=1 -> FALSE | X65: TRUE | Z65: =Z64+1 -> 34 | AA65: T
D66: =lang!A317 -> Vapour Control Systems | K66: =lang!A$755 -> Yes | O66: =lang!A$756 -> No | T66: =IF(V66=1,"Y",IF(V66=2,"N","")) ->  | U66: =V66=1 -> FALSE | X66: TRUE | Z66: =Z65+1 -> 35 | AA66: T
D67: =lang!A318 -> Other Site Activities | X67: TRUE | Y67: =IF(ISERROR(J67),TRUE,LEN(J67)>=400) -> FALSE | Z67: =Z66+1 -> 36 | AA67: J
C71: 0.4.4 | D71: =lang!A319 -> Type and number of cleanings
D72: =lang!A320 -> Roadtankers | P72: =lang!A$54 -> (Select from the dropdown list) | T72: =IF(ISERROR(U72), "", IF(U72>1,CHAR(63+U72),"")) ->  | U72: =MATCH(J72,cleaningType,0) ->  | W72: =OR(LEN(J72)=0,(ISNUMBER(U72))) -> TRUE | X72: TRUE | Y72: =IF(ISERROR(J72),TRUE,IF(ISERROR(W72),TRUE,NOT(W72))) -> FALSE | Z72: =Z67+2 -> 38 | AA72: T
D74: =lang!A321 -> Tankcontainers | P74: =lang!A$54 -> (Select from the dropdown list) | T74: =IF(ISERROR(U74), "", IF(U74>1,CHAR(63+U74),"")) ->  | U74: =MATCH(J74,cleaningType,0) ->  | W74: =OR(LEN(J74)=0,(ISNUMBER(U74))) -> TRUE | X74: TRUE | Y74: =IF(ISERROR(J74),TRUE,IF(ISERROR(W74),TRUE,NOT(W74))) -> FALSE | Z74: =Z72+1 -> 39 | AA74: T
D76: =lang!A322 -> Railtankcars (RTC's) | P76: =lang!A$54 -> (Select from the dropdown list) | T76: =IF(ISERROR(U76), "", IF(U76>1,CHAR(63+U76),"")) ->  | U76: =MATCH(J76,cleaningType,0) ->  | W76: =OR(LEN(J76)=0,(ISNUMBER(U76))) -> TRUE | X76: TRUE | Y76: =IF(ISERROR(J76),TRUE,IF(ISERROR(W76),TRUE,NOT(W76))) -> FALSE | Z76: =Z74+1 -> 40 | AA76: T
D78: =lang!A323 -> IBC's | P78: =lang!A$54 -> (Select from the dropdown list) | T78: =IF(ISERROR(U78), "", IF(U78>1,CHAR(63+U78),"")) ->  | U78: =MATCH(J78,cleaningType,0) ->  | W78: =OR(LEN(J78)=0,(ISNUMBER(U78))) -> TRUE | X78: TRUE | Y78: =IF(ISERROR(J78),TRUE,IF(ISERROR(W78),TRUE,NOT(W78))) -> FALSE | Z78: =Z76+1 -> 41 | AA78: T
C80: =IF(IF(ISERROR(X80),FALSE,AND(R_TC,NOT(X80))),"(*)","") ->  | D80: =lang!A324 -> Other | P80: =lang!A$54 -> (Select from the dropdown list) | T80: =IF(ISERROR(U80), "", IF(U80>1,CHAR(63+U80),"")) ->  | U80: =MATCH(J80,cleaningType,0) ->  | V80: =IF(ISERROR($U$80),FALSE,($U$80>1)) -> FALSE | W80: =OR(LEN(J80)=0,(ISNUMBER(U80))) -> TRUE | X80: =NOT(AND(LEN(J82)>0,NOT(V80))) -> TRUE | Y80: =IF(ISERROR(J80),TRUE,IF(ISERROR(W80),TRUE,NOT(W80))) -> FALSE | Z80: =Z78+1 -> 42 | AA80: T
C82: =IF(IF(ISERROR(V80),FALSE,AND(R_TC,V80)),"(*)","") ->  | D82: =lang!A325 -> Specify | R82: =IF(IF(ISERROR(J82),FALSE,AND(LEN(J82)>0,NOT(V80))),lang!A326,"") ->  | W82: =LEN(J82)>0 -> FALSE | X82: =IF(V80,LEN(J82)>0,LEN(J82)=0) -> TRUE | Y82: =IF(ISERROR(J82),TRUE,LEN(J82)>=400) -> FALSE | Z82: =Z80+1 -> 43 | AA82: J
C86: 0.4.5 | D86: =lang!A327 -> Products
D87: =lang!A328 -> Tonnage chem. cleaned per year | W87: =OR(LEN(J87)=0,ISNUMBER(VALUE(J87))) -> TRUE | X87: TRUE | Y87: =OR(ISERROR(J87),IF(ISERROR(W87),TRUE,NOT(W87))) -> FALSE | Z87: =Z82+1 -> 44 | AA87: J
C89: =IF(R_TC,"(*)","") ->  | D89: =lang!A329 -> Are product recipients; tank trucks, tank containers etc., that previously contained Dangerous Goods, cleaned? | K89: =lang!A$755 -> Yes | O89: =lang!A$756 -> No | T89: =IF(V89=1,"Y",IF(V89=2,"N","")) ->  | U89: =V89=1 -> FALSE | W89: =OR(U89,NOT(OR(U94:U112, LEN(K92)>0))) -> TRUE | X89: =AND(OR(NOT(R_TC),V89>0),W89) -> TRUE | Z89: =Z87+1 -> 45 | AA89: T | AB89: =IF(U89,2,0) -> 0
D91: =lang!A330 -> If yes :
C92: =IF(U89,"(*)","") ->  | D92: =lang!A331 -> % dangerous goods | S92: =IF(IF(ISERROR(K92),FALSE,AND(LEN(K92)>0,NOT(U89))),lang!A332,"") ->  | W92: =OR(LEN(K92)=0,ISNUMBER(VALUE(K92))) -> TRUE | X92: =OR(AND(LEN(K92)>0,U89),AND(LEN(K92)=0,NOT(U89))) -> TRUE | Y92: =IF(ISERROR(K92),TRUE,IF(ISERROR(W92),TRUE,NOT(W92))) -> FALSE | Z92: =Z89+1 -> 46 | AA92: J
D94: =lang!A334 -> Class 1 : Explosive substances and articles | L94: =lang!A$755 -> Yes | P94: =lang!A$756 -> No | S94: =IF(AND(U94,NOT($U$89)),lang!A$333,"") ->  | T94: =IF(V94=1,"Y",IF(V94=2,"N","")) ->  | U94: =V94=1 -> FALSE | W94: =OR(NOT(U94),U$89) -> TRUE | X94: =W94 -> TRUE | Z94: =Z92+1 -> 47 | AA94: T
D96: =lang!A335 -> Class 2 : Gases | L96: =lang!A$755 -> Yes | P96: =lang!A$756 -> No | S96: =IF(AND(U96,NOT($U$89)),lang!A$333,"") ->  | T96: =IF(V96=1,"Y",IF(V96=2,"N","")) ->  | U96: =V96=1 -> FALSE | W96: =OR(NOT(U96),U$89) -> TRUE | X96: =W96 -> TRUE | Z96: =Z94+1 -> 48 | AA96: T
D97: =lang!A336 -> Class 3 : Flammable liquids | L97: =lang!A$755 -> Yes | P97: =lang!A$756 -> No | S97: =IF(AND(U97,NOT($U$89)),lang!A$333,"") ->  | T97: =IF(V97=1,"Y",IF(V97=2,"N","")) ->  | U97: =V97=1 -> FALSE | W97: =OR(NOT(U97),U$89) -> TRUE | X97: =W97 -> TRUE | Z97: =Z96+1 -> 49 | AA97: T
D98: =lang!A337 -> Class 4.1. : Flammable solids, self-reactive substances and solid desensitized explosives. | L98: =lang!A$755 -> Yes | P98: =lang!A$756 -> No | S98: =IF(AND(U98,NOT($U$89)),lang!A$333,"") ->  | T98: =IF(V98=1,"Y",IF(V98=2,"N","")) ->  | U98: =V98=1 -> FALSE | W98: =OR(NOT(U98),U$89) -> TRUE | X98: =W98 -> TRUE | Z98: =Z97+1 -> 50 | AA98: T
D100: =lang!A338 -> Class 4.2. : Substances liable to spontaneous combustion | L100: =lang!A$755 -> Yes | P100: =lang!A$756 -> No | S100: =IF(AND(U100,NOT($U$89)),lang!A$333,"") ->  | T100: =IF(V100=1,"Y",IF(V100=2,"N","")) ->  | U100: =V100=1 -> FALSE | W100: =OR(NOT(U100),U$89) -> TRUE | X100: =W100 -> TRUE | Z100: =Z98+1 -> 51 | AA100: T
D102: =lang!A339 -> Class 4.3. : Substances which in contact with water, emit flammable gases | L102: =lang!A$755 -> Yes | P102: =lang!A$756 -> No | S102: =IF(AND(U102,NOT($U$89)),lang!A$333,"") ->  | T102: =IF(V102=1,"Y",IF(V102=2,"N","")) ->  | U102: =V102=1 -> FALSE | W102: =OR(NOT(U102),U$89) -> TRUE | X102: =W102 -> TRUE | Z102: =Z100+1 -> 52 | AA102: T
D104: =lang!A340 -> Class 5.1. : Oxidizing substances | L104: =lang!A$755 -> Yes | P104: =lang!A$756 -> No | S104: =IF(AND(U104,NOT($U$89)),lang!A$333,"") ->  | T104: =IF(V104=1,"Y",IF(V104=2,"N","")) ->  | U104: =V104=1 -> FALSE | W104: =OR(NOT(U104),U$89) -> TRUE | X104: =W104 -> TRUE | Z104: =Z102+1 -> 53 | AA104: T
D105: =lang!A341 -> Class 5.2. : Organic peroxides | L105: =lang!A$755 -> Yes | P105: =lang!A$756 -> No | S105: =IF(AND(U105,NOT($U$89)),lang!A$333,"") ->  | U105: FALSE | W105: TRUE | X105: TRUE | Z105: =Z104+1 -> 54 | AA105: T
D106: =lang!A342 -> Class 6.1. : Toxic substances | L106: =lang!A$755 -> Yes | P106: =lang!A$756 -> No | S106: =IF(AND(U106,NOT($U$89)),lang!A$333,"") ->  | U106: FALSE | W106: TRUE | X106: TRUE | Z106: 55 | AA106: T
D107: =lang!A343 -> Class 6.2. : Infectious substances | L107: =lang!A$755 -> Yes | P107: =lang!A$756 -> No | S107: =IF(AND(U107,NOT($U$89)),lang!A$333,"") ->  | U107: FALSE | W107: TRUE | X107: TRUE | Z107: 56 | AA107: T
D108: =lang!A344 -> Class 7 : Radioactive material | L108: =lang!A$755 -> Yes | P108: =lang!A$756 -> No | S108: =IF(AND(U108,NOT($U$89)),lang!A$333,"") ->  | U108: FALSE | W108: TRUE | X108: TRUE | Z108: 57 | AA108: T
D109: =lang!A345 -> Class 8 : Corrosive substances | L109: =lang!A$755 -> Yes | P109: =lang!A$756 -> No | S109: =IF(AND(U109,NOT($U$89)),lang!A$333,"") ->  | U109: FALSE | W109: TRUE | X109: TRUE | Z109: 58 | AA109: T
D110: =lang!A346 -> Class 9 : Miscellaneous dangerous substances and articles | L110: =lang!A$755 -> Yes | P110: =lang!A$756 -> No | S110: =IF(AND(U110,NOT($U$89)),lang!A$333,"") ->  | U110: FALSE | W110: TRUE | X110: TRUE | Z110: 59 | AA110: T
D112: =lang!A347 -> CMR : Category carcinogenic, mutagenic and reprotoxical | K112: =lang!A$755 -> Yes | O112: =lang!A$756 -> No | T112: =IF(V112=1,"Y",IF(V112=2,"N","")) ->  | U112: =V112=1 -> FALSE | W112: TRUE | X112: =W112 -> TRUE | Z112: =Z110+1 -> 60 | AA112: T
D114: =lang!A348 -> Handling of food contact products | K114: =lang!A$755 -> Yes | O114: =lang!A$756 -> No | T114: =IF(V114=1,"Y",IF(V114=2,"N","")) ->  | U114: =V114=1 -> FALSE | W114: =OR(U114:U116) -> FALSE | X114: =W117 -> TRUE | Z114: =Z112+1 -> 61 | AA114: T
D115: =lang!A349 -> Handling of food products | K115: =lang!A$755 -> Yes | O115: =lang!A$756 -> No | T115: =IF(V115=1,"Y",IF(V115=2,"N","")) ->  | U115: =V115=1 -> FALSE | X115: =W117 -> TRUE | Z115: =Z114+1 -> 62 | AA115: T
D116: =lang!A350 -> Handling of feed products | K116: =lang!A$755 -> Yes | O116: =lang!A$756 -> No | T116: =IF(V116=1,"Y",IF(V116=2,"N","")) ->  | U116: =V116=1 -> FALSE | X116: =W117 -> TRUE | Z116: =Z115+1 -> 63 | AA116: T
C117: =IF(R_TC,"(*)","") ->  | D117: =lang!A351 -> The company chooses to be assessed against the Food(contact) & Feed chapter | L117: =lang!A$755 -> Yes | P117: =lang!A$756 -> No | S117: =IF(W117,"",lang!A256) ->  | T117: =IF(V117=1,"Y",IF(V117=2,"N","")) ->  | U117: =V117=1 -> FALSE | W117: =OR(W114,NOT(U117)) -> TRUE | X117: =AND(OR(NOT(R_TC),V117>0),W117) -> TRUE | Z117: =Z116+1 -> 64 | AA117: T | AB117: =IF(U117,2,0) -> 0
D119: =lang!A353 -> Allergen free business | K119: =lang!A$755 -> Yes | O119: =lang!A$756 -> No | T119: =IF(V119=1,"Y",IF(V119=2,"N","")) ->  | U119: =V119=1 -> FALSE | W119: TRUE | X119: =W119 -> TRUE | Z119: =Z117+1 -> 65 | AA119: T
B121: =Status!$K$11 -> Please check the next sheet (Status)
B122: =HYPERLINK(Status!$L$11,Status!$K$11) -> Please check the next sheet (Status)

Sheet ESAD (hidden)
F1: =IF(X1,lang!A30,lang!A31) -> This sheet doesn't need to be answered | X1: ='General Information'!U119 -> FALSE | Y1: =IF(R_ESAD,AB10,0) -> 0
F2: =IF(X1,IF(Y2,lang!A32,IF(X2,lang!A33,lang!A34)),"") ->  | X2: =X10 -> TRUE | Y2: =Y10 -> FALSE
F3: =IF(Y3,lang!A35,IF(X3,lang!A36,lang!A37)) -> The document is not yet completed | X3: =NOT(Status!F20) -> FALSE | Y3: =Status!G20 -> FALSE
A5: =lang!A38 -> Gulf SQAS 2018
A6: =lang!A40 -> ASSESSMENT INFORMATION AND SCOPE - Part I
A7: =lang!A13 -> ESAD
A8: =lang!A42 -> (Items marked with a (*) and/or magenta background must always be completed)
A9: =lang!A43 -> (For checkboxes "checked" means "Yes", "unchecked" - "No")
X10: =AND(X12:X80) -> TRUE | Y10: =(OR(Y12:Y80)) -> FALSE | AB10: =SUM(AB13:AB169) -> 0
C11: 0.5.1 | D11: =lang!A355 -> Sub activities | T11: value | U11: raw | W11: Validation | X11: Mand OK | Y11: Error
C13: =IF(R_ESAD,"(*)","") ->  | D13: =lang!A356 -> Distributor Standard Activities (Di) | K13: =lang!A$755 -> Yes | O13: =lang!A$756 -> No | T13: =IF(V13=1,"Y",IF(V13=2,"N","")) ->  | U13: =V13=1 -> FALSE | X13: =OR(NOT(R_ESAD),AND(NOT(AND(U13,U18)),V13>0)) -> TRUE | Z13: 2 | AA13: T | AB13: =IF(U13,8,0) -> 0
C14: =IF(R_ESAD,"(*)","") ->  | D14: =lang!A357 -> Site assessment (S) | K14: =lang!A$755 -> Yes | O14: =lang!A$756 -> No | T14: =IF(V14=1,"Y",IF(V14=2,"N","")) ->  | U14: =V14=1 -> FALSE | W14: =OR(NOT(OR(W16,U18)),U14) -> TRUE | X14: =OR(NOT(R_ESAD),AND(V14>0,W14)) -> TRUE | Z14: =Z13+1 -> 3 | AA14: T | AB14: =IF(U14,3,0) -> 0
C16: =IF(AND(R_ESAD,U14),"(*)","") ->  | D16: =lang!A358 -> Site name | E16: =lang!B358 -> Site name | F16: =lang!C358 -> Standortname | G16: =lang!D358 -> Nome da localidade | H16: =lang!E358 -> Nom du site | S16: =IF(IF(ISERROR(K16),FALSE,AND(LEN(K16)>0,NOT(U14))),lang!A359,"") ->  | W16: =LEN(K16)>0 -> FALSE | X16: =OR(AND($U$14,$W16),AND(NOT($U14),NOT(W16))) -> TRUE | Y16: =IF(ISERROR(K16),TRUE,LEN(K16)>=160) -> FALSE | Z16: =Z14+1 -> 4 | AA16: K
D18: =lang!A360 -> Combined with Di (only applicable if Di is not included in current assessment) | E18: =lang!B360 -> Combined with Di (only applicable if Di is not included in current assessment) | F18: =lang!C360 -> verbunden mit Di (nur anwendbar wenn Di nicht im laufenden Assessment enthalten ist) | G18: =lang!D360 -> Combinada com Di (apenas aplicável se Di não estiver incluído na presente avaliação) | H18: =lang!E360 -> Combiné avec Di (seulement applicable si Di n'est pas inclus dans l'évaluation actuelle) | L18: =lang!A$755 -> Yes | P18: =lang!A$756 -> No | S18: =IF(AND(U18,OR(U13,NOT(U14))),lang!A361,"") ->  | T18: =IF(V18=1,"Y",IF(V18=2,"N","")) ->  | U18: =V18=1 -> FALSE | W18: =AND(U18,U14, NOT(U13)) -> FALSE | X18: =IF(U14,IF(U13,NOT(U18),TRUE),NOT(U18)) -> TRUE | Z18: 5_0 | AA18: T
D19: =lang!A408 -> Handling of Pharma products | E19: =lang!B408 -> Handling of Pharma products | F19: =lang!C408 -> Umgang mit pharmazeutischen Produkten | G19: =lang!D408 -> Movimentação de produtos farmacêuticos | H19: =lang!E408 -> Manutention de produits Pharma
C20: =IF(W18,"(*)","") ->  | D20: =lang!A362 -> Di Report number | E20: =lang!B362 -> Di Report number | F20: =lang!C362 -> Di Berichtsnummer | G20: =lang!D362 -> Di relatório número | H20: =lang!E362 -> numéro de rapport Di | S20: =IF(IF(ISERROR(L20),FALSE,AND(LEN(L20)>0,NOT(U18))),lang!A363,"") ->  | W20: =OR(AND(ISNUMBER(VALUE(CONCATENATE(MID(L20,1,5),MID(L20,8,2)))),LEN(L20)<10,SUBSTITUTE(L20," ","")=L20),LEN(L20)=0) -> TRUE | X20: =OR(AND(LEN(L20)>0,U18),AND(LEN(L20)=0,NOT(U18))) -> TRUE | Y20: =IF(ISERROR(L20),TRUE,IF(ISERROR(W20),TRUE,NOT(W20))) -> FALSE | Z20: =Z16+1 -> 5 | AA20: J
C22: =IF(R_ESAD,"(*)","") ->  | D22: =lang!A364 -> Handling of packaged goods (non hazardous) | E22: =lang!B364 -> Handling of packaged goods (non hazardous) | F22: =lang!C364 -> Umgang mit verpackten Gütern (Nicht Gefahrgut) | G22: =lang!D364 -> Movimentação de mercadorias embaladas (não perigosas) | H22: =lang!E364 -> Manutention de produits non-dangereux emballés | K22: =lang!A$755 -> Yes | O22: =lang!A$756 -> No | T22: =IF(V22=1,"Y",IF(V22=2,"N","")) ->  | U22: =V22=1 -> FALSE | W22: =OR(U22,U24,U58) -> FALSE | X22: =OR(NOT(R_ESAD),V22>0) -> TRUE | Z22: =Z20+1 -> 6 | AA22: T | AB22: =IF(W22,1,0) -> 0
C24: =IF(R_ESAD,"(*)","") ->  | D24: =lang!A365 -> Handling of packaged goods (hazardous) | E24: =lang!B365 -> Handling of packaged goods (hazardous) | F24: =lang!C365 -> Umgang mit verpackten Gütern (Gefahrgut) | G24: =lang!D365 -> Movimentação de mercadorias embaladas (perigosas) | K24: =lang!A$755 -> Yes | O24: =lang!A$756 -> No | T24: =IF(V24=1,"Y",IF(V24=2,"N","")) ->  | U24: =V24=1 -> FALSE | X24: =OR(NOT(R_ESAD),V24>0) -> TRUE | Z24: =Z22+1 -> 7 | AA24: T | AB24: =IF(U24,1,0) -> 0
C26: =IF(R_ESAD,"(*)","") ->  | D26: =lang!A366 -> Handling of bulk solids | K26: =lang!A$755 -> Yes | O26: =lang!A$756 -> No | T26: =IF(V26=1,"Y",IF(V26=2,"N","")) ->  | U26: =V26=1 -> FALSE | W26: =OR(U26,U27) -> FALSE | X26: =OR(NOT(R_ESAD),V26>0) -> TRUE | Z26: =Z24+1 -> 8 | AA26: T | AB26: =IF(W26,2,0) -> 0
C27: =IF(R_ESAD,"(*)","") ->  | D27: =lang!A367 -> Handling of bulk liquids | K27: =lang!A$755 -> Yes | O27: =lang!A$756 -> No | T27: =IF(V27=1,"Y",IF(V27=2,"N","")) ->  | U27: =V27=1 -> FALSE | X27: =OR(NOT(R_ESAD),V27>0) -> TRUE | Z27: =Z26+1 -> 9 | AA27: T
C28: =IF(R_ESAD,"(*)","") ->  | D28: =lang!A368 -> Handling of food (contact), feed, cosmetic or/and pharma (F) | E28: =lang!B368 -> Handling of food (contact), feed, cosmetic or/and pharma (F) | F28: =lang!C368 -> Umgang mit Nahrungsmitteln (Kontakt), Futtermitteln, Komestika und/oder pharmazeutischen Produkten | G28: =lang!D368 -> Movimentação em contacto com produtos alimentares, de produtos para alimentação animal, para cosméticos e/ou fármacos (F) | H28: =lang!E368 -> Manutention de produits alimentaires (contact), de produits alimentaires pour animaux, de produits cosmétqiues et/ou de produits pharmaceutiques (F) | K28: =lang!A$755 -> Yes | O28: =lang!A$756 -> No | T28: =IF(V28=1,"Y",IF(V28=2,"N","")) ->  | U28: =V28=1 -> FALSE | W28: =OR(U28) -> FALSE | X28: =OR(NOT(R_ESAD),AND(V28>0,W32)) -> TRUE | Z28: =Z27+1 -> 10 | AA28: T | AB28: =IF(W28,4,0) -> 0
C30: =IF(R_ESAD,"(*)","") ->  | D30: =lang!A369 -> Handling of chlorinated solvents (Cs) | K30: =lang!A$755 -> Yes | O30: =lang!A$756 -> No | T30: =IF(V30=1,"Y",IF(V30=2,"N","")) ->  | U30: =V30=1 -> FALSE | X30: =OR(NOT(R_ESAD),V30>0) -> TRUE | Z30: =Z28+1 -> 11 | AA30: T | AB30: =IF(U30,2,0) -> 0
C32: =IF(R_ESAD,"(*)","") ->  | D32: =lang!A370 -> Handling of GTDP (G) | K32: =lang!A$755 -> Yes | O32: =lang!A$756 -> No | S32: =IF(W32,"",lang!A371) ->  | T32: =IF(V32=1,"Y",IF(V32=2,"N","")) ->  | U32: =V32=1 -> FALSE | W32: =OR(U28,NOT(U32)) -> TRUE | X32: =OR(NOT(R_ESAD),AND(V32>0,W32)) -> TRUE | Z32: =Z30+1 -> 12 | AA32: T | AB32: =IF(U32,2,0) -> 0
C34: 0.5.2 | D34: =lang!A372 -> Products
D35: =lang!A373 -> Class 1 : Explosive substances and articles | E35: =lang!B373 -> Class 1 : Explosive substances and articles | F35: =lang!C373 -> Klasse 1: Explosive Stoffe und Gegenstände mit Explosivstoff | G35: =lang!D374 -> Classe 2 : Gases | H35: =lang!E373 -> Classe 1 : Matières et objets explosibles | I35: =lang!F373 -> Clase 1: Materias y objetos explosivos | K35: =lang!A$755 -> Yes | O35: =lang!A$756 -> No | T35: =IF(V35=1,"Y",IF(V35=2,"N","")) ->  | U35: =V35=1 -> FALSE | X35: TRUE | Z35: 14 | AA35: T
D37: =lang!A374 -> Class 2 : Gases | E37: =lang!B374 -> Class 2 : Gases | F37: =lang!C374 -> Klasse 2: Gase | G37: =lang!D375 -> Classe 3 : Líquidos inflamáveis | H37: =lang!E374 -> Class 2 : Gaz | I37: =lang!F374 -> Clase 2: Gases | K37: =lang!A$755 -> Yes | O37: =lang!A$756 -> No | T37: =IF(V37=1,"Y",IF(V37=2,"N","")) ->  | U37: =V37=1 -> FALSE | X37: TRUE | Z37: =Z35+1 -> 15 | AA37: T
D38: =lang!A375 -> Class 3 : Flammable liquids | E38: =lang!B375 -> Class 3 : Flammable liquids | F38: =lang!C375 -> Klasse 3. Entzündbare flüssige Stoffe | G38: =lang!D376 -> Classe 4.1. : Matérias sólidas inflamáveis, matérias auto-reactivas e matérias explosivas dessensibilizadas sólidas | H38: =lang!E375 -> Classe 3 : liquides inflammables | I38: =lang!F375 -> Clase 3: Líquidos inflamables | K38: =lang!A$755 -> Yes | O38: =lang!A$756 -> No | T38: =IF(V38=1,"Y",IF(V38=2,"N","")) ->  | U38: =V38=1 -> FALSE | X38: TRUE | Z38: =Z37+1 -> 16 | AA38: T
D39: =lang!A376 -> Class 4.1. : Flammable solids, self-reactive substances and solid desensitized explosives. | E39: =lang!B376 -> Class 4.1. : Flammable solids, self-reactive substances and solid desensitized explosives. | F39: =lang!C376 -> Klasse 4.1: Entzündbare feste Stoffe, selbstzersetzliche Stoffe und desensibilisierte explosive feste Stoffe | G39: =lang!D377 -> Classe 4.2. : Matérias espontaneamente inflamáveis | H39: =lang!E376 -> Class 4.1. : Matières solides inflammables, matières autoréactives et matières solides explosibles désensibilisées | I39: =lang!F376 -> Clase 4.1: Sólidos inflamables, autoreactivos y explosivos desensibilizados | K39: =lang!A$755 -> Yes | O39: =lang!A$756 -> No | T39: =IF(V39=1,"Y",IF(V39=2,"N","")) ->  | U39: =V39=1 -> FALSE | X39: TRUE | Z39: =Z38+1 -> 17 | AA39: T
D40: =lang!A402 -> Handling of bulk solids | E40: =lang!B402 -> Handling of bulk solids | F40: =lang!C402 -> Umgang mit festen Massengütern | G40: =lang!D402 -> Movimentação de granéis sólidos | H40: =lang!E402 -> Manutention de solides en vrac | I40: =lang!F402 -> Manipulación de sólidos a granel
D41: =lang!A377 -> Class 4.2. : Substances liable for spontaneous combustion | E41: =lang!B377 -> Class 4.2. : Substances liable for spontaneous combustion | F41: =lang!C377 -> Klasse 4.2: Selbstentzündliche Stoffe | G41: =lang!D378 -> Classe 4.3. : Matérias que, em contacto com a àgua, libertem gases inflamáveis | H41: =lang!E377 -> Class 4.2. : Matières sujettes à l'inflammation spontanée | I41: =lang!F377 -> Clase 4.2: Materias que reaccionan de forma espontánea | K41: =lang!A$755 -> Yes | O41: =lang!A$756 -> No | T41: =IF(V41=1,"Y",IF(V41=2,"N","")) ->  | U41: =V41=1 -> FALSE | X41: TRUE | Z41: =Z39+1 -> 18 | AA41: T
D42: =lang!A403 -> Handling of food contact products | E42: =lang!B403 -> Handling of food contact products | F42: =lang!C403 -> Umgang mit Vorprodukten? Nahrungsmittel | G42: =lang!D403 -> Movimentação em contacto com produtos alimentares | H42: =lang!E403 -> Manutention de produits destinés au contact alimentaire | I42: =lang!F403 -> Manipulación de productos en contacto con alimentos
D43: =lang!A378 -> Class 4.3. : Substances which in contact with water, emit flammable gases | E43: =lang!B378 -> Class 4.3. : Substances which in contact with water, emit flammable gases | F43: =lang!C378 -> Klasse 4.3: Stoffe, die in Berührung mit Wasser entzündbare Gase entwickeln | G43: =lang!D379 -> Classe 5.1. : Matérias comburentes | H43: =lang!E378 -> Class 4.3. : Matières qui, au contact de l'eau, dégagent des gaz inflammables | I43: =lang!F378 -> Clase 4.3: Materias que en contacto con el agua desprenden gases inflamables | K43: =lang!A$755 -> Yes | O43: =lang!A$756 -> No | T43: =IF(V43=1,"Y",IF(V43=2,"N","")) ->  | U43: =V43=1 -> FALSE | X43: TRUE | Z43: =Z41+1 -> 19 | AA43: T
D44: =lang!A404 -> Handling of food products | E44: =lang!B404 -> Handling of food products | F44: =lang!C404 -> Umgang mit Nahrungsmittel | G44: =lang!D404 -> Movimentação de produtos alimentares | H44: =lang!E404 -> Manutention de produits alimentaires | I44: =lang!F404 -> Manipulación de productos alimentarios
D45: =lang!A379 -> Class 5.1. : Oxidizing substances | E45: =lang!B379 -> Class 5.1. : Oxidizing substances | F45: =lang!C379 -> Klasse 5.1: Entzündend (oxidierend) wirkende Stoffe | G45: =lang!D380 -> Classe 5.2. : Peróxidos organicos | H45: =lang!E379 -> Class 5.1. : Matières comburantes | I45: =lang!F379 -> Clase 5.1: Materias comburentes | K45: =lang!A$755 -> Yes | O45: =lang!A$756 -> No | T45: =IF(V45=1,"Y",IF(V45=2,"N","")) ->  | U45: =V45=1 -> FALSE | X45: TRUE | Z45: =Z43+1 -> 20 | AA45: T
D46: =lang!A380 -> Class 5.2. : Organic peroxides | E46: =lang!B380 -> Class 5.2. : Organic peroxides | F46: =lang!C380 -> Klasse 5.2: Organische Peroxide | G46: =lang!D381 -> Classe 6.1. : Matérias toxicas | H46: =lang!E380 -> Class 5.2. : Peroxydes organiques | I46: =lang!F380 -> Clase 5.2: Peróxidos Orgánicos | K46: =lang!A$755 -> Yes | O46: =lang!A$756 -> No | U46: FALSE | X46: TRUE | Z46: =Z45+1 -> 21 | AA46: T
D47: =lang!A381 -> Class 6.1. : Toxic substances | E47: =lang!B381 -> Class 6.1. : Toxic substances | F47: =lang!C381 -> Klasse 6.1: Giftige Stoffe | G47: =lang!D382 -> Classe 6.2. : Matérias infecciosas | H47: =lang!E381 -> Class 6.1. : Matières toxiques | I47: =lang!F381 -> Clase 6.1: Sustancias tóxicas | K47: =lang!A$755 -> Yes | O47: =lang!A$756 -> No | U47: FALSE | X47: TRUE | Z47: 22 | AA47: T
D48: =lang!A382 -> Class 6.2. : Infectious substances | E48: =lang!B382 -> Class 6.2. : Infectious substances | F48: =lang!C382 -> Klasse 6.2: Ansteckungsgefährliche Stoffe | G48: =lang!D383 -> Classe 7 : Matérias radioactivas | H48: =lang!E382 -> Class 6.2. : Matières infectieuses | I48: =lang!F382 -> Clase 6.2: Sustancias infecciosas | K48: =lang!A$755 -> Yes | O48: =lang!A$756 -> No | U48: FALSE | X48: TRUE | Z48: 23 | AA48: T
D49: =lang!A383 -> Class 7 : Radioactive material | E49: =lang!B383 -> Class 7 : Radioactive material | F49: =lang!C383 -> Klasse 7: Radioaktive Stoffe | G49: =lang!D384 -> Classe 8 : Matérias corrosivas | H49: =lang!E383 -> Class 7 : Matières radioactives | I49: =lang!F383 -> Clase 7: Materias radiactivas | K49: =lang!A$755 -> Yes | O49: =lang!A$756 -> No | U49: FALSE | X49: TRUE | Z49: 24 | AA49: T
D50: =lang!A384 -> Class 8 : Corrosive substances | E50: =lang!B384 -> Class 8 : Corrosive substances | F50: =lang!C384 -> Klasse 8: Ätzende Stoffe | G50: =lang!D385 -> Classe 9 : Matérias e objectos perigosos | H50: =lang!E384 -> Class 8 : Matières corrosives | I50: =lang!F384 -> Clase 8: Sustancias corrosivas | K50: =lang!A$755 -> Yes | O50: =lang!A$756 -> No | U50: FALSE | X50: TRUE | Z50: 25 | AA50: T
D51: =lang!A385 -> Class 9 : Miscellaneous dangerous substances and articles | E51: =lang!B385 -> Class 9 : Miscellaneous dangerous substances and articles | F51: =lang!C385 -> Klasse 9: Verschiedene gefährliche Stoffe und Gegenstände | G51: =lang!D386 -> A empresa movimenta/transporta MPAR - mercadorias perigosas de alto risco (ADR 1.10)? | H51: =lang!E385 -> Class 9 : Matières et objets dangereux divers | I51: =lang!F385 -> Clase 9: Materias y objetos con riesgos diversos | K51: =lang!A$755 -> Yes | O51: =lang!A$756 -> No | U51: FALSE | X51: TRUE | Z51: 26 | AA51: T
D53: =lang!A386 -> Does the company handle/transport HCDG goods (ADR 1.10)? | E53: =lang!B386 -> Does the company handle/transport HCDG goods (ADR 1.10)? | F53: =lang!C386 -> Das Unternehmen hantiert mit / transportiert HCDG Güter (ADR 1.10)? | G53: =lang!#REF! ->  | H53: =lang!E386 -> La société manutentionne-t-elle ou transporte-t-elle des marchandises dangereuses à haut risque MDHR (ADR 1.10)? | I53: =lang!F386 -> ¿La empresa manipula/transporta mercancía peligrosa de alto riesgo (1.10 ADR)? | K53: =lang!A$755 -> Yes | O53: =lang!A$756 -> No | T53: =IF(V53=1,"Y",IF(V53=2,"N","")) ->  | U53: =V53=1 -> FALSE | X53: TRUE | Z53: =Z51+1 -> 27 | AA53: T
D54: =lang!A406 -> The company chooses to be assessed against the Food(contact) & Feed chapter | E54: =lang!B406 -> The company chooses to be assessed against the Food(contact) & Feed chapter | F54: =lang!C406 -> Das Unternehmen hat beschlossen sich nach den Kapitel Nahrungsmittel (Kontakt) & Futtermittel bewerten zu lassen | G54: =lang!D406 -> A empresa decidiu ser avaliada pelo Capítulo - Alimentares e Contacto com Alimentos | H54: =lang!E406 -> La société choisit d'être évaluée selon les chapitres relatifs au contact avec des produits alimentaires et à l'alimentation animale | I54: =lang!F406 -> La compañía elige ser evaluada contra el capítulo Productos en contacto con Alimentos y Alimentos para animales
C55: 0.5.3 | D55: =lang!A387 -> Activities
C56: =IF(R_ESAD,"(*)","") ->  | D56: =lang!A388 -> Drum/IBC filling line | K56: =lang!A$755 -> Yes | O56: =lang!A$756 -> No | T56: =IF(V56=1,"Y",IF(V56=2,"N","")) ->  | U56: =V56=1 -> FALSE | W56: =OR(U56,U57) -> FALSE | X56: =OR(NOT(R_ESAD),V56>0) -> TRUE | Z56: =Z53+2 -> 29 | AA56: T | AB56: =IF(W56,2,0) -> 0
C57: =IF(R_ESAD,"(*)","") ->  | D57: =lang!A389 -> Blending/mixing | K57: =lang!A$755 -> Yes | O57: =lang!A$756 -> No | T57: =IF(V57=1,"Y",IF(V57=2,"N","")) ->  | U57: =V57=1 -> FALSE | X57: =OR(NOT(R_ESAD),V57>0) -> TRUE | Z57: =Z56+1 -> 30 | AA57: T
D58: =lang!A390 -> Packaging | K58: =lang!A$755 -> Yes | O58: =lang!A$756 -> No | T58: =IF(V58=1,"Y",IF(V58=2,"N","")) ->  | U58: =V58=1 -> FALSE | X58: TRUE | Z58: =Z57+1 -> 31 | AA58: T
AA59: T
C60: 0.5.4 | D60: =lang!A391 -> Type of operators
C61: =IF(IF(ISERROR(X61),FALSE,AND(R_ESAD,NOT(X61))),"(*)","") ->  | D61: =lang!A392 -> Own company operators | E61: =lang!B392 -> Own company operators | F61: =lang!C392 -> Eigene Beschäftigte | G61: =lang!D392 -> Trabalhadores/operadores da empresa | H61: =lang!E392 -> Opérateurs appartenant à la société | K61: =lang!A$755 -> Yes | O61: =lang!A$756 -> No | T61: =IF(V61=1,"Y",IF(V61=2,"N","")) ->  | U61: =V61=1 -> FALSE | X61: =NOT(AND(LEN(K62)>0,NOT(U61))) -> TRUE | Z61: 33 | AA61: T
C62: =IF(AND(R_ESAD,U61),"(*)","") ->  | D62: =lang!A393 -> Number of own operators | E62: =lang!B393 -> Number of own operators | F62: =lang!C393 -> Anzahl eigene Beschäftigte | G62: =lang!D393 -> Número de operadores/trabalhadores próprios | H62: =lang!E393 -> Nombre d'opérateurs appartenant à la société | R62: =IF(IF(ISERROR(K62),FALSE,AND(LEN(K62)>0,NOT(U61))),lang!A282,"") ->  | W62: =OR(LEN(K62)=0,ISNUMBER(VALUE(K62))) -> TRUE | X62: =OR(AND(LEN(K62)>0,U61),AND(LEN(K62)=0,NOT(U61))) -> TRUE | Y62: =IF(ISERROR(K62),TRUE,IF(ISERROR(W62),TRUE,NOT(W62))) -> FALSE | Z62: =Z61+1 -> 34 | AA62: K
C64: =IF(IF(ISERROR(X64),FALSE,AND(R_ESAD,NOT(X64))),"(*)","") ->  | D64: =lang!A394 -> Temporary operators | K64: =lang!A$755 -> Yes | O64: =lang!A$756 -> No | T64: =IF(V64=1,"Y",IF(V64=2,"N","")) ->  | U64: =V64=1 -> FALSE | X64: =NOT(AND(LEN(K65)>0,NOT(U64))) -> TRUE | Z64: =Z62+1 -> 35 | AA64: T
C65: =IF(AND(R_ESAD,U64),"(*)","") ->  | D65: =lang!A395 -> Average of temporary operators | E65: =lang!B395 -> Average of temporary operators | F65: =lang!C395 -> Durchschnitt Leiharbeiter | G65: =lang!D395 -> Número médio de operadores em trabalho temporário | H65: =lang!E395 -> Nombre d'opérateurs temporaires | R65: =IF(IF(ISERROR(K65),FALSE,AND(LEN(K65)>0,NOT(U64))),lang!A285,"") ->  | W65: =OR(LEN(K65)=0,ISNUMBER(VALUE(K65))) -> TRUE | X65: =OR(AND(LEN(K65)>0,U64),AND(LEN(K65)=0,NOT(U64))) -> TRUE | Y65: =IF(ISERROR(K65),TRUE,IF(ISERROR(W65),TRUE,NOT(W65))) -> FALSE | Z65: =Z64+1 -> 36 | AA65: K
C67: =IF(R_ESAD,"(*)","") ->  | D67: =lang!A396 -> Number of office employees | E67: =lang!B396 -> Number of office employees | F67: =lang!C396 -> Anzahl Büroangestellte | G67: =lang!D396 -> Número de trabalhadores da área administrativa | H67: =lang!E396 -> Nombre d'employés de bureau | W67: =OR(LEN(J67)=0,ISNUMBER(VALUE(J67))) -> TRUE | X67: =OR(NOT(R_ESAD),LEN(J67)>0) -> TRUE | Y67: =IF(ISERROR(J67),TRUE,IF(ISERROR(W67),TRUE,NOT(W67))) -> FALSE | Z67: =Z65+1 -> 37 | AA67: J
C69: =IF(R_ESAD,"(*)","") ->  | D69: =lang!A397 -> Total number of employees | E69: =lang!B397 -> Total number of employees | F69: =lang!C397 -> Anzahl Angestellte | G69: =lang!D397 -> Número de trabalhadores da empresa | H69: =lang!E397 -> Nombre d'employés | W69: =OR(LEN(J69)=0,ISNUMBER(VALUE(J69))) -> TRUE | X69: =OR(NOT(R_ESAD),LEN(J69)>0) -> TRUE | Y69: =IF(ISERROR(J69),TRUE,IF(ISERROR(W69),TRUE,NOT(W69))) -> FALSE | Z69: =Z67+1 -> 38 | AA69: J
T70: end
B71: =Status!$K$12 -> Please check the next sheet (Status)
B72: =HYPERLINK(Status!$L$12,Status!$K$12) -> Please check the next sheet (Status)

Sheet Warehouse
F1: =IF(X1,lang!A30,lang!A31) -> This sheet doesn't need to be answered | X1: ='General Information'!U117 -> FALSE | Y1: =IF(R_WH,AB10,0) -> 0
F2: =IF(X1,IF(Y2,lang!A32,IF(X2,lang!A33,lang!A34)),"") ->  | X2: =X10 -> FALSE | Y2: =Y10 -> FALSE
F3: =IF(Y3,lang!A35,IF(X3,lang!A36,lang!A37)) -> The document is not yet completed | X3: =NOT(Status!F20) -> FALSE | Y3: =Status!G20 -> FALSE
A5: Gulf SQAS 2025
A6: =lang!A40 -> ASSESSMENT INFORMATION AND SCOPE - Part I
A7: =lang!A14 -> Warehouse - GI
A8: =lang!A42 -> (Items marked with a (*) and/or magenta background must always be completed)
A9: =lang!A43 -> (For checkboxes "checked" means "Yes", "unchecked" - "No")
X10: =AND(X12:X55) -> FALSE | Y10: =(OR(Y12:Y55)) -> FALSE | AB10: =SUM(AB12:AB55) -> 8
C11: 0.6.1 | D11: =lang!A399 -> Activities | T11: value | U11: raw | W11: Validation | X11: Mand OK | Y11: Error
C13: =IF(R_WH,"(*)","") ->  | D13: =lang!A400 -> Handling of packaged goods (non hazardous) | E13: =lang!B400 -> Handling of packaged goods (non hazardous) | F13: =lang!C400 -> Umgang mit verpackten Güter (Nicht Gefahrgut) | G13: =lang!D400 -> Movimentação de mercadorias embaladas (não perigosas) | K13: =lang!A$755 -> Yes | O13: =lang!A$756 -> No | T13: =IF(V13=1,"Y",IF(V13=2,"N","")) -> Y | U13: =V13=1 -> TRUE | V13: 1 | W13: =OR(U13,U15) -> TRUE | X13: =OR(NOT(R_WH),V13>0) -> TRUE | Z13: 2 | AA13: T | AB13: =IF(W13,2,0) -> 2
C15: =IF(R_WH,"(*)","") ->  | D15: =lang!A401 -> Handling of packaged goods (hazardous) | E15: =lang!B401 -> Handling of packaged goods (hazardous) | F15: =lang!C401 -> Umgang mit verpackten Güter (Gefahrgut) | G15: =lang!D401 -> Movimentação de mercadorias embaladas (perigosas) | K15: =lang!A$755 -> Yes | O15: =lang!A$756 -> No | T15: =IF(V15=1,"Y",IF(V15=2,"N","")) -> Y | U15: =V15=1 -> TRUE | V15: 1 | X15: =OR(NOT(R_WH),V15>0) -> TRUE | Z15: =Z13+1 -> 3 | AA15: T | AB15: =IF(U15,2,0) -> 2
C17: =IF(R_WH,"(*)","") ->  | D17: =lang!A402 -> Handling of bulk solids | K17: =lang!A$755 -> Yes | O17: =lang!A$756 -> No | T17: =IF(V17=1,"Y",IF(V17=2,"N","")) -> Y | U17: =V17=1 -> TRUE | V17: 1 | X17: =OR(NOT(R_WH),V17>0) -> TRUE | Z17: =Z15+1 -> 4 | AA17: T | AB17: =IF(U17,2,0) -> 2
D19: =lang!A403 -> Handling of food contact products | K19: =lang!A$755 -> Yes | O19: =lang!A$756 -> No | T19: =IF(V19=1,"Y",IF(V19=2,"N","")) -> N | U19: =V19=1 -> FALSE | V19: 2 | W19: =OR(U19:U21) -> FALSE | X19: =W22 -> TRUE | Z19: =Z17+1 -> 5 | AA19: T
D20: =lang!A404 -> Handling of food products | E20: =lang!B404 -> Handling of food products | F20: =lang!C404 -> Umgang mit Nahrungsmittel | G20: =lang!D404 -> Movimentação de produtos alimentares | H20: =lang!E404 -> Manutention de produits alimentaires | K20: =lang!A$755 -> Yes | O20: =lang!A$756 -> No | T20: N | U20: FALSE | V20: 2 | X20: =W22 -> TRUE | Z20: =Z19+1 -> 6 | AA20: T
D21: =lang!A405 -> Handling of feed products | E21: =lang!B405 -> Handling of feed products | F21: =lang!C405 -> Umgang mit Futtermitteln | G21: =lang!D405 -> Movimentação de produtos para alimentação animal | H21: =lang!E405 -> Manutention de produits alimentaires pour animaux | K21: =lang!A$755 -> Yes | O21: =lang!A$756 -> No | T21: N | U21: FALSE | V21: 2 | X21: =W22 -> TRUE | Z21: =Z20+1 -> 7 | AA21: T
C22: =IF(R_WH,"(*)","") ->  | D22: =lang!A406 -> The company chooses to be assessed against the Food(contact) & Feed chapter | E22: =lang!B406 -> The company chooses to be assessed against the Food(contact) & Feed chapter | F22: =lang!C406 -> Das Unternehmen hat beschlossen sich nach den Kapitel Nahrungsmittel (Kontakt) & Futtermittel bewerten zu lassen | G22: =lang!D406 -> A empresa decidiu ser avaliada pelo Capítulo - Alimentares e Contacto com Alimentos | L22: =lang!A$755 -> Yes | P22: =lang!A$756 -> No | S22: =IF(W22,"",lang!A256) ->  | T22: N | U22: FALSE | V22: 2 | W22: =OR(W19,NOT(U22)) -> TRUE | X22: =AND(OR(NOT(R_WH),V22>0),W22) -> TRUE | Z22: 8 | AA22: T | AB22: =IF(U22,2,0) -> 0
D24: =lang!A407 -> Handling of chlorinated solvents | K24: =lang!A$755 -> Yes | O24: =lang!A$756 -> No | T24: N | U24: FALSE | V24: 2 | X24: TRUE | Z24: =Z22+1 -> 9 | AA24: T
D26: =lang!A408 -> Handling of Pharma products | E26: =lang!B408 -> Handling of Pharma products | F26: =lang!C408 -> Umgang mit pharmazeutischen Produkten | G26: =lang!D408 -> Movimentação de produtos farmacêuticos | H26: =lang!E408 -> Manutention de produits Pharma | I26: =lang!F408 -> Carga de productos farmaceúticos | K26: =lang!A$755 -> Yes | O26: =lang!A$756 -> No | T26: N | U26: FALSE | V26: 2 | X26: TRUE | Z26: =Z24+1 -> 10 | AA26: T
D27: =lang!A409 -> Handling of Cosmetic products | E27: =lang!B409 -> Handling of Cosmetic products | F27: =lang!C409 -> Umgang mit kosmetischen Produkten | G27: =lang!D409 -> Movimentação de produtos cosméticos | H27: =lang!E409 -> Manutention de produits cosmétiques | I27: =lang!F409 -> Carga de productos cosméticos | K27: =lang!A$755 -> Yes | O27: =lang!A$756 -> No | T27: N | U27: FALSE | V27: 2 | X27: TRUE | Z27: 11 | AA27: T
D28: =lang!A410 -> Alergen free business | K28: =lang!A$755 -> Yes | O28: =lang!A$756 -> No | T28: N | U28: FALSE | V28: 2 | X28: TRUE | Z28: 12 | AA28: T
C30: =IF(R_WH,"(*)","") ->  | D30: =lang!A411 -> Shuttle service | K30: =lang!A$755 -> Yes | O30: =lang!A$756 -> No | T30: N | U30: FALSE | V30: 2 | X30: =OR(NOT(R_WH),V30>0) -> TRUE | Z30: =Z28+1 -> 13 | AA30: T | AB30: =IF(U30,0.5,0) -> 0
C31: =IF(R_WH,"(*)","") ->  | D31: =lang!A412 -> Drum/IBC filling line | K31: =lang!A$755 -> Yes | O31: =lang!A$756 -> No | T31: Y | U31: TRUE | V31: 1 | W31: =OR(U31,U32) -> TRUE | X31: =OR(NOT(R_WH),V31>0) -> TRUE | Z31: 14 | AA31: T | AB31: =IF(W31,2,0) -> 2
C32: =IF(R_WH,"(*)","") ->  | D32: =lang!A413 -> Blending/mixing | K32: =lang!A$755 -> Yes | O32: =lang!A$756 -> No | T32: N | U32: FALSE | V32: 2 | X32: =OR(NOT(R_WH),V32>0) -> TRUE | Z32: 15 | AA32: T
D33: =lang!A414 -> Packaging | K33: =lang!A$755 -> Yes | O33: =lang!A$756 -> No | T33: Y | U33: TRUE | V33: 1 | X33: TRUE | Z33: 16 | AA33: T
C35: 0.6.2 | D35: =lang!A415 -> Type of operators
C36: =IF(R_WH,"(*)","") ->  | D36: =lang!A416 -> Own company operators | E36: =lang!B416 -> Own company operators | F36: =lang!C416 -> Eigene Beschäftigte | G36: =lang!D416 -> Trabalhadores/operadores da empresa | H36: =lang!E416 -> Opérateurs appartenant à la société | K36: =lang!A$755 -> Yes | O36: =lang!A$756 -> No | T36: =IF(V36=1,"Y",IF(V36=2,"N","")) -> Y | U36: =V36=1 -> TRUE | V36: 1 | X36: =AND(OR(NOT(R_WH),V36>0),NOT(AND(LEN(K37)>0,NOT(U36)))) -> TRUE | Z36: =Z33+1 -> 17 | AA36: T | AB36: =IF(U36,0,-1) -> 0
C37: =IF(U36,"(*)","") -> (*) | D37: =lang!A417 -> Number of own operators | E37: =lang!B417 -> Number of own operators | F37: =lang!C417 -> Anzahl eigene Beschäftigte | G37: =lang!D417 -> Número de operadores/trabalhadores próprios | H37: =lang!E417 -> Nombre d'opérateurs appartenant à la société | R37: =IF(IF(ISERROR(K37),FALSE,AND(LEN(K37)>0,NOT(U36))),lang!A282,"") ->  | W37: =OR(LEN(K37)=0,ISNUMBER(VALUE(K37))) -> TRUE | X37: =OR(AND(LEN(K37)>0,U36),AND(LEN(K37)=0,NOT(U36))) -> FALSE | Y37: =IF(ISERROR(K37),TRUE,IF(ISERROR(W37),TRUE,NOT(W37))) -> FALSE | Z37: =Z36+1 -> 18 | AA37: K
D39: =lang!A418 -> Temporary operators | K39: =lang!A$755 -> Yes | O39: =lang!A$756 -> No | T39: =IF(V39=1,"Y",IF(V39=2,"N","")) -> Y | U39: =V39=1 -> TRUE | V39: 1 | X39: =NOT(AND(LEN(K40)>0,NOT(U39))) -> TRUE | Z39: =Z37+1 -> 19 | AA39: T
C40: =IF(U39,"(*)","") -> (*) | D40: =lang!A419 -> Average of temporary operators | E40: =lang!B419 -> Average of temporary operators | F40: =lang!C419 -> Durchschnitt Leiharbeiter | G40: =lang!D419 -> Número médio de operadores em trabalho temporário | H40: =lang!E419 -> Nombre d'opérateurs temporaires | R40: =IF(IF(ISERROR(K40),FALSE,AND(LEN(K40)>0,NOT(U39))),lang!A285,"") ->  | W40: =OR(LEN(K40)=0,ISNUMBER(VALUE(K40))) -> TRUE | X40: =OR(AND(LEN(K40)>0,U39),AND(LEN(K40)=0,NOT(U39))) -> FALSE | Y40: =IF(ISERROR(K40),TRUE,IF(ISERROR(W40),TRUE,NOT(W40))) -> FALSE | Z40: =Z39+1 -> 20 | AA40: K
C42: =IF(R_WH,"(*)","") ->  | D42: =lang!A421 -> Number of office employees | E42: =lang!B421 -> Number of office employees | F42: =lang!C421 -> Anzahl Büroangestellte | G42: =lang!D421 -> Número de trabalhadores da área administrativa | H42: =lang!E421 -> Nombre d'employés de bureau | W42: =OR(LEN(J42)=0,ISNUMBER(VALUE(J42))) -> TRUE | X42: =OR(NOT(R_WH),LEN(J42)>0) -> TRUE | Y42: =IF(ISERROR(J42),TRUE,IF(ISERROR(W42),TRUE,NOT(W42))) -> FALSE | Z42: =Z40+1 -> 21 | AA42: J
C44: =IF(R_WH,"(*)","") ->  | D44: =lang!A422 -> Number of employees | E44: =lang!B422 -> Number of employees | F44: =lang!C422 -> Anzahl Angestellte | G44: =lang!D422 -> Número de trabalhadores da empresa | H44: =lang!E422 -> Nombre d'employés | W44: =OR(LEN(J44)=0,ISNUMBER(VALUE(J44))) -> TRUE | X44: =OR(NOT(R_WH),LEN(J44)>0) -> TRUE | Y44: =IF(ISERROR(J44),TRUE,IF(ISERROR(W44),TRUE,NOT(W44))) -> FALSE | Z44: =Z42+1 -> 22 | AA44: J
T45: end
B46: =Status!$K$13 -> Please check the next sheet (Status)
B47: =HYPERLINK(Status!$L$13,Status!$K$13) -> Please check the next sheet (Status)

Sheet WH - II(1)
B1: =IF(X1,lang!A30,lang!A31) -> This sheet doesn't need to be answered | X1: ='General Information'!U117 -> FALSE | Y1: =IF(R_WH1,AB14,0) -> 0
B2: =IF(X1,IF(Y2,lang!A32,IF(X2,lang!A33,lang!A34)),"") ->  | X2: =X14 -> TRUE | Y2: =Y14 -> FALSE
B3: =IF(Y3,lang!A35,IF(X3,lang!A36,lang!A37)) -> The document is not yet completed | X3: =NOT(Status!F20) -> FALSE | Y3: =Status!G20 -> FALSE
A5: Gulf SQAS 2025
A6: =lang!A41 -> ASSESSMENT INFORMATION AND SCOPE - Part II
A7: =lang!A15 -> Warehouse - 1
A8: =lang!A42 -> (Items marked with a (*) and/or magenta background must always be completed)
A9: =lang!A43 -> (For checkboxes "checked" means "Yes", "unchecked" - "No")
B10: =lang!A424 -> This complete document, together with the Fire Compartment data, is to be prepared by the Warehousing Company, well ahead of the Assessment, and to be provided to the assessor, for preparation of the assessment and entry in the system.
B11: =lang!A425 -> It is envisaged that storage companies may have more than one warehouse building on the assessed site to store Foodstuff and/or Chemical products. For this reason the spreadsheet used to record warehouse details per building, contains five columns.
B12: =lang!A426 -> (if more buildings on premises, use additional sheet)
B14: =lang!A427 -> Reference list of WH number versus site's identification of buildings | T14: 1000 | W14: =T14>0 -> TRUE | X14: =AND(X16:X580) -> TRUE | Y14: =OR(Y16:Y580) -> FALSE | AB14: =SUM(AB16:AB580) -> 0
B15: =lang!A428 -> WH-number | D15: =lang!A429 -> Site's identification of buildings
B16: =lang!A430 -> WH1 | T16: =IF(LEN(TRIM(D16))>0,1000,0) -> 0 | W16: =T16>T14 -> FALSE | X16: =NOT(W16) -> TRUE | Y16: =ISERROR(CONCATENATE(D16,F16,H16,J16,L16)) -> FALSE | Z16: w | AA16: 1
B18: =lang!A431 -> WH2 | T18: =IF(LEN(TRIM(D18))>0,1000,0) -> 0 | W18: =T18>T16 -> FALSE | X18: =NOT(W18) -> TRUE | Y18: =ISERROR(CONCATENATE(D18,F18,H18,J18,L18)) -> FALSE | Z18: w | AA18: 2
B20: =lang!A432 -> WH3 | T20: =IF(LEN(TRIM(D20))>0,1000,0) -> 0 | W20: =T20>T18 -> FALSE | X20: =NOT(W20) -> TRUE | Y20: =ISERROR(CONCATENATE(D20,F20,H20,J20,L20)) -> FALSE | Z20: w | AA20: 3 | AB20: =IF(T20>0,1,0) -> 0
B22: =lang!A433 -> WH4 | T22: =IF(LEN(TRIM(D22))>0,1000,0) -> 0 | W22: =T22>T20 -> FALSE | X22: =NOT(W22) -> TRUE | Y22: =ISERROR(CONCATENATE(D22,F22,H22,J22,L22)) -> FALSE | Z22: w | AA22: 4
B24: =lang!A434 -> WH5 | T24: =IF(LEN(TRIM(D24))>0,1000,0) -> 0 | W24: =T24>T22 -> FALSE | X24: =NOT(W24) -> TRUE | Y24: =ISERROR(CONCATENATE(D24,F24,H24,J24,L24)) -> FALSE | Z24: w | AA24: 5 | AB24: =IF(T24>0,1,0) -> 0
B26: =lang!A445 -> Please complete the appropriate boxes below for site or per warehouse-building : | C26: =lang!B445 -> Please complete the appropriate boxes below for site or per warehouse-building : | D26: =lang!C445 -> Bitte vervollständigen Sie die geeigneten Kästchen unterhalb für Standort oder für Lagergebäude | E26: =lang!D445 -> Por favor complete as células Excel apropriadas abaixo, para cada local a ser avaliado ou por cada edifício de armazenagem | F26: =lang!E445 -> Veuillez compléter les cadres appropriés pour le site ou par bâtiment d'entreposage | G26: =lang!F445 -> Por favor completar las casillas de debajo apropiadas para la instalación o los edificios de almacenamiento: | H26: =lang!G445 -> Si prega di completare gli appositi spazi sottostanti per sito o per singolo deposito: | I26: =lang!H445 -> Udfyld venligst de passende felter nedenfor pr. lokation eller lagerbygning | J26: =lang!I445 -> Ole hyvä ja täytä kyseeseen tulevat toimipaikkaa tai varastorakennuksia koskevat kohdat alla | K26: =lang!J445 -> Proszę uzupełnić odpowiednie pola poniżej, w odniesieniu do lokalizacji lub budynku magazynu. | L26: =lang!K445 -> A.u.b. de onderstaande vakken invullen voor de locatie of per magazijn/gebouw
B27: =lang!A446 -> (tick with "Y", "N", "N/A" or provide appropriate answer, eg number, add your comments in the yellow zone please) | C27: =lang!B446 -> (tick with "Y", "N", "N/A" or provide appropriate answer, eg number, add your comments in the yellow zone please) | D27: =lang!C446 -> Haken Sie ab mit "Y", N"; "N/A" oder schreiben Sie eine geeignete Antwort und fügen Sie bitte ihre Kommentare in die gelbe Zone ein) | E27: =lang!D446 -> (preencha com "S", "N", "N/A" ou efectue uma adequada resposta, por exemplo, referindo o número da pergunta na zona amarela e adicione os seu comentários | F27: =lang!E446 -> marquer avec "O", "N", "N/A" ou fournir une réponse appropriée, ex un nombre, veuiller ajouter vos commentaires dans la zone jaune. | G27: =lang!F446 -> (indicar "Y", "N", "N/A" o una respuesta adecuada, ej: número, añadir comentarios en el área amarilla por favor) | H27: =lang!G446 -> Inserire "Y", "N", "NA" o inserire una risposta appropriata, per esempio numero, o aggiungere commenti nello spazio giallo. | I27: =lang!H446 -> (afkrys med "J", "N", "N/A" eller angiv venligst passende svar, f.eks. nummer, tilføj dine kommentarer i det gule felt) | J27: =lang!I446 -> (merkitse "Y" -kyllä, "N" - ei, "N/A" - ei sovellettavissa, tai kirjoita siihen kuuluva vastaus, ts. varaston numero ja kirjaa kommentit keltaiseen alueeseen) | K27: =lang!J446 -> (zaznacz "Y'' - tak, ''N'' - nie, ''N/A'' - nie dotyczy albo wpisz komentarz w zółtym plu - np. numer) | L27: =lang!K446 -> (duid aan "J", "N", "NVT" of geef een gepast antwoord, bvb. een getal. Zet uw opmerkingen in de gele zone a.u.b.)
B28: =lang!A447 -> Site | C28: =lang!B447 -> Site | D28: =lang!C447 -> Standort | E28: =lang!D447 -> Local | F28: =lang!E447 -> Site | G28: =lang!F447 -> Instalación | H28: =lang!G447 -> Sito | I28: =lang!H447 -> Lokation | J28: =lang!I447 -> Toimipaikka | K28: =lang!J447 -> Lokalizacja | L28: =lang!K447 -> Locatie
L29: =lang!A447 -> Site
A30: 1. | B30: =lang!A448 -> General site data
A31: 1.1. | B31: =lang!A449 -> Is the warehouse owned ? | V31: d | W31: =AND(ISNA(MATCH(L31,ynna,0)),LEN(L31)>0) -> FALSE | Y31: =IF(ISERROR(W31), TRUE,W31) -> FALSE | Z31: 1
B32: =lang!A466 -> Chemicals - classified as dangerous goods per Transport Classification (specify):
B33: =lang!A511 -> Constructional fire protection | Y33: =ISERROR(CONCATENATE(D33,F33,H33,J33,L33)) -> FALSE | Z33: c
A35: 1.2. | B35: =lang!A450 -> Is the warehouse leased ? | V35: d | W35: =AND(ISNA(MATCH(L35,ynna,0)),LEN(L35)>0) -> FALSE | Y35: =IF(ISERROR(W35), TRUE,W35) -> FALSE | Z35: 1
B36: =lang!A465 -> For classified goods, use the Transport Classification (3.4) and the Classification for hazardous substances (3.5), according to the applicable warehouse permits :
B37: =lang!A468 -> Class 2 - Gases | Y37: =ISERROR(CONCATENATE(D37,F37,H37,J37,L37)) -> FALSE | Z37: c
A39: 1.3. | B39: =lang!A451 -> Total warehouse space (sq. meters) ? | V39: n | W39: =AND(NOT(ISNUMBER(L39)),LEN(L39)>0) -> FALSE | Y39: =IF(ISERROR(W39), TRUE,W39) -> FALSE | Z39: 1
B40: =lang!A694 -> Class 6.2. : Infectious substances
B41: =lang!A470 -> Class 4.1 - Flammable solids | Y41: =ISERROR(CONCATENATE(D41,F41,H41,J41,L41)) -> FALSE | Z41: c
A43: 1.4. | B43: =lang!A452 -> Total silo space (cubic meters) ? | V43: n | W43: =AND(NOT(ISNUMBER(L43)),LEN(L43)>0) -> FALSE | Y43: =IF(ISERROR(W43), TRUE,W43) -> FALSE | Z43: 1
B44: =lang!A587 -> electric
B45: =lang!A532 -> Is the warehouse secured with a burglar alarm system or by security personnel on-site ? | Y45: =ISERROR(CONCATENATE(D45,F45,H45,J45,L45)) -> FALSE | Z45: c
A47: 1.5. | B47: =lang!A453 -> Open air packed storage space (sq. meters) ? | V47: n | W47: =AND(NOT(ISNUMBER(L47)),LEN(L47)>0) -> FALSE | Y47: =IF(ISERROR(W47), TRUE,W47) -> FALSE | Z47: 1
B48: =lang!A469 -> Class 3 - Flammable liquids
B49: =lang!A497 -> - Municipal ? | Y49: =ISERROR(CONCATENATE(D49,F49,H49,J49,L49)) -> FALSE | Z49: c
A51: 1.6. | B51: =lang!A454 -> Are video cameras installed on site ? | V51: d | W51: =AND(ISNA(MATCH(L51,ynna,0)),LEN(L51)>0) -> FALSE | Y51: =IF(ISERROR(W51), TRUE,W51) -> FALSE | Z51: 1
B52: =lang!A546 -> concrete/bricks
B53: =lang!A513 -> Are structural components like pillars, girders, floors and roof structure made of fire resistant materials (e.g. reinforced concrete) ? | Y53: =ISERROR(CONCATENATE(D53,F53,H53,J53,L53)) -> FALSE | Z53: c
A55: 1.7. | B55: =lang!A455 -> Is the registration office for visitors/contractors visiting the company clearly marked to indicate where they have to register ? | V55: d | W55: =AND(ISNA(MATCH(L55,ynna,0)),LEN(L55)>0) -> FALSE | Y55: =IF(ISERROR(W55), TRUE,W55) -> FALSE | Z55: 1
B56: =lang!A530 -> Are doors and gates equipped with a locking system and is it assured that they are locked, when no persons are working in the warehouse ?
B57: =lang!A543 -> wood | Y57: =ISERROR(CONCATENATE(D57,F57,H57,J57,L57)) -> FALSE | Z57: c
A59: 1.8. | B59: =lang!A456 -> Is there a waiting room for contractors (drivers and accompanying persons) nearby the registration office ? | V59: d | W59: =AND(ISNA(MATCH(L59,ynna,0)),LEN(L59)>0) -> FALSE | Y59: =IF(ISERROR(W59), TRUE,W59) -> FALSE | Z59: 1
B60: =lang!A588 -> Fixed storage tanks for liquids
B61: =lang!A473 -> Class 5.1 - Oxidising substances | Y61: =ISERROR(CONCATENATE(D61,F61,H61,J61,L61)) -> FALSE | Z61: c
A63: 1.9. | B63: =lang!A457 -> Is smoking prohibited in the storage areas ? | V63: d | W63: =AND(ISNA(MATCH(L63,ynna,0)),LEN(L63)>0) -> FALSE | Y63: =IF(ISERROR(W63), TRUE,W63) -> FALSE | Z63: 1
B64: =lang!A472 -> Class 4.3 - Substance, which in contact with water emit flammable gases
B65: =lang!A544 -> other (please indicate) | Y65: =ISERROR(CONCATENATE(D65,F65,H65,J65,L65)) -> FALSE | Z65: c
A67: 1.10. | B67: =lang!A458 -> Are warning signs posted for emergency and prohibitions ("no smoking", "emergency exit") ? | V67: d | W67: =AND(ISNA(MATCH(L67,ynna,0)),LEN(L67)>0) -> FALSE | Y67: =IF(ISERROR(W67), TRUE,W67) -> FALSE | Z67: 1
B68: =lang!A646 -> Network
B69: =lang!A475 -> Class 6.1 - Toxic substances | Y69: =ISERROR(CONCATENATE(D69,F69,H69,J69,L69)) -> FALSE | Z69: c
D71: =B16 -> WH1 | F71: =B18 -> WH2 | H71: =B20 -> WH3 | J71: =B22 -> WH4 | L71: =B24 -> WH5
A72: 2. | B72: =lang!A459 -> Warehouse capacity
A73: 2.1. | B73: =lang!A460 -> Warehouse space (sq. meters) | V73: n5 | W73: =OR(AND(NOT(ISNUMBER(L73)),LEN(L73)>0),AND(NOT(ISNUMBER(J73)),LEN(J73)>0),AND(NOT(ISNUMBER(H73)),LEN(H73)>0),AND(NOT(ISNUMBER(F73)),LEN(F73)>0),AND(NOT(ISNUMBER(D73)),LEN(D73)>0)) -> FALSE | Y73: =IF(ISERROR(W73), TRUE,W73) -> FALSE | Z73: 5
B74: =lang!A515 -> Are internal and external fire walls rated in accordance with local regulations (eg. wall made of noncombustible material like brick, concrete or reinforced concrete, wall thickness not less than 24 cm, wall minimum 50 cm above the roof or up to the roof and adjacent roof areas 5 m of noncombustible material, doors and gates in the wall fire resistant and self-closing, no other openings in the walls) ?
B75: =lang!A697 -> Class 9 : Miscellaneous dangerous substances and articles | Y75: =ISERROR(CONCATENATE(D75,F75,H75,J75,L75)) -> FALSE | Z75: c
A77: 3. | B77: =lang!A461 -> Category of products permitted to be stored
A78: 3.1. | B78: =lang!A462 -> Foodstuffs | V78: d5 | W78: =OR(AND(ISNA(MATCH(L78,ynna,0)),LEN(L78)>0),AND(ISNA(MATCH(J78,ynna,0)),LEN(J78)>0),AND(ISNA(MATCH(H78,ynna,0)),LEN(H78)>0),AND(ISNA(MATCH(F78,ynna,0)),LEN(F78)>0),AND(ISNA(MATCH(D78,ynna,0)),LEN(D78)>0)) -> FALSE | Y78: =IF(ISERROR(W78), TRUE,W78) -> FALSE | Z78: 5
B79: =lang!A533 -> Are burglar alarms transmitted automatically to security personnel or to a nearby police station ?
B80: =lang!A516 -> Are adjacent rooms (incl. office, staff - and technical rooms) separated from the storage area with at least fire resistant walls (eg. made of noncombustible material like brick, concrete or reinforced concrete, wall thickness not less than 11.5 cm, doors and gates at least fire retardant and self closing, no other openings in the walls) ? | Y80: =ISERROR(CONCATENATE(D80,F80,H80,J80,L80)) -> FALSE | Z80: c
A82: 3.2. | B82: =lang!A463 -> Solid chemicals (non - classified goods) | V82: d5 | W82: =OR(AND(ISNA(MATCH(L82,ynna,0)),LEN(L82)>0),AND(ISNA(MATCH(J82,ynna,0)),LEN(J82)>0),AND(ISNA(MATCH(H82,ynna,0)),LEN(H82)>0),AND(ISNA(MATCH(F82,ynna,0)),LEN(F82)>0),AND(ISNA(MATCH(D82,ynna,0)),LEN(D82)>0)) -> FALSE | Y82: =IF(ISERROR(W82), TRUE,W82) -> FALSE | Z82: 5
B83: =lang!A633 -> Smoke and heat vents
B84: =lang!A581 -> Are safety lights installed in storage areas with safety lamps at least 1.5 m away from the product ? | Y84: =ISERROR(CONCATENATE(D84,F84,H84,J84,L84)) -> FALSE | Z84: c
A86: 3.3. | B86: =lang!A464 -> Liquid chemicals (non - classified goods) | V86: d5 | W86: =OR(AND(ISNA(MATCH(L86,ynna,0)),LEN(L86)>0),AND(ISNA(MATCH(J86,ynna,0)),LEN(J86)>0),AND(ISNA(MATCH(H86,ynna,0)),LEN(H86)>0),AND(ISNA(MATCH(F86,ynna,0)),LEN(F86)>0),AND(ISNA(MATCH(D86,ynna,0)),LEN(D86)>0)) -> FALSE | Y86: =IF(ISERROR(W86), TRUE,W86) -> FALSE | Z86: 5
B87: =lang!A467 -> Class 1 - Explosive substances & articles
B88: =lang!A498 -> - Volunteer ? | Y88: =ISERROR(CONCATENATE(D88,F88,H88,J88,L88)) -> FALSE | Z88: c
B89: =lang!A465 -> For classified goods, use the Transport Classification (3.4) and the Classification for hazardous substances (3.5), according to the applicable warehouse permits :
A90: 3.4. | B90: =lang!A466 -> Chemicals - classified as dangerous goods per Transport Classification (specify):
A91: 3.4.1. | B91: =lang!A467 -> Class 1 - Explosive substances & articles | V91: d5 | W91: =OR(AND(ISNA(MATCH(L91,ynna,0)),LEN(L91)>0),AND(ISNA(MATCH(J91,ynna,0)),LEN(J91)>0),AND(ISNA(MATCH(H91,ynna,0)),LEN(H91)>0),AND(ISNA(MATCH(F91,ynna,0)),LEN(F91)>0),AND(ISNA(MATCH(D91,ynna,0)),LEN(D91)>0)) -> FALSE | Y91: =IF(ISERROR(W91), TRUE,W91) -> FALSE | Z91: 5
B92: =lang!A498 -> - Volunteer ?
B93: =lang!A511 -> Constructional fire protection | Y93: =ISERROR(CONCATENATE(D93,F93,H93,J93,L93)) -> FALSE | Z93: c
A95: 3.4.2. | B95: =lang!A468 -> Class 2 - Gases | V95: d5 | W95: =OR(AND(ISNA(MATCH(L95,ynna,0)),LEN(L95)>0),AND(ISNA(MATCH(J95,ynna,0)),LEN(J95)>0),AND(ISNA(MATCH(H95,ynna,0)),LEN(H95)>0),AND(ISNA(MATCH(F95,ynna,0)),LEN(F95)>0),AND(ISNA(MATCH(D95,ynna,0)),LEN(D95)>0)) -> FALSE | Y95: =IF(ISERROR(W95), TRUE,W95) -> FALSE | Z95: 5
B96: =lang!A694 -> Class 6.2. : Infectious substances
B97: =lang!A587 -> electric | Y97: =ISERROR(CONCATENATE(D97,F97,H97,J97,L97)) -> FALSE | Z97: c
A99: 3.4.3. | B99: =lang!A469 -> Class 3 - Flammable liquids | V99: d5 | W99: =OR(AND(ISNA(MATCH(L99,ynna,0)),LEN(L99)>0),AND(ISNA(MATCH(J99,ynna,0)),LEN(J99)>0),AND(ISNA(MATCH(H99,ynna,0)),LEN(H99)>0),AND(ISNA(MATCH(F99,ynna,0)),LEN(F99)>0),AND(ISNA(MATCH(D99,ynna,0)),LEN(D99)>0)) -> FALSE | Y99: =IF(ISERROR(W99), TRUE,W99) -> FALSE | Z99: 5
B100: =lang!A497 -> - Municipal ?
B101: =lang!A589 -> Total capacity of storage tanks available (cubic meters) ? | Y101: =ISERROR(CONCATENATE(D101,F101,H101,J101,L101)) -> FALSE | Z101: c
A103: 3.4.4. | B103: =lang!A470 -> Class 4.1 - Flammable solids | V103: d5 | W103: =OR(AND(ISNA(MATCH(L103,ynna,0)),LEN(L103)>0),AND(ISNA(MATCH(J103,ynna,0)),LEN(J103)>0),AND(ISNA(MATCH(H103,ynna,0)),LEN(H103)>0),AND(ISNA(MATCH(F103,ynna,0)),LEN(F103)>0),AND(ISNA(MATCH(D103,ynna,0)),LEN(D103)>0)) -> FALSE | Y103: =IF(ISERROR(W103), TRUE,W103) -> FALSE | Z103: 5
B104: =lang!A529 -> Warehouse security
B105: =lang!A546 -> concrete/bricks | Y105: =ISERROR(CONCATENATE(D105,F105,H105,J105,L105)) -> FALSE | Z105: c
A107: 3.4.5. | B107: =lang!A471 -> Class 4.2 - Substances liable to spontaneous combustion | V107: d5 | W107: =OR(AND(ISNA(MATCH(L107,ynna,0)),LEN(L107)>0),AND(ISNA(MATCH(J107,ynna,0)),LEN(J107)>0),AND(ISNA(MATCH(H107,ynna,0)),LEN(H107)>0),AND(ISNA(MATCH(F107,ynna,0)),LEN(F107)>0),AND(ISNA(MATCH(D107,ynna,0)),LEN(D107)>0)) -> FALSE | Y107: =IF(ISERROR(W107), TRUE,W107) -> FALSE | Z107: 5
B108: =lang!A530 -> Are doors and gates equipped with a locking system and is it assured that they are locked, when no persons are working in the warehouse ?
B109: =lang!A543 -> wood | Y109: =ISERROR(CONCATENATE(D109,F109,H109,J109,L109)) -> FALSE | Z109: c
A111: 3.4.6. | B111: =lang!A472 -> Class 4.3 - Substance, which in contact with water emit flammable gases | V111: d5 | W111: =OR(AND(ISNA(MATCH(L111,ynna,0)),LEN(L111)>0),AND(ISNA(MATCH(J111,ynna,0)),LEN(J111)>0),AND(ISNA(MATCH(H111,ynna,0)),LEN(H111)>0),AND(ISNA(MATCH(F111,ynna,0)),LEN(F111)>0),AND(ISNA(MATCH(D111,ynna,0)),LEN(D111)>0)) -> FALSE | Y111: =IF(ISERROR(W111), TRUE,W111) -> FALSE | Z111: 5
B112: =lang!A544 -> other (please indicate)
B113: =lang!A514 -> Are insulation and nonstructural components made of noncombustible materials ? | Y113: =ISERROR(CONCATENATE(D113,F113,H113,J113,L113)) -> FALSE | Z113: c
A115: 3.4.7. | B115: =lang!A473 -> Class 5.1 - Oxidising substances | V115: d5 | W115: =OR(AND(ISNA(MATCH(L115,ynna,0)),LEN(L115)>0),AND(ISNA(MATCH(J115,ynna,0)),LEN(J115)>0),AND(ISNA(MATCH(H115,ynna,0)),LEN(H115)>0),AND(ISNA(MATCH(F115,ynna,0)),LEN(F115)>0),AND(ISNA(MATCH(D115,ynna,0)),LEN(D115)>0)) -> FALSE | Y115: =IF(ISERROR(W115), TRUE,W115) -> FALSE | Z115: 5
B116: =lang!A646 -> Network
B117: =lang!A533 -> Are burglar alarms transmitted automatically to security personnel or to a nearby police station ? | Y117: =ISERROR(CONCATENATE(D117,F117,H117,J117,L117)) -> FALSE | Z117: c
A119: 3.4.8. | B119: =lang!A474 -> Class 5.2. - Organic peroxides | V119: d5 | W119: =OR(AND(ISNA(MATCH(L119,ynna,0)),LEN(L119)>0),AND(ISNA(MATCH(J119,ynna,0)),LEN(J119)>0),AND(ISNA(MATCH(H119,ynna,0)),LEN(H119)>0),AND(ISNA(MATCH(F119,ynna,0)),LEN(F119)>0),AND(ISNA(MATCH(D119,ynna,0)),LEN(D119)>0)) -> FALSE | Y119: =IF(ISERROR(W119), TRUE,W119) -> FALSE | Z119: 5
B120: =lang!A515 -> Are internal and external fire walls rated in accordance with local regulations (eg. wall made of noncombustible material like brick, concrete or reinforced concrete, wall thickness not less than 24 cm, wall minimum 50 cm above the roof or up to the roof and adjacent roof areas 5 m of noncombustible material, doors and gates in the wall fire resistant and self-closing, no other openings in the walls) ?
B121: =lang!A697 -> Class 9 : Miscellaneous dangerous substances and articles | Y121: =ISERROR(CONCATENATE(D121,F121,H121,J121,L121)) -> FALSE | Z121: c
A123: 3.4.9. | B123: =lang!A475 -> Class 6.1 - Toxic substances | V123: d5 | W123: =OR(AND(ISNA(MATCH(L123,ynna,0)),LEN(L123)>0),AND(ISNA(MATCH(J123,ynna,0)),LEN(J123)>0),AND(ISNA(MATCH(H123,ynna,0)),LEN(H123)>0),AND(ISNA(MATCH(F123,ynna,0)),LEN(F123)>0),AND(ISNA(MATCH(D123,ynna,0)),LEN(D123)>0)) -> FALSE | Y123: =IF(ISERROR(W123), TRUE,W123) -> FALSE | Z123: 5
B124: =lang!A518 -> Is the warehouse equipped with an overall fire and smoke detection system with direct connection to a permanently manned office that will notify the local fire department without delay or if not, with a direct connection to the local fire department ?
B125: =lang!A633 -> Smoke and heat vents | Y125: =ISERROR(CONCATENATE(D125,F125,H125,J125,L125)) -> FALSE | Z125: c
A127: 3.4.10. | B127: =lang!A476 -> Class 6.2 - Infectious substances | V127: d5 | W127: =OR(AND(ISNA(MATCH(L127,ynna,0)),LEN(L127)>0),AND(ISNA(MATCH(J127,ynna,0)),LEN(J127)>0),AND(ISNA(MATCH(H127,ynna,0)),LEN(H127)>0),AND(ISNA(MATCH(F127,ynna,0)),LEN(F127)>0),AND(ISNA(MATCH(D127,ynna,0)),LEN(D127)>0)) -> FALSE | Y127: =IF(ISERROR(W127), TRUE,W127) -> FALSE | Z127: 5
B128: =lang!A705 -> BY - Belarus
B129: =lang!A545 -> External walls: | Y129: =ISERROR(CONCATENATE(D129,F129,H129,J129,L129)) -> FALSE | Z129: c
A131: 3.4.11. | B131: =lang!A477 -> Class 7 - Radioactive material | V131: d5 | W131: =OR(AND(ISNA(MATCH(L131,ynna,0)),LEN(L131)>0),AND(ISNA(MATCH(J131,ynna,0)),LEN(J131)>0),AND(ISNA(MATCH(H131,ynna,0)),LEN(H131)>0),AND(ISNA(MATCH(F131,ynna,0)),LEN(F131)>0),AND(ISNA(MATCH(D131,ynna,0)),LEN(D131)>0)) -> FALSE | Y131: =IF(ISERROR(W131), TRUE,W131) -> FALSE | Z131: 5
B132: =lang!A651 -> Cerificate Number
B133: =lang!A634 -> Comment | Y133: =ISERROR(CONCATENATE(D133,F133,H133,J133,L133)) -> FALSE | Z133: c
A135: 3.4.12. | B135: =lang!A478 -> Class 8 - Corrosive substances | V135: d5 | W135: =OR(AND(ISNA(MATCH(L135,ynna,0)),LEN(L135)>0),AND(ISNA(MATCH(J135,ynna,0)),LEN(J135)>0),AND(ISNA(MATCH(H135,ynna,0)),LEN(H135)>0),AND(ISNA(MATCH(F135,ynna,0)),LEN(F135)>0),AND(ISNA(MATCH(D135,ynna,0)),LEN(D135)>0)) -> FALSE | Y135: =IF(ISERROR(W135), TRUE,W135) -> FALSE | Z135: 5
B136: =lang!A519 -> Is there a manual fire alarm system with a direct connection to the local fire brigade installed and is it readily accessible at any time ?
B137: =lang!A667 -> Owned/operated tracks present | Y137: =ISERROR(CONCATENATE(D137,F137,H137,J137,L137)) -> FALSE | Z137: c
A139: 3.4.13. | B139: =lang!A479 -> Class 9 - Miscellaneous dangerous substances & articles | V139: d5 | W139: =OR(AND(ISNA(MATCH(L139,ynna,0)),LEN(L139)>0),AND(ISNA(MATCH(J139,ynna,0)),LEN(J139)>0),AND(ISNA(MATCH(H139,ynna,0)),LEN(H139)>0),AND(ISNA(MATCH(F139,ynna,0)),LEN(F139)>0),AND(ISNA(MATCH(D139,ynna,0)),LEN(D139)>0)) -> FALSE | Y139: =IF(ISERROR(W139), TRUE,W139) -> FALSE | Z139: 5
B140: =lang!A535 -> Warehouse level:
B141: =lang!A520 -> Is the warehouse equipped with an audible alarm system easily audible throughout the work area ? | Y141: =ISERROR(CONCATENATE(D141,F141,H141,J141,L141)) -> FALSE | Z141: c
A143: 3.5. | B143: =lang!A480 -> Chemicals - classified as hazardous substances/ preparations (specify):
A144: 3.5.1. | B144: =lang!A481 -> Oxidising (O, R7, R8, R9) | V144: d5 | W144: =OR(AND(ISNA(MATCH(L144,ynna,0)),LEN(L144)>0),AND(ISNA(MATCH(J144,ynna,0)),LEN(J144)>0),AND(ISNA(MATCH(H144,ynna,0)),LEN(H144)>0),AND(ISNA(MATCH(F144,ynna,0)),LEN(F144)>0),AND(ISNA(MATCH(D144,ynna,0)),LEN(D144)>0)) -> FALSE | Y144: =IF(ISERROR(W144), TRUE,W144) -> FALSE | Z144: 5
B145: =lang!A499 -> - On-site fire brigade ?
B146: =lang!A582 -> Is lightning protection installed ? | Y146: =ISERROR(CONCATENATE(D146,F146,H146,J146,L146)) -> FALSE | Z146: c
A148: 3.5.2. | B148: =lang!A482 -> Extremely flammable (F+, R12) | V148: d5 | W148: =OR(AND(ISNA(MATCH(L148,ynna,0)),LEN(L148)>0),AND(ISNA(MATCH(J148,ynna,0)),LEN(J148)>0),AND(ISNA(MATCH(H148,ynna,0)),LEN(H148)>0),AND(ISNA(MATCH(F148,ynna,0)),LEN(F148)>0),AND(ISNA(MATCH(D148,ynna,0)),LEN(D148)>0)) -> FALSE | Y148: =IF(ISERROR(W148), TRUE,W148) -> FALSE | Z148: 5
B149: =lang!A539 -> Supporting construction:
B150: =lang!A506 -> Are warehouses, open storage areas, tanks and silos on site accessible by fire trucks from at least two sides (1 long side, 1 front side) | Y150: =ISERROR(CONCATENATE(D150,F150,H150,J150,L150)) -> FALSE | Z150: c
A152: 3.5.3. | B152: =lang!A483 -> Highly flammable (F, R11, R15, R17) | V152: d5 | W152: =OR(AND(ISNA(MATCH(L152,ynna,0)),LEN(L152)>0),AND(ISNA(MATCH(J152,ynna,0)),LEN(J152)>0),AND(ISNA(MATCH(H152,ynna,0)),LEN(H152)>0),AND(ISNA(MATCH(F152,ynna,0)),LEN(F152)>0),AND(ISNA(MATCH(D152,ynna,0)),LEN(D152)>0)) -> FALSE | Y152: =IF(ISERROR(W152), TRUE,W152) -> FALSE | Z152: 5
B153: =lang!A501 -> Is the required fire water supply defined and guaranteed to at least 2.400 l/min ?
B154: =lang!A637 -> Desciption/location(s) | Y154: =ISERROR(CONCATENATE(D154,F154,H154,J154,L154)) -> FALSE | Z154: c
A156: 3.5.4. | B156: =lang!A484 -> Flammable (R10) | V156: d5 | W156: =OR(AND(ISNA(MATCH(L156,ynna,0)),LEN(L156)>0),AND(ISNA(MATCH(J156,ynna,0)),LEN(J156)>0),AND(ISNA(MATCH(H156,ynna,0)),LEN(H156)>0),AND(ISNA(MATCH(F156,ynna,0)),LEN(F156)>0),AND(ISNA(MATCH(D156,ynna,0)),LEN(D156)>0)) -> FALSE | Y156: =IF(ISERROR(W156), TRUE,W156) -> FALSE | Z156: 5
B157: =lang!A649 -> Is the company certified by the National Safety Agency?
B158: =lang!A502 -> Is the required fire water supply (fire-hydrants, river, artificial static water supply, tanks, cisterns) on-site and off-site at a close range to the buildings on site (<150 m) and immediately available at any time and on-hand for at least two hours ? | Y158: =ISERROR(CONCATENATE(D158,F158,H158,J158,L158)) -> FALSE | Z158: c
A160: 3.5.5. | B160: =lang!A485 -> Very toxic (T+, R26, R27, R28) | V160: d5 | W160: =OR(AND(ISNA(MATCH(L160,ynna,0)),LEN(L160)>0),AND(ISNA(MATCH(J160,ynna,0)),LEN(J160)>0),AND(ISNA(MATCH(H160,ynna,0)),LEN(H160)>0),AND(ISNA(MATCH(F160,ynna,0)),LEN(F160)>0),AND(ISNA(MATCH(D160,ynna,0)),LEN(D160)>0)) -> FALSE | Y160: =IF(ISERROR(W160), TRUE,W160) -> FALSE | Z160: 5
B161: =lang!A584 -> Forklift type :
B162: =lang!A524 -> Are fire compartments storing products classified as toxic, oxidising, flammable or dangerous to the environment, equipped with fixed extinguishing systems (eg. water, foam) ? | Y162: =ISERROR(CONCATENATE(D162,F162,H162,J162,L162)) -> FALSE | Z162: c
A164: 3.5.6. | B164: =lang!A486 -> Toxic (T, R23, R24, R25) | V164: d5 | W164: =OR(AND(ISNA(MATCH(L164,ynna,0)),LEN(L164)>0),AND(ISNA(MATCH(J164,ynna,0)),LEN(J164)>0),AND(ISNA(MATCH(H164,ynna,0)),LEN(H164)>0),AND(ISNA(MATCH(F164,ynna,0)),LEN(F164)>0),AND(ISNA(MATCH(D164,ynna,0)),LEN(D164)>0)) -> FALSE | Y164: =IF(ISERROR(W164), TRUE,W164) -> FALSE | Z164: 5
B165: =lang!A538 -> underground
B166: =lang!A503 -> Detail Fire Protection Management for the warehouse buildings | Y166: =ISERROR(CONCATENATE(D166,F166,H166,J166,L166)) -> FALSE | Z166: c
A168: 3.5.7. | B168: =lang!A487 -> Harmful (Xn, R20, R21, R22, R42, R65) | V168: d5 | W168: =OR(AND(ISNA(MATCH(L168,ynna,0)),LEN(L168)>0),AND(ISNA(MATCH(J168,ynna,0)),LEN(J168)>0),AND(ISNA(MATCH(H168,ynna,0)),LEN(H168)>0),AND(ISNA(MATCH(F168,ynna,0)),LEN(F168)>0),AND(ISNA(MATCH(D168,ynna,0)),LEN(D168)>0)) -> FALSE | Y168: =IF(ISERROR(W168), TRUE,W168) -> FALSE | Z168: 5
B169: =lang!A504 -> Please complete the Fire Compartment Details on the worksheet "Products Permitted to store"
B170: =lang!A525 -> Are fire compartments storing products classified as toxic, oxidising, flammable or dangerous to the environment, equipped with an operating ventilation system, with an air exchange rate of at least twice/hour ? | Y170: =ISERROR(CONCATENATE(D170,F170,H170,J170,L170)) -> FALSE | Z170: c
A172: 3.5.8 | B172: =lang!A488 -> Corrosive (C, R34, R35) | V172: d5 | W172: =OR(AND(ISNA(MATCH(L172,ynna,0)),LEN(L172)>0),AND(ISNA(MATCH(J172,ynna,0)),LEN(J172)>0),AND(ISNA(MATCH(H172,ynna,0)),LEN(H172)>0),AND(ISNA(MATCH(F172,ynna,0)),LEN(F172)>0),AND(ISNA(MATCH(D172,ynna,0)),LEN(D172)>0)) -> FALSE | Y172: =IF(ISERROR(W172), TRUE,W172) -> FALSE | Z172: 5
B173: =lang!A700 -> AL - Albania
B174: =lang!A508 -> Are measures taken inside and outside the warehouse to adequately contain contaminated fire water in compliance with local regulations (eg. waterproof surface, volume of retention of 300 L per M2 of warehouse- and overflow in municipal water treatment plant) ? | Y174: =ISERROR(CONCATENATE(D174,F174,H174,J174,L174)) -> FALSE | Z174: c
A176: 3.5.9 | B176: =lang!A489 -> Irritant (Xi, R36, R37, R38, R41, R43) | V176: d5 | W176: =OR(AND(ISNA(MATCH(L176,ynna,0)),LEN(L176)>0),AND(ISNA(MATCH(J176,ynna,0)),LEN(J176)>0),AND(ISNA(MATCH(H176,ynna,0)),LEN(H176)>0),AND(ISNA(MATCH(F176,ynna,0)),LEN(F176)>0),AND(ISNA(MATCH(D176,ynna,0)),LEN(D176)>0)) -> FALSE | Y176: =IF(ISERROR(W176), TRUE,W176) -> FALSE | Z176: 5
B177: =lang!A526 -> Are charging stations for fork lift trucks placed in separate and vented rooms or inside the storage area with a protection distance of at least 5 m to any stored product or combustible material ?
B178: =lang!A686 -> Class 2 : Gases | Y178: =ISERROR(CONCATENATE(D178,F178,H178,J178,L178)) -> FALSE | Z178: c
A180: 3.5.10 | B180: =lang!A490 -> Dangerous for the environment (N, R50 to R59) | V180: d5 | W180: =OR(AND(ISNA(MATCH(L180,ynna,0)),LEN(L180)>0),AND(ISNA(MATCH(J180,ynna,0)),LEN(J180)>0),AND(ISNA(MATCH(H180,ynna,0)),LEN(H180)>0),AND(ISNA(MATCH(F180,ynna,0)),LEN(F180)>0),AND(ISNA(MATCH(D180,ynna,0)),LEN(D180)>0)) -> FALSE | Y180: =IF(ISERROR(W180), TRUE,W180) -> FALSE | Z180: 5
B181: =lang!A585 -> gasoil
B182: =lang!A642 -> Engineering/technical | Y182: =ISERROR(CONCATENATE(D182,F182,H182,J182,L182)) -> FALSE | Z182: c
A184: 3.5.11 | B184: =lang!A491 -> Category carcinogenic, mutagenic and reprotoxical (T with R45, R46, R49, R60, R61 or Xn with R40, R62, R63, R68) | V184: d5 | W184: =OR(AND(ISNA(MATCH(L184,ynna,0)),LEN(L184)>0),AND(ISNA(MATCH(J184,ynna,0)),LEN(J184)>0),AND(ISNA(MATCH(H184,ynna,0)),LEN(H184)>0),AND(ISNA(MATCH(F184,ynna,0)),LEN(F184)>0),AND(ISNA(MATCH(D184,ynna,0)),LEN(D184)>0)) -> FALSE | Y184: =IF(ISERROR(W184), TRUE,W184) -> FALSE | Z184: 5
B185: =lang!A509 -> Are measures taken in the storage areas to adequately contain spilled product in compliance with local regulations (eg. liquid proof surface, volume of retention at least 3% of the column of the packaged products stored) ?
B186: =lang!A527 -> Is the heating system in warehouses where flammable products are stored a hot-water heating system ? | Y186: =ISERROR(CONCATENATE(D186,F186,H186,J186,L186)) -> FALSE | Z186: c
A188: 4. | B188: =lang!A492 -> Fire Protection Management (Fire Plan)
A189: 4.1. | B189: =lang!A493 -> The site in general | L189: =lang!A447 -> Site
A191: 4.1.1. | B191: =lang!A494 -> Is the warehouse site accessible with fire trucks from at least two sides ? | V191: d | W191: =AND(ISNA(MATCH(L191,ynna,0)),LEN(L191)>0) -> FALSE | Y191: =IF(ISERROR(W191), TRUE,W191) -> FALSE | Z191: 1
B192: =lang!A685 -> Class 1 : Explosive substances and articles
B193: =lang!A510 -> Are measures taken on aisles and loading/unloading areas to adequately contain spilled product (eg. liquid proof surface, volume of retention at least equal to the biggest package to be transported or loaded/unloaded) ? | Y193: =ISERROR(CONCATENATE(D193,F193,H193,J193,L193)) -> FALSE | Z193: c
A195: 4.1.2. | B195: =lang!A495 -> Has a lightning strike survey been performed for the site ? | V195: d | W195: =AND(ISNA(MATCH(L195,ynna,0)),LEN(L195)>0) -> FALSE | Y195: =IF(ISERROR(W195), TRUE,W195) -> FALSE | Z195: 1
B196: =lang!A580 -> Is the coverage of lighting 100 % ? (yes and/or indicate %)
B197: =lang!A541 -> fire protected steel | Y197: =ISERROR(CONCATENATE(D197,F197,H197,J197,L197)) -> FALSE | Z197: c
A198: 4.1.3. | B198: =lang!A496 -> Tick which type(s) of fire department are responsible for the site :
A199: 4.1.3.1. | B199: =lang!A497 -> - Municipal ? | T199: =IF(U199,"Y","") ->  | U199: FALSE | Z199: m
B200: =lang!A694 -> Class 6.2. : Infectious substances | Y200: =ISERROR(CONCATENATE(D200,F200,H200,J200,L200)) -> FALSE | Z200: c
A201: 4.1.3.2 | B201: =lang!A498 -> - Volunteer ? | T201: =IF(U201,"Y","") ->  | U201: FALSE | Z201: m
B202: =lang!A539 -> Supporting construction: | Y202: =ISERROR(CONCATENATE(D202,F202,H202,J202,L202)) -> FALSE | Z202: c
A203: 4.1.3.3 | B203: =lang!A499 -> - On-site fire brigade ? | T203: =IF(U203,"Y","") ->  | U203: FALSE | Z203: m
B204: =lang!A582 -> Is lightning protection installed ? | Y204: =ISERROR(CONCATENATE(D204,F204,H204,J204,L204)) -> FALSE | Z204: c
A205: 4.1.4. | B205: =lang!A500 -> Fire water supply :
A206: 4.1.4.1. | B206: =lang!A501 -> Is the required fire water supply defined and guaranteed to at least 2.400 l/min ? | V206: d | W206: =AND(ISNA(MATCH(L206,ynna,0)),LEN(L206)>0) -> FALSE | Y206: =IF(ISERROR(W206), TRUE,W206) -> FALSE | Z206: 1
B207: =lang!A637 -> Desciption/location(s)
B208: =lang!A687 -> Class 3 : Flammable liquids | Y208: =ISERROR(CONCATENATE(D208,F208,H208,J208,L208)) -> FALSE | Z208: c
A210: 4.1.4.2. | B210: =lang!A502 -> Is the required fire water supply (fire-hydrants, river, artificial static water supply, tanks, cisterns) on-site and off-site at a close range to the buildings on site (<150 m) and immediately available at any time and on-hand for at least two hours ? | V210: d | W210: =AND(ISNA(MATCH(L210,ynna,0)),LEN(L210)>0) -> FALSE | Y210: =IF(ISERROR(W210), TRUE,W210) -> FALSE | Z210: 1
B211: =lang!A639 -> Corporate
B212: =lang!A584 -> Forklift type : | Y212: =ISERROR(CONCATENATE(D212,F212,H212,J212,L212)) -> FALSE | Z212: c
B213: =lang!A524 -> Are fire compartments storing products classified as toxic, oxidising, flammable or dangerous to the environment, equipped with fixed extinguishing systems (eg. water, foam) ?
A215: 4.2. | B215: =lang!A503 -> Detail Fire Protection Management for the warehouse buildings
A217: 4.2.1. | B217: =lang!A504 -> Please complete the Fire Compartment Details on the worksheet "Products Permitted to store"
D219: =B16 -> WH1 | F219: =B18 -> WH2 | H219: =B20 -> WH3 | J219: =B22 -> WH4 | L219: =B24 -> WH5
A220: 4.2.2. | B220: =lang!A505 -> Warehouse access
A221: 4.2.2.1. | B221: =lang!A506 -> Are warehouses, open storage areas, tanks and silos on site accessible by fire trucks from at least two sides (1 long side, 1 front side) | V221: d5 | W221: =OR(AND(ISNA(MATCH(L221,ynna,0)),LEN(L221)>0),AND(ISNA(MATCH(J221,ynna,0)),LEN(J221)>0),AND(ISNA(MATCH(H221,ynna,0)),LEN(H221)>0),AND(ISNA(MATCH(F221,ynna,0)),LEN(F221)>0),AND(ISNA(MATCH(D221,ynna,0)),LEN(D221)>0)) -> FALSE | Y221: =IF(ISERROR(W221), TRUE,W221) -> FALSE | Z221: 5
B222: =lang!A700 -> AL - Albania
B223: =lang!A526 -> Are charging stations for fork lift trucks placed in separate and vented rooms or inside the storage area with a protection distance of at least 5 m to any stored product or combustible material ? | Y223: =ISERROR(CONCATENATE(D223,F223,H223,J223,L223)) -> FALSE | Z223: c
A225: 4.2.3. | B225: =lang!A507 -> Retention measurements
A226: 4.2.3.1. | B226: =lang!A508 -> Are measures taken inside and outside the warehouse to adequately contain contaminated fire water in compliance with local regulations (eg. waterproof surface, volume of retention of 300 L per M2 of warehouse- and overflow in municipal water treatment plant) ? | V226: d5 | W226: =OR(AND(ISNA(MATCH(L226,ynna,0)),LEN(L226)>0),AND(ISNA(MATCH(J226,ynna,0)),LEN(J226)>0),AND(ISNA(MATCH(H226,ynna,0)),LEN(H226)>0),AND(ISNA(MATCH(F226,ynna,0)),LEN(F226)>0),AND(ISNA(MATCH(D226,ynna,0)),LEN(D226)>0)) -> FALSE | Y226: =IF(ISERROR(W226), TRUE,W226) -> FALSE | Z226: 5
B227: =lang!A540 -> concrete/bricks
B228: =lang!A585 -> gasoil | Y228: =ISERROR(CONCATENATE(D228,F228,H228,J228,L228)) -> FALSE | Z228: c
B229: =lang!A642 -> Engineering/technical
A230: 4.2.3.2. | B230: =lang!A509 -> Are measures taken in the storage areas to adequately contain spilled product in compliance with local regulations (eg. liquid proof surface, volume of retention at least 3% of the column of the packaged products stored) ? | V230: d5 | W230: =OR(AND(ISNA(MATCH(L230,ynna,0)),LEN(L230)>0),AND(ISNA(MATCH(J230,ynna,0)),LEN(J230)>0),AND(ISNA(MATCH(H230,ynna,0)),LEN(H230)>0),AND(ISNA(MATCH(F230,ynna,0)),LEN(F230)>0),AND(ISNA(MATCH(D230,ynna,0)),LEN(D230)>0)) -> FALSE | Y230: =IF(ISERROR(W230), TRUE,W230) -> FALSE | Z230: 5
B231: =lang!A527 -> Is the heating system in warehouses where flammable products are stored a hot-water heating system ?
B232: =lang!A586 -> LPG | Y232: =ISERROR(CONCATENATE(D232,F232,H232,J232,L232)) -> FALSE | Z232: c
B233: =lang!A685 -> Class 1 : Explosive substances and articles
A234: 4.2.3.3. | B234: =lang!A510 -> Are measures taken on aisles and loading/unloading areas to adequately contain spilled product (eg. liquid proof surface, volume of retention at least equal to the biggest package to be transported or loaded/unloaded) ? | V234: d5 | W234: =OR(AND(ISNA(MATCH(L234,ynna,0)),LEN(L234)>0),AND(ISNA(MATCH(J234,ynna,0)),LEN(J234)>0),AND(ISNA(MATCH(H234,ynna,0)),LEN(H234)>0),AND(ISNA(MATCH(F234,ynna,0)),LEN(F234)>0),AND(ISNA(MATCH(D234,ynna,0)),LEN(D234)>0)) -> FALSE | Y234: =IF(ISERROR(W234), TRUE,W234) -> FALSE | Z234: 5
B235: =lang!A688 -> Class 4.1. : Flammable solids, self-reactive substances and solid desensitized explosives.
B236: =lang!A528 -> Is the surface temperature of the heating system lower than the ignition temperature of the product stored ? | Y236: =ISERROR(CONCATENATE(D236,F236,H236,J236,L236)) -> FALSE | Z236: c
B237: =lang!A643 -> Facility management
A239: 4.2.4. | B239: =lang!A511 -> Constructional fire protection
A240: 4.2.4.1. | B240: =lang!A512 -> Is the warehouse separated by a safe distance from adjacent buildings in compliance with local regulations (eg. not less then 10 m or not less then 5 m in combination with an external fire wall) ? | V240: d5 | W240: =OR(AND(ISNA(MATCH(L240,ynna,0)),LEN(L240)>0),AND(ISNA(MATCH(J240,ynna,0)),LEN(J240)>0),AND(ISNA(MATCH(H240,ynna,0)),LEN(H240)>0),AND(ISNA(MATCH(F240,ynna,0)),LEN(F240)>0),AND(ISNA(MATCH(D240,ynna,0)),LEN(D240)>0)) -> FALSE | Y240: =IF(ISERROR(W240), TRUE,W240) -> FALSE | Z240: 5
B241: =lang!A587 -> electric
B242: =lang!A529 -> Warehouse security | Y242: =ISERROR(CONCATENATE(D242,F242,H242,J242,L242)) -> FALSE | Z242: c
B243: =lang!A546 -> concrete/bricks
A244: 4.2.4.2. | B244: =lang!A513 -> Are structural components like pillars, girders, floors and roof structure made of fire resistant materials (e.g. reinforced concrete) ? | V244: d5 | W244: =OR(AND(ISNA(MATCH(L244,ynna,0)),LEN(L244)>0),AND(ISNA(MATCH(J244,ynna,0)),LEN(J244)>0),AND(ISNA(MATCH(H244,ynna,0)),LEN(H244)>0),AND(ISNA(MATCH(F244,ynna,0)),LEN(F244)>0),AND(ISNA(MATCH(D244,ynna,0)),LEN(D244)>0)) -> FALSE | Y244: =IF(ISERROR(W244), TRUE,W244) -> FALSE | Z244: 5
B245: =lang!A530 -> Are doors and gates equipped with a locking system and is it assured that they are locked, when no persons are working in the warehouse ?
B246: =lang!A543 -> wood | Y246: =ISERROR(CONCATENATE(D246,F246,H246,J246,L246)) -> FALSE | Z246: c
A248: 4.2.4.3. | B248: =lang!A514 -> Are insulation and nonstructural components made of noncombustible materials ? | V248: d5 | W248: =OR(AND(ISNA(MATCH(L248,ynna,0)),LEN(L248)>0),AND(ISNA(MATCH(J248,ynna,0)),LEN(J248)>0),AND(ISNA(MATCH(H248,ynna,0)),LEN(H248)>0),AND(ISNA(MATCH(F248,ynna,0)),LEN(F248)>0),AND(ISNA(MATCH(D248,ynna,0)),LEN(D248)>0)) -> FALSE | Y248: =IF(ISERROR(W248), TRUE,W248) -> FALSE | Z248: 5
B249: =lang!A588 -> Fixed storage tanks for liquids
B250: =lang!A531 -> Are windows or other glass areas appropriately secured (e.g. by fixed grills) ? | Y250: =ISERROR(CONCATENATE(D250,F250,H250,J250,L250)) -> FALSE | Z250: c
A252: 4.2.4.4. | B252: =lang!A515 -> Are internal and external fire walls rated in accordance with local regulations (eg. wall made of noncombustible material like brick, concrete or reinforced concrete, wall thickness not less than 24 cm, wall minimum 50 cm above the roof or up to the roof and adjacent roof areas 5 m of noncombustible material, doors and gates in the wall fire resistant and self-closing, no other openings in the walls) ? | V252: d5 | W252: =OR(AND(ISNA(MATCH(L252,ynna,0)),LEN(L252)>0),AND(ISNA(MATCH(J252,ynna,0)),LEN(J252)>0),AND(ISNA(MATCH(H252,ynna,0)),LEN(H252)>0),AND(ISNA(MATCH(F252,ynna,0)),LEN(F252)>0),AND(ISNA(MATCH(D252,ynna,0)),LEN(D252)>0)) -> FALSE | Y252: =IF(ISERROR(W252), TRUE,W252) -> FALSE | Z252: 5
B253: =lang!A697 -> Class 9 : Miscellaneous dangerous substances and articles
B254: =lang!A696 -> Class 8 : Corrosive substances | Y254: =ISERROR(CONCATENATE(D254,F254,H254,J254,L254)) -> FALSE | Z254: c
... 252 more rows

Sheet WH - FCI
B1: =IF(X1,lang!A30,lang!A31) -> This sheet doesn't need to be answered | X1: ='General Information'!U117 -> FALSE | Y1: 0
B2: =IF(X1,IF(Y2,lang!A32,IF(X2,lang!A33,lang!A34)),"") ->  | X2: =X15 -> TRUE | Y2: =Y15 -> FALSE
B3: =IF(Y3,lang!A35,IF(X3,lang!A36,lang!A37)) -> The document is not yet completed | X3: =NOT(Status!F20) -> FALSE | Y3: =Status!G20 -> FALSE
A5: Gulf SQAS 2025
A6: =lang!A41 -> ASSESSMENT INFORMATION AND SCOPE - Part II
A7: =lang!A19 -> Warehouse
A8: 4.2.1. | B8: =lang!A612 -> Fire Compartments Information :
A10: =lang!A613 -> It is envisaged that one warehouse building may have more than one fire compartment. For this reason the below spreadsheet is used by the warehouse to record fire compartment details per building. The combination is identified through the first two columns.
A12: =lang!A614 -> (example WH1 / Compartment X)
A14: =lang!A615 -> Warehouse | B14: =lang!A617 -> Fire compartment | C14: =lang!A618 -> Area | D14: =lang!A620 -> Max. storage amount | E14: =lang!A622 -> Storage Type | F14: =lang!A624 -> Permitted products to store | H14: =lang!A630 -> Smoke detection system | I14: =lang!A632 -> Fixed extinguishing system | J14: =lang!A633 -> Smoke and heat vents | K14: =lang!A634 -> Comment
F15: =lang!A625 -> Classification | X15: TRUE | Y15: =(OR(Y17:Y242)) -> FALSE
A16: =lang!A616 -> (identification) | B16: =lang!A616 -> (identification) | C16: =lang!A619 -> [sqm] | D16: =lang!A621 -> (Pallets / Tank / Silo) | E16: =lang!A623 -> (Block / Rack / High Rack / Tank / Silo) | F16: =lang!A626 -> (ADR-Class or Hazardous Symbol) | W16: Validation | X16: Mand OK | Y16: Error
H17: =lang!A631 -> (existing Y or N) | I17: =lang!A631 -> (existing Y or N) | J17: =lang!A631 -> (existing Y or N)
W18: =OR(AND(NOT(ISNUMBER(C18)),LEN(C18)>0),AND(ISNA(MATCH(H18,ynna,0)),LEN(H18)>0),AND(ISNA(MATCH(I18,ynna,0)),LEN(I18)>0),AND(ISNA(MATCH(J18,ynna,0)),LEN(J18)>0)) -> FALSE | Y18: =IF(ISERROR(CONCATENATE(A18,B18,C18,D18,E18,F18,G18,H18,I18,J18,K18,W18)),TRUE,W18) -> FALSE | Z18: 1
W19: FALSE | Y19: =IF(ISERROR(CONCATENATE(A19,B19,C19,D19,E19,F19,G19,H19,I19,J19,K19,W19)),TRUE,W19) -> FALSE | Z19: =Z18+1 -> 2
W20: FALSE | Y20: FALSE | Z20: =Z19+1 -> 3
W21: FALSE | Y21: FALSE | Z21: 4
W22: FALSE | Y22: FALSE | Z22: 5
W23: FALSE | Y23: FALSE | Z23: 6
W24: FALSE | Y24: FALSE | Z24: 7
W25: FALSE | Y25: FALSE | Z25: 8
W26: FALSE | Y26: FALSE | Z26: 9
W27: FALSE | Y27: FALSE | Z27: 10
W28: FALSE | Y28: FALSE | Z28: 11
W29: FALSE | Y29: FALSE | Z29: 12
W30: FALSE | Y30: FALSE | Z30: 13
W31: FALSE | Y31: FALSE | Z31: 14
W32: FALSE | Y32: FALSE | Z32: 15
W33: FALSE | Y33: FALSE | Z33: 16
W34: FALSE | Y34: FALSE | Z34: 17
W35: FALSE | Y35: FALSE | Z35: 18
W36: FALSE | Y36: FALSE | Z36: 19
W37: FALSE | Y37: FALSE | Z37: 20
W38: FALSE | Y38: FALSE | Z38: 21
W39: FALSE | Y39: FALSE | Z39: 22
W40: FALSE | Y40: FALSE | Z40: 23
W41: FALSE | Y41: FALSE | Z41: 24
W42: FALSE | Y42: FALSE | Z42: 25
W43: FALSE | Y43: FALSE | Z43: 26
W44: FALSE | Y44: FALSE | Z44: 27
W45: FALSE | Y45: FALSE | Z45: 28
W46: FALSE | Y46: FALSE | Z46: 29
W47: FALSE | Y47: FALSE | Z47: 30
W48: FALSE | Y48: FALSE | Z48: 31
W49: FALSE | Y49: FALSE | Z49: 32
W50: FALSE | Y50: FALSE | Z50: 33
W51: FALSE | Y51: FALSE | Z51: 34
W52: FALSE | Y52: FALSE | Z52: 35
W53: FALSE | Y53: FALSE | Z53: 36
W54: FALSE | Y54: FALSE | Z54: 37
W55: FALSE | Y55: FALSE | Z55: 38
W56: FALSE | Y56: FALSE | Z56: 39
W57: FALSE | Y57: FALSE | Z57: 40
W58: FALSE | Y58: FALSE | Z58: 41
W59: FALSE | Y59: FALSE | Z59: 42
W60: FALSE | Y60: FALSE | Z60: 43
W61: FALSE | Y61: FALSE | Z61: 44
W62: FALSE | Y62: FALSE | Z62: 45
W63: FALSE | Y63: FALSE | Z63: 46
W64: FALSE | Y64: FALSE | Z64: 47
W65: FALSE | Y65: FALSE | Z65: 48
W66: FALSE | Y66: FALSE | Z66: 49
W67: FALSE | Y67: FALSE | Z67: 50
W68: FALSE | Y68: FALSE | Z68: 51
W69: FALSE | Y69: FALSE | Z69: 52
W70: FALSE | Y70: FALSE | Z70: 53
W71: FALSE | Y71: FALSE | Z71: 54
W72: FALSE | Y72: FALSE | Z72: 55
W73: FALSE | Y73: FALSE | Z73: 56
W74: FALSE | Y74: FALSE | Z74: 57
W75: FALSE | Y75: FALSE | Z75: 58
W76: FALSE | Y76: FALSE | Z76: 59
W77: FALSE | Y77: FALSE | Z77: 60
W78: FALSE | Y78: FALSE | Z78: 61
W79: FALSE | Y79: FALSE | Z79: 62
W80: FALSE | Y80: FALSE | Z80: 63
W81: FALSE | Y81: FALSE | Z81: 64
W82: =OR(AND(NOT(ISNUMBER(C82)),LEN(C82)>0),AND(ISNA(MATCH(H82,ynna,0)),LEN(H82)>0),AND(ISNA(MATCH(I82,ynna,0)),LEN(I82)>0),AND(ISNA(MATCH(J82,ynna,0)),LEN(J82)>0)) -> FALSE | Y82: FALSE | Z82: 65
W83: FALSE | Y83: =IF(ISERROR(CONCATENATE(A83,B83,C83,D83,E83,F83,G83,H83,I83,J83,K83,W83)),TRUE,W83) -> FALSE | Z83: 66
W84: FALSE | Y84: FALSE | Z84: =Z83+1 -> 67
W85: FALSE | Y85: FALSE | Z85: 68
W86: FALSE | Y86: FALSE | Z86: 69
W87: FALSE | Y87: FALSE | Z87: 70
W88: FALSE | Y88: FALSE | Z88: 71
W89: FALSE | Y89: FALSE | Z89: 72
W90: FALSE | Y90: FALSE | Z90: 73
W91: FALSE | Y91: FALSE | Z91: 74
W92: FALSE | Y92: FALSE | Z92: 75
W93: FALSE | Y93: FALSE | Z93: 76
W94: FALSE | Y94: FALSE | Z94: 77
W95: FALSE | Y95: FALSE | Z95: 78
W96: FALSE | Y96: FALSE | Z96: 79
W97: FALSE | Y97: FALSE | Z97: 80
W98: FALSE | Y98: FALSE | Z98: 81
W99: FALSE | Y99: FALSE | Z99: 82
W100: FALSE | Y100: FALSE | Z100: 83
W101: FALSE | Y101: FALSE | Z101: 84
W102: FALSE | Y102: FALSE | Z102: 85
W103: FALSE | Y103: FALSE | Z103: 86
W104: FALSE | Y104: FALSE | Z104: 87
W105: FALSE | Y105: FALSE | Z105: 88
W106: FALSE | Y106: FALSE | Z106: 89
W107: FALSE | Y107: FALSE | Z107: 90
W108: FALSE | Y108: FALSE | Z108: 91
W109: FALSE | Y109: FALSE | Z109: 92
W110: FALSE | Y110: FALSE | Z110: 93
W111: FALSE | Y111: FALSE | Z111: 94
W112: FALSE | Y112: FALSE | Z112: 95
W113: FALSE | Y113: FALSE | Z113: 96
W114: FALSE | Y114: FALSE | Z114: 97
W115: FALSE | Y115: FALSE | Z115: 98
W116: FALSE | Y116: FALSE | Z116: 99
W117: FALSE | Y117: FALSE | Z117: 100
W118: FALSE | Y118: FALSE | Z118: 101
W119: FALSE | Y119: FALSE | Z119: 102
W120: FALSE | Y120: FALSE | Z120: 103
W121: FALSE | Y121: FALSE | Z121: 104
W122: FALSE | Y122: FALSE | Z122: 105
W123: FALSE | Y123: FALSE | Z123: 106
W124: FALSE | Y124: FALSE | Z124: 107
W125: FALSE | Y125: FALSE | Z125: 108
W126: FALSE | Y126: FALSE | Z126: 109
W127: FALSE | Y127: FALSE | Z127: 110
W128: FALSE | Y128: FALSE | Z128: 111
W129: FALSE | Y129: FALSE | Z129: 112
W130: FALSE | Y130: FALSE | Z130: 113
W131: FALSE | Y131: FALSE | Z131: 114
W132: FALSE | Y132: FALSE | Z132: 115
W133: FALSE | Y133: FALSE | Z133: 116
W134: FALSE | Y134: FALSE | Z134: 117
W135: FALSE | Y135: FALSE | Z135: 118
W136: FALSE | Y136: FALSE | Z136: 119
W137: FALSE | Y137: FALSE | Z137: 120
W138: FALSE | Y138: FALSE | Z138: 121
W139: FALSE | Y139: FALSE | Z139: 122
W140: FALSE | Y140: FALSE | Z140: 123
W141: FALSE | Y141: FALSE | Z141: 124
W142: FALSE | Y142: FALSE | Z142: 125
W143: FALSE | Y143: FALSE | Z143: 126
W144: FALSE | Y144: FALSE | Z144: 127
W145: FALSE | Y145: FALSE | Z145: 128
W146: =OR(AND(NOT(ISNUMBER(C146)),LEN(C146)>0),AND(ISNA(MATCH(H146,ynna,0)),LEN(H146)>0),AND(ISNA(MATCH(I146,ynna,0)),LEN(I146)>0),AND(ISNA(MATCH(J146,ynna,0)),LEN(J146)>0)) -> FALSE | Y146: FALSE | Z146: 129
W147: FALSE | Y147: =IF(ISERROR(CONCATENATE(A147,B147,C147,D147,E147,F147,G147,H147,I147,J147,K147,W147)),TRUE,W147) -> FALSE | Z147: 130
W148: FALSE | Y148: FALSE | Z148: =Z147+1 -> 131
W149: FALSE | Y149: FALSE | Z149: 132
W150: FALSE | Y150: FALSE | Z150: 133
W151: FALSE | Y151: FALSE | Z151: 134
W152: FALSE | Y152: FALSE | Z152: 135
W153: FALSE | Y153: FALSE | Z153: 136
W154: FALSE | Y154: FALSE | Z154: 137
W155: FALSE | Y155: FALSE | Z155: 138
W156: FALSE | Y156: FALSE | Z156: 139
W157: FALSE | Y157: FALSE | Z157: 140
W158: FALSE | Y158: FALSE | Z158: 141
W159: FALSE | Y159: FALSE | Z159: 142
W160: FALSE | Y160: FALSE | Z160: 143
W161: FALSE | Y161: FALSE | Z161: 144
W162: FALSE | Y162: FALSE | Z162: 145
W163: FALSE | Y163: FALSE | Z163: 146
W164: FALSE | Y164: FALSE | Z164: 147
W165: FALSE | Y165: FALSE | Z165: 148
W166: FALSE | Y166: FALSE | Z166: 149
W167: FALSE | Y167: FALSE | Z167: 150
W168: FALSE | Y168: FALSE | Z168: 151
W169: FALSE | Y169: FALSE | Z169: 152
W170: FALSE | Y170: FALSE | Z170: 153
W171: FALSE | Y171: FALSE | Z171: 154
W172: FALSE | Y172: FALSE | Z172: 155
W173: FALSE | Y173: FALSE | Z173: 156
W174: FALSE | Y174: FALSE | Z174: 157
W175: FALSE | Y175: FALSE | Z175: 158
W176: FALSE | Y176: FALSE | Z176: 159
W177: FALSE | Y177: FALSE | Z177: 160
W178: FALSE | Y178: FALSE | Z178: 161
W179: FALSE | Y179: FALSE | Z179: 162
W180: FALSE | Y180: FALSE | Z180: 163
W181: FALSE | Y181: FALSE | Z181: 164
W182: FALSE | Y182: FALSE | Z182: 165
W183: FALSE | Y183: FALSE | Z183: 166
W184: FALSE | Y184: FALSE | Z184: 167
W185: FALSE | Y185: FALSE | Z185: 168
W186: FALSE | Y186: FALSE | Z186: 169
W187: FALSE | Y187: FALSE | Z187: 170
W188: FALSE | Y188: FALSE | Z188: 171
W189: FALSE | Y189: FALSE | Z189: 172
W190: FALSE | Y190: FALSE | Z190: 173
W191: FALSE | Y191: FALSE | Z191: 174
W192: FALSE | Y192: FALSE | Z192: 175
W193: FALSE | Y193: FALSE | Z193: 176
W194: FALSE | Y194: FALSE | Z194: 177
W195: FALSE | Y195: FALSE | Z195: 178
W196: FALSE | Y196: FALSE | Z196: 179
W197: FALSE | Y197: FALSE | Z197: 180
W198: FALSE | Y198: FALSE | Z198: 181
W199: FALSE | Y199: FALSE | Z199: 182
W200: FALSE | Y200: FALSE | Z200: 183
W201: FALSE | Y201: FALSE | Z201: 184
W202: FALSE | Y202: FALSE | Z202: 185
W203: FALSE | Y203: FALSE | Z203: 186
W204: FALSE | Y204: FALSE | Z204: 187
... 40 more rows

Sheet WH - II(2)
B1: =IF(X1,lang!A30,lang!A31) -> This sheet doesn't need to be answered | X1: =AND('General Information'!U117,T14>0) -> FALSE | Y1: =IF(R_WH2,AB14,0) -> 0
B2: =IF(X1,IF(Y2,lang!A32,IF(X2,lang!A33,lang!A34)),"") ->  | X2: =X14 -> TRUE | Y2: =Y14 -> FALSE
B3: =IF(Y3,lang!A35,IF(X3,lang!A36,lang!A37)) -> The document is not yet completed | X3: =NOT(Status!F20) -> FALSE | Y3: =Status!G20 -> FALSE
A5: Gulf SQAS 2025
A6: =lang!A41 -> ASSESSMENT INFORMATION AND SCOPE - Part II
A7: =lang!A17 -> Warehouse - 2
A8: =lang!A42 -> (Items marked with a (*) and/or magenta background must always be completed)
A9: =lang!A43 -> (For checkboxes "checked" means "Yes", "unchecked" - "No")
B10: =lang!A424 -> This complete document, together with the Fire Compartment data, is to be prepared by the Warehousing Company, well ahead of the Assessment, and to be provided to the assessor, for preparation of the assessment and entry in the system.
B11: =lang!A425 -> It is envisaged that storage companies may have more than one warehouse building on the assessed site to store Foodstuff and/or Chemical products. For this reason the spreadsheet used to record warehouse details per building, contains five columns.
B12: =lang!A426 -> (if more buildings on premises, use additional sheet)
B14: =lang!A427 -> Reference list of WH number versus site's identification of buildings | T14: ='WH - II(1)'!T24 -> 0 | W14: =T14>0 -> FALSE | X14: =AND(X16:X580) -> TRUE | Y14: =OR(Y16:Y580) -> FALSE | AB14: =SUM(AB16:AB580) -> 0
B15: =lang!A428 -> WH-number | D15: =lang!A429 -> Site's identification of buildings
B16: =lang!A435 -> WH6 | T16: =IF(LEN(TRIM(D16))>0,1000,0) -> 0 | W16: =T16>T14 -> FALSE | X16: =NOT(W16) -> TRUE | Y16: =ISERROR(CONCATENATE(D16,F16,H16,J16,L16)) -> FALSE
B18: =lang!A436 -> WH7 | T18: =IF(LEN(TRIM(D18))>0,1000,0) -> 0 | W18: =T18>T16 -> FALSE | X18: =NOT(W18) -> TRUE | Y18: =ISERROR(CONCATENATE(D18,F18,H18,J18,L18)) -> FALSE
B20: =lang!A437 -> WH8 | T20: =IF(LEN(TRIM(D20))>0,1000,0) -> 0 | W20: =T20>T18 -> FALSE | X20: =NOT(W20) -> TRUE | Y20: =ISERROR(CONCATENATE(D20,F20,H20,J20,L20)) -> FALSE
B22: =lang!A438 -> WH9 | T22: =IF(LEN(TRIM(D22))>0,1000,0) -> 0 | W22: =T22>T20 -> FALSE | X22: =NOT(W22) -> TRUE | Y22: =ISERROR(CONCATENATE(D22,F22,H22,J22,L22)) -> FALSE
B24: =lang!A439 -> WH10 | T24: =IF(LEN(TRIM(D24))>0,1000,0) -> 0 | W24: =T24>T22 -> FALSE | X24: =NOT(W24) -> TRUE | Y24: =ISERROR(CONCATENATE(D24,F24,H24,J24,L24)) -> FALSE
B26: =lang!A445 -> Please complete the appropriate boxes below for site or per warehouse-building : | C26: =lang!B445 -> Please complete the appropriate boxes below for site or per warehouse-building : | D26: =lang!C445 -> Bitte vervollständigen Sie die geeigneten Kästchen unterhalb für Standort oder für Lagergebäude | E26: =lang!D445 -> Por favor complete as células Excel apropriadas abaixo, para cada local a ser avaliado ou por cada edifício de armazenagem | F26: =lang!E445 -> Veuillez compléter les cadres appropriés pour le site ou par bâtiment d'entreposage | G26: =lang!F445 -> Por favor completar las casillas de debajo apropiadas para la instalación o los edificios de almacenamiento: | H26: =lang!G445 -> Si prega di completare gli appositi spazi sottostanti per sito o per singolo deposito: | I26: =lang!H445 -> Udfyld venligst de passende felter nedenfor pr. lokation eller lagerbygning | J26: =lang!I445 -> Ole hyvä ja täytä kyseeseen tulevat toimipaikkaa tai varastorakennuksia koskevat kohdat alla | K26: =lang!J445 -> Proszę uzupełnić odpowiednie pola poniżej, w odniesieniu do lokalizacji lub budynku magazynu. | L26: =lang!K445 -> A.u.b. de onderstaande vakken invullen voor de locatie of per magazijn/gebouw
B27: =lang!A446 -> (tick with "Y", "N", "N/A" or provide appropriate answer, eg number, add your comments in the yellow zone please) | C27: =lang!B446 -> (tick with "Y", "N", "N/A" or provide appropriate answer, eg number, add your comments in the yellow zone please) | D27: =lang!C446 -> Haken Sie ab mit "Y", N"; "N/A" oder schreiben Sie eine geeignete Antwort und fügen Sie bitte ihre Kommentare in die gelbe Zone ein) | E27: =lang!D446 -> (preencha com "S", "N", "N/A" ou efectue uma adequada resposta, por exemplo, referindo o número da pergunta na zona amarela e adicione os seu comentários | F27: =lang!E446 -> marquer avec "O", "N", "N/A" ou fournir une réponse appropriée, ex un nombre, veuiller ajouter vos commentaires dans la zone jaune. | G27: =lang!F446 -> (indicar "Y", "N", "N/A" o una respuesta adecuada, ej: número, añadir comentarios en el área amarilla por favor) | H27: =lang!G446 -> Inserire "Y", "N", "NA" o inserire una risposta appropriata, per esempio numero, o aggiungere commenti nello spazio giallo. | I27: =lang!H446 -> (afkrys med "J", "N", "N/A" eller angiv venligst passende svar, f.eks. nummer, tilføj dine kommentarer i det gule felt) | J27: =lang!I446 -> (merkitse "Y" -kyllä, "N" - ei, "N/A" - ei sovellettavissa, tai kirjoita siihen kuuluva vastaus, ts. varaston numero ja kirjaa kommentit keltaiseen alueeseen) | K27: =lang!J446 -> (zaznacz "Y'' - tak, ''N'' - nie, ''N/A'' - nie dotyczy albo wpisz komentarz w zółtym plu - np. numer) | L27: =lang!K446 -> (duid aan "J", "N", "NVT" of geef een gepast antwoord, bvb. een getal. Zet uw opmerkingen in de gele zone a.u.b.)
B28: =lang!A447 -> Site | C28: =lang!B447 -> Site | D28: =lang!C447 -> Standort | E28: =lang!D447 -> Local | F28: =lang!E447 -> Site | G28: =lang!F447 -> Instalación | H28: =lang!G447 -> Sito | I28: =lang!H447 -> Lokation | J28: =lang!I447 -> Toimipaikka | K28: =lang!J447 -> Lokalizacja | L28: =lang!K447 -> Locatie
L29: Site
A30: 1. | B30: =lang!A448 -> General site data
A31: 1.1. | B31: =lang!A449 -> Is the warehouse owned ? | Y31: =ISERROR(CONCATENATE(D31,F31,H31,J31,L31)) -> FALSE
B32: =lang!A466 -> Chemicals - classified as dangerous goods per Transport Classification (specify):
B33: =lang!A511 -> Constructional fire protection | T33: c | Y33: =ISERROR(CONCATENATE(D33,F33,H33,J33,L33)) -> FALSE
A35: 1.2. | B35: =lang!A450 -> Is the warehouse leased ? | Y35: =ISERROR(CONCATENATE(D35,F35,H35,J35,L35)) -> FALSE
B36: =lang!A465 -> For classified goods, use the Transport Classification (3.4) and the Classification for hazardous substances (3.5), according to the applicable warehouse permits :
B37: =lang!A468 -> Class 2 - Gases | T37: c | Y37: =ISERROR(CONCATENATE(D37,F37,H37,J37,L37)) -> FALSE
A39: 1.3. | B39: =lang!A451 -> Total warehouse space (sq. meters) ? | Y39: =ISERROR(CONCATENATE(D39,F39,H39,J39,L39)) -> FALSE
B40: =lang!A694 -> Class 6.2. : Infectious substances
B41: =lang!A470 -> Class 4.1 - Flammable solids | T41: c | Y41: =ISERROR(CONCATENATE(D41,F41,H41,J41,L41)) -> FALSE
A43: 1.4. | B43: =lang!A452 -> Total silo space (cubic meters) ? | Y43: =ISERROR(CONCATENATE(D43,F43,H43,J43,L43)) -> FALSE
B44: =lang!A587 -> electric
B45: =lang!A532 -> Is the warehouse secured with a burglar alarm system or by security personnel on-site ? | T45: c | Y45: =ISERROR(CONCATENATE(D45,F45,H45,J45,L45)) -> FALSE
A47: 1.5. | B47: =lang!A453 -> Open air packed storage space (sq. meters) ? | Y47: =ISERROR(CONCATENATE(D47,F47,H47,J47,L47)) -> FALSE
B48: =lang!A469 -> Class 3 - Flammable liquids
B49: =lang!A497 -> - Municipal ? | T49: c | Y49: =ISERROR(CONCATENATE(D49,F49,H49,J49,L49)) -> FALSE
A51: 1.6. | B51: =lang!A454 -> Are video cameras installed on site ? | Y51: =ISERROR(CONCATENATE(D51,F51,H51,J51,L51)) -> FALSE
B52: =lang!A546 -> concrete/bricks
B53: =lang!A513 -> Are structural components like pillars, girders, floors and roof structure made of fire resistant materials (e.g. reinforced concrete) ? | T53: c | Y53: =ISERROR(CONCATENATE(D53,F53,H53,J53,L53)) -> FALSE
A55: 1.7. | B55: =lang!A455 -> Is the registration office for visitors/contractors visiting the company clearly marked to indicate where they have to register ? | Y55: =ISERROR(CONCATENATE(D55,F55,H55,J55,L55)) -> FALSE
B56: =lang!A530 -> Are doors and gates equipped with a locking system and is it assured that they are locked, when no persons are working in the warehouse ?
B57: =lang!A543 -> wood | T57: c | Y57: =ISERROR(CONCATENATE(D57,F57,H57,J57,L57)) -> FALSE
A59: 1.8. | B59: =lang!A456 -> Is there a waiting room for contractors (drivers and accompanying persons) nearby the registration office ? | Y59: =ISERROR(CONCATENATE(D59,F59,H59,J59,L59)) -> FALSE
B60: =lang!A588 -> Fixed storage tanks for liquids
B61: =lang!A473 -> Class 5.1 - Oxidising substances | T61: c | Y61: =ISERROR(CONCATENATE(D61,F61,H61,J61,L61)) -> FALSE
A63: 1.9. | B63: =lang!A457 -> Is smoking prohibited in the storage areas ? | Y63: =ISERROR(CONCATENATE(D63,F63,H63,J63,L63)) -> FALSE
B64: =lang!A472 -> Class 4.3 - Substance, which in contact with water emit flammable gases
B65: =lang!A544 -> other (please indicate) | T65: c | Y65: =ISERROR(CONCATENATE(D65,F65,H65,J65,L65)) -> FALSE
A67: 1.10. | B67: =lang!A458 -> Are warning signs posted for emergency and prohibitions ("no smoking", "emergency exit") ? | Y67: =ISERROR(CONCATENATE(D67,F67,H67,J67,L67)) -> FALSE
B68: =lang!A646 -> Network
B69: =lang!A475 -> Class 6.1 - Toxic substances | T69: c | Y69: =ISERROR(CONCATENATE(D69,F69,H69,J69,L69)) -> FALSE
D71: =B16 -> WH6 | F71: =B18 -> WH7 | H71: =B20 -> WH8 | J71: =B22 -> WH9 | L71: =B24 -> WH10
A72: 2. | B72: =lang!A459 -> Warehouse capacity
A73: 2.1. | B73: =lang!A460 -> Warehouse space (sq. meters) | V73: n5 | W73: =OR(AND(NOT(ISNUMBER(L73)),LEN(L73)>0),AND(NOT(ISNUMBER(J73)),LEN(J73)>0),AND(NOT(ISNUMBER(H73)),LEN(H73)>0),AND(NOT(ISNUMBER(F73)),LEN(F73)>0),AND(NOT(ISNUMBER(D73)),LEN(D73)>0)) -> FALSE | Y73: =IF(ISERROR(W73), TRUE,W73) -> FALSE
B74: =lang!A515 -> Are internal and external fire walls rated in accordance with local regulations (eg. wall made of noncombustible material like brick, concrete or reinforced concrete, wall thickness not less than 24 cm, wall minimum 50 cm above the roof or up to the roof and adjacent roof areas 5 m of noncombustible material, doors and gates in the wall fire resistant and self-closing, no other openings in the walls) ?
B75: =lang!A697 -> Class 9 : Miscellaneous dangerous substances and articles | Y75: =ISERROR(CONCATENATE(D75,F75,H75,J75,L75)) -> FALSE
A77: 3. | B77: =lang!A461 -> Category of products permitted to be stored
A78: 3.1. | B78: =lang!A462 -> Foodstuffs | V78: d5 | W78: =OR(AND(ISNA(MATCH(L78,ynna,0)),LEN(L78)>0),AND(ISNA(MATCH(J78,ynna,0)),LEN(J78)>0),AND(ISNA(MATCH(H78,ynna,0)),LEN(H78)>0),AND(ISNA(MATCH(F78,ynna,0)),LEN(F78)>0),AND(ISNA(MATCH(D78,ynna,0)),LEN(D78)>0)) -> FALSE | Y78: =IF(ISERROR(W78), TRUE,W78) -> FALSE
B79: =lang!A533 -> Are burglar alarms transmitted automatically to security personnel or to a nearby police station ?
B80: =lang!A516 -> Are adjacent rooms (incl. office, staff - and technical rooms) separated from the storage area with at least fire resistant walls (eg. made of noncombustible material like brick, concrete or reinforced concrete, wall thickness not less than 11.5 cm, doors and gates at least fire retardant and self closing, no other openings in the walls) ? | Y80: =ISERROR(CONCATENATE(D80,F80,H80,J80,L80)) -> FALSE
A82: 3.2. | B82: =lang!A463 -> Solid chemicals (non - classified goods) | V82: d5 | W82: =OR(AND(ISNA(MATCH(L82,ynna,0)),LEN(L82)>0),AND(ISNA(MATCH(J82,ynna,0)),LEN(J82)>0),AND(ISNA(MATCH(H82,ynna,0)),LEN(H82)>0),AND(ISNA(MATCH(F82,ynna,0)),LEN(F82)>0),AND(ISNA(MATCH(D82,ynna,0)),LEN(D82)>0)) -> FALSE | Y82: =IF(ISERROR(W82), TRUE,W82) -> FALSE
B83: =lang!A633 -> Smoke and heat vents
B84: =lang!A581 -> Are safety lights installed in storage areas with safety lamps at least 1.5 m away from the product ? | Y84: =ISERROR(CONCATENATE(D84,F84,H84,J84,L84)) -> FALSE
A86: 3.3. | B86: =lang!A464 -> Liquid chemicals (non - classified goods) | V86: d5 | W86: =OR(AND(ISNA(MATCH(L86,ynna,0)),LEN(L86)>0),AND(ISNA(MATCH(J86,ynna,0)),LEN(J86)>0),AND(ISNA(MATCH(H86,ynna,0)),LEN(H86)>0),AND(ISNA(MATCH(F86,ynna,0)),LEN(F86)>0),AND(ISNA(MATCH(D86,ynna,0)),LEN(D86)>0)) -> FALSE | Y86: =IF(ISERROR(W86), TRUE,W86) -> FALSE
B87: =lang!A467 -> Class 1 - Explosive substances & articles
B88: =lang!A498 -> - Volunteer ? | T88: c | Y88: =ISERROR(CONCATENATE(D88,F88,H88,J88,L88)) -> FALSE
B89: =lang!A465 -> For classified goods, use the Transport Classification (3.4) and the Classification for hazardous substances (3.5), according to the applicable warehouse permits :
A90: 3.4. | B90: =lang!A466 -> Chemicals - classified as dangerous goods per Transport Classification (specify):
A91: 3.4.1. | B91: =lang!A467 -> Class 1 - Explosive substances & articles | V91: d5 | W91: =OR(AND(ISNA(MATCH(L91,ynna,0)),LEN(L91)>0),AND(ISNA(MATCH(J91,ynna,0)),LEN(J91)>0),AND(ISNA(MATCH(H91,ynna,0)),LEN(H91)>0),AND(ISNA(MATCH(F91,ynna,0)),LEN(F91)>0),AND(ISNA(MATCH(D91,ynna,0)),LEN(D91)>0)) -> FALSE | Y91: =IF(ISERROR(W91), TRUE,W91) -> FALSE | Z91: 5
B92: =lang!A498 -> - Volunteer ?
B93: =lang!A511 -> Constructional fire protection | Y93: =ISERROR(CONCATENATE(D93,F93,H93,J93,L93)) -> FALSE | Z93: c
A95: 3.4.2. | B95: =lang!A468 -> Class 2 - Gases | V95: d5 | W95: =OR(AND(ISNA(MATCH(L95,ynna,0)),LEN(L95)>0),AND(ISNA(MATCH(J95,ynna,0)),LEN(J95)>0),AND(ISNA(MATCH(H95,ynna,0)),LEN(H95)>0),AND(ISNA(MATCH(F95,ynna,0)),LEN(F95)>0),AND(ISNA(MATCH(D95,ynna,0)),LEN(D95)>0)) -> FALSE | Y95: =IF(ISERROR(W95), TRUE,W95) -> FALSE | Z95: 5
B96: =lang!A694 -> Class 6.2. : Infectious substances
B97: =lang!A587 -> electric | Y97: =ISERROR(CONCATENATE(D97,F97,H97,J97,L97)) -> FALSE | Z97: c
A99: 3.4.3. | B99: =lang!A469 -> Class 3 - Flammable liquids | V99: d5 | W99: =OR(AND(ISNA(MATCH(L99,ynna,0)),LEN(L99)>0),AND(ISNA(MATCH(J99,ynna,0)),LEN(J99)>0),AND(ISNA(MATCH(H99,ynna,0)),LEN(H99)>0),AND(ISNA(MATCH(F99,ynna,0)),LEN(F99)>0),AND(ISNA(MATCH(D99,ynna,0)),LEN(D99)>0)) -> FALSE | Y99: =IF(ISERROR(W99), TRUE,W99) -> FALSE | Z99: 5
B100: =lang!A497 -> - Municipal ?
B101: =lang!A589 -> Total capacity of storage tanks available (cubic meters) ? | Y101: =ISERROR(CONCATENATE(D101,F101,H101,J101,L101)) -> FALSE | Z101: c
A103: 3.4.4. | B103: =lang!A470 -> Class 4.1 - Flammable solids | V103: d5 | W103: =OR(AND(ISNA(MATCH(L103,ynna,0)),LEN(L103)>0),AND(ISNA(MATCH(J103,ynna,0)),LEN(J103)>0),AND(ISNA(MATCH(H103,ynna,0)),LEN(H103)>0),AND(ISNA(MATCH(F103,ynna,0)),LEN(F103)>0),AND(ISNA(MATCH(D103,ynna,0)),LEN(D103)>0)) -> FALSE | Y103: =IF(ISERROR(W103), TRUE,W103) -> FALSE | Z103: 5
B104: =lang!A529 -> Warehouse security
B105: =lang!A546 -> concrete/bricks | Y105: =ISERROR(CONCATENATE(D105,F105,H105,J105,L105)) -> FALSE | Z105: c
A107: 3.4.5. | B107: =lang!A471 -> Class 4.2 - Substances liable to spontaneous combustion | V107: d5 | W107: =OR(AND(ISNA(MATCH(L107,ynna,0)),LEN(L107)>0),AND(ISNA(MATCH(J107,ynna,0)),LEN(J107)>0),AND(ISNA(MATCH(H107,ynna,0)),LEN(H107)>0),AND(ISNA(MATCH(F107,ynna,0)),LEN(F107)>0),AND(ISNA(MATCH(D107,ynna,0)),LEN(D107)>0)) -> FALSE | Y107: =IF(ISERROR(W107), TRUE,W107) -> FALSE | Z107: 5
B108: =lang!A530 -> Are doors and gates equipped with a locking system and is it assured that they are locked, when no persons are working in the warehouse ?
B109: =lang!A543 -> wood | Y109: =ISERROR(CONCATENATE(D109,F109,H109,J109,L109)) -> FALSE | Z109: c
A111: 3.4.6. | B111: =lang!A472 -> Class 4.3 - Substance, which in contact with water emit flammable gases | V111: d5 | W111: =OR(AND(ISNA(MATCH(L111,ynna,0)),LEN(L111)>0),AND(ISNA(MATCH(J111,ynna,0)),LEN(J111)>0),AND(ISNA(MATCH(H111,ynna,0)),LEN(H111)>0),AND(ISNA(MATCH(F111,ynna,0)),LEN(F111)>0),AND(ISNA(MATCH(D111,ynna,0)),LEN(D111)>0)) -> FALSE | Y111: =IF(ISERROR(W111), TRUE,W111) -> FALSE | Z111: 5
B112: =lang!A544 -> other (please indicate)
B113: =lang!A514 -> Are insulation and nonstructural components made of noncombustible materials ? | Y113: =ISERROR(CONCATENATE(D113,F113,H113,J113,L113)) -> FALSE | Z113: c
A115: 3.4.7. | B115: =lang!A473 -> Class 5.1 - Oxidising substances | V115: d5 | W115: =OR(AND(ISNA(MATCH(L115,ynna,0)),LEN(L115)>0),AND(ISNA(MATCH(J115,ynna,0)),LEN(J115)>0),AND(ISNA(MATCH(H115,ynna,0)),LEN(H115)>0),AND(ISNA(MATCH(F115,ynna,0)),LEN(F115)>0),AND(ISNA(MATCH(D115,ynna,0)),LEN(D115)>0)) -> FALSE | Y115: =IF(ISERROR(W115), TRUE,W115) -> FALSE | Z115: 5
B116: =lang!A646 -> Network
B117: =lang!A533 -> Are burglar alarms transmitted automatically to security personnel or to a nearby police station ? | Y117: =ISERROR(CONCATENATE(D117,F117,H117,J117,L117)) -> FALSE | Z117: c
A119: 3.4.8. | B119: =lang!A474 -> Class 5.2. - Organic peroxides | V119: d5 | W119: =OR(AND(ISNA(MATCH(L119,ynna,0)),LEN(L119)>0),AND(ISNA(MATCH(J119,ynna,0)),LEN(J119)>0),AND(ISNA(MATCH(H119,ynna,0)),LEN(H119)>0),AND(ISNA(MATCH(F119,ynna,0)),LEN(F119)>0),AND(ISNA(MATCH(D119,ynna,0)),LEN(D119)>0)) -> FALSE | Y119: =IF(ISERROR(W119), TRUE,W119) -> FALSE | Z119: 5
B120: =lang!A515 -> Are internal and external fire walls rated in accordance with local regulations (eg. wall made of noncombustible material like brick, concrete or reinforced concrete, wall thickness not less than 24 cm, wall minimum 50 cm above the roof or up to the roof and adjacent roof areas 5 m of noncombustible material, doors and gates in the wall fire resistant and self-closing, no other openings in the walls) ?
B121: =lang!A697 -> Class 9 : Miscellaneous dangerous substances and articles | Y121: =ISERROR(CONCATENATE(D121,F121,H121,J121,L121)) -> FALSE | Z121: c
A123: 3.4.9. | B123: =lang!A475 -> Class 6.1 - Toxic substances | V123: d5 | W123: =OR(AND(ISNA(MATCH(L123,ynna,0)),LEN(L123)>0),AND(ISNA(MATCH(J123,ynna,0)),LEN(J123)>0),AND(ISNA(MATCH(H123,ynna,0)),LEN(H123)>0),AND(ISNA(MATCH(F123,ynna,0)),LEN(F123)>0),AND(ISNA(MATCH(D123,ynna,0)),LEN(D123)>0)) -> FALSE | Y123: =IF(ISERROR(W123), TRUE,W123) -> FALSE | Z123: 5
B124: =lang!A518 -> Is the warehouse equipped with an overall fire and smoke detection system with direct connection to a permanently manned office that will notify the local fire department without delay or if not, with a direct connection to the local fire department ?
B125: =lang!A633 -> Smoke and heat vents | Y125: =ISERROR(CONCATENATE(D125,F125,H125,J125,L125)) -> FALSE | Z125: c
A127: 3.4.10. | B127: =lang!A476 -> Class 6.2 - Infectious substances | V127: d5 | W127: =OR(AND(ISNA(MATCH(L127,ynna,0)),LEN(L127)>0),AND(ISNA(MATCH(J127,ynna,0)),LEN(J127)>0),AND(ISNA(MATCH(H127,ynna,0)),LEN(H127)>0),AND(ISNA(MATCH(F127,ynna,0)),LEN(F127)>0),AND(ISNA(MATCH(D127,ynna,0)),LEN(D127)>0)) -> FALSE | Y127: =IF(ISERROR(W127), TRUE,W127) -> FALSE | Z127: 5
B128: =lang!A705 -> BY - Belarus
B129: =lang!A545 -> External walls: | Y129: =ISERROR(CONCATENATE(D129,F129,H129,J129,L129)) -> FALSE | Z129: c
A131: 3.4.11. | B131: =lang!A477 -> Class 7 - Radioactive material | V131: d5 | W131: =OR(AND(ISNA(MATCH(L131,ynna,0)),LEN(L131)>0),AND(ISNA(MATCH(J131,ynna,0)),LEN(J131)>0),AND(ISNA(MATCH(H131,ynna,0)),LEN(H131)>0),AND(ISNA(MATCH(F131,ynna,0)),LEN(F131)>0),AND(ISNA(MATCH(D131,ynna,0)),LEN(D131)>0)) -> FALSE | Y131: =IF(ISERROR(W131), TRUE,W131) -> FALSE | Z131: 5
B132: =lang!A651 -> Cerificate Number
B133: =lang!A634 -> Comment | Y133: =ISERROR(CONCATENATE(D133,F133,H133,J133,L133)) -> FALSE | Z133: c
A135: 3.4.12. | B135: =lang!A478 -> Class 8 - Corrosive substances | V135: d5 | W135: =OR(AND(ISNA(MATCH(L135,ynna,0)),LEN(L135)>0),AND(ISNA(MATCH(J135,ynna,0)),LEN(J135)>0),AND(ISNA(MATCH(H135,ynna,0)),LEN(H135)>0),AND(ISNA(MATCH(F135,ynna,0)),LEN(F135)>0),AND(ISNA(MATCH(D135,ynna,0)),LEN(D135)>0)) -> FALSE | Y135: =IF(ISERROR(W135), TRUE,W135) -> FALSE | Z135: 5
B136: =lang!A519 -> Is there a manual fire alarm system with a direct connection to the local fire brigade installed and is it readily accessible at any time ?
B137: =lang!A667 -> Owned/operated tracks present | Y137: =ISERROR(CONCATENATE(D137,F137,H137,J137,L137)) -> FALSE | Z137: c
A139: 3.4.13. | B139: =lang!A479 -> Class 9 - Miscellaneous dangerous substances & articles | V139: d5 | W139: =OR(AND(ISNA(MATCH(L139,ynna,0)),LEN(L139)>0),AND(ISNA(MATCH(J139,ynna,0)),LEN(J139)>0),AND(ISNA(MATCH(H139,ynna,0)),LEN(H139)>0),AND(ISNA(MATCH(F139,ynna,0)),LEN(F139)>0),AND(ISNA(MATCH(D139,ynna,0)),LEN(D139)>0)) -> FALSE | Y139: =IF(ISERROR(W139), TRUE,W139) -> FALSE | Z139: 5
B140: =lang!A535 -> Warehouse level:
B141: =lang!A520 -> Is the warehouse equipped with an audible alarm system easily audible throughout the work area ? | Y141: =ISERROR(CONCATENATE(D141,F141,H141,J141,L141)) -> FALSE | Z141: c
A143: 3.5. | B143: =lang!A480 -> Chemicals - classified as hazardous substances/ preparations (specify):
A144: 3.5.1. | B144: =lang!A481 -> Oxidising (O, R7, R8, R9) | V144: d5 | W144: =OR(AND(ISNA(MATCH(L144,ynna,0)),LEN(L144)>0),AND(ISNA(MATCH(J144,ynna,0)),LEN(J144)>0),AND(ISNA(MATCH(H144,ynna,0)),LEN(H144)>0),AND(ISNA(MATCH(F144,ynna,0)),LEN(F144)>0),AND(ISNA(MATCH(D144,ynna,0)),LEN(D144)>0)) -> FALSE | Y144: =IF(ISERROR(W144), TRUE,W144) -> FALSE | Z144: 5
B145: =lang!A499 -> - On-site fire brigade ?
B146: =lang!A582 -> Is lightning protection installed ? | Y146: =ISERROR(CONCATENATE(D146,F146,H146,J146,L146)) -> FALSE | Z146: c
A148: 3.5.2. | B148: =lang!A482 -> Extremely flammable (F+, R12) | V148: d5 | W148: =OR(AND(ISNA(MATCH(L148,ynna,0)),LEN(L148)>0),AND(ISNA(MATCH(J148,ynna,0)),LEN(J148)>0),AND(ISNA(MATCH(H148,ynna,0)),LEN(H148)>0),AND(ISNA(MATCH(F148,ynna,0)),LEN(F148)>0),AND(ISNA(MATCH(D148,ynna,0)),LEN(D148)>0)) -> FALSE | Y148: =IF(ISERROR(W148), TRUE,W148) -> FALSE | Z148: 5
B149: =lang!A539 -> Supporting construction:
B150: =lang!A506 -> Are warehouses, open storage areas, tanks and silos on site accessible by fire trucks from at least two sides (1 long side, 1 front side) | Y150: =ISERROR(CONCATENATE(D150,F150,H150,J150,L150)) -> FALSE | Z150: c
A152: 3.5.3. | B152: =lang!A483 -> Highly flammable (F, R11, R15, R17) | V152: d5 | W152: =OR(AND(ISNA(MATCH(L152,ynna,0)),LEN(L152)>0),AND(ISNA(MATCH(J152,ynna,0)),LEN(J152)>0),AND(ISNA(MATCH(H152,ynna,0)),LEN(H152)>0),AND(ISNA(MATCH(F152,ynna,0)),LEN(F152)>0),AND(ISNA(MATCH(D152,ynna,0)),LEN(D152)>0)) -> FALSE | Y152: =IF(ISERROR(W152), TRUE,W152) -> FALSE | Z152: 5
B153: =lang!A501 -> Is the required fire water supply defined and guaranteed to at least 2.400 l/min ?
B154: =lang!A637 -> Desciption/location(s) | Y154: =ISERROR(CONCATENATE(D154,F154,H154,J154,L154)) -> FALSE | Z154: c
A156: 3.5.4. | B156: =lang!A484 -> Flammable (R10) | V156: d5 | W156: =OR(AND(ISNA(MATCH(L156,ynna,0)),LEN(L156)>0),AND(ISNA(MATCH(J156,ynna,0)),LEN(J156)>0),AND(ISNA(MATCH(H156,ynna,0)),LEN(H156)>0),AND(ISNA(MATCH(F156,ynna,0)),LEN(F156)>0),AND(ISNA(MATCH(D156,ynna,0)),LEN(D156)>0)) -> FALSE | Y156: =IF(ISERROR(W156), TRUE,W156) -> FALSE | Z156: 5
B157: =lang!A649 -> Is the company certified by the National Safety Agency?
B158: =lang!A502 -> Is the required fire water supply (fire-hydrants, river, artificial static water supply, tanks, cisterns) on-site and off-site at a close range to the buildings on site (<150 m) and immediately available at any time and on-hand for at least two hours ? | Y158: =ISERROR(CONCATENATE(D158,F158,H158,J158,L158)) -> FALSE | Z158: c
A160: 3.5.5. | B160: =lang!A485 -> Very toxic (T+, R26, R27, R28) | V160: d5 | W160: =OR(AND(ISNA(MATCH(L160,ynna,0)),LEN(L160)>0),AND(ISNA(MATCH(J160,ynna,0)),LEN(J160)>0),AND(ISNA(MATCH(H160,ynna,0)),LEN(H160)>0),AND(ISNA(MATCH(F160,ynna,0)),LEN(F160)>0),AND(ISNA(MATCH(D160,ynna,0)),LEN(D160)>0)) -> FALSE | Y160: =IF(ISERROR(W160), TRUE,W160) -> FALSE | Z160: 5
B161: =lang!A584 -> Forklift type :
B162: =lang!A524 -> Are fire compartments storing products classified as toxic, oxidising, flammable or dangerous to the environment, equipped with fixed extinguishing systems (eg. water, foam) ? | Y162: =ISERROR(CONCATENATE(D162,F162,H162,J162,L162)) -> FALSE | Z162: c
A164: 3.5.6. | B164: =lang!A486 -> Toxic (T, R23, R24, R25) | V164: d5 | W164: =OR(AND(ISNA(MATCH(L164,ynna,0)),LEN(L164)>0),AND(ISNA(MATCH(J164,ynna,0)),LEN(J164)>0),AND(ISNA(MATCH(H164,ynna,0)),LEN(H164)>0),AND(ISNA(MATCH(F164,ynna,0)),LEN(F164)>0),AND(ISNA(MATCH(D164,ynna,0)),LEN(D164)>0)) -> FALSE | Y164: =IF(ISERROR(W164), TRUE,W164) -> FALSE | Z164: 5
B165: =lang!A538 -> underground
B166: =lang!A503 -> Detail Fire Protection Management for the warehouse buildings | Y166: =ISERROR(CONCATENATE(D166,F166,H166,J166,L166)) -> FALSE | Z166: c
A168: 3.5.7. | B168: =lang!A487 -> Harmful (Xn, R20, R21, R22, R42, R65) | V168: d5 | W168: =OR(AND(ISNA(MATCH(L168,ynna,0)),LEN(L168)>0),AND(ISNA(MATCH(J168,ynna,0)),LEN(J168)>0),AND(ISNA(MATCH(H168,ynna,0)),LEN(H168)>0),AND(ISNA(MATCH(F168,ynna,0)),LEN(F168)>0),AND(ISNA(MATCH(D168,ynna,0)),LEN(D168)>0)) -> FALSE | Y168: =IF(ISERROR(W168), TRUE,W168) -> FALSE | Z168: 5
B169: =lang!A504 -> Please complete the Fire Compartment Details on the worksheet "Products Permitted to store"
B170: =lang!A525 -> Are fire compartments storing products classified as toxic, oxidising, flammable or dangerous to the environment, equipped with an operating ventilation system, with an air exchange rate of at least twice/hour ? | Y170: =ISERROR(CONCATENATE(D170,F170,H170,J170,L170)) -> FALSE | Z170: c
A172: 3.5.8 | B172: =lang!A488 -> Corrosive (C, R34, R35) | V172: d5 | W172: =OR(AND(ISNA(MATCH(L172,ynna,0)),LEN(L172)>0),AND(ISNA(MATCH(J172,ynna,0)),LEN(J172)>0),AND(ISNA(MATCH(H172,ynna,0)),LEN(H172)>0),AND(ISNA(MATCH(F172,ynna,0)),LEN(F172)>0),AND(ISNA(MATCH(D172,ynna,0)),LEN(D172)>0)) -> FALSE | Y172: =IF(ISERROR(W172), TRUE,W172) -> FALSE | Z172: 5
B173: =lang!A700 -> AL - Albania
B174: =lang!A508 -> Are measures taken inside and outside the warehouse to adequately contain contaminated fire water in compliance with local regulations (eg. waterproof surface, volume of retention of 300 L per M2 of warehouse- and overflow in municipal water treatment plant) ? | Y174: =ISERROR(CONCATENATE(D174,F174,H174,J174,L174)) -> FALSE | Z174: c
A176: 3.5.9 | B176: =lang!A489 -> Irritant (Xi, R36, R37, R38, R41, R43) | V176: d5 | W176: =OR(AND(ISNA(MATCH(L176,ynna,0)),LEN(L176)>0),AND(ISNA(MATCH(J176,ynna,0)),LEN(J176)>0),AND(ISNA(MATCH(H176,ynna,0)),LEN(H176)>0),AND(ISNA(MATCH(F176,ynna,0)),LEN(F176)>0),AND(ISNA(MATCH(D176,ynna,0)),LEN(D176)>0)) -> FALSE | Y176: =IF(ISERROR(W176), TRUE,W176) -> FALSE | Z176: 5
B177: =lang!A526 -> Are charging stations for fork lift trucks placed in separate and vented rooms or inside the storage area with a protection distance of at least 5 m to any stored product or combustible material ?
B178: =lang!A686 -> Class 2 : Gases | Y178: =ISERROR(CONCATENATE(D178,F178,H178,J178,L178)) -> FALSE | Z178: c
A180: 3.5.10 | B180: =lang!A490 -> Dangerous for the environment (N, R50 to R59) | V180: d5 | W180: =OR(AND(ISNA(MATCH(L180,ynna,0)),LEN(L180)>0),AND(ISNA(MATCH(J180,ynna,0)),LEN(J180)>0),AND(ISNA(MATCH(H180,ynna,0)),LEN(H180)>0),AND(ISNA(MATCH(F180,ynna,0)),LEN(F180)>0),AND(ISNA(MATCH(D180,ynna,0)),LEN(D180)>0)) -> FALSE | Y180: =IF(ISERROR(W180), TRUE,W180) -> FALSE | Z180: 5
B181: =lang!A585 -> gasoil
B182: =lang!A642 -> Engineering/technical | Y182: =ISERROR(CONCATENATE(D182,F182,H182,J182,L182)) -> FALSE | Z182: c
A184: 3.5.11 | B184: =lang!A491 -> Category carcinogenic, mutagenic and reprotoxical (T with R45, R46, R49, R60, R61 or Xn with R40, R62, R63, R68) | V184: d5 | W184: =OR(AND(ISNA(MATCH(L184,ynna,0)),LEN(L184)>0),AND(ISNA(MATCH(J184,ynna,0)),LEN(J184)>0),AND(ISNA(MATCH(H184,ynna,0)),LEN(H184)>0),AND(ISNA(MATCH(F184,ynna,0)),LEN(F184)>0),AND(ISNA(MATCH(D184,ynna,0)),LEN(D184)>0)) -> FALSE | Y184: =IF(ISERROR(W184), TRUE,W184) -> FALSE | Z184: 5
B185: =lang!A509 -> Are measures taken in the storage areas to adequately contain spilled product in compliance with local regulations (eg. liquid proof surface, volume of retention at least 3% of the column of the packaged products stored) ?
B186: =lang!A527 -> Is the heating system in warehouses where flammable products are stored a hot-water heating system ? | Y186: =ISERROR(CONCATENATE(D186,F186,H186,J186,L186)) -> FALSE | Z186: c
A188: 4. | B188: =lang!A492 -> Fire Protection Management (Fire Plan)
A189: 4.1. | B189: =lang!A493 -> The site in general | L189: Site
A191: 4.1.1. | B191: =lang!A494 -> Is the warehouse site accessible with fire trucks from at least two sides ? | V191: d | W191: =AND(ISNA(MATCH(L191,ynna,0)),LEN(L191)>0) -> FALSE | Y191: =IF(ISERROR(W191), TRUE,W191) -> FALSE | Z191: 1
B192: =lang!A685 -> Class 1 : Explosive substances and articles
B193: =lang!A510 -> Are measures taken on aisles and loading/unloading areas to adequately contain spilled product (eg. liquid proof surface, volume of retention at least equal to the biggest package to be transported or loaded/unloaded) ? | Y193: =ISERROR(CONCATENATE(D193,F193,H193,J193,L193)) -> FALSE | Z193: c
A195: 4.1.2. | B195: =lang!A495 -> Has a lightning strike survey been performed for the site ? | V195: d | W195: =AND(ISNA(MATCH(L195,ynna,0)),LEN(L195)>0) -> FALSE | Y195: =IF(ISERROR(W195), TRUE,W195) -> FALSE | Z195: 1
B196: =lang!A580 -> Is the coverage of lighting 100 % ? (yes and/or indicate %)
B197: =lang!A541 -> fire protected steel | T197: c | Y197: =ISERROR(CONCATENATE(D197,F197,H197,J197,L197)) -> FALSE
A198: 4.1.3. | B198: =lang!A496 -> Tick which type(s) of fire department are responsible for the site :
A199: 4.1.3.1. | B199: =lang!A497 -> - Municipal ? | R199: =IF(S199,"Y","N") -> N | S199: FALSE
B200: =lang!A694 -> Class 6.2. : Infectious substances | T200: c | Y200: =ISERROR(CONCATENATE(D200,F200,H200,J200,L200)) -> FALSE
A201: 4.1.3.2 | B201: =lang!A498 -> - Volunteer ? | R201: =IF(S201,"Y","N") -> N | S201: FALSE
B202: =lang!A539 -> Supporting construction: | T202: c | Y202: =ISERROR(CONCATENATE(D202,F202,H202,J202,L202)) -> FALSE
A203: 4.1.3.3 | B203: =lang!A499 -> - On-site fire brigade ? | R203: =IF(S203,"Y","N") -> N | S203: FALSE
B204: =lang!A582 -> Is lightning protection installed ? | T204: c | Y204: =ISERROR(CONCATENATE(D204,F204,H204,J204,L204)) -> FALSE
A205: 4.1.4. | B205: =lang!A500 -> Fire water supply :
A206: 4.1.4.1. | B206: =lang!A501 -> Is the required fire water supply defined and guaranteed to at least 2.400 l/min ? | Y206: =ISERROR(CONCATENATE(D206,F206,H206,J206,L206)) -> FALSE
B207: =lang!A637 -> Desciption/location(s)
B208: =lang!A687 -> Class 3 : Flammable liquids | T208: c | Y208: =ISERROR(CONCATENATE(D208,F208,H208,J208,L208)) -> FALSE
A210: 4.1.4.2. | B210: =lang!A502 -> Is the required fire water supply (fire-hydrants, river, artificial static water supply, tanks, cisterns) on-site and off-site at a close range to the buildings on site (<150 m) and immediately available at any time and on-hand for at least two hours ? | Y210: =ISERROR(CONCATENATE(D210,F210,H210,J210,L210)) -> FALSE
B211: =lang!A639 -> Corporate
B212: =lang!A584 -> Forklift type : | T212: c | Y212: =ISERROR(CONCATENATE(D212,F212,H212,J212,L212)) -> FALSE
B213: =lang!A524 -> Are fire compartments storing products classified as toxic, oxidising, flammable or dangerous to the environment, equipped with fixed extinguishing systems (eg. water, foam) ?
A215: 4.2. | B215: =lang!A503 -> Detail Fire Protection Management for the warehouse buildings
A217: 4.2.1. | B217: =lang!A504 -> Please complete the Fire Compartment Details on the worksheet "Products Permitted to store"
D219: =B16 -> WH6 | F219: =B18 -> WH7 | H219: =B20 -> WH8 | J219: =B22 -> WH9 | L219: =B24 -> WH10
A220: 4.2.2. | B220: =lang!A505 -> Warehouse access
A221: 4.2.2.1. | B221: =lang!A506 -> Are warehouses, open storage areas, tanks and silos on site accessible by fire trucks from at least two sides (1 long side, 1 front side) | V221: d5 | W221: =OR(AND(ISNA(MATCH(L221,ynna,0)),LEN(L221)>0),AND(ISNA(MATCH(J221,ynna,0)),LEN(J221)>0),AND(ISNA(MATCH(H221,ynna,0)),LEN(H221)>0),AND(ISNA(MATCH(F221,ynna,0)),LEN(F221)>0),AND(ISNA(MATCH(D221,ynna,0)),LEN(D221)>0)) -> FALSE | Y221: =IF(ISERROR(W221), TRUE,W221) -> FALSE
B222: =lang!A700 -> AL - Albania
B223: =lang!A526 -> Are charging stations for fork lift trucks placed in separate and vented rooms or inside the storage area with a protection distance of at least 5 m to any stored product or combustible material ? | Y223: =ISERROR(CONCATENATE(D223,F223,H223,J223,L223)) -> FALSE
A225: 4.2.3. | B225: =lang!A507 -> Retention measurements
A226: 4.2.3.1. | B226: =lang!A508 -> Are measures taken inside and outside the warehouse to adequately contain contaminated fire water in compliance with local regulations (eg. waterproof surface, volume of retention of 300 L per M2 of warehouse- and overflow in municipal water treatment plant) ? | V226: d5 | W226: =OR(AND(ISNA(MATCH(L226,ynna,0)),LEN(L226)>0),AND(ISNA(MATCH(J226,ynna,0)),LEN(J226)>0),AND(ISNA(MATCH(H226,ynna,0)),LEN(H226)>0),AND(ISNA(MATCH(F226,ynna,0)),LEN(F226)>0),AND(ISNA(MATCH(D226,ynna,0)),LEN(D226)>0)) -> FALSE | Y226: =IF(ISERROR(W226), TRUE,W226) -> FALSE
B227: =lang!A540 -> concrete/bricks
B228: =lang!A585 -> gasoil | Y228: =ISERROR(CONCATENATE(D228,F228,H228,J228,L228)) -> FALSE
B229: =lang!A642 -> Engineering/technical
A230: 4.2.3.2. | B230: =lang!A509 -> Are measures taken in the storage areas to adequately contain spilled product in compliance with local regulations (eg. liquid proof surface, volume of retention at least 3% of the column of the packaged products stored) ? | V230: d5 | W230: =OR(AND(ISNA(MATCH(L230,ynna,0)),LEN(L230)>0),AND(ISNA(MATCH(J230,ynna,0)),LEN(J230)>0),AND(ISNA(MATCH(H230,ynna,0)),LEN(H230)>0),AND(ISNA(MATCH(F230,ynna,0)),LEN(F230)>0),AND(ISNA(MATCH(D230,ynna,0)),LEN(D230)>0)) -> FALSE | Y230: =IF(ISERROR(W230), TRUE,W230) -> FALSE
B231: =lang!A527 -> Is the heating system in warehouses where flammable products are stored a hot-water heating system ?
B232: =lang!A586 -> LPG | Y232: =ISERROR(CONCATENATE(D232,F232,H232,J232,L232)) -> FALSE
B233: =lang!A685 -> Class 1 : Explosive substances and articles
A234: 4.2.3.3. | B234: =lang!A510 -> Are measures taken on aisles and loading/unloading areas to adequately contain spilled product (eg. liquid proof surface, volume of retention at least equal to the biggest package to be transported or loaded/unloaded) ? | V234: d5 | W234: =OR(AND(ISNA(MATCH(L234,ynna,0)),LEN(L234)>0),AND(ISNA(MATCH(J234,ynna,0)),LEN(J234)>0),AND(ISNA(MATCH(H234,ynna,0)),LEN(H234)>0),AND(ISNA(MATCH(F234,ynna,0)),LEN(F234)>0),AND(ISNA(MATCH(D234,ynna,0)),LEN(D234)>0)) -> FALSE | Y234: =IF(ISERROR(W234), TRUE,W234) -> FALSE
B235: =lang!A688 -> Class 4.1. : Flammable solids, self-reactive substances and solid desensitized explosives.
B236: =lang!A528 -> Is the surface temperature of the heating system lower than the ignition temperature of the product stored ? | Y236: =ISERROR(CONCATENATE(D236,F236,H236,J236,L236)) -> FALSE
B237: =lang!A643 -> Facility management
A239: 4.2.4. | B239: =lang!A511 -> Constructional fire protection
A240: 4.2.4.1. | B240: =lang!A512 -> Is the warehouse separated by a safe distance from adjacent buildings in compliance with local regulations (eg. not less then 10 m or not less then 5 m in combination with an external fire wall) ? | V240: d5 | W240: =OR(AND(ISNA(MATCH(L240,ynna,0)),LEN(L240)>0),AND(ISNA(MATCH(J240,ynna,0)),LEN(J240)>0),AND(ISNA(MATCH(H240,ynna,0)),LEN(H240)>0),AND(ISNA(MATCH(F240,ynna,0)),LEN(F240)>0),AND(ISNA(MATCH(D240,ynna,0)),LEN(D240)>0)) -> FALSE | Y240: =IF(ISERROR(W240), TRUE,W240) -> FALSE
B241: =lang!A587 -> electric
B242: =lang!A529 -> Warehouse security | Y242: =ISERROR(CONCATENATE(D242,F242,H242,J242,L242)) -> FALSE
B243: =lang!A546 -> concrete/bricks
A244: 4.2.4.2. | B244: =lang!A513 -> Are structural components like pillars, girders, floors and roof structure made of fire resistant materials (e.g. reinforced concrete) ? | V244: d5 | W244: =OR(AND(ISNA(MATCH(L244,ynna,0)),LEN(L244)>0),AND(ISNA(MATCH(J244,ynna,0)),LEN(J244)>0),AND(ISNA(MATCH(H244,ynna,0)),LEN(H244)>0),AND(ISNA(MATCH(F244,ynna,0)),LEN(F244)>0),AND(ISNA(MATCH(D244,ynna,0)),LEN(D244)>0)) -> FALSE | Y244: =IF(ISERROR(W244), TRUE,W244) -> FALSE
B245: =lang!A530 -> Are doors and gates equipped with a locking system and is it assured that they are locked, when no persons are working in the warehouse ?
B246: =lang!A543 -> wood | Y246: =ISERROR(CONCATENATE(D246,F246,H246,J246,L246)) -> FALSE
A248: 4.2.4.3. | B248: =lang!A514 -> Are insulation and nonstructural components made of noncombustible materials ? | V248: d5 | W248: =OR(AND(ISNA(MATCH(L248,ynna,0)),LEN(L248)>0),AND(ISNA(MATCH(J248,ynna,0)),LEN(J248)>0),AND(ISNA(MATCH(H248,ynna,0)),LEN(H248)>0),AND(ISNA(MATCH(F248,ynna,0)),LEN(F248)>0),AND(ISNA(MATCH(D248,ynna,0)),LEN(D248)>0)) -> FALSE | Y248: =IF(ISERROR(W248), TRUE,W248) -> FALSE
B249: =lang!A588 -> Fixed storage tanks for liquids
B250: =lang!A531 -> Are windows or other glass areas appropriately secured (e.g. by fixed grills) ? | Y250: =ISERROR(CONCATENATE(D250,F250,H250,J250,L250)) -> FALSE
A252: 4.2.4.4. | B252: =lang!A515 -> Are internal and external fire walls rated in accordance with local regulations (eg. wall made of noncombustible material like brick, concrete or reinforced concrete, wall thickness not less than 24 cm, wall minimum 50 cm above the roof or up to the roof and adjacent roof areas 5 m of noncombustible material, doors and gates in the wall fire resistant and self-closing, no other openings in the walls) ? | V252: d5 | W252: =OR(AND(ISNA(MATCH(L252,ynna,0)),LEN(L252)>0),AND(ISNA(MATCH(J252,ynna,0)),LEN(J252)>0),AND(ISNA(MATCH(H252,ynna,0)),LEN(H252)>0),AND(ISNA(MATCH(F252,ynna,0)),LEN(F252)>0),AND(ISNA(MATCH(D252,ynna,0)),LEN(D252)>0)) -> FALSE | Y252: =IF(ISERROR(W252), TRUE,W252) -> FALSE
B253: =lang!A697 -> Class 9 : Miscellaneous dangerous substances and articles
B254: =lang!A696 -> Class 8 : Corrosive substances | Y254: =ISERROR(CONCATENATE(D254,F254,H254,J254,L254)) -> FALSE
... 252 more rows

Sheet WH - II(3)
B1: =IF(X1,lang!A30,lang!A31) -> This sheet doesn't need to be answered | X1: =AND('General Information'!U117,T14>0) -> FALSE | Y1: =IF(R_WH3,AB14,0) -> 0
B2: =IF(X1,IF(Y2,lang!A32,IF(X2,lang!A33,lang!A34)),"") ->  | X2: =X14 -> TRUE | Y2: =Y14 -> FALSE
B3: =IF(Y3,lang!A35,IF(X3,lang!A36,lang!A37)) -> The document is not yet completed | X3: =NOT(Status!F20) -> FALSE | Y3: =Status!G20 -> FALSE
A5: Gulf SQAS 2025
A6: =lang!A41 -> ASSESSMENT INFORMATION AND SCOPE - Part II
A7: =lang!A18 -> Warehouse - 3
A8: =lang!A42 -> (Items marked with a (*) and/or magenta background must always be completed)
A9: =lang!A43 -> (For checkboxes "checked" means "Yes", "unchecked" - "No")
B10: =lang!A424 -> This complete document, together with the Fire Compartment data, is to be prepared by the Warehousing Company, well ahead of the Assessment, and to be provided to the assessor, for preparation of the assessment and entry in the system.
B11: =lang!A425 -> It is envisaged that storage companies may have more than one warehouse building on the assessed site to store Foodstuff and/or Chemical products. For this reason the spreadsheet used to record warehouse details per building, contains five columns.
B12: =lang!A426 -> (if more buildings on premises, use additional sheet)
B14: =lang!A427 -> Reference list of WH number versus site's identification of buildings | T14: ='WH - II(2)'!T24 -> 0 | W14: =T14>0 -> FALSE | X14: =AND(X16:X580) -> TRUE | Y14: =OR(Y16:Y580) -> FALSE | AB14: =SUM(AB16:AB580) -> 0
B15: =lang!A428 -> WH-number | D15: =lang!A429 -> Site's identification of buildings
B16: =lang!A440 -> WH11 | T16: =IF(LEN(TRIM(D16))>0,1000,0) -> 0 | W16: =T16>T14 -> FALSE | X16: =NOT(W16) -> TRUE | Y16: =ISERROR(CONCATENATE(D16,F16,H16,J16,L16)) -> FALSE
B18: =lang!A441 -> WH12 | T18: =IF(LEN(TRIM(D18))>0,1000,0) -> 0 | W18: =T18>T16 -> FALSE | X18: =NOT(W18) -> TRUE | Y18: =ISERROR(CONCATENATE(D18,F18,H18,J18,L18)) -> FALSE
B20: =lang!A442 -> WH13 | T20: =IF(LEN(TRIM(D20))>0,1000,0) -> 0 | W20: =T20>T18 -> FALSE | X20: =NOT(W20) -> TRUE | Y20: =ISERROR(CONCATENATE(D20,F20,H20,J20,L20)) -> FALSE
B22: =lang!A443 -> WH14 | T22: =IF(LEN(TRIM(D22))>0,1000,0) -> 0 | W22: =T22>T20 -> FALSE | X22: =NOT(W22) -> TRUE | Y22: =ISERROR(CONCATENATE(D22,F22,H22,J22,L22)) -> FALSE
B24: =lang!A444 -> WH15 | T24: =IF(LEN(TRIM(D24))>0,1000,0) -> 0 | W24: =T24>T22 -> FALSE | X24: =NOT(W24) -> TRUE | Y24: =ISERROR(CONCATENATE(D24,F24,H24,J24,L24)) -> FALSE
B26: =lang!A445 -> Please complete the appropriate boxes below for site or per warehouse-building : | C26: =lang!B445 -> Please complete the appropriate boxes below for site or per warehouse-building : | D26: =lang!C445 -> Bitte vervollständigen Sie die geeigneten Kästchen unterhalb für Standort oder für Lagergebäude | E26: =lang!D445 -> Por favor complete as células Excel apropriadas abaixo, para cada local a ser avaliado ou por cada edifício de armazenagem | F26: =lang!E445 -> Veuillez compléter les cadres appropriés pour le site ou par bâtiment d'entreposage | G26: =lang!F445 -> Por favor completar las casillas de debajo apropiadas para la instalación o los edificios de almacenamiento: | H26: =lang!G445 -> Si prega di completare gli appositi spazi sottostanti per sito o per singolo deposito: | I26: =lang!H445 -> Udfyld venligst de passende felter nedenfor pr. lokation eller lagerbygning | J26: =lang!I445 -> Ole hyvä ja täytä kyseeseen tulevat toimipaikkaa tai varastorakennuksia koskevat kohdat alla | K26: =lang!J445 -> Proszę uzupełnić odpowiednie pola poniżej, w odniesieniu do lokalizacji lub budynku magazynu. | L26: =lang!K445 -> A.u.b. de onderstaande vakken invullen voor de locatie of per magazijn/gebouw
B27: =lang!A446 -> (tick with "Y", "N", "N/A" or provide appropriate answer, eg number, add your comments in the yellow zone please) | C27: =lang!B446 -> (tick with "Y", "N", "N/A" or provide appropriate answer, eg number, add your comments in the yellow zone please) | D27: =lang!C446 -> Haken Sie ab mit "Y", N"; "N/A" oder schreiben Sie eine geeignete Antwort und fügen Sie bitte ihre Kommentare in die gelbe Zone ein) | E27: =lang!D446 -> (preencha com "S", "N", "N/A" ou efectue uma adequada resposta, por exemplo, referindo o número da pergunta na zona amarela e adicione os seu comentários | F27: =lang!E446 -> marquer avec "O", "N", "N/A" ou fournir une réponse appropriée, ex un nombre, veuiller ajouter vos commentaires dans la zone jaune. | G27: =lang!F446 -> (indicar "Y", "N", "N/A" o una respuesta adecuada, ej: número, añadir comentarios en el área amarilla por favor) | H27: =lang!G446 -> Inserire "Y", "N", "NA" o inserire una risposta appropriata, per esempio numero, o aggiungere commenti nello spazio giallo. | I27: =lang!H446 -> (afkrys med "J", "N", "N/A" eller angiv venligst passende svar, f.eks. nummer, tilføj dine kommentarer i det gule felt) | J27: =lang!I446 -> (merkitse "Y" -kyllä, "N" - ei, "N/A" - ei sovellettavissa, tai kirjoita siihen kuuluva vastaus, ts. varaston numero ja kirjaa kommentit keltaiseen alueeseen) | K27: =lang!J446 -> (zaznacz "Y'' - tak, ''N'' - nie, ''N/A'' - nie dotyczy albo wpisz komentarz w zółtym plu - np. numer) | L27: =lang!K446 -> (duid aan "J", "N", "NVT" of geef een gepast antwoord, bvb. een getal. Zet uw opmerkingen in de gele zone a.u.b.)
B28: =lang!A447 -> Site | C28: =lang!B447 -> Site | D28: =lang!C447 -> Standort | E28: =lang!D447 -> Local | F28: =lang!E447 -> Site | G28: =lang!F447 -> Instalación | H28: =lang!G447 -> Sito | I28: =lang!H447 -> Lokation | J28: =lang!I447 -> Toimipaikka | K28: =lang!J447 -> Lokalizacja | L28: =lang!K447 -> Locatie
L29: Site
A30: 1. | B30: =lang!A448 -> General site data
A31: 1.1. | B31: =lang!A449 -> Is the warehouse owned ? | Y31: =ISERROR(CONCATENATE(D31,F31,H31,J31,L31)) -> FALSE
B32: =lang!A466 -> Chemicals - classified as dangerous goods per Transport Classification (specify):
B33: =lang!A511 -> Constructional fire protection | T33: c | Y33: =ISERROR(CONCATENATE(D33,F33,H33,J33,L33)) -> FALSE
A35: 1.2. | B35: =lang!A450 -> Is the warehouse leased ? | Y35: =ISERROR(CONCATENATE(D35,F35,H35,J35,L35)) -> FALSE
B36: =lang!A465 -> For classified goods, use the Transport Classification (3.4) and the Classification for hazardous substances (3.5), according to the applicable warehouse permits :
B37: =lang!A468 -> Class 2 - Gases | T37: c | Y37: =ISERROR(CONCATENATE(D37,F37,H37,J37,L37)) -> FALSE
A39: 1.3. | B39: =lang!A451 -> Total warehouse space (sq. meters) ? | Y39: =ISERROR(CONCATENATE(D39,F39,H39,J39,L39)) -> FALSE
B40: =lang!A694 -> Class 6.2. : Infectious substances
B41: =lang!A470 -> Class 4.1 - Flammable solids | T41: c | Y41: =ISERROR(CONCATENATE(D41,F41,H41,J41,L41)) -> FALSE
A43: 1.4. | B43: =lang!A452 -> Total silo space (cubic meters) ? | Y43: =ISERROR(CONCATENATE(D43,F43,H43,J43,L43)) -> FALSE
B44: =lang!A587 -> electric
B45: =lang!A532 -> Is the warehouse secured with a burglar alarm system or by security personnel on-site ? | T45: c | Y45: =ISERROR(CONCATENATE(D45,F45,H45,J45,L45)) -> FALSE
A47: 1.5. | B47: =lang!A453 -> Open air packed storage space (sq. meters) ? | Y47: =ISERROR(CONCATENATE(D47,F47,H47,J47,L47)) -> FALSE
B48: =lang!A469 -> Class 3 - Flammable liquids
B49: =lang!A497 -> - Municipal ? | T49: c | Y49: =ISERROR(CONCATENATE(D49,F49,H49,J49,L49)) -> FALSE
A51: 1.6. | B51: =lang!A454 -> Are video cameras installed on site ? | Y51: =ISERROR(CONCATENATE(D51,F51,H51,J51,L51)) -> FALSE
B52: =lang!A546 -> concrete/bricks
B53: =lang!A513 -> Are structural components like pillars, girders, floors and roof structure made of fire resistant materials (e.g. reinforced concrete) ? | T53: c | Y53: =ISERROR(CONCATENATE(D53,F53,H53,J53,L53)) -> FALSE
A55: 1.7. | B55: =lang!A455 -> Is the registration office for visitors/contractors visiting the company clearly marked to indicate where they have to register ? | Y55: =ISERROR(CONCATENATE(D55,F55,H55,J55,L55)) -> FALSE
B56: =lang!A530 -> Are doors and gates equipped with a locking system and is it assured that they are locked, when no persons are working in the warehouse ?
B57: =lang!A543 -> wood | T57: c | Y57: =ISERROR(CONCATENATE(D57,F57,H57,J57,L57)) -> FALSE
A59: 1.8. | B59: =lang!A456 -> Is there a waiting room for contractors (drivers and accompanying persons) nearby the registration office ? | Y59: =ISERROR(CONCATENATE(D59,F59,H59,J59,L59)) -> FALSE
B60: =lang!A588 -> Fixed storage tanks for liquids
B61: =lang!A473 -> Class 5.1 - Oxidising substances | T61: c | Y61: =ISERROR(CONCATENATE(D61,F61,H61,J61,L61)) -> FALSE
A63: 1.9. | B63: =lang!A457 -> Is smoking prohibited in the storage areas ? | Y63: =ISERROR(CONCATENATE(D63,F63,H63,J63,L63)) -> FALSE
B64: =lang!A472 -> Class 4.3 - Substance, which in contact with water emit flammable gases
B65: =lang!A544 -> other (please indicate) | T65: c | Y65: =ISERROR(CONCATENATE(D65,F65,H65,J65,L65)) -> FALSE
A67: 1.10. | B67: =lang!A458 -> Are warning signs posted for emergency and prohibitions ("no smoking", "emergency exit") ? | Y67: =ISERROR(CONCATENATE(D67,F67,H67,J67,L67)) -> FALSE
B68: =lang!A646 -> Network
B69: =lang!A475 -> Class 6.1 - Toxic substances | T69: c | Y69: =ISERROR(CONCATENATE(D69,F69,H69,J69,L69)) -> FALSE
D71: =B16 -> WH11 | F71: =B18 -> WH12 | H71: =B20 -> WH13 | J71: =B22 -> WH14 | L71: =B24 -> WH15
A72: 2. | B72: =lang!A459 -> Warehouse capacity
A73: 2.1. | B73: =lang!A460 -> Warehouse space (sq. meters) | V73: n5 | W73: =OR(AND(NOT(ISNUMBER(L73)),LEN(L73)>0),AND(NOT(ISNUMBER(J73)),LEN(J73)>0),AND(NOT(ISNUMBER(H73)),LEN(H73)>0),AND(NOT(ISNUMBER(F73)),LEN(F73)>0),AND(NOT(ISNUMBER(D73)),LEN(D73)>0)) -> FALSE | Y73: =IF(ISERROR(W73), TRUE,W73) -> FALSE
B74: =lang!A515 -> Are internal and external fire walls rated in accordance with local regulations (eg. wall made of noncombustible material like brick, concrete or reinforced concrete, wall thickness not less than 24 cm, wall minimum 50 cm above the roof or up to the roof and adjacent roof areas 5 m of noncombustible material, doors and gates in the wall fire resistant and self-closing, no other openings in the walls) ?
B75: =lang!A697 -> Class 9 : Miscellaneous dangerous substances and articles | Y75: =ISERROR(CONCATENATE(D75,F75,H75,J75,L75)) -> FALSE
A77: 3. | B77: =lang!A461 -> Category of products permitted to be stored
A78: 3.1. | B78: =lang!A462 -> Foodstuffs | V78: d5 | W78: =OR(AND(ISNA(MATCH(L78,ynna,0)),LEN(L78)>0),AND(ISNA(MATCH(J78,ynna,0)),LEN(J78)>0),AND(ISNA(MATCH(H78,ynna,0)),LEN(H78)>0),AND(ISNA(MATCH(F78,ynna,0)),LEN(F78)>0),AND(ISNA(MATCH(D78,ynna,0)),LEN(D78)>0)) -> FALSE | Y78: =IF(ISERROR(W78), TRUE,W78) -> FALSE
B79: =lang!A533 -> Are burglar alarms transmitted automatically to security personnel or to a nearby police station ?
B80: =lang!A516 -> Are adjacent rooms (incl. office, staff - and technical rooms) separated from the storage area with at least fire resistant walls (eg. made of noncombustible material like brick, concrete or reinforced concrete, wall thickness not less than 11.5 cm, doors and gates at least fire retardant and self closing, no other openings in the walls) ? | Y80: =ISERROR(CONCATENATE(D80,F80,H80,J80,L80)) -> FALSE
A82: 3.2. | B82: =lang!A463 -> Solid chemicals (non - classified goods) | V82: d5 | W82: =OR(AND(ISNA(MATCH(L82,ynna,0)),LEN(L82)>0),AND(ISNA(MATCH(J82,ynna,0)),LEN(J82)>0),AND(ISNA(MATCH(H82,ynna,0)),LEN(H82)>0),AND(ISNA(MATCH(F82,ynna,0)),LEN(F82)>0),AND(ISNA(MATCH(D82,ynna,0)),LEN(D82)>0)) -> FALSE | Y82: =IF(ISERROR(W82), TRUE,W82) -> FALSE
B83: =lang!A633 -> Smoke and heat vents
B84: =lang!A581 -> Are safety lights installed in storage areas with safety lamps at least 1.5 m away from the product ? | Y84: =ISERROR(CONCATENATE(D84,F84,H84,J84,L84)) -> FALSE
A86: 3.3. | B86: =lang!A464 -> Liquid chemicals (non - classified goods) | V86: d5 | W86: =OR(AND(ISNA(MATCH(L86,ynna,0)),LEN(L86)>0),AND(ISNA(MATCH(J86,ynna,0)),LEN(J86)>0),AND(ISNA(MATCH(H86,ynna,0)),LEN(H86)>0),AND(ISNA(MATCH(F86,ynna,0)),LEN(F86)>0),AND(ISNA(MATCH(D86,ynna,0)),LEN(D86)>0)) -> FALSE | Y86: =IF(ISERROR(W86), TRUE,W86) -> FALSE
B87: =lang!A467 -> Class 1 - Explosive substances & articles
B88: =lang!A498 -> - Volunteer ? | T88: c | Y88: =ISERROR(CONCATENATE(D88,F88,H88,J88,L88)) -> FALSE
B89: =lang!A465 -> For classified goods, use the Transport Classification (3.4) and the Classification for hazardous substances (3.5), according to the applicable warehouse permits :
A90: 3.4. | B90: =lang!A466 -> Chemicals - classified as dangerous goods per Transport Classification (specify):
A91: 3.4.1. | B91: =lang!A467 -> Class 1 - Explosive substances & articles | V91: d5 | W91: =OR(AND(ISNA(MATCH(L91,ynna,0)),LEN(L91)>0),AND(ISNA(MATCH(J91,ynna,0)),LEN(J91)>0),AND(ISNA(MATCH(H91,ynna,0)),LEN(H91)>0),AND(ISNA(MATCH(F91,ynna,0)),LEN(F91)>0),AND(ISNA(MATCH(D91,ynna,0)),LEN(D91)>0)) -> FALSE | Y91: =IF(ISERROR(W91), TRUE,W91) -> FALSE | Z91: 5
B92: =lang!A498 -> - Volunteer ?
B93: =lang!A511 -> Constructional fire protection | Y93: =ISERROR(CONCATENATE(D93,F93,H93,J93,L93)) -> FALSE | Z93: c
A95: 3.4.2. | B95: =lang!A468 -> Class 2 - Gases | V95: d5 | W95: =OR(AND(ISNA(MATCH(L95,ynna,0)),LEN(L95)>0),AND(ISNA(MATCH(J95,ynna,0)),LEN(J95)>0),AND(ISNA(MATCH(H95,ynna,0)),LEN(H95)>0),AND(ISNA(MATCH(F95,ynna,0)),LEN(F95)>0),AND(ISNA(MATCH(D95,ynna,0)),LEN(D95)>0)) -> FALSE | Y95: =IF(ISERROR(W95), TRUE,W95) -> FALSE | Z95: 5
B96: =lang!A694 -> Class 6.2. : Infectious substances
B97: =lang!A587 -> electric | Y97: =ISERROR(CONCATENATE(D97,F97,H97,J97,L97)) -> FALSE | Z97: c
A99: 3.4.3. | B99: =lang!A469 -> Class 3 - Flammable liquids | V99: d5 | W99: =OR(AND(ISNA(MATCH(L99,ynna,0)),LEN(L99)>0),AND(ISNA(MATCH(J99,ynna,0)),LEN(J99)>0),AND(ISNA(MATCH(H99,ynna,0)),LEN(H99)>0),AND(ISNA(MATCH(F99,ynna,0)),LEN(F99)>0),AND(ISNA(MATCH(D99,ynna,0)),LEN(D99)>0)) -> FALSE | Y99: =IF(ISERROR(W99), TRUE,W99) -> FALSE | Z99: 5
B100: =lang!A497 -> - Municipal ?
B101: =lang!A589 -> Total capacity of storage tanks available (cubic meters) ? | Y101: =ISERROR(CONCATENATE(D101,F101,H101,J101,L101)) -> FALSE | Z101: c
A103: 3.4.4. | B103: =lang!A470 -> Class 4.1 - Flammable solids | V103: d5 | W103: =OR(AND(ISNA(MATCH(L103,ynna,0)),LEN(L103)>0),AND(ISNA(MATCH(J103,ynna,0)),LEN(J103)>0),AND(ISNA(MATCH(H103,ynna,0)),LEN(H103)>0),AND(ISNA(MATCH(F103,ynna,0)),LEN(F103)>0),AND(ISNA(MATCH(D103,ynna,0)),LEN(D103)>0)) -> FALSE | Y103: =IF(ISERROR(W103), TRUE,W103) -> FALSE | Z103: 5
B104: =lang!A529 -> Warehouse security
B105: =lang!A546 -> concrete/bricks | Y105: =ISERROR(CONCATENATE(D105,F105,H105,J105,L105)) -> FALSE | Z105: c
A107: 3.4.5. | B107: =lang!A471 -> Class 4.2 - Substances liable to spontaneous combustion | V107: d5 | W107: =OR(AND(ISNA(MATCH(L107,ynna,0)),LEN(L107)>0),AND(ISNA(MATCH(J107,ynna,0)),LEN(J107)>0),AND(ISNA(MATCH(H107,ynna,0)),LEN(H107)>0),AND(ISNA(MATCH(F107,ynna,0)),LEN(F107)>0),AND(ISNA(MATCH(D107,ynna,0)),LEN(D107)>0)) -> FALSE | Y107: =IF(ISERROR(W107), TRUE,W107) -> FALSE | Z107: 5
B108: =lang!A530 -> Are doors and gates equipped with a locking system and is it assured that they are locked, when no persons are working in the warehouse ?
B109: =lang!A543 -> wood | Y109: =ISERROR(CONCATENATE(D109,F109,H109,J109,L109)) -> FALSE | Z109: c
A111: 3.4.6. | B111: =lang!A472 -> Class 4.3 - Substance, which in contact with water emit flammable gases | V111: d5 | W111: =OR(AND(ISNA(MATCH(L111,ynna,0)),LEN(L111)>0),AND(ISNA(MATCH(J111,ynna,0)),LEN(J111)>0),AND(ISNA(MATCH(H111,ynna,0)),LEN(H111)>0),AND(ISNA(MATCH(F111,ynna,0)),LEN(F111)>0),AND(ISNA(MATCH(D111,ynna,0)),LEN(D111)>0)) -> FALSE | Y111: =IF(ISERROR(W111), TRUE,W111) -> FALSE | Z111: 5
B112: =lang!A544 -> other (please indicate)
B113: =lang!A514 -> Are insulation and nonstructural components made of noncombustible materials ? | Y113: =ISERROR(CONCATENATE(D113,F113,H113,J113,L113)) -> FALSE | Z113: c
A115: 3.4.7. | B115: =lang!A473 -> Class 5.1 - Oxidising substances | V115: d5 | W115: =OR(AND(ISNA(MATCH(L115,ynna,0)),LEN(L115)>0),AND(ISNA(MATCH(J115,ynna,0)),LEN(J115)>0),AND(ISNA(MATCH(H115,ynna,0)),LEN(H115)>0),AND(ISNA(MATCH(F115,ynna,0)),LEN(F115)>0),AND(ISNA(MATCH(D115,ynna,0)),LEN(D115)>0)) -> FALSE | Y115: =IF(ISERROR(W115), TRUE,W115) -> FALSE | Z115: 5
B116: =lang!A646 -> Network
B117: =lang!A533 -> Are burglar alarms transmitted automatically to security personnel or to a nearby police station ? | Y117: =ISERROR(CONCATENATE(D117,F117,H117,J117,L117)) -> FALSE | Z117: c
A119: 3.4.8. | B119: =lang!A474 -> Class 5.2. - Organic peroxides | V119: d5 | W119: =OR(AND(ISNA(MATCH(L119,ynna,0)),LEN(L119)>0),AND(ISNA(MATCH(J119,ynna,0)),LEN(J119)>0),AND(ISNA(MATCH(H119,ynna,0)),LEN(H119)>0),AND(ISNA(MATCH(F119,ynna,0)),LEN(F119)>0),AND(ISNA(MATCH(D119,ynna,0)),LEN(D119)>0)) -> FALSE | Y119: =IF(ISERROR(W119), TRUE,W119) -> FALSE | Z119: 5
B120: =lang!A515 -> Are internal and external fire walls rated in accordance with local regulations (eg. wall made of noncombustible material like brick, concrete or reinforced concrete, wall thickness not less than 24 cm, wall minimum 50 cm above the roof or up to the roof and adjacent roof areas 5 m of noncombustible material, doors and gates in the wall fire resistant and self-closing, no other openings in the walls) ?
B121: =lang!A697 -> Class 9 : Miscellaneous dangerous substances and articles | Y121: =ISERROR(CONCATENATE(D121,F121,H121,J121,L121)) -> FALSE | Z121: c
A123: 3.4.9. | B123: =lang!A475 -> Class 6.1 - Toxic substances | V123: d5 | W123: =OR(AND(ISNA(MATCH(L123,ynna,0)),LEN(L123)>0),AND(ISNA(MATCH(J123,ynna,0)),LEN(J123)>0),AND(ISNA(MATCH(H123,ynna,0)),LEN(H123)>0),AND(ISNA(MATCH(F123,ynna,0)),LEN(F123)>0),AND(ISNA(MATCH(D123,ynna,0)),LEN(D123)>0)) -> FALSE | Y123: =IF(ISERROR(W123), TRUE,W123) -> FALSE | Z123: 5
B124: =lang!A518 -> Is the warehouse equipped with an overall fire and smoke detection system with direct connection to a permanently manned office that will notify the local fire department without delay or if not, with a direct connection to the local fire department ?
B125: =lang!A633 -> Smoke and heat vents | Y125: =ISERROR(CONCATENATE(D125,F125,H125,J125,L125)) -> FALSE | Z125: c
A127: 3.4.10. | B127: =lang!A476 -> Class 6.2 - Infectious substances | V127: d5 | W127: =OR(AND(ISNA(MATCH(L127,ynna,0)),LEN(L127)>0),AND(ISNA(MATCH(J127,ynna,0)),LEN(J127)>0),AND(ISNA(MATCH(H127,ynna,0)),LEN(H127)>0),AND(ISNA(MATCH(F127,ynna,0)),LEN(F127)>0),AND(ISNA(MATCH(D127,ynna,0)),LEN(D127)>0)) -> FALSE | Y127: =IF(ISERROR(W127), TRUE,W127) -> FALSE | Z127: 5
B128: =lang!A705 -> BY - Belarus
B129: =lang!A545 -> External walls: | Y129: =ISERROR(CONCATENATE(D129,F129,H129,J129,L129)) -> FALSE | Z129: c
A131: 3.4.11. | B131: =lang!A477 -> Class 7 - Radioactive material | V131: d5 | W131: =OR(AND(ISNA(MATCH(L131,ynna,0)),LEN(L131)>0),AND(ISNA(MATCH(J131,ynna,0)),LEN(J131)>0),AND(ISNA(MATCH(H131,ynna,0)),LEN(H131)>0),AND(ISNA(MATCH(F131,ynna,0)),LEN(F131)>0),AND(ISNA(MATCH(D131,ynna,0)),LEN(D131)>0)) -> FALSE | Y131: =IF(ISERROR(W131), TRUE,W131) -> FALSE | Z131: 5
B132: =lang!A651 -> Cerificate Number
B133: =lang!A634 -> Comment | Y133: =ISERROR(CONCATENATE(D133,F133,H133,J133,L133)) -> FALSE | Z133: c
A135: 3.4.12. | B135: =lang!A478 -> Class 8 - Corrosive substances | V135: d5 | W135: =OR(AND(ISNA(MATCH(L135,ynna,0)),LEN(L135)>0),AND(ISNA(MATCH(J135,ynna,0)),LEN(J135)>0),AND(ISNA(MATCH(H135,ynna,0)),LEN(H135)>0),AND(ISNA(MATCH(F135,ynna,0)),LEN(F135)>0),AND(ISNA(MATCH(D135,ynna,0)),LEN(D135)>0)) -> FALSE | Y135: =IF(ISERROR(W135), TRUE,W135) -> FALSE | Z135: 5
B136: =lang!A519 -> Is there a manual fire alarm system with a direct connection to the local fire brigade installed and is it readily accessible at any time ?
B137: =lang!A667 -> Owned/operated tracks present | Y137: =ISERROR(CONCATENATE(D137,F137,H137,J137,L137)) -> FALSE | Z137: c
A139: 3.4.13. | B139: =lang!A479 -> Class 9 - Miscellaneous dangerous substances & articles | V139: d5 | W139: =OR(AND(ISNA(MATCH(L139,ynna,0)),LEN(L139)>0),AND(ISNA(MATCH(J139,ynna,0)),LEN(J139)>0),AND(ISNA(MATCH(H139,ynna,0)),LEN(H139)>0),AND(ISNA(MATCH(F139,ynna,0)),LEN(F139)>0),AND(ISNA(MATCH(D139,ynna,0)),LEN(D139)>0)) -> FALSE | Y139: =IF(ISERROR(W139), TRUE,W139) -> FALSE | Z139: 5
B140: =lang!A535 -> Warehouse level:
B141: =lang!A520 -> Is the warehouse equipped with an audible alarm system easily audible throughout the work area ? | Y141: =ISERROR(CONCATENATE(D141,F141,H141,J141,L141)) -> FALSE | Z141: c
A143: 3.5. | B143: =lang!A480 -> Chemicals - classified as hazardous substances/ preparations (specify):
A144: 3.5.1. | B144: =lang!A481 -> Oxidising (O, R7, R8, R9) | V144: d5 | W144: =OR(AND(ISNA(MATCH(L144,ynna,0)),LEN(L144)>0),AND(ISNA(MATCH(J144,ynna,0)),LEN(J144)>0),AND(ISNA(MATCH(H144,ynna,0)),LEN(H144)>0),AND(ISNA(MATCH(F144,ynna,0)),LEN(F144)>0),AND(ISNA(MATCH(D144,ynna,0)),LEN(D144)>0)) -> FALSE | Y144: =IF(ISERROR(W144), TRUE,W144) -> FALSE | Z144: 5
B145: =lang!A499 -> - On-site fire brigade ?
B146: =lang!A582 -> Is lightning protection installed ? | Y146: =ISERROR(CONCATENATE(D146,F146,H146,J146,L146)) -> FALSE | Z146: c
A148: 3.5.2. | B148: =lang!A482 -> Extremely flammable (F+, R12) | V148: d5 | W148: =OR(AND(ISNA(MATCH(L148,ynna,0)),LEN(L148)>0),AND(ISNA(MATCH(J148,ynna,0)),LEN(J148)>0),AND(ISNA(MATCH(H148,ynna,0)),LEN(H148)>0),AND(ISNA(MATCH(F148,ynna,0)),LEN(F148)>0),AND(ISNA(MATCH(D148,ynna,0)),LEN(D148)>0)) -> FALSE | Y148: =IF(ISERROR(W148), TRUE,W148) -> FALSE | Z148: 5
B149: =lang!A539 -> Supporting construction:
B150: =lang!A506 -> Are warehouses, open storage areas, tanks and silos on site accessible by fire trucks from at least two sides (1 long side, 1 front side) | Y150: =ISERROR(CONCATENATE(D150,F150,H150,J150,L150)) -> FALSE | Z150: c
A152: 3.5.3. | B152: =lang!A483 -> Highly flammable (F, R11, R15, R17) | V152: d5 | W152: =OR(AND(ISNA(MATCH(L152,ynna,0)),LEN(L152)>0),AND(ISNA(MATCH(J152,ynna,0)),LEN(J152)>0),AND(ISNA(MATCH(H152,ynna,0)),LEN(H152)>0),AND(ISNA(MATCH(F152,ynna,0)),LEN(F152)>0),AND(ISNA(MATCH(D152,ynna,0)),LEN(D152)>0)) -> FALSE | Y152: =IF(ISERROR(W152), TRUE,W152) -> FALSE | Z152: 5
B153: =lang!A501 -> Is the required fire water supply defined and guaranteed to at least 2.400 l/min ?
B154: =lang!A637 -> Desciption/location(s) | Y154: =ISERROR(CONCATENATE(D154,F154,H154,J154,L154)) -> FALSE | Z154: c
A156: 3.5.4. | B156: =lang!A484 -> Flammable (R10) | V156: d5 | W156: =OR(AND(ISNA(MATCH(L156,ynna,0)),LEN(L156)>0),AND(ISNA(MATCH(J156,ynna,0)),LEN(J156)>0),AND(ISNA(MATCH(H156,ynna,0)),LEN(H156)>0),AND(ISNA(MATCH(F156,ynna,0)),LEN(F156)>0),AND(ISNA(MATCH(D156,ynna,0)),LEN(D156)>0)) -> FALSE | Y156: =IF(ISERROR(W156), TRUE,W156) -> FALSE | Z156: 5
B157: =lang!A649 -> Is the company certified by the National Safety Agency?
B158: =lang!A502 -> Is the required fire water supply (fire-hydrants, river, artificial static water supply, tanks, cisterns) on-site and off-site at a close range to the buildings on site (<150 m) and immediately available at any time and on-hand for at least two hours ? | Y158: =ISERROR(CONCATENATE(D158,F158,H158,J158,L158)) -> FALSE | Z158: c
A160: 3.5.5. | B160: =lang!A485 -> Very toxic (T+, R26, R27, R28) | V160: d5 | W160: =OR(AND(ISNA(MATCH(L160,ynna,0)),LEN(L160)>0),AND(ISNA(MATCH(J160,ynna,0)),LEN(J160)>0),AND(ISNA(MATCH(H160,ynna,0)),LEN(H160)>0),AND(ISNA(MATCH(F160,ynna,0)),LEN(F160)>0),AND(ISNA(MATCH(D160,ynna,0)),LEN(D160)>0)) -> FALSE | Y160: =IF(ISERROR(W160), TRUE,W160) -> FALSE | Z160: 5
B161: =lang!A584 -> Forklift type :
B162: =lang!A524 -> Are fire compartments storing products classified as toxic, oxidising, flammable or dangerous to the environment, equipped with fixed extinguishing systems (eg. water, foam) ? | Y162: =ISERROR(CONCATENATE(D162,F162,H162,J162,L162)) -> FALSE | Z162: c
A164: 3.5.6. | B164: =lang!A486 -> Toxic (T, R23, R24, R25) | V164: d5 | W164: =OR(AND(ISNA(MATCH(L164,ynna,0)),LEN(L164)>0),AND(ISNA(MATCH(J164,ynna,0)),LEN(J164)>0),AND(ISNA(MATCH(H164,ynna,0)),LEN(H164)>0),AND(ISNA(MATCH(F164,ynna,0)),LEN(F164)>0),AND(ISNA(MATCH(D164,ynna,0)),LEN(D164)>0)) -> FALSE | Y164: =IF(ISERROR(W164), TRUE,W164) -> FALSE | Z164: 5
B165: =lang!A538 -> underground
B166: =lang!A503 -> Detail Fire Protection Management for the warehouse buildings | Y166: =ISERROR(CONCATENATE(D166,F166,H166,J166,L166)) -> FALSE | Z166: c
A168: 3.5.7. | B168: =lang!A487 -> Harmful (Xn, R20, R21, R22, R42, R65) | V168: d5 | W168: =OR(AND(ISNA(MATCH(L168,ynna,0)),LEN(L168)>0),AND(ISNA(MATCH(J168,ynna,0)),LEN(J168)>0),AND(ISNA(MATCH(H168,ynna,0)),LEN(H168)>0),AND(ISNA(MATCH(F168,ynna,0)),LEN(F168)>0),AND(ISNA(MATCH(D168,ynna,0)),LEN(D168)>0)) -> FALSE | Y168: =IF(ISERROR(W168), TRUE,W168) -> FALSE | Z168: 5
B169: =lang!A504 -> Please complete the Fire Compartment Details on the worksheet "Products Permitted to store"
B170: =lang!A525 -> Are fire compartments storing products classified as toxic, oxidising, flammable or dangerous to the environment, equipped with an operating ventilation system, with an air exchange rate of at least twice/hour ? | Y170: =ISERROR(CONCATENATE(D170,F170,H170,J170,L170)) -> FALSE | Z170: c
A172: 3.5.8 | B172: =lang!A488 -> Corrosive (C, R34, R35) | V172: d5 | W172: =OR(AND(ISNA(MATCH(L172,ynna,0)),LEN(L172)>0),AND(ISNA(MATCH(J172,ynna,0)),LEN(J172)>0),AND(ISNA(MATCH(H172,ynna,0)),LEN(H172)>0),AND(ISNA(MATCH(F172,ynna,0)),LEN(F172)>0),AND(ISNA(MATCH(D172,ynna,0)),LEN(D172)>0)) -> FALSE | Y172: =IF(ISERROR(W172), TRUE,W172) -> FALSE | Z172: 5
B173: =lang!A700 -> AL - Albania
B174: =lang!A508 -> Are measures taken inside and outside the warehouse to adequately contain contaminated fire water in compliance with local regulations (eg. waterproof surface, volume of retention of 300 L per M2 of warehouse- and overflow in municipal water treatment plant) ? | Y174: =ISERROR(CONCATENATE(D174,F174,H174,J174,L174)) -> FALSE | Z174: c
A176: 3.5.9 | B176: =lang!A489 -> Irritant (Xi, R36, R37, R38, R41, R43) | V176: d5 | W176: =OR(AND(ISNA(MATCH(L176,ynna,0)),LEN(L176)>0),AND(ISNA(MATCH(J176,ynna,0)),LEN(J176)>0),AND(ISNA(MATCH(H176,ynna,0)),LEN(H176)>0),AND(ISNA(MATCH(F176,ynna,0)),LEN(F176)>0),AND(ISNA(MATCH(D176,ynna,0)),LEN(D176)>0)) -> FALSE | Y176: =IF(ISERROR(W176), TRUE,W176) -> FALSE | Z176: 5
B177: =lang!A526 -> Are charging stations for fork lift trucks placed in separate and vented rooms or inside the storage area with a protection distance of at least 5 m to any stored product or combustible material ?
B178: =lang!A686 -> Class 2 : Gases | Y178: =ISERROR(CONCATENATE(D178,F178,H178,J178,L178)) -> FALSE | Z178: c
A180: 3.5.10 | B180: =lang!A490 -> Dangerous for the environment (N, R50 to R59) | V180: d5 | W180: =OR(AND(ISNA(MATCH(L180,ynna,0)),LEN(L180)>0),AND(ISNA(MATCH(J180,ynna,0)),LEN(J180)>0),AND(ISNA(MATCH(H180,ynna,0)),LEN(H180)>0),AND(ISNA(MATCH(F180,ynna,0)),LEN(F180)>0),AND(ISNA(MATCH(D180,ynna,0)),LEN(D180)>0)) -> FALSE | Y180: =IF(ISERROR(W180), TRUE,W180) -> FALSE | Z180: 5
B181: =lang!A585 -> gasoil
B182: =lang!A642 -> Engineering/technical | Y182: =ISERROR(CONCATENATE(D182,F182,H182,J182,L182)) -> FALSE | Z182: c
A184: 3.5.11 | B184: =lang!A491 -> Category carcinogenic, mutagenic and reprotoxical (T with R45, R46, R49, R60, R61 or Xn with R40, R62, R63, R68) | V184: d5 | W184: =OR(AND(ISNA(MATCH(L184,ynna,0)),LEN(L184)>0),AND(ISNA(MATCH(J184,ynna,0)),LEN(J184)>0),AND(ISNA(MATCH(H184,ynna,0)),LEN(H184)>0),AND(ISNA(MATCH(F184,ynna,0)),LEN(F184)>0),AND(ISNA(MATCH(D184,ynna,0)),LEN(D184)>0)) -> FALSE | Y184: =IF(ISERROR(W184), TRUE,W184) -> FALSE | Z184: 5
B185: =lang!A509 -> Are measures taken in the storage areas to adequately contain spilled product in compliance with local regulations (eg. liquid proof surface, volume of retention at least 3% of the column of the packaged products stored) ?
B186: =lang!A527 -> Is the heating system in warehouses where flammable products are stored a hot-water heating system ? | Y186: =ISERROR(CONCATENATE(D186,F186,H186,J186,L186)) -> FALSE | Z186: c
A188: 4. | B188: =lang!A492 -> Fire Protection Management (Fire Plan)
A189: 4.1. | B189: =lang!A493 -> The site in general | L189: Site
A191: 4.1.1. | B191: =lang!A494 -> Is the warehouse site accessible with fire trucks from at least two sides ? | V191: d | W191: =AND(ISNA(MATCH(L191,ynna,0)),LEN(L191)>0) -> FALSE | Y191: =IF(ISERROR(W191), TRUE,W191) -> FALSE | Z191: 1
B192: =lang!A685 -> Class 1 : Explosive substances and articles
B193: =lang!A510 -> Are measures taken on aisles and loading/unloading areas to adequately contain spilled product (eg. liquid proof surface, volume of retention at least equal to the biggest package to be transported or loaded/unloaded) ? | Y193: =ISERROR(CONCATENATE(D193,F193,H193,J193,L193)) -> FALSE | Z193: c
A195: 4.1.2. | B195: =lang!A495 -> Has a lightning strike survey been performed for the site ? | V195: d | W195: =AND(ISNA(MATCH(L195,ynna,0)),LEN(L195)>0) -> FALSE | Y195: =IF(ISERROR(W195), TRUE,W195) -> FALSE | Z195: 1
B196: =lang!A580 -> Is the coverage of lighting 100 % ? (yes and/or indicate %)
B197: =lang!A541 -> fire protected steel | T197: c | Y197: =ISERROR(CONCATENATE(D197,F197,H197,J197,L197)) -> FALSE
A198: 4.1.3. | B198: =lang!A496 -> Tick which type(s) of fire department are responsible for the site :
A199: 4.1.3.1. | B199: =lang!A497 -> - Municipal ? | R199: =IF(S199,"Y","N") -> N | S199: FALSE
B200: =lang!A694 -> Class 6.2. : Infectious substances | T200: c | Y200: =ISERROR(CONCATENATE(D200,F200,H200,J200,L200)) -> FALSE
A201: 4.1.3.2 | B201: =lang!A498 -> - Volunteer ? | R201: =IF(S201,"Y","N") -> N | S201: FALSE
B202: =lang!A539 -> Supporting construction: | T202: c | Y202: =ISERROR(CONCATENATE(D202,F202,H202,J202,L202)) -> FALSE
A203: 4.1.3.3 | B203: =lang!A499 -> - On-site fire brigade ? | R203: =IF(S203,"Y","N") -> N | S203: FALSE
B204: =lang!A582 -> Is lightning protection installed ? | T204: c | Y204: =ISERROR(CONCATENATE(D204,F204,H204,J204,L204)) -> FALSE
A205: 4.1.4. | B205: =lang!A500 -> Fire water supply :
A206: 4.1.4.1. | B206: =lang!A501 -> Is the required fire water supply defined and guaranteed to at least 2.400 l/min ? | Y206: =ISERROR(CONCATENATE(D206,F206,H206,J206,L206)) -> FALSE
B207: =lang!A637 -> Desciption/location(s)
B208: =lang!A687 -> Class 3 : Flammable liquids | T208: c | Y208: =ISERROR(CONCATENATE(D208,F208,H208,J208,L208)) -> FALSE
A210: 4.1.4.2. | B210: =lang!A502 -> Is the required fire water supply (fire-hydrants, river, artificial static water supply, tanks, cisterns) on-site and off-site at a close range to the buildings on site (<150 m) and immediately available at any time and on-hand for at least two hours ? | Y210: =ISERROR(CONCATENATE(D210,F210,H210,J210,L210)) -> FALSE
B211: =lang!A639 -> Corporate
B212: =lang!A584 -> Forklift type : | T212: c | Y212: =ISERROR(CONCATENATE(D212,F212,H212,J212,L212)) -> FALSE
B213: =lang!A524 -> Are fire compartments storing products classified as toxic, oxidising, flammable or dangerous to the environment, equipped with fixed extinguishing systems (eg. water, foam) ?
A215: 4.2. | B215: =lang!A503 -> Detail Fire Protection Management for the warehouse buildings
A217: 4.2.1. | B217: =lang!A504 -> Please complete the Fire Compartment Details on the worksheet "Products Permitted to store"
D219: =B16 -> WH11 | F219: =B18 -> WH12 | H219: =B20 -> WH13 | J219: =B22 -> WH14 | L219: =B24 -> WH15
A220: 4.2.2. | B220: =lang!A505 -> Warehouse access
A221: 4.2.2.1. | B221: =lang!A506 -> Are warehouses, open storage areas, tanks and silos on site accessible by fire trucks from at least two sides (1 long side, 1 front side) | V221: d5 | W221: =OR(AND(ISNA(MATCH(L221,ynna,0)),LEN(L221)>0),AND(ISNA(MATCH(J221,ynna,0)),LEN(J221)>0),AND(ISNA(MATCH(H221,ynna,0)),LEN(H221)>0),AND(ISNA(MATCH(F221,ynna,0)),LEN(F221)>0),AND(ISNA(MATCH(D221,ynna,0)),LEN(D221)>0)) -> FALSE | Y221: =IF(ISERROR(W221), TRUE,W221) -> FALSE
B222: =lang!A700 -> AL - Albania
B223: =lang!A526 -> Are charging stations for fork lift trucks placed in separate and vented rooms or inside the storage area with a protection distance of at least 5 m to any stored product or combustible material ? | Y223: =ISERROR(CONCATENATE(D223,F223,H223,J223,L223)) -> FALSE
A225: 4.2.3. | B225: =lang!A507 -> Retention measurements
A226: 4.2.3.1. | B226: =lang!A508 -> Are measures taken inside and outside the warehouse to adequately contain contaminated fire water in compliance with local regulations (eg. waterproof surface, volume of retention of 300 L per M2 of warehouse- and overflow in municipal water treatment plant) ? | V226: d5 | W226: =OR(AND(ISNA(MATCH(L226,ynna,0)),LEN(L226)>0),AND(ISNA(MATCH(J226,ynna,0)),LEN(J226)>0),AND(ISNA(MATCH(H226,ynna,0)),LEN(H226)>0),AND(ISNA(MATCH(F226,ynna,0)),LEN(F226)>0),AND(ISNA(MATCH(D226,ynna,0)),LEN(D226)>0)) -> FALSE | Y226: =IF(ISERROR(W226), TRUE,W226) -> FALSE
B227: =lang!A540 -> concrete/bricks
B228: =lang!A585 -> gasoil | Y228: =ISERROR(CONCATENATE(D228,F228,H228,J228,L228)) -> FALSE
B229: =lang!A642 -> Engineering/technical
A230: 4.2.3.2. | B230: =lang!A509 -> Are measures taken in the storage areas to adequately contain spilled product in compliance with local regulations (eg. liquid proof surface, volume of retention at least 3% of the column of the packaged products stored) ? | V230: d5 | W230: =OR(AND(ISNA(MATCH(L230,ynna,0)),LEN(L230)>0),AND(ISNA(MATCH(J230,ynna,0)),LEN(J230)>0),AND(ISNA(MATCH(H230,ynna,0)),LEN(H230)>0),AND(ISNA(MATCH(F230,ynna,0)),LEN(F230)>0),AND(ISNA(MATCH(D230,ynna,0)),LEN(D230)>0)) -> FALSE | Y230: =IF(ISERROR(W230), TRUE,W230) -> FALSE
B231: =lang!A527 -> Is the heating system in warehouses where flammable products are stored a hot-water heating system ?
B232: =lang!A586 -> LPG | Y232: =ISERROR(CONCATENATE(D232,F232,H232,J232,L232)) -> FALSE
B233: =lang!A685 -> Class 1 : Explosive substances and articles
A234: 4.2.3.3. | B234: =lang!A510 -> Are measures taken on aisles and loading/unloading areas to adequately contain spilled product (eg. liquid proof surface, volume of retention at least equal to the biggest package to be transported or loaded/unloaded) ? | V234: d5 | W234: =OR(AND(ISNA(MATCH(L234,ynna,0)),LEN(L234)>0),AND(ISNA(MATCH(J234,ynna,0)),LEN(J234)>0),AND(ISNA(MATCH(H234,ynna,0)),LEN(H234)>0),AND(ISNA(MATCH(F234,ynna,0)),LEN(F234)>0),AND(ISNA(MATCH(D234,ynna,0)),LEN(D234)>0)) -> FALSE | Y234: =IF(ISERROR(W234), TRUE,W234) -> FALSE
B235: =lang!A688 -> Class 4.1. : Flammable solids, self-reactive substances and solid desensitized explosives.
B236: =lang!A528 -> Is the surface temperature of the heating system lower than the ignition temperature of the product stored ? | Y236: =ISERROR(CONCATENATE(D236,F236,H236,J236,L236)) -> FALSE
B237: =lang!A643 -> Facility management
A239: 4.2.4. | B239: =lang!A511 -> Constructional fire protection
A240: 4.2.4.1. | B240: =lang!A512 -> Is the warehouse separated by a safe distance from adjacent buildings in compliance with local regulations (eg. not less then 10 m or not less then 5 m in combination with an external fire wall) ? | V240: d5 | W240: =OR(AND(ISNA(MATCH(L240,ynna,0)),LEN(L240)>0),AND(ISNA(MATCH(J240,ynna,0)),LEN(J240)>0),AND(ISNA(MATCH(H240,ynna,0)),LEN(H240)>0),AND(ISNA(MATCH(F240,ynna,0)),LEN(F240)>0),AND(ISNA(MATCH(D240,ynna,0)),LEN(D240)>0)) -> FALSE | Y240: =IF(ISERROR(W240), TRUE,W240) -> FALSE
B241: =lang!A587 -> electric
B242: =lang!A529 -> Warehouse security | Y242: =ISERROR(CONCATENATE(D242,F242,H242,J242,L242)) -> FALSE
B243: =lang!A546 -> concrete/bricks
A244: 4.2.4.2. | B244: =lang!A513 -> Are structural components like pillars, girders, floors and roof structure made of fire resistant materials (e.g. reinforced concrete) ? | V244: d5 | W244: =OR(AND(ISNA(MATCH(L244,ynna,0)),LEN(L244)>0),AND(ISNA(MATCH(J244,ynna,0)),LEN(J244)>0),AND(ISNA(MATCH(H244,ynna,0)),LEN(H244)>0),AND(ISNA(MATCH(F244,ynna,0)),LEN(F244)>0),AND(ISNA(MATCH(D244,ynna,0)),LEN(D244)>0)) -> FALSE | Y244: =IF(ISERROR(W244), TRUE,W244) -> FALSE
B245: =lang!A530 -> Are doors and gates equipped with a locking system and is it assured that they are locked, when no persons are working in the warehouse ?
B246: =lang!A543 -> wood | Y246: =ISERROR(CONCATENATE(D246,F246,H246,J246,L246)) -> FALSE
A248: 4.2.4.3. | B248: =lang!A514 -> Are insulation and nonstructural components made of noncombustible materials ? | V248: d5 | W248: =OR(AND(ISNA(MATCH(L248,ynna,0)),LEN(L248)>0),AND(ISNA(MATCH(J248,ynna,0)),LEN(J248)>0),AND(ISNA(MATCH(H248,ynna,0)),LEN(H248)>0),AND(ISNA(MATCH(F248,ynna,0)),LEN(F248)>0),AND(ISNA(MATCH(D248,ynna,0)),LEN(D248)>0)) -> FALSE | Y248: =IF(ISERROR(W248), TRUE,W248) -> FALSE
B249: =lang!A588 -> Fixed storage tanks for liquids
B250: =lang!A531 -> Are windows or other glass areas appropriately secured (e.g. by fixed grills) ? | Y250: =ISERROR(CONCATENATE(D250,F250,H250,J250,L250)) -> FALSE
A252: 4.2.4.4. | B252: =lang!A515 -> Are internal and external fire walls rated in accordance with local regulations (eg. wall made of noncombustible material like brick, concrete or reinforced concrete, wall thickness not less than 24 cm, wall minimum 50 cm above the roof or up to the roof and adjacent roof areas 5 m of noncombustible material, doors and gates in the wall fire resistant and self-closing, no other openings in the walls) ? | V252: d5 | W252: =OR(AND(ISNA(MATCH(L252,ynna,0)),LEN(L252)>0),AND(ISNA(MATCH(J252,ynna,0)),LEN(J252)>0),AND(ISNA(MATCH(H252,ynna,0)),LEN(H252)>0),AND(ISNA(MATCH(F252,ynna,0)),LEN(F252)>0),AND(ISNA(MATCH(D252,ynna,0)),LEN(D252)>0)) -> FALSE | Y252: =IF(ISERROR(W252), TRUE,W252) -> FALSE
B253: =lang!A697 -> Class 9 : Miscellaneous dangerous substances and articles
B254: =lang!A696 -> Class 8 : Corrosive substances | Y254: =ISERROR(CONCATENATE(D254,F254,H254,J254,L254)) -> FALSE
... 252 more rows

Sheet Rail (hidden)
F1: =IF(X1,lang!A30,lang!A31) -> This sheet doesn't need to be answered | X1: ='General Information'!U121 -> FALSE | Y1: =IF(R_RAIL,AB10,0) -> 0
F2: =IF(X1,IF(Y2,lang!A32,IF(X2,lang!A33,lang!A34)),"") ->  | X2: =X10 -> TRUE | Y2: =Y10 -> FALSE
F3: =IF(Y3,lang!A35,IF(X3,lang!A36,lang!A37)) -> The document is not yet completed | X3: =NOT(Status!F20) -> FALSE | Y3: =Status!G20 -> FALSE
A5: =lang!A38 -> Gulf SQAS 2018
A6: =lang!A40 -> ASSESSMENT INFORMATION AND SCOPE - Part I
A7: =lang!A24 -> Rail
A8: =lang!A42 -> (Items marked with a (*) and/or magenta background must always be completed)
A9: =lang!A43 -> (For checkboxes "checked" means "Yes", "unchecked" - "No")
X10: =AND(X13:X118) -> TRUE | Y10: =(OR(Y13:Y118)) -> FALSE | AB10: =SUM(AB13:AB118) -> -2
C11: 0.7.1 | D11: =lang!A636 -> Activities included in assessment | T11: value | U11: raw | W11: Validation | X11: Mand OK | Y11: Error
L12: =lang!A637 -> Desciption/location(s)
D14: =lang!A639 -> Corporate | E14: =lang!B639 -> Corporate | F14: =lang!C639 -> Gesellschaft | G14: =lang!D639 -> Empresa/Corporação | H14: =lang!E639 -> Société | K14: =lang!A$755 -> Yes | O14: =lang!A$756 -> No | T14: =IF(V14=1,"Y",IF(V14=2,"N","")) ->  | U14: =V14=1 -> FALSE | X14: =X15 -> TRUE | Z14: 2 | AA14: T
S15: =IF(IF(ISERROR(L15),FALSE,AND(LEN(L15)>0,NOT(V14))),lang!A$638,"") ->  | X15: =IF(NOT(U14),LEN(L15)=0,TRUE) -> TRUE | Y15: =IF(ISERROR(L15),TRUE,LEN(L15)>=160) -> FALSE | Z15: 3 | AA15: L
D16: =lang!A640 -> Commercial operations | E16: =lang!B640 -> Commercial operations | F16: =lang!C640 -> Geschäftstätigkeiten | G16: =lang!D640 -> Operações comerciais | H16: =lang!E640 -> Opérations commerciales | K16: =lang!A$755 -> Yes | O16: =lang!A$756 -> No | T16: =IF(V16=1,"Y",IF(V16=2,"N","")) ->  | U16: =V16=1 -> FALSE | X16: =X17 -> TRUE | Z16: 4 | AA16: T
S17: =IF(IF(ISERROR(L17),FALSE,AND(LEN(L17)>0,NOT(V16))),lang!A$638,"") ->  | X17: =IF(NOT(U16),LEN(L17)=0,TRUE) -> TRUE | Y17: =IF(ISERROR(L17),TRUE,LEN(L17)>=160) -> FALSE | Z17: 5 | AA17: L
D18: =lang!A641 -> Purchasing | E18: =lang!B641 -> Purchasing | F18: =lang!C641 -> Einkauf | G18: =lang!D641 -> Compras | H18: =lang!E641 -> Achats | K18: =lang!A$755 -> Yes | O18: =lang!A$756 -> No | T18: =IF(V18=1,"Y",IF(V18=2,"N","")) ->  | U18: =V18=1 -> FALSE | X18: =X19 -> TRUE | Z18: 6 | AA18: T
S19: =IF(IF(ISERROR(L19),FALSE,AND(LEN(L19)>0,NOT(V18))),lang!A$638,"") ->  | X19: =IF(NOT(U18),LEN(L19)=0,TRUE) -> TRUE | Y19: =IF(ISERROR(L19),TRUE,LEN(L19)>=160) -> FALSE | Z19: 7 | AA19: L
D20: =lang!A642 -> Engineering/technical | E20: =lang!B642 -> Engineering/technical | F20: =lang!C642 -> Technik | G20: =lang!D642 -> Engenharia/técnica | H20: =lang!E642 -> Ingéniérie/ Technique | K20: =lang!A$755 -> Yes | O20: =lang!A$756 -> No | T20: =IF(V20=1,"Y",IF(V20=2,"N","")) ->  | U20: =V20=1 -> FALSE | X20: =X21 -> TRUE | Z20: 8 | AA20: T
S21: =IF(IF(ISERROR(L21),FALSE,AND(LEN(L21)>0,NOT(V20))),lang!A$638,"") ->  | X21: =IF(NOT(U20),LEN(L21)=0,TRUE) -> TRUE | Y21: =IF(ISERROR(L21),TRUE,LEN(L21)>=160) -> FALSE | Z21: 9 | AA21: L
D22: =lang!A643 -> Facility management | E22: =lang!B643 -> Facility management | F22: =lang!C643 -> Gebäudemanagement | G22: =lang!D643 -> Instalações da gestão/direcção | H22: =lang!E643 -> Gestion de l'entreprise | K22: =lang!A$755 -> Yes | O22: =lang!A$756 -> No | T22: =IF(V22=1,"Y",IF(V22=2,"N","")) ->  | U22: =V22=1 -> FALSE | X22: =X23 -> TRUE | Z22: 10 | AA22: T
S23: =IF(IF(ISERROR(L23),FALSE,AND(LEN(L23)>0,NOT(V22))),lang!A$638,"") ->  | X23: =IF(NOT(U22),LEN(L23)=0,TRUE) -> TRUE | Y23: =IF(ISERROR(L23),TRUE,LEN(L23)>=160) -> FALSE | Z23: 11 | AA23: L
C24: =IF(R_RAIL,"(*)","") ->  | D24: =lang!A644 -> Workshop general maintenance | E24: =lang!B644 -> Workshop general maintenance | F24: =lang!C644 -> Werkstatt allgemeine Instandsetzung | G24: =lang!D644 -> Oficina geral de manutenção | H24: =lang!E644 -> Atelier de maintenance générale | K24: =lang!A$755 -> Yes | O24: =lang!A$756 -> No | T24: =IF(U24,"Y","") ->  | U24: =V24=1 -> FALSE | X24: =X25 -> TRUE | Z24: 12 | AA24: T | AB24: =IF(U24,2,0) -> 0
S25: =IF(IF(ISERROR(L25),FALSE,AND(LEN(L25)>0,NOT(V24))),lang!A$638,"") ->  | X25: =IF(NOT(U24),LEN(L25)=0,TRUE) -> TRUE | Y25: =IF(ISERROR(L25),TRUE,LEN(L25)>=160) -> FALSE | Z25: 13 | AA25: L
C26: =IF(R_RAIL,"(*)","") ->  | D26: =lang!A645 -> Workshop locomotives | E26: =lang!B645 -> Workshop locomotives | F26: =lang!C645 -> Werkstatt Lokomotiven | G26: =lang!D645 -> Oficina para locomotivas | H26: =lang!E645 -> Atelier des locomotives | K26: =lang!A$755 -> Yes | O26: =lang!A$756 -> No | T26: =IF(U26,"Y","") ->  | U26: =V26=1 -> FALSE | X26: =X27 -> TRUE | Z26: 14 | AA26: T | AB26: =IF(U26,2,0) -> 0
S27: =IF(IF(ISERROR(L27),FALSE,AND(LEN(L27)>0,NOT(V26))),lang!A$638,"") ->  | X27: =IF(NOT(U26),LEN(L27)=0,TRUE) -> TRUE | Y27: =IF(ISERROR(L27),TRUE,LEN(L27)>=160) -> FALSE | Z27: 15 | AA27: L
D28: =lang!A646 -> Network | E28: =lang!B646 -> Network | F28: =lang!C646 -> Netz | G28: =lang!D646 -> Rede de transporte (network) | H28: =lang!E646 -> Réseau | K28: =lang!A$755 -> Yes | O28: =lang!A$756 -> No | T28: =IF(V28=1,"Y",IF(V28=2,"N","")) ->  | U28: =V28=1 -> FALSE | X28: =X29 -> TRUE | Z28: 16 | AA28: T
S29: =IF(IF(ISERROR(L29),FALSE,AND(LEN(L29)>0,NOT(V28))),lang!A$638,"") ->  | X29: =IF(NOT(U28),LEN(L29)=0,TRUE) -> TRUE | Y29: =IF(ISERROR(L29),TRUE,LEN(L29)>=160) -> FALSE | Z29: 17 | AA29: L
C30: =IF(R_RAIL,"(*)","") ->  | D30: =lang!A647 -> Shunting yard(s) | E30: =lang!B647 -> Shunting yard(s) | F30: =lang!C647 -> Rangierbahnhof(höfe) | G30: =lang!D647 -> Parque para manobras (s) | H30: =lang!E647 -> Gare(s) de triage | K30: =lang!A$755 -> Yes | O30: =lang!A$756 -> No | T30: =IF(U30,"Y","") ->  | U30: =V30=1 -> FALSE | W30: =OR(U24,U30) -> FALSE | X30: =X31 -> TRUE | Z30: 18 | AA30: T | AB30: =IF(W30,0,-1) -> -1
S31: =IF(IF(ISERROR(L31),FALSE,AND(LEN(L31)>0,NOT(V30))),lang!A$638,"") ->  | X31: =IF(NOT(U30),LEN(L31)=0,TRUE) -> TRUE | Y31: =IF(ISERROR(L31),TRUE,LEN(L31)>=160) -> FALSE | Z31: 19 | AA31: L
D32: =lang!A648 -> Is the company mentioned in the list of committed RU's to UIC 471-3? | E32: =lang!B648 -> Is the company mentioned in the list of committed RU's to UIC 471-3? | F32: =lang!C648 -> Ist das Unternehmen in der Liste der Eisenbahnverkehrsunternehmen, die das Merkblatt UIC 471-3 verbindlich anwenden, aufgeführt? | G32: =lang!D648 -> A empresa figura na lista dos comprometidos RU's para UIC 471-3? | H32: =lang!E648 -> Est-ce que la société est mentionnée dans la liste des entreprises ferroviaires (EF) adhérant à la norme UIC 471-3 ? | K32: =lang!A$755 -> Yes | O32: =lang!A$756 -> No | T32: =IF(V32=1,"Y",IF(V32=2,"N","")) ->  | U32: =V32=1 -> FALSE | X32: TRUE | Z32: 20 | AA32: T
D34: =lang!A649 -> Is the company certified by the National Safety Agency? | E34: =lang!B649 -> Is the company certified by the National Safety Agency? | F34: =lang!C649 -> Ist das Unternehmen durch die Nationale Sicherheitsbehörde zertifiziert? | G34: =lang!D649 -> A empresa está certificada pelo IMTT (ou entidade competente para a sua actividade)? | H34: =lang!E649 -> Est-ce que la société est certifiée par l'Agence Nationale de Sécurité ? | K34: =lang!A$755 -> Yes | O34: =lang!A$756 -> No | T34: =IF(V34=1,"Y",IF(V34=2,"N","")) ->  | U34: =V34=1 -> FALSE | X34: =OR(U34,AND(LEN(L36)=0,NOT(U34))) -> TRUE | Z34: 21 | AA34: T
C36: =IF(AND(R_RAIL,U34),"(*)","") ->  | D36: =lang!A651 -> Cerificate Number | E36: =lang!B651 -> Cerificate Number | F36: =lang!C651 -> Zertifikatsnummer | G36: =lang!D651 -> Número do certificado | H36: =lang!E651 -> Numéro de certificat | R36: =IF(IF(ISERROR(L36),FALSE,AND(LEN(L36)>0,NOT(U34))),lang!A$650,"") ->  | W36: =OR(LEN(L36)=0,ISNUMBER(VALUE(L36))) -> TRUE | X36: =OR(AND(LEN(L36)>0,U34),AND(LEN(L36)=0,NOT(U34))) -> TRUE | Y36: =IF(ISERROR(L36),TRUE,IF(ISERROR(W36),TRUE,NOT(W36))) -> FALSE | Z36: 22 | AA36: L
C38: 0.7.2 | D38: =lang!A652 -> Subcontracting
D39: =lang!A653 -> Do you subcontract the traction to (other) RU? | E39: =lang!B653 -> Do you subcontract the traction to (other) RU? | F39: =lang!C653 -> Wird die Traktion an (andere) Eisenbahnverkehrsunternehmen vergeben? | G39: =lang!D653 -> Efectua subcontratação da tracção para outro RU | H39: =lang!E653 -> Sous-traitez-vous la traction à une autre entreprise ferroviaire ? | K39: =lang!A$755 -> Yes | O39: =lang!A$756 -> No | T39: =IF(V39=1,"Y",IF(V39=2,"N","")) ->  | U39: =V39=1 -> FALSE | X39: TRUE | Z39: 24 | AA39: T
C41: 0.7.3 | D41: =lang!A654 -> Facilities
C42: =IF(R_RAIL,"(*)","") ->  | D42: =lang!A655 -> Do you own locomotives? | K42: =lang!A$755 -> Yes | O42: =lang!A$756 -> No | T42: =IF(V42=1,"Y",IF(V42=2,"N","")) ->  | U42: =V42=1 -> FALSE | W42: =SUM(L43,L45,L47)>0 -> FALSE | X42: =AND(OR(NOT(R_RAIL),V42>0),NOT(AND(W42,NOT(U42)))) -> TRUE | Z42: 26 | AA42: T | AB42: =IF(U42,2,0) -> 0
C43: =IF(AND(R_RAIL,U$42),"(*)","") ->  | D43: =lang!A656 -> Number of electrical locomotives | E43: =lang!B656 -> Number of electrical locomotives | F43: =lang!C656 -> Anzahl der E-Loks | G43: =lang!D656 -> Número de locomotivas eléctricas | H43: =lang!E656 -> Nombre de locomotives électriques | I43: =lang!F656 -> Número de locomotoras eléctricas | R43: =IF(IF(ISERROR(L43),FALSE,AND(L43>0,NOT($U$42))),lang!A$659,"") ->  | V43: =AND(U42,NOT(W42)) -> FALSE | W43: =OR(LEN(L43)=0,ISNUMBER(VALUE(L43))) -> TRUE | X43: =OR(AND(W$42,U$42),AND(LEN(L43)=0,NOT(U$42))) -> TRUE | Y43: =IF(ISERROR(L43),TRUE,IF(ISERROR(W43),TRUE,NOT(W43))) -> FALSE | Z43: =Z42+1 -> 27 | AA43: L
C45: =IF(AND(R_RAIL,U$42),"(*)","") ->  | D45: =lang!A657 -> Number of diesel locomotives | E45: =lang!B657 -> Number of diesel locomotives | F45: =lang!C657 -> Anzahl der Diesellokomotiven | G45: =lang!D657 -> Número de locomotivas a gasóleo | H45: =lang!E657 -> Nombre de locomotives diesel | I45: =lang!F657 -> Número de locomotoras diessel | R45: =IF(IF(ISERROR(L45),FALSE,AND(L45>0,NOT($U$42))),lang!A$659,"") ->  | W45: =OR(LEN(L45)=0,ISNUMBER(VALUE(L45))) -> TRUE | X45: =OR(AND(W$42,U$42),AND(LEN(L45)=0,NOT(U$42))) -> TRUE | Y45: =IF(ISERROR(L45),TRUE,IF(ISERROR(W45),TRUE,NOT(W45))) -> FALSE | Z45: =Z43+1 -> 28 | AA45: L
C47: =IF(AND(R_RAIL,U$42),"(*)","") ->  | D47: =lang!A658 -> Number of shunting locomotives | E47: =lang!B658 -> Number of shunting locomotives | F47: =lang!C658 -> Anzahl der Rangierlokomotiven | G47: =lang!D658 -> Número de locomotivas de manobra | H47: =lang!E658 -> Nombre de locomotives de triage | I47: =lang!F658 -> Número de locomotoras de maniobra | R47: =IF(IF(ISERROR(L47),FALSE,AND(L47>0,NOT($U$42))),lang!A$659,"") ->  | W47: =OR(LEN(L47)=0,ISNUMBER(VALUE(L47))) -> TRUE | X47: =OR(AND(W$42,U$42),AND(LEN(L47)=0,NOT(U$42))) -> TRUE | Y47: =IF(ISERROR(L47),TRUE,IF(ISERROR(W47),TRUE,NOT(W47))) -> FALSE | Z47: =Z45+1 -> 29 | AA47: L
D49: =lang!A660 -> Do you own railcars? | K49: =lang!A$755 -> Yes | O49: =lang!A$756 -> No | T49: =IF(V49=1,"Y",IF(V49=2,"N","")) ->  | U49: =V49=1 -> FALSE | W49: =SUM(L50,L52)>0 -> FALSE | X49: =OR(U49,NOT(W49)) -> TRUE | Z49: =Z47+1 -> 30 | AA49: T
C50: =IF(U$49,"(*)","") ->  | D50: =lang!A661 -> Number of owned railcars | E50: =lang!B661 -> Number of owned railcars | F50: =lang!C661 -> Anzahl eigener Eisenbahnwaggons | G50: =lang!D661 -> Número de automotoras da empresa | H50: =lang!E661 -> Nombre de wagons en propre ? | I50: =lang!F661 -> Número de vagones propios | R50: =IF(IF(ISERROR(L50),FALSE,AND(L50>0,NOT($U$49))),lang!A$663,"") ->  | V50: =AND(U49,NOT(W49)) -> FALSE | W50: =OR(LEN(L50)=0,ISNUMBER(VALUE(L50))) -> TRUE | X50: =OR(AND(W$49,U$49),AND(LEN(L50)=0,NOT(U$49))) -> TRUE | Y50: =IF(ISERROR(L50),TRUE,IF(ISERROR(W50),TRUE,NOT(W50))) -> FALSE | Z50: =Z49+1 -> 31 | AA50: L
C52: =IF(U$49,"(*)","") ->  | D52: =lang!A662 -> Number of own Rail Tank Cars (RTC's) | E52: =lang!B662 -> Number of own Rail Tank Cars (RTC's) | F52: =lang!C662 -> Anzahl eigener Tankwaggons | G52: =lang!D662 -> Número de contentores ferróviários (RTC's) da empresa | H52: =lang!E662 -> Nombre de wagons-citernes | I52: =lang!F662 -> Número de vagones cisterna propios | R52: =IF(IF(ISERROR(L52),FALSE,AND(L52>0,NOT($U$49))),lang!A$663,"") ->  | W52: =OR(LEN(L52)=0,ISNUMBER(VALUE(L52))) -> TRUE | X52: =OR(AND(W$49,U$49),AND(LEN(L52)=0,NOT(U$49))) -> TRUE | Y52: =IF(ISERROR(L52),TRUE,IF(ISERROR(W52),TRUE,NOT(W52))) -> FALSE | Z52: =Z50+1 -> 32 | AA52: L
D54: =lang!A664 -> Number of rented railcars | E54: =lang!B664 -> Number of rented railcars | F54: =lang!C664 -> Anzahl gemieter Eisenbahnwaggons | G54: =lang!D664 -> Número de automotoras alugadas | H54: =lang!E664 -> Nombre de wagons-citernes loués ? | I54: =lang!F664 -> Número de vagones alquilados | W54: =OR(LEN(J54)=0,ISNUMBER(VALUE(J54))) -> TRUE | X54: TRUE | Y54: =IF(ISERROR(J54),TRUE,IF(ISERROR(W54),TRUE,NOT(W54))) -> FALSE | Z54: =Z52+1 -> 33 | AA54: J
D56: =lang!A665 -> Number of let railcars to other companies | E56: =lang!B665 -> Number of let railcars to other companies | F56: =lang!C665 -> Anzahl an andere Unternehmen vermieteter Eisenbahnwaggons | G56: =lang!D665 -> Número de automotoras utilisadas por outras companhias | H56: =lang!E665 -> Nombre de wagons-citernes loués à d'autres compagnies? | I56: =lang!F665 -> Número de vagones cedidos a otras compañías | W56: =OR(LEN(J56)=0,ISNUMBER(VALUE(J56))) -> TRUE | X56: TRUE | Y56: =IF(ISERROR(J56),TRUE,IF(ISERROR(W56),TRUE,NOT(W56))) -> FALSE | Z56: =Z54+1 -> 34 | AA56: J
D58: =lang!A666 -> Fixed storage tanks present | K58: =lang!A$755 -> Yes | O58: =lang!A$756 -> No | T58: =IF(V58=1,"Y",IF(V58=2,"N","")) ->  | U58: =V58=1 -> FALSE | X58: TRUE | Z58: =Z56+1 -> 35 | AA58: T
D59: =lang!A667 -> Owned/operated tracks present | K59: =lang!A$755 -> Yes | O59: =lang!A$756 -> No | T59: =IF(V59=1,"Y",IF(V59=2,"N","")) ->  | U59: =V59=1 -> FALSE | X59: TRUE | Z59: =Z58+1 -> 36 | AA59: T
C61: 0.7.4 | D61: =lang!A668 -> Maintenance shop
D62: =lang!A669 -> Does the maintenance plan include the checking of site equipment ? | E62: =lang!B669 -> Does the maintenance plan include the checking of site equipment ? | F62: =lang!C669 -> Beinhaltet der Wartungsplan auch die Kontrolle des Eqiupments der Anlage? | G62: =lang!D669 -> O plano de manutenção inclui a verificação do equipamento existente na oficina? | H62: =lang!E669 -> Le plan de maintenance inclut-il la vérification des équipements du site ? | K62: =lang!A$755 -> Yes | O62: =lang!A$756 -> No | T62: =IF(V62=1,"Y",IF(V62=2,"N","")) ->  | U62: =V62=1 -> FALSE | X62: TRUE | Z62: =Z59+2 -> 38 | AA62: T
D64: =lang!A670 -> Does the maintenance plan include a procedure for the checking of
D65: =lang!A671 -> - tare weights ? | K65: =lang!A$755 -> Yes | O65: =lang!A$756 -> No | T65: =IF(V65=1,"Y",IF(V65=2,"N","")) ->  | U65: =V65=1 -> FALSE | X65: TRUE | Z65: 39 | AA65: T
D66: =lang!A672 -> - tank pressure testing (for tank wagons), if applicable ? | E66: =lang!B672 -> - tank pressure testing (for tank wagons), if applicable ? | F66: =lang!C672 -> Tank Druckprüfungen (für Tankwaggons), wenn anwendbar? | G66: =lang!D672 -> - teste de pressão da cisterna (para vagões), se aplicável ? | H66: =lang!E672 -> Pression d'épreuve de la citerne (pour les wagons-citernes), si applicable | K66: =lang!A$755 -> Yes | O66: =lang!A$756 -> No | T66: =IF(V66=1,"Y",IF(V66=2,"N","")) ->  | U66: =V66=1 -> FALSE | X66: TRUE | Z66: =Z65+1 -> 40 | AA66: T
D68: =lang!A673 -> Are changes of tare weights and to the label clip weight limits documented and painted on the wagon ? | E68: =lang!B673 -> Are changes of tare weights and to the label clip weight limits documented and painted on the wagon ? | F68: =lang!C673 -> Sind Änderungen von Tara Gewichten und dem Label Lastgewichten dokumentiert und am Waggon angezeichnet? | G68: =lang!D673 -> As mudanças de peso da tara e da chapa dos limites de peso do clip são documentados e pintadas no vagão ? | H68: =lang!E673 -> Est-ce que les changements dans les poids à vide et les limites de poids sur l'étiquette sont documentés et peints sur le wagon ? | K68: =lang!A$755 -> Yes | O68: =lang!A$756 -> No | T68: =IF(V68=1,"Y",IF(V68=2,"N","")) ->  | U68: =V68=1 -> FALSE | X68: TRUE | Z68: =Z66+1 -> 41 | AA68: T
D70: =lang!A674 -> Is the next maintenance date documented and painted on the wagon ? | E70: =lang!B674 -> Is the next maintenance date documented and painted on the wagon ? | F70: =lang!C674 -> Ist der nächste Werkstatttermin dokumentiert und am Waggon angezeichnet? | G70: =lang!D674 -> A data próxima manutenção é documentada e pintada no vagão ? | H70: =lang!E674 -> Est-ce que la prochaine date de maintenance est documentée et peinte sur le wagon ? | K70: =lang!A$755 -> Yes | O70: =lang!A$756 -> No | T70: =IF(V70=1,"Y",IF(V70=2,"N","")) ->  | U70: =V70=1 -> FALSE | X70: TRUE | Z70: =Z68+1 -> 42 | AA70: T
D72: =lang!A675 -> Is the next tank revision date documented and painted on the RTC ? | E72: =lang!B675 -> Is the next tank revision date documented and painted on the RTC ? | F72: =lang!C675 -> Ist das nächste Tank Revisionsdatum dokumentiert und am Tankwaggon angezeichnet? | G72: =lang!D675 -> A data próxima revisão da cisterna é documentada e pintada no RTC (contentores ferróviários) ? | H72: =lang!E675 -> Est-ce que la prochaine date de révision du wagon est documentée et peinte sur le wagon ? | K72: =lang!A$755 -> Yes | O72: =lang!A$756 -> No | T72: =IF(V72=1,"Y",IF(V72=2,"N","")) ->  | U72: =V72=1 -> FALSE | X72: TRUE | Z72: =Z70+1 -> 43 | AA72: T
C74: 0.7.5 | D74: =lang!A676 -> Personnel
C76: =IF(R_RAIL,"(*)","") ->  | D76: =lang!A677 -> Total number of employees | E76: =lang!B677 -> Total number of employees | F76: =lang!C677 -> Gesamtzahl der Beschäftigten | G76: =lang!D677 -> Número total de trabalhadores | H76: =lang!E677 -> Nombre total d'employés | W76: =OR(LEN(J76)=0,ISNUMBER(VALUE(J76))) -> TRUE | X76: =OR(NOT(R_RAIL),LEN(J76)>0) -> TRUE | Y76: =IF(ISERROR(J76),TRUE,IF(ISERROR(W76),TRUE,NOT(W76))) -> FALSE | Z76: 45 | AA76: J
C77: =IF(R_RAIL,"(*)","") ->  | D77: =lang!A678 -> Company own drivers? | E77: =lang!B678 -> Company own drivers? | F77: =lang!C678 -> Eigene Lokführer | G77: =lang!D678 -> Motorista da empresa | H77: =lang!E678 -> La société a-t-elle ses propres conducteurs ? | K77: =lang!A$755 -> Yes | O77: =lang!A$756 -> No | T77: =IF(V77=1,"Y",IF(V77=2,"N","")) ->  | U77: =V77=1 -> FALSE | X77: =AND(OR(NOT(R_ESAD),V77>0),NOT(AND(LEN(L78)>0,NOT(U77)))) -> TRUE | Z77: =Z76+1 -> 46 | AA77: T | AB77: =IF(U77,0,-1) -> -1
C78: =IF(U77,"(*)","") ->  | D78: =lang!A679 -> Number of own drivers | E78: =lang!B679 -> Number of own drivers | F78: =lang!C679 -> Anzahl eigener Lokführer | G78: =lang!D679 -> Número motoristas da empresa | H78: =lang!E679 -> Nombre de conducteurs en propre ? | R78: =IF(IF(ISERROR(L78),FALSE,AND(L78>0,NOT(U77))),lang!A$680,"") ->  | W78: =OR(LEN(L78)=0,ISNUMBER(VALUE(L78))) -> TRUE | X78: =OR(AND(LEN(L78)>0,U77),AND(LEN(L78)=0,NOT(U77))) -> TRUE | Y78: =IF(ISERROR(L78),TRUE,IF(ISERROR(W78),TRUE,NOT(W78))) -> FALSE | Z78: =Z77+1 -> 47 | AA78: L
D80: =lang!A681 -> Number of chartered / hired drivers | E80: =lang!B681 -> Number of chartered / hired drivers | F80: =lang!C681 -> Anzahl gemieter Lokführer | G80: =lang!D681 -> Número de motoristas contratados | H80: =lang!E681 -> Nombre de conducteurs affrétés/loués ? | W80: =OR(LEN(J80)=0,ISNUMBER(VALUE(J80))) -> TRUE | X80: TRUE | Y80: =IF(ISERROR(J80),TRUE,IF(ISERROR(W80),TRUE,NOT(W80))) -> FALSE | Z80: =Z78+1 -> 48 | AA80: J
C83: 0.7.6 | D83: =lang!A682 -> Products
D84: =lang!A683 -> Tonnage chem. transported per year | E84: =lang!B683 -> Tonnage chem. transported per year | F84: =lang!C683 -> Gesamttonnage der tranportierten chemischen Produkte pro Jahr | G84: =lang!D683 -> Tonelagem de produtos químicos transportados por ano | H84: =lang!E683 -> Tonnage total de produits chimiques transportés par an? | W84: =OR(LEN(J84)=0,ISNUMBER(VALUE(J84))) -> TRUE | X84: TRUE | Y84: =IF(ISERROR(J84),TRUE,IF(ISERROR(W84),TRUE,NOT(W84))) -> FALSE | Z84: =Z80+2 -> 50 | AA84: J
D86: =lang!A684 -> % dangerous goods | E86: =lang!B684 -> % dangerous goods | F86: =lang!C684 -> Prozentualer Anteil Gefahrgut | G86: =lang!D684 -> % de mercadorias perigosas | H86: =lang!E684 -> Quel pourcentage du tonnage total est effectué en matières dangereuses ? | I86: % | W86: =OR(LEN(J86)=0,ISNUMBER(VALUE(J86))) -> TRUE | X86: TRUE | Y86: =IF(ISERROR(J86),TRUE,IF(ISERROR(W86),TRUE,NOT(W86))) -> FALSE | Z86: =Z84+1 -> 51 | AA86: J
D87: =lang!A718 -> GG - Guernsey | E87: =lang!B718 -> GG - Guernsey | F87: =lang!C718 -> GG - Guernsey | G87: =lang!D718 -> GG - Guernsey | H87: =lang!E718 -> GG - Guernsey
D88: =lang!A685 -> Class 1 : Explosive substances and articles | K88: =lang!A$755 -> Yes | O88: =lang!A$756 -> No | T88: =IF(V88=1,"Y",IF(V88=2,"N","")) ->  | U88: =V88=1 -> FALSE | X88: TRUE | Z88: =Z86+1 -> 52 | AA88: T
D90: =lang!A686 -> Class 2 : Gases | E90: =lang!B686 -> Class 2 : Gases | F90: =lang!C686 -> Klasse 2: Gase | G90: =lang!D686 -> Classe 2 : Gases | H90: =lang!E686 -> Class 2 : Gaz | I90: =lang!F686 -> Clase 2: Gases | K90: =lang!A$755 -> Yes | O90: =lang!A$756 -> No | T90: =IF(V90=1,"Y",IF(V90=2,"N","")) ->  | U90: =V90=1 -> FALSE | X90: TRUE | Z90: =Z88+1 -> 53 | AA90: T
D91: =lang!A687 -> Class 3 : Flammable liquids | E91: =lang!B687 -> Class 3 : Flammable liquids | F91: =lang!C687 -> Klasse 3: Entzündbare flüssige Stoffe | G91: =lang!D687 -> Classe 3 : Líquidos inflamáveis | H91: =lang!E687 -> Classe 3 : liquides inflammables | I91: =lang!F687 -> Clase 3: Líquidos inflamables | K91: =lang!A$755 -> Yes | O91: =lang!A$756 -> No | T91: =IF(V91=1,"Y",IF(V91=2,"N","")) ->  | U91: =V91=1 -> FALSE | X91: TRUE | Z91: =Z90+1 -> 54 | AA91: T
D92: =lang!A688 -> Class 4.1. : Flammable solids, self-reactive substances and solid desensitized explosives. | E92: =lang!B688 -> Class 4.1. : Flammable solids, self-reactive substances and solid desensitized explosives. | F92: =lang!C688 -> Klasse 4.1: Entzündbare feste Stoffe, selbstzersetzliche Stoffe und desensiblisierte explosive feste Stoffe | G92: =lang!D688 -> Classe 4.1. : Matérias sólidas inflamáveis, matérias auto-reactivas e matérias explosivas dessensibilizadas sólidas | H92: =lang!E688 -> Class 4.1. : Matières solides inflammables, matières autoréactives et matières solides explosibles désensibilisées | I92: =lang!F688 -> Clase 4.1: Sólidos inflamables, autoreactivos y explosivos desensibilizados | K92: =lang!A$755 -> Yes | O92: =lang!A$756 -> No | T92: =IF(V92=1,"Y",IF(V92=2,"N","")) ->  | U92: =V92=1 -> FALSE | X92: TRUE | Z92: =Z91+1 -> 55 | AA92: T
D93: =lang!A705 -> BY - Belarus | E93: =lang!B705 -> BY - Belarus | F93: =lang!C705 -> BY - Belarus | G93: =lang!D705 -> BY - Bielorússia | H93: =lang!E705 -> BY - Belarus | I93: =lang!F705 -> BY - Belarus
D94: =lang!A689 -> Class 4.2. : Substances liable for spontaneous combustion | E94: =lang!B689 -> Class 4.2. : Substances liable for spontaneous combustion | F94: =lang!C689 -> Klasse 4.2: Selbstentzündliche Stoffe | G94: =lang!D689 -> Classe 4.2. : Matérias espontaneamente inflamáveis | H94: =lang!E689 -> Class 4.2. : Matières sujettes à l'inflammation spontanée | I94: =lang!F689 -> Clase 4.2: Materias que reaccionan de forma espontánea | K94: =lang!A$755 -> Yes | O94: =lang!A$756 -> No | T94: =IF(V94=1,"Y",IF(V94=2,"N","")) ->  | U94: =V94=1 -> FALSE | X94: TRUE | Z94: =Z92+1 -> 56 | AA94: T
D95: =lang!A707 -> BA - Bosnia and Herzegovina | E95: =lang!B707 -> BA - Bosnia and Herzegovina | F95: =lang!C707 -> BA - Bosnia and Herzegovina | G95: =lang!D707 -> BA - Bósnia-Herzegovina | H95: =lang!E707 -> BA - Bosnia and Herzegovina | I95: =lang!F707 -> BA - Bosnia and Herzegovina
D96: =lang!A690 -> Class 4.3. : Substances which in contact with water, emit flammable gases | E96: =lang!B690 -> Class 4.3. : Substances which in contact with water, emit flammable gases | F96: =lang!C690 -> Klasse 4.3: Stoffe, die in Berührung mit Wasser entzündlbare Gase entwickeln | G96: =lang!D690 -> Classe 4.3. : Matérias que, em contacto com a àgua, libertem gases inflamáveis | H96: =lang!E690 -> Class 4.3. : Matières qui, au contact de l'eau, dégagent des gaz inflammables | I96: =lang!F690 -> Clase 4.3: Materias que en contacto con el agua desprenden gases inflamables | K96: =lang!A$755 -> Yes | O96: =lang!A$756 -> No | T96: =IF(V96=1,"Y",IF(V96=2,"N","")) ->  | U96: =V96=1 -> FALSE | X96: TRUE | Z96: =Z94+1 -> 57 | AA96: T
D97: =lang!A719 -> HU - Hungary | E97: =lang!B719 -> HU - Hungary | F97: =lang!C719 -> HU - Hungary | G97: =lang!D719 -> HU - Hungria | H97: =lang!E719 -> HU - Hungary | I97: =lang!F719 -> HU - Hungary
D98: =lang!A691 -> Class 5.1. : Oxidizing substances | E98: =lang!B691 -> Class 5.1. : Oxidizing substances | F98: =lang!C691 -> Klasse 5.1: Entzündend (oxydierend) wirkende Stoffe | G98: =lang!D691 -> Classe 5.1. : Matérias comburentes | H98: =lang!E691 -> Class 5.1. : Matières comburantes | I98: =lang!F691 -> Clase 5.1: Materias comburentes | K98: =lang!A$755 -> Yes | O98: =lang!A$756 -> No | T98: =IF(V98=1,"Y",IF(V98=2,"N","")) ->  | U98: =V98=1 -> FALSE | X98: TRUE | Z98: =Z96+1 -> 58 | AA98: T
D99: =lang!A692 -> Class 5.2. : Organic peroxides | E99: =lang!B692 -> Class 5.2. : Organic peroxides | F99: =lang!C692 -> Klasse 5.2: Organische Peroxide | G99: =lang!D692 -> Classe 5.2. : Peróxidos organicos | H99: =lang!E692 -> Class 5.2. : Peroxydes organiques | I99: =lang!F692 -> Clase 5.2: Peróxidos Orgánicos | K99: =lang!A$755 -> Yes | O99: =lang!A$756 -> No | U99: FALSE | X99: TRUE | Z99: =Z98+1 -> 59 | AA99: T
D100: =lang!A693 -> Class 6.1. : Toxic substances | E100: =lang!B693 -> Class 6.1. : Toxic substances | F100: =lang!C693 -> Klasse 6.1: Giftige Stoffe | G100: =lang!D693 -> Classe 6.1. : Matérias toxicas | H100: =lang!E693 -> Class 6.1. : Matières toxiques | I100: =lang!F693 -> Clase 6.1: Sustancias tóxicas | K100: =lang!A$755 -> Yes | O100: =lang!A$756 -> No | U100: FALSE | X100: TRUE | Z100: 60 | AA100: T
D101: =lang!A694 -> Class 6.2. : Infectious substances | E101: =lang!B694 -> Class 6.2. : Infectious substances | F101: =lang!C694 -> Klasse 6.2: Ansteckungsgefährliche Stoffe | G101: =lang!D694 -> Classe 6.2. : Matérias infecciosas | H101: =lang!E694 -> Class 6.2. : Matières infectieuses | I101: =lang!F694 -> Clase 6.2: Sustancias infecciosas | K101: =lang!A$755 -> Yes | O101: =lang!A$756 -> No | U101: FALSE | X101: TRUE | Z101: 61 | AA101: T
D102: =lang!A695 -> Class 7 : Radioactive material | E102: =lang!B695 -> Class 7 : Radioactive material | F102: =lang!C695 -> Klasse 7: Radioaktive Stoffe | G102: =lang!D695 -> Classe 7 : Matérias radioactivas | H102: =lang!E695 -> Class 7 : Matières radioactives | I102: =lang!F695 -> Clase 7: Materias radiactivas | K102: =lang!A$755 -> Yes | O102: =lang!A$756 -> No | U102: FALSE | X102: TRUE | Z102: 62 | AA102: T
D103: =lang!A696 -> Class 8 : Corrosive substances | E103: =lang!B696 -> Class 8 : Corrosive substances | F103: =lang!C696 -> Klasse 8: Ätzende Stoffe | G103: =lang!D696 -> Classe 8 : Matérias corrosivas | H103: =lang!E696 -> Class 8 : Matières corrosives | I103: =lang!F696 -> Clase 8: Sustancias corrosivas | K103: =lang!A$755 -> Yes | O103: =lang!A$756 -> No | U103: FALSE | X103: TRUE | Z103: 63 | AA103: T
D104: =lang!A697 -> Class 9 : Miscellaneous dangerous substances and articles | E104: =lang!B697 -> Class 9 : Miscellaneous dangerous substances and articles | F104: =lang!C697 -> Klasse 9: Verschiedene gefährliche Stoffe und Gegenstände | G104: =lang!D697 -> Classe 9 : Matérias e objectos perigosos | H104: =lang!E697 -> Class 9 : Matières et objets dangereux divers | I104: =lang!F697 -> Clase 9: Materias y objetos con riesgos diversos | K104: =lang!A$755 -> Yes | O104: =lang!A$756 -> No | U104: FALSE | X104: TRUE | Z104: 64 | AA104: T
D106: =lang!A698 -> Does the company handle/transport HCDG goods (RID 1.10)? | E106: =lang!B698 -> Does the company handle/transport HCDG goods (RID 1.10)? | F106: =lang!C698 -> Das Unternehmen fertigt ab / transportiert HCDG Güter (RID 1.10)? | G106: =lang!D698 -> A empresa movimenta/transporta MPAR - mercadorias perigosas de alto risco (RID 1.10)? | H106: =lang!E698 -> La société manutentionne-t-elle ou transporte-t-elle des marchandises dangereuses à haut risque MDHR (RID 1.10)? | I106: =lang!F698 -> La empresa transporta o trabaja con mercancía peligrosa de alto riesgo (RID 1.10)? | K106: =lang!A$755 -> Yes | O106: =lang!A$756 -> No | T106: =IF(V106=1,"Y",IF(V106=2,"N","")) ->  | U106: FALSE | X106: TRUE | Z106: =Z104+1 -> 65 | AA106: T
D107: =lang!A700 -> AL - Albania | E107: =lang!B700 -> AL - Albania | F107: =lang!C700 -> AL - Albania | G107: =lang!D700 -> AL - Albânia | H107: =lang!E700 -> AL - Albania | I107: =lang!F700 -> AL - Albania
T108: end
B109: =Status!$K$18 -> Please check the next sheet (Status)
B110: =HYPERLINK(Status!$L$18,Status!$K$18) -> Please check the next sheet (Status)

Sheet Status
B1: PAD | C1: Gulf SQAS 2025
B2: =lang!A5 -> Template Version | C2: 5
B3: =lang!A6 -> Template Date | C3: 2025-07-08
B5: =lang!A4 -> Select language | C5: English | E5: =MATCH(C5,lang,0) -> 1 | F5: =IF(ISNA(E5),1,E5) -> 1
L7: #
B8: =lang!A7 -> Document Status | E8: Required | F8: Not filled | G8: Corrupted | H8: man hours | J8: =IF(E9,I9,J9) -> General Information | K8: =CONCATENATE(lang!A$46," (",J8,")") -> Please check the next sheet (General Information) | L8: =CONCATENATE(IF(ISERROR($L$7),"",$L$7),"'",J8,"'!A5") -> #'General Information'!A5
B9: =lang!A8 -> Sheet | C9: =lang!A9 -> State | E9: ='General Information'!$X$1 -> TRUE | F9: =AND(E9,NOT('General Information'!$X$2)) -> TRUE | G9: ='General Information'!$Y$2 -> FALSE | H9: ='General Information'!Y$1 -> -2 | I9: General Information | J9: Status | K9: =CONCATENATE(lang!A$46," (",J9,")") -> Please check the next sheet (Status) | L9: #'Status'!A5
B10: =lang!A10 -> General Information | C10: =IF(G9,lang!$A$25,IF(E9,IF(F9,lang!$A$26,lang!$A$27),"")) -> Not yet completed | E10: ='Transport Services'!$X$1 -> FALSE | F10: =AND(E10,NOT('Transport Services'!$X$2)) -> FALSE | G10: ='Transport Services'!$Y$2 -> FALSE | H10: ='Transport Services'!Y$1 -> 0 | I10: Transport Services | J10: Status | K10: =CONCATENATE(lang!A$46," (",J10,")") -> Please check the next sheet (Status) | L10: #'Status'!A5
B11: =IF(C11<>"",lang!A11,"") ->  | C11: =IF(G10,lang!$A$25,IF(E10,IF(F10,lang!$A$26,lang!$A$27),"")) ->  | E11: ='Tank Cleaning'!$X$1 -> FALSE | F11: =AND(E11,NOT('Tank Cleaning'!$X$2)) -> FALSE | G11: ='Tank Cleaning'!$Y$2 -> FALSE | H11: ='Tank Cleaning'!Y$1 -> 0 | I11: Tank Cleaning | J11: Status | K11: =CONCATENATE(lang!A$46," (",J11,")") -> Please check the next sheet (Status) | L11: #'Status'!A5
B12: =IF(C12<>"",lang!A12,"") ->  | C12: =IF(G11,lang!$A$25,IF(E11,IF(F11,lang!$A$26,lang!$A$27),"")) ->  | E12: =ESAD!$X$1 -> FALSE | F12: =AND(E12,NOT(ESAD!$X$2)) -> FALSE | G12: =ESAD!$Y$2 -> FALSE | H12: =ESAD!Y$1 -> 0 | I12: ESAD | J12: Status | K12: =CONCATENATE(lang!A$46," (",J12,")") -> Please check the next sheet (Status) | L12: #'Status'!A5
B13: =IF(C13<>"",lang!A13,"") ->  | C13: =IF(G12,lang!$A$25,IF(E12,IF(F12,lang!$A$26,lang!$A$27),"")) ->  | E13: =Warehouse!$X$1 -> FALSE | F13: =AND(E13,NOT(Warehouse!$X$2)) -> FALSE | G13: =Warehouse!$Y$2 -> FALSE | H13: =Warehouse!Y$1 -> 0 | I13: Warehouse | J13: Status | K13: =CONCATENATE(lang!A$46," (",J13,")") -> Please check the next sheet (Status) | L13: #'Status'!A5
B14: =IF(C14<>"",lang!A19,"") ->  | C14: =IF(G13,lang!$A$25,IF(E13,IF(F13,lang!$A$26,lang!$A$27),"")) ->  | E14: ='WH - II(1)'!X1 -> FALSE | F14: =AND(E14,NOT('WH - II(1)'!$X$2)) -> FALSE | G14: ='WH - II(1)'!$Y$2 -> FALSE | H14: ='WH - II(1)'!Y$1 -> 0 | I14: WH - II(1) | J14: Status | K14: =CONCATENATE(lang!A$46," (",J14,")") -> Please check the next sheet (Status) | L14: #'Status'!A5
B15: =IF(C15<>"",lang!A20,"") ->  | C15: =IF(G14,lang!$A$25,IF(E14,IF(F14,lang!$A$26,lang!$A$27),"")) ->  | E15: ='WH - FCI'!X1 -> FALSE | F15: =AND(E15,NOT('WH - FCI'!$X$2)) -> FALSE | G15: ='WH - FCI'!Y2 -> FALSE | H15: ='WH - FCI'!Y1 -> 0 | I15: WH - FCI | J15: Status | K15: =CONCATENATE(lang!A$46," (",J15,")") -> Please check the next sheet (Status) | L15: #'Status'!A5
B16: =IF(C16<>"",lang!A21,"") ->  | C16: =IF(G15,lang!$A$25,IF(E15,IF(F15,lang!$A$26,lang!$A$27),"")) ->  | E16: ='WH - II(2)'!$X$1 -> FALSE | F16: =AND(E16,NOT('WH - II(2)'!$X$2)) -> FALSE | G16: ='WH - II(2)'!$Y$2 -> FALSE | H16: ='WH - II(2)'!Y$1 -> 0 | I16: WH - II(2) | J16: Status | K16: =CONCATENATE(lang!A$46," (",J16,")") -> Please check the next sheet (Status) | L16: #'Status'!A5
B17: =IF(C17<>"",lang!A22,"") ->  | C17: =IF(G16,lang!$A$25,IF(E16,IF(F16,lang!$A$26,lang!$A$27),"")) ->  | E17: ='WH - II(3)'!$X$1 -> FALSE | F17: =AND(E17,NOT('WH - II(3)'!$X$2)) -> FALSE | G17: ='WH - II(3)'!Y2 -> FALSE | H17: ='WH - II(3)'!Y$1 -> 0 | I17: WH - II(3) | J17: Status | K17: =CONCATENATE(lang!A$46," (",J17,")") -> Please check the next sheet (Status) | L17: #'Status'!A5
B18: =IF(C18<>"",lang!A23,"") ->  | C18: =IF(G17,lang!$A$25,IF(E17,IF(F17,lang!$A$26,lang!$A$27),"")) ->  | E18: =Rail!$X$1 -> FALSE | F18: =AND(E18,NOT(Rail!$X$2)) -> FALSE | G18: =Rail!$Y$2 -> FALSE | H18: =Rail!Y$1 -> 0 | I18: Rail | J18: =IF(E20,I19,J19) -> Status | K18: =CONCATENATE(lang!A$46," (",J18,")") -> Please check the next sheet (Status) | L18: #'Status'!A5
B19: =IF(C19<>"",lang!A24,"") ->  | C19: =IF(G18,lang!$A$25,IF(E18,IF(F18,lang!$A$26,lang!$A$27),"")) ->  | G19: =Data!C1 -> FALSE | I19: Status
B20: =lang!A28 -> Overall | C20: =IF(G20,lang!$A$25,IF(E20,IF(F20,lang!$A$26,lang!$A$27),"")) -> Not yet completed | E20: TRUE | F20: =OR(F9:F18) -> TRUE | G20: =OR(G9:G19) -> FALSE | H20: =SUM(H9:H18)*1.65 -> -3.3
F21: =IF(ISERROR(F20),TRUE,F20) -> TRUE | G21: Roundup | H21: =(8+(4*ROUND(H20/4,0))) + 2 -> 6
A22: =IF(F21,"",lang!A29) ->  | B22: =IF(F21,"",H22) ->  | H22: =IF(AND(isSubsidiary,R_TC),12,IF(Status!H21>8,Status!H21,8)) -> 8
A25: =HYPERLINK(Status!$L$8,Status!$K$8) -> Please check the next sheet (General Information)

Sheet Data (hidden)
A1: $SQAS1.4 | C1: =OR(C2:C4858) -> FALSE | D1: Y
A2: $COMPANYHOURS | B2: =HOURS -> 8 | C2: =ISERROR(B2) -> FALSE | D2: Y
A3: $GI0_2 | B3: =IF(R_GI,CONCATENATE("", 'General Information'!H14),"") ->  | C3: =ISERROR(B3) -> FALSE | D3: Y
A4: $GI0_3 | B4: =IF(R_GI,CONCATENATE("", 'General Information'!H16),"") ->  | C4: =ISERROR(B4) -> FALSE | D4: Y
A5: $GI0_4 | B5: =IF(R_GI,CONCATENATE("", 'General Information'!H18),"") ->  | C5: FALSE | D5: Y
A6: $GI0_5 | B6: =IF(R_GI,CONCATENATE("", 'General Information'!H20),"") ->  | C6: FALSE | D6: Y
A7: $GI0_6 | B7: =IF(R_GI,CONCATENATE("", 'General Information'!H22),"") ->  | C7: FALSE | D7: Y
A8: $GI0_7 | B8: =IF(R_GI,CONCATENATE("", 'General Information'!H26),"") ->  | C8: FALSE | D8: Y
A9: $GI0_8 | B9: =IF(R_GI,CONCATENATE("", 'General Information'!H28),"") ->  | C9: FALSE | D9: Y
A10: $GI0_9 | B10: =IF(R_GI,CONCATENATE("", 'General Information'!H30),"") ->  | C10: FALSE | D10: Y
A11: $GI0_10 | B11: =IF(R_GI,CONCATENATE("", 'General Information'!H32),"") ->  | C11: FALSE | D11: Y
A12: $GI0_11 | B12: =IF(R_GI,CONCATENATE("", 'General Information'!H34),"") ->  | C12: FALSE | D12: Y
A13: $GI0_12 | B13: =IF(R_GI,CONCATENATE("", 'General Information'!H36),"") ->  | C13: FALSE | D13: Y
A14: $GI0_13 | B14: =IF(R_GI,CONCATENATE("", 'General Information'!H38),"") ->  | C14: FALSE | D14: Y
A15: $GI0_14 | B15: =IF(R_GI,CONCATENATE("", 'General Information'!H40),"") ->  | C15: FALSE | D15: Y
A16: $GI0_15 | B16: =IF(R_GI,CONCATENATE("", 'General Information'!H42),"") ->  | C16: FALSE | D16: Y
A17: $GI0_16 | B17: =IF(R_GI,CONCATENATE("", 'General Information'!H44),"") ->  | C17: FALSE | D17: Y
A18: $GI0_TOC | B18: =IF(R_GI,CONCATENATE("", 'General Information'!T48),"") -> 0 | C18: FALSE | D18: Y
A19: $GI0_18 | B19: =IF(R_GI,CONCATENATE("", 'General Information'!I52),"") ->  | C19: FALSE | D19: Y
A20: $GI0_20 | B20: =IF(R_GI,CONCATENATE("", 'General Information'!I56),"") ->  | C20: FALSE | D20: Y
A21: $GI0_22 | B21: =IF(R_GI,CONCATENATE("", 'General Information'!H58),"") ->  | C21: FALSE | D21: Y
A22: $GI0_23 | B22: =IF(R_GI,CONCATENATE("", 'General Information'!T63),"") -> Less than 10 | C22: FALSE | D22: Y
A23: $GI0_81 | B23: =IF(R_GI,CONCATENATE("", 'General Information'!T111),"") -> N | C23: FALSE | D23: Y
A24: $GI0_83 | B24: =IF(R_GI,CONCATENATE("", 'General Information'!T113),"") -> N | C24: FALSE | D24: Y
A25: $GI0_84 | B25: =IF(R_GI,CONCATENATE("", 'General Information'!T115),"") -> N | C25: FALSE | D25: N
A26: $GI0_85 | B26: =IF(R_GI,CONCATENATE("", 'General Information'!T117),"") -> N | C26: FALSE | D26: Y
A27: $GI0_86 | B27: =IF(R_GI,CONCATENATE("", 'General Information'!T119),"") -> N | C27: FALSE | D27: N
A28: $GI0_87 | B28: =IF(R_GI,CONCATENATE("", 'General Information'!T121),"") -> N | C28: FALSE | D28: N
A29: $GI0_38 | B29: =IF(R_GI,CONCATENATE("", 'General Information'!T126),"") -> Y | C29: FALSE | D29: Y
A30: $GI0_39_0 | B30: =IF(R_GI,CONCATENATE("", 'General Information'!T128),"") -> N | C30: FALSE | D30: Y
A31: $GI0_39 | B31: =IF(R_GI,CONCATENATE("", 'General Information'!I129),"") ->  | C31: FALSE | D31: Y
A32: $GI0_39_1 | B32: =IF(R_GI,CONCATENATE("", 'General Information'!I131),"") ->  | C32: FALSE | D32: Y
A33: $GI0_39_2 | B33: =IF(R_GI,CONCATENATE("", 'General Information'!I133),"") ->  | C33: FALSE | D33: Y
A34: $GI0_52 | B34: =IF(R_GI,CONCATENATE("", 'General Information'!I139),"") ->  | C34: FALSE | D34: Y
A35: $GI0_53 | B35: =IF(R_GI,CONCATENATE("", 'General Information'!Q139),"") ->  | C35: FALSE | D35: Y
A36: $GI0_54 | B36: =IF(R_GI,CONCATENATE("", 'General Information'!I141),"") ->  | C36: FALSE | D36: Y
A37: $GI0_55 | B37: =IF(R_GI,CONCATENATE("", 'General Information'!Q141),"") ->  | C37: FALSE | D37: Y
A38: $GI0_56 | B38: =IF(R_GI,CONCATENATE("", 'General Information'!I143),"") ->  | C38: FALSE | D38: Y
A39: $GI0_57 | B39: =IF(R_GI,CONCATENATE("", 'General Information'!Q143),"") ->  | C39: FALSE | D39: Y
A40: $GI0_58 | B40: =IF(R_GI,CONCATENATE("", 'General Information'!I145),"") ->  | C40: FALSE | D40: Y
A41: $GI0_59 | B41: =IF(R_GI,CONCATENATE("", 'General Information'!Q145),"") ->  | C41: FALSE | D41: Y
A42: $GI0_60 | B42: =IF(R_GI,CONCATENATE("", 'General Information'!I147),"") ->  | C42: FALSE | D42: Y
A43: $GI0_61 | B43: =IF(R_GI,CONCATENATE("", 'General Information'!Q147),"") ->  | C43: FALSE | D43: Y
A44: $GI0_62 | B44: =IF(R_GI,CONCATENATE("", 'General Information'!I149),"") -> - | C44: FALSE | D44: N
A45: $GI0_63 | B45: =IF(R_GI,CONCATENATE("", 'General Information'!Q149),"") -> - | C45: FALSE | D45: N
A46: $GI0_64 | B46: =IF(R_GI,CONCATENATE("", 'General Information'!I151),"") ->  | C46: FALSE | D46: N
A47: $GI0_65 | B47: =IF(R_GI,CONCATENATE("", 'General Information'!Q151),"") ->  | C47: FALSE | D47: N
A48: $GI0_66 | B48: =IF(R_GI,CONCATENATE("", 'General Information'!I153),"") ->  | C48: FALSE | D48: Y
A49: $GI0_67 | B49: =IF(R_GI,CONCATENATE("", 'General Information'!Q153),"") ->  | C49: FALSE | D49: Y
A50: $GI0_70 | B50: =IF(R_GI,CONCATENATE("", 'General Information'!F162),"") ->  | C50: FALSE | D50: Y
A51: $GI0_71 | B51: =IF(R_GI,CONCATENATE("", 'General Information'!I162),"") ->  | C51: FALSE | D51: Y
A52: $GI0_71_a | B52: =IF(R_GI,CONCATENATE("", 'General Information'!M162),"") ->  | C52: FALSE | D52: Y
A53: $GI0_72 | B53: =IF(R_GI,CONCATENATE("", 'General Information'!Q162),"") ->  | C53: FALSE | D53: Y
A54: $GI0_74 | B54: =IF(R_GI,CONCATENATE("", 'General Information'!F164),"") ->  | C54: FALSE | D54: Y
A55: $GI0_75 | B55: =IF(R_GI,CONCATENATE("", 'General Information'!I164),"") ->  | C55: FALSE | D55: Y
A56: $GI0_75_a | B56: =IF(R_GI,CONCATENATE("", 'General Information'!M164),"") ->  | C56: FALSE | D56: Y
A57: $GI0_76 | B57: =IF(R_GI,CONCATENATE("", 'General Information'!Q164),"") ->  | C57: FALSE | D57: Y
A58: $GI0_77 | B58: =IF(R_GI,CONCATENATE("", 'General Information'!C166),"") -> RC 14001 | C58: FALSE | D58: N
A59: $GI0_78 | B59: =IF(R_GI,CONCATENATE("", 'General Information'!F166),"") ->  | C59: FALSE | D59: Y
A60: $GI0_79 | B60: =IF(R_GI,CONCATENATE("", 'General Information'!I166),"") ->  | C60: FALSE | D60: Y
A61: $GI0_79_a | B61: =IF(R_GI,CONCATENATE("", 'General Information'!M166),"") ->  | C61: FALSE | D61: Y
A62: $GI0_80 | B62: =IF(R_GI,CONCATENATE("", 'General Information'!Q166),"") ->  | C62: FALSE | D62: Y
A63: $GI0_77a | B63: =IF(R_GI,CONCATENATE("", 'General Information'!C168),"") ->  | C63: FALSE | D63: Y
A64: $GI0_78a | B64: =IF(R_GI,CONCATENATE("", 'General Information'!F168),"") ->  | C64: FALSE | D64: Y
A65: $GI0_79a | B65: =IF(R_GI,CONCATENATE("", 'General Information'!I168),"") ->  | C65: FALSE | D65: Y
A66: $GI0_79a_a | B66: =IF(R_GI,CONCATENATE("", 'General Information'!M168),"") ->  | C66: FALSE | D66: Y
A67: $GI0_80a | B67: =IF(R_GI,CONCATENATE("", 'General Information'!Q168),"") ->  | C67: =ISERROR(B67) -> FALSE | D67: Y
A68: $GI0_77b | B68: =IF(R_GI,CONCATENATE("", 'General Information'!C170),"") ->  | C68: FALSE | D68: Y
A69: $GI0_78b | B69: =IF(R_GI,CONCATENATE("", 'General Information'!F170),"") ->  | C69: FALSE | D69: Y
A70: $GI0_79b | B70: =IF(R_GI,CONCATENATE("", 'General Information'!I170),"") ->  | C70: FALSE | D70: Y
A71: $GI0_79b_a | B71: =IF(R_GI,CONCATENATE("", 'General Information'!M170),"") ->  | C71: FALSE | D71: Y
A72: $GI0_80b | B72: =IF(R_GI,CONCATENATE("", 'General Information'!Q170),"") ->  | C72: FALSE | D72: Y
A73: $GI0_90 | B73: =IF(R_GI,CONCATENATE("", 'General Information'!T175),"") ->  | C73: FALSE | D73: N
A74: $GI0_91 | B74: =IF(R_GI,CONCATENATE("", 'General Information'!T177),"") ->  | C74: FALSE | D74: N
A75: $GI0_92 | B75: =IF(R_GI,CONCATENATE("", 'General Information'!L179),"") ->  | C75: FALSE | D75: N
A76: $GI0_95 | B76: =IF(R_GI,CONCATENATE("", 'General Information'!T183),"") -> Y | C76: FALSE | D76: Y
A77: $GI0_96 | B77: =IF(R_GI,CONCATENATE("", 'General Information'!T185),"") -> N | C77: FALSE | D77: Y
A78: $GI0_97 | B78: =IF(R_GI,CONCATENATE("", 'General Information'!T187),"") -> N | C78: FALSE | D78: Y
A79: $GI0_102 | B79: =IF(R_GI,CONCATENATE("", 'General Information'!T189),"") -> N | C79: FALSE | D79: Y
A80: $GI0_103 | B80: =IF(R_GI,CONCATENATE("", 'General Information'!T191),"") -> N | C80: FALSE | D80: Y
A81: $GI0_104 | B81: =IF(R_GI,CONCATENATE("", 'General Information'!T193),"") -> N | C81: FALSE | D81: Y
A82: $GI0_105 | B82: =IF(R_GI,CONCATENATE("", 'General Information'!T195),"") -> N | C82: FALSE | D82: Y
A83: $GI0_107 | B83: =IF(R_GI,CONCATENATE("", 'General Information'!T197),"") -> N | C83: FALSE | D83: Y
A84: $GI0_108 | B84: =IF(R_GI,CONCATENATE("", 'General Information'!T199),"") -> N | C84: FALSE | D84: Y
A85: $GI0_122 | B85: =IF(R_GI,CONCATENATE("", 'General Information'!T201),"") ->  | C85: FALSE | D85: Y
A86: $GI0_123 | B86: =IF(R_GI,CONCATENATE("", 'General Information'!T203),"") ->  | C86: FALSE | D86: Y
A87: $GI0_111 | B87: =IF(R_GI,CONCATENATE("", 'General Information'!I207),"") ->  | C87: FALSE | D87: Y
A88: $GI0_112 | B88: =IF(R_GI,CONCATENATE("", 'General Information'!I211),"") ->  | C88: FALSE | D88: Y
A89: $GI0_113 | B89: =IF(R_GI,CONCATENATE("", 'General Information'!I217),"") ->  | C89: FALSE | D89: Y
A90: $GI0_116 | B90: =IF(R_GI,CONCATENATE("", 'General Information'!I223),"") ->  | C90: FALSE | D90: Y
A91: $GI0_117 | B91: =IF(R_GI,CONCATENATE("", 'General Information'!I225),"") ->  | C91: FALSE | D91: Y
A92: $GI0_118 | B92: =IF(R_GI,CONCATENATE("", 'General Information'!I227),"") ->  | C92: FALSE | D92: Y
A93: $GI0_119 | B93: =IF(R_GI,CONCATENATE("", 'General Information'!T229),"") -> Y | C93: FALSE | D93: Y
A94: $GI0_120 | B94: =IF(R_GI,CONCATENATE("", 'General Information'!I232),"") ->  | C94: FALSE | D94: Y
A95: $GI0_121 | B95: =IF(R_GI,CONCATENATE("", 'General Information'!I236),"") ->  | C95: FALSE | D95: Y
A96: $TS0_2 | B96: =IF(R_TS,CONCATENATE("", 'Transport Services'!T12),"") ->  | C96: FALSE | D96: Y
A97: $TS0_4 | B97: =IF(R_TS,CONCATENATE("", 'Transport Services'!T15),"") ->  | C97: FALSE | D97: Y
A98: $TS0_5 | B98: =IF(R_TS,CONCATENATE("", 'Transport Services'!T16),"") ->  | C98: FALSE | D98: Y
A99: $TS0_6 | B99: =IF(R_TS,CONCATENATE("", 'Transport Services'!T17),"") ->  | C99: FALSE | D99: Y
A100: $TS0_7 | B100: =IF(R_TS,CONCATENATE("", 'Transport Services'!T18),"") ->  | C100: FALSE | D100: Y
A101: $TS0_8 | B101: =IF(R_TS,CONCATENATE("", 'Transport Services'!T19),"") ->  | C101: FALSE | D101: Y
A102: $TS0_9 | B102: =IF(R_TS,CONCATENATE("", 'Transport Services'!T20),"") ->  | C102: FALSE | D102: Y
A103: $TS0_10 | B103: =IF(R_TS,CONCATENATE("", 'Transport Services'!T23),"") ->  | C103: FALSE | D103: Y
A104: $TS0_11 | B104: =IF(R_TS,CONCATENATE("", 'Transport Services'!T24),"") ->  | C104: FALSE | D104: Y
A105: $TS0_12 | B105: =IF(R_TS,CONCATENATE("", 'Transport Services'!T25),"") ->  | C105: FALSE | D105: Y
A106: $TS0_13 | B106: =IF(R_TS,CONCATENATE("", 'Transport Services'!T26),"") ->  | C106: FALSE | D106: Y
A107: $TS0_14 | B107: =IF(R_TS,CONCATENATE("", 'Transport Services'!T27),"") ->  | C107: FALSE | D107: Y
A108: $TS0_15 | B108: =IF(R_TS,CONCATENATE("", 'Transport Services'!T28),"") ->  | C108: FALSE | D108: Y
A109: $TS0_16 | B109: =IF(R_TS,CONCATENATE("", 'Transport Services'!T29),"") ->  | C109: FALSE | D109: Y
A110: $TS0_17 | B110: =IF(R_TS,CONCATENATE("", 'Transport Services'!T30),"") ->  | C110: FALSE | D110: Y
A111: $TS0_18 | B111: =IF(R_TS,CONCATENATE("", 'Transport Services'!T31),"") ->  | C111: FALSE | D111: Y
A112: $TS0_19 | B112: =IF(R_TS,CONCATENATE("", 'Transport Services'!T32),"") ->  | C112: FALSE | D112: Y
A113: $TS0_22 | B113: =IF(R_TS,CONCATENATE("", 'Transport Services'!T35),"") ->  | C113: FALSE | D113: Y
A114: $TS0_23 | B114: =IF(R_TS,CONCATENATE("", 'Transport Services'!T36),"") ->  | C114: FALSE | D114: Y
A115: $TS0_23B | B115: =IF(R_TS,CONCATENATE("", 'Transport Services'!T37),"") ->  | C115: FALSE | D115: Y
A116: $TS0_24 | B116: =IF(R_TS,CONCATENATE("", 'Transport Services'!T40),"") ->  | C116: FALSE | D116: Y
A117: $TS0_25 | B117: =IF(R_TS,CONCATENATE("", 'Transport Services'!K41),"") ->  | C117: FALSE | D117: Y
A118: $TS0_26 | B118: =IF(R_TS,CONCATENATE("", 'Transport Services'!T43),"") ->  | C118: FALSE | D118: Y
A119: $TS0_27 | B119: =IF(R_TS,CONCATENATE("", 'Transport Services'!K45),"") ->  | C119: FALSE | D119: Y
A120: $TS0_28 | B120: =IF(R_TS,CONCATENATE("", 'Transport Services'!T47),"") ->  | C120: FALSE | D120: Y
A121: $TS0_29 | B121: =IF(R_TS,CONCATENATE("", 'Transport Services'!K48),"") ->  | C121: FALSE | D121: Y
A122: $TS0_30 | B122: =IF(R_TS,CONCATENATE("", 'Transport Services'!T50),"") ->  | C122: FALSE | D122: Y
A123: $TS0_31 | B123: =IF(R_TS,CONCATENATE("", 'Transport Services'!K52),"") ->  | C123: FALSE | D123: Y
A124: $TS0_32 | B124: =IF(R_TS,CONCATENATE("", 'Transport Services'!J54),"") ->  | C124: FALSE | D124: Y
A125: $TS0_33 | B125: =IF(R_TS,CONCATENATE("", 'Transport Services'!J56),"") ->  | C125: FALSE | D125: Y
A126: $TS0_34 | B126: =IF(R_TS,CONCATENATE("", 'Transport Services'!J59),"") ->  | C126: FALSE | D126: Y
A127: $TS0_35 | B127: =IF(R_TS,CONCATENATE("", 'Transport Services'!J61),"") ->  | C127: FALSE | D127: Y
A128: $TS0_36 | B128: =IF(R_TS,CONCATENATE("", 'Transport Services'!J63),"") ->  | C128: FALSE | D128: Y
A129: $TS0_37 | B129: =IF(R_TS,CONCATENATE("", 'Transport Services'!J65),"") ->  | C129: FALSE | D129: Y
A130: $TS0_39 | B130: =IF(R_TS,CONCATENATE("", 'Transport Services'!T70),"") ->  | C130: FALSE | D130: Y
A131: $TS0_40 | B131: =IF(R_TS,CONCATENATE("", 'Transport Services'!G70),"") ->  | C131: FALSE | D131: Y
A132: $TS0_45 | B132: =IF(R_TS,CONCATENATE("", 'Transport Services'!V70),"") ->  | C132: =ISERROR(B132) -> FALSE | D132: Y
A133: $TS0_46 | B133: =IF(R_TS,CONCATENATE("", 'Transport Services'!K70),"") ->  | C133: FALSE | D133: Y
A134: $TS0_41 | B134: =IF(R_TS,CONCATENATE("", 'Transport Services'!T72),"") ->  | C134: FALSE | D134: Y
A135: $TS0_42 | B135: =IF(R_TS,CONCATENATE("", 'Transport Services'!G72),"") ->  | C135: FALSE | D135: Y
A136: $TS0_47 | B136: =IF(R_TS,CONCATENATE("", 'Transport Services'!V72),"") ->  | C136: FALSE | D136: Y
A137: $TS0_48 | B137: =IF(R_TS,CONCATENATE("", 'Transport Services'!K72),"") ->  | C137: FALSE | D137: Y
A138: $TS0_43 | B138: =IF(R_TS,CONCATENATE("", 'Transport Services'!T74),"") ->  | C138: FALSE | D138: Y
A139: $TS0_44 | B139: =IF(R_TS,CONCATENATE("", 'Transport Services'!G74),"") ->  | C139: FALSE | D139: Y
A140: $TS0_49 | B140: =IF(R_TS,CONCATENATE("", 'Transport Services'!V74),"") ->  | C140: FALSE | D140: Y
A141: $TS0_50 | B141: =IF(R_TS,CONCATENATE("", 'Transport Services'!K74),"") ->  | C141: FALSE | D141: Y
A142: $TS0_52 | B142: =IF(R_TS,CONCATENATE("", 'Transport Services'!J78),"") ->  | C142: FALSE | D142: Y
A143: $TS0_53 | B143: =IF(R_TS,CONCATENATE("", 'Transport Services'!T80),"") ->  | C143: FALSE | D143: Y
A144: $TS0_54 | B144: =IF(R_TS,CONCATENATE("", 'Transport Services'!K83),"") ->  | C144: FALSE | D144: Y
A145: $TS0_55 | B145: =IF(R_TS,CONCATENATE("", 'Transport Services'!T86),"") ->  | C145: FALSE | D145: Y
A146: $TS0_56 | B146: =IF(R_TS,CONCATENATE("", 'Transport Services'!T87),"") ->  | C146: FALSE | D146: Y
A147: $TS0_57 | B147: =IF(R_TS,CONCATENATE("", 'Transport Services'!T88),"") ->  | C147: FALSE | D147: Y
A148: $TS0_58 | B148: =IF(R_TS,CONCATENATE("", 'Transport Services'!T91),"") ->  | C148: FALSE | D148: Y
A149: $TS0_59 | B149: =IF(R_TS,CONCATENATE("", 'Transport Services'!T92),"") ->  | C149: FALSE | D149: Y
A150: $TS0_60 | B150: =IF(R_TS,CONCATENATE("", 'Transport Services'!T95),"") ->  | C150: FALSE | D150: Y
A151: $TS0_61 | B151: =IF(R_TS,CONCATENATE("", 'Transport Services'!T97),"") ->  | C151: FALSE | D151: Y
A152: $TS0_62 | B152: =IF(R_TS,CONCATENATE("", 'Transport Services'!T100),"") ->  | C152: FALSE | D152: Y
A153: $TS0_63 | B153: =IF(R_TS,CONCATENATE("", 'Transport Services'!T102),"") ->  | C153: FALSE | D153: Y
A154: $TS0_64 | B154: =IF(R_TS,CONCATENATE("", 'Transport Services'!T105),"") ->  | C154: FALSE | D154: Y
A155: $TS0_65 | B155: =IF(R_TS,CONCATENATE("", 'Transport Services'!T107),"") ->  | C155: FALSE | D155: Y
A156: $TS0_66 | B156: =IF(R_TS,CONCATENATE("", 'Transport Services'!T110),"") ->  | C156: FALSE | D156: Y
A157: $TS0_67 | B157: =IF(R_TS,CONCATENATE("", 'Transport Services'!T111),"") ->  | C157: FALSE | D157: Y
A158: $TS0_68 | B158: =IF(R_TS,CONCATENATE("", 'Transport Services'!T114),"") ->  | C158: FALSE | D158: Y
A159: $TS0_69 | B159: =IF(R_TS,CONCATENATE("", 'Transport Services'!T115),"") ->  | C159: FALSE | D159: Y
A160: $TS0_70 | B160: =IF(R_TS,CONCATENATE("", 'Transport Services'!T116),"") ->  | C160: FALSE | D160: Y
A161: $TS0_71 | B161: =IF(R_TS,CONCATENATE("", 'Transport Services'!T119),"") ->  | C161: FALSE | D161: Y
A162: $TS0_72 | B162: =IF(R_TS,CONCATENATE("", 'Transport Services'!T120),"") ->  | C162: FALSE | D162: Y
A163: $TS0_73 | B163: =IF(R_TS,CONCATENATE("", 'Transport Services'!T123),"") ->  | C163: FALSE | D163: Y
A164: $TS0_74 | B164: =IF(R_TS,CONCATENATE("", 'Transport Services'!T124),"") ->  | C164: FALSE | D164: Y
A165: $TS0_75 | B165: =IF(R_TS,CONCATENATE("", 'Transport Services'!T127),"") ->  | C165: FALSE | D165: Y
A166: $TS0_76 | B166: =IF(R_TS,CONCATENATE("", 'Transport Services'!T128),"") ->  | C166: FALSE | D166: Y
A167: $TS0_77 | B167: =IF(R_TS,CONCATENATE("", 'Transport Services'!T131),"") ->  | C167: FALSE | D167: Y
A168: $TS0_78 | B168: =IF(R_TS,CONCATENATE("", 'Transport Services'!T133),"") ->  | C168: FALSE | D168: Y
A169: $TS0_79 | B169: =IF(R_TS,CONCATENATE("", 'Transport Services'!T135),"") ->  | C169: FALSE | D169: Y
A170: $TS0_84 | B170: =IF(R_TS,CONCATENATE("", 'Transport Services'!T136),"") ->  | C170: FALSE | D170: Y
A171: $TS0_85 | B171: =IF(R_TS,CONCATENATE("", 'Transport Services'!T137),"") ->  | C171: FALSE | D171: Y
A172: $TS0_88 | B172: =IF(R_TS,CONCATENATE("", 'Transport Services'!T140),"") ->  | C172: FALSE | D172: Y
A173: $TS0_89 | B173: =IF(R_TS,CONCATENATE("", 'Transport Services'!T141),"") ->  | C173: FALSE | D173: Y
A174: $TS0_90 | B174: =IF(R_TS,CONCATENATE("", 'Transport Services'!T142),"") ->  | C174: FALSE | D174: Y
A175: $TS0_91 | B175: =IF(R_TS,CONCATENATE("", 'Transport Services'!T143),"") ->  | C175: FALSE | D175: Y
A176: $TS0_92 | B176: =IF(R_TS,CONCATENATE("", 'Transport Services'!T146),"") ->  | C176: FALSE | D176: Y
A177: $TS0_93 | B177: =IF(R_TS,CONCATENATE("", 'Transport Services'!T147),"") ->  | C177: FALSE | D177: Y
A178: $TS0_94 | B178: =IF(R_TS,CONCATENATE("", 'Transport Services'!T148),"") ->  | C178: FALSE | D178: Y
A179: $TC0_2 | B179: =IF(R_TC,CONCATENATE("", 'Tank Cleaning'!T13),"") ->  | C179: FALSE | D179: Y
A180: $TC0_3 | B180: =IF(R_TC,CONCATENATE("", 'Tank Cleaning'!T14),"") ->  | C180: FALSE | D180: Y
A181: $TC0_4 | B181: =IF(R_TC,CONCATENATE("", 'Tank Cleaning'!T15),"") ->  | C181: FALSE | D181: Y
A182: $TC0_5 | B182: =IF(R_TC,CONCATENATE("", 'Tank Cleaning'!T16),"") ->  | C182: FALSE | D182: Y
A183: $TC0_6 | B183: =IF(R_TC,CONCATENATE("", 'Tank Cleaning'!T17),"") ->  | C183: FALSE | D183: Y
A184: $TC0_7 | B184: =IF(R_TC,CONCATENATE("", 'Tank Cleaning'!T19),"") ->  | C184: FALSE | D184: Y
A185: $TC0_8 | B185: =IF(R_TC,CONCATENATE("", 'Tank Cleaning'!T20),"") ->  | C185: FALSE | D185: Y
A186: $TC0_10 | B186: =IF(R_TC,CONCATENATE("", 'Tank Cleaning'!T23),"") ->  | C186: FALSE | D186: Y
A187: $TC0_11 | B187: =IF(R_TC,CONCATENATE("", 'Tank Cleaning'!K24),"") ->  | C187: FALSE | D187: Y
A188: $TC0_12 | B188: =IF(R_TC,CONCATENATE("", 'Tank Cleaning'!T26),"") ->  | C188: FALSE | D188: Y
A189: $TC0_13 | B189: =IF(R_TC,CONCATENATE("", 'Tank Cleaning'!K27),"") ->  | C189: FALSE | D189: Y
A190: $TC0_14 | B190: =IF(R_TC,CONCATENATE("", 'Tank Cleaning'!J29),"") ->  | C190: =ISERROR(B190) -> FALSE | D190: Y
A191: $TC0_15 | B191: =IF(R_TC,CONCATENATE("", 'Tank Cleaning'!J31),"") ->  | C191: FALSE | D191: Y
A192: $TC0_17 | B192: =IF(R_TC,CONCATENATE("", 'Tank Cleaning'!T34),"") ->  | C192: FALSE | D192: Y
A193: $TC0_18 | B193: =IF(R_TC,CONCATENATE("", 'Tank Cleaning'!K36),"") ->  | C193: FALSE | D193: Y
A194: $TC0_19 | B194: =IF(R_TC,CONCATENATE("", 'Tank Cleaning'!T38),"") ->  | C194: FALSE | D194: Y
A195: $TC0_20 | B195: =IF(R_TC,CONCATENATE("", 'Tank Cleaning'!K40),"") ->  | C195: FALSE | D195: Y
A196: $TC0_21 | B196: =IF(R_TC,CONCATENATE("", 'Tank Cleaning'!J42),"") ->  | C196: FALSE | D196: Y
A197: $TC0_22 | B197: =IF(R_TC,CONCATENATE("", 'Tank Cleaning'!J44),"") ->  | C197: FALSE | D197: Y
A198: $TC0_23 | B198: =IF(R_TC,CONCATENATE("", 'Tank Cleaning'!K46),"") ->  | C198: FALSE | D198: Y
A199: $TC0_24 | B199: =IF(R_TC,CONCATENATE("", 'Tank Cleaning'!J48),"") ->  | C199: FALSE | D199: Y
A200: $TC0_25 | B200: =IF(R_TC,CONCATENATE("", 'Tank Cleaning'!J50),"") ->  | C200: FALSE | D200: Y
... 4658 more rows

Sheet Combo (hidden)
B1: =TEXT(OFFSET(B1,0,langsel),"") -> English | C1: English | D1: Deutsch | E1: Português | F1: Français | G1: Español | H1: Italiano | I1: Dansk | J1: Suomalainen | K1: Polska | L1: Nederlands | M1: Slovensko | N1: Česky | O1: Magyar | P1: Svenska | Q1: Русский
B3: =TEXT(OFFSET(B3,0,langsel),"") -> 
B4: =IF(LEN(TEXT(OFFSET(B4,0,langsel),""))>0,TEXT(OFFSET(B4,0,langsel),""),TEXT(C4,"")) -> Countries | C4: Countries
B6: AL - Albania | C6: AL - Albania | D6: AL - Albania | E6: AL - Albânia | F6: AL - Albania | G6: AL - Albania | H6: AL - Albania | I6: AL - Albanien | J6: AL - Albania | K6: AL - Albania | L6: AL - Albania | M6: AL - Albania | N6: AL - Albania | O6: AL - Albania | P6: AL - Albania | Q6: AL - Albania
B7: AD - Andorra | C7: AD - Andorra | D7: AD - Andorra | E7: AD - Andorra | F7: AD - Andorra | G7: AD - Andorra | H7: AD - Andorra | I7: AD - Andorra | J7: AD - Andorra | K7: AD - Andorra | L7: AD - Andorra | M7: AD - Andorra | N7: AD - Andorra | O7: AD - Andorra | P7: AD - Andorra | Q7: AD - Andorra
B8: AM - Armenia | C8: AM - Armenia | D8: AM - Armenia | E8: AM - Arménia | F8: AM - Armenia | G8: AM - Armenia | H8: AM - Armenia | I8: AM - Armenia | J8: AM - Armenia | K8: AM - Armenia | L8: AM - Armenia | M8: AM - Armenia | N8: AM - Armenia | O8: AM - Armenia | P8: AM - Armenia | Q8: AM - Armenia
B9: AT - Austria | C9: AT - Austria | D9: AT - Austria | E9: AT - Áustria | F9: AT - Austria | G9: AT - Austria | H9: AT - Austria | I9: AT - Austria | J9: AT - Itävalta | K9: AT - Austria | L9: AT - Austria | M9: AT - Austria | N9: AT - Austria | O9: AT - Austria | P9: AT - Austria | Q9: AT - Austria
B10: AZ- Azerbaijan | C10: AZ- Azerbaijan | D10: AZ- Azerbaijan | E10: AZ - Azerbeijão | F10: AZ- Azerbaijan | G10: AZ- Azerbaijan | H10: AZ- Azerbaijan | I10: AZ- Azerbaijan | J10: AZ- Azerbaitzan | K10: AZ- Azerbaijan | L10: AZ- Azerbaijan | M10: AZ- Azerbaijan | N10: AZ- Azerbaijan | O10: AZ- Azerbaijan | P10: AZ- Azerbaijan | Q10: AZ- Azerbaijan
B11: BY - Belarus | C11: BY - Belarus | D11: BY - Belarus | E11: BY - Bielorússia | F11: BY - Belarus | G11: BY - Belarus | H11: BY - Belarus | I11: BY - Belarus | J11: BY - Valkovenäjä | K11: BY - Belarus | L11: BY - Belarus | M11: BY - Belarus | N11: BY - Belarus | O11: BY - Belarus | P11: BY - Belarus | Q11: BY - Belarus
B12: BE - Belgium | C12: BE - Belgium | D12: BE - Belgium | E12: BE - Bélgica | F12: BE - Belgium | G12: BE - Belgium | H12: BE - Belgium | I12: BE - Belgium | J12: BE - Belgia | K12: BE - Belgium | L12: BE - Belgium | M12: BE - Belgium | N12: BE - Belgium | O12: BE - Belgium | P12: BE - Belgium | Q12: BE - Belgium
B13: BA - Bosnia and Herzegovina | C13: BA - Bosnia and Herzegovina | D13: BA - Bosnia and Herzegovina | E13: BA - Bósnia-Herzegovina | F13: BA - Bosnia and Herzegovina | G13: BA - Bosnia and Herzegovina | H13: BA - Bosnia and Herzegovina | I13: BA - Bosnia and Herzegovina | J13: BA - Bosnia ja Herzegovina | K13: BA - Bosnia and Herzegovina | L13: BA - Bosnia and Herzegovina | M13: BA - Bosnia and Herzegovina | N13: BA - Bosnia and Herzegovina | O13: BA - Bosnia and Herzegovina | P13: BA - Bosnia and Herzegovina | Q13: BA - Bosnia and Herzegovina
B14: BG - Bulgaria | C14: BG - Bulgaria | D14: BG - Bulgaria | E14: BG - Búlgaria | F14: BG - Bulgaria | G14: BG - Bulgaria | H14: BG - Bulgaria | I14: BG - Bulgaria | J14: BG - Bulgaria | K14: BG - Bulgaria | L14: BG - Bulgaria | M14: BG - Bulgaria | N14: BG - Bulgaria | O14: BG - Bulgaria | P14: BG - Bulgaria | Q14: BG - Bulgaria
B15: HR - Croatia | C15: HR - Croatia | D15: HR - Croatia | E15: HR - Croácia | F15: HR - Croatia | G15: HR - Croatia | H15: HR - Croatia | I15: HR - Croatia | J15: HR - Kroatia | K15: HR - Croatia | L15: HR - Croatia | M15: HR - Croatia | N15: HR - Croatia | O15: HR - Croatia | P15: HR - Croatia | Q15: HR - Croatia
B16: CY - Cyprus | C16: CY - Cyprus | D16: CY - Cyprus | E16: CY - Chipre | F16: CY - Cyprus | G16: CY - Cyprus | H16: CY - Cyprus | I16: CY - Cyprus | J16: CY - Kypros | K16: CY - Cyprus | L16: CY - Cyprus | M16: CY - Cyprus | N16: CY - Cyprus | O16: CY - Cyprus | P16: CY - Cyprus | Q16: CY - Cyprus
B17: CZ - Czech Republic | C17: CZ - Czech Republic | D17: CZ - Czech Republic | E17: CZ - Républica Checa | F17: CZ - Czech Republic | G17: CZ - Czech Republic | H17: CZ - Czech Republic | I17: CZ - Czech Republic | J17: CZ - Tsekki | K17: CZ - Czech Republic | L17: CZ - Czech Republic | M17: CZ - Czech Republic | N17: CZ - Czech Republic | O17: CZ - Czech Republic | P17: CZ - Czech Republic | Q17: CZ - Czech Republic
B18: DK - Denmark | C18: DK - Denmark | D18: DK - Denmark | E18: DK - Dinamarca | F18: DK - Denmark | G18: DK - Denmark | H18: DK - Denmark | I18: DK - Denmark | J18: DK - Tanska | K18: DK - Denmark | L18: DK - Denmark | M18: DK - Denmark | N18: DK - Denmark | O18: DK - Denmark | P18: DK - Denmark | Q18: DK - Denmark
B19: EE - Estonia | C19: EE - Estonia | D19: EE - Estonia | E19: EE - Estónia | F19: EE - Estonia | G19: EE - Estonia | H19: EE - Estonia | I19: EE - Estonia | J19: EE - Viro | K19: EE - Estonia | L19: EE - Estonia | M19: EE - Estonia | N19: EE - Estonia | O19: EE - Estonia | P19: EE - Estonia | Q19: EE - Estonia
B20: FI - Finland | C20: FI - Finland | D20: FI - Finland | E20: FI - Finlândia | F20: FI - Finland | G20: FI - Finland | H20: FI - Finland | I20: FI - Finland | J20: FI - Suomi | K20: FI - Finland | L20: FI - Finland | M20: FI - Finland | N20: FI - Finland | O20: FI - Finland | P20: FI - Finland | Q20: FI - Finland
B21: FR - France | C21: FR - France | D21: FR - France | E21: FR - França | F21: FR - France | G21: FR - France | H21: FR - France | I21: FR - France | J21: FR - Ranska | K21: FR - France | L21: FR - France | M21: FR - France | N21: FR - France | O21: FR - France | P21: FR - France | Q21: FR - France
B22: DE - Germany | C22: DE - Germany | D22: DE - Germany | E22: DE - Alemanha | F22: DE - Germany | G22: DE - Germany | H22: DE - Germany | I22: DE - Germany | J22: DE - Saksa | K22: DE - Germany | L22: DE - Germany | M22: DE - Germany | N22: DE - Germany | O22: DE - Germany | P22: DE - Germany | Q22: DE - Germany
B23: GR - Greece | C23: GR - Greece | D23: GR - Greece | E23: GR - Grécia | F23: GR - Greece | G23: GR - Greece | H23: GR - Greece | I23: GR - Greece | J23: GR - Kreikka | K23: GR - Greece | L23: GR - Greece | M23: GR - Greece | N23: GR - Greece | O23: GR - Greece | P23: GR - Greece | Q23: GR - Greece
B24: GG - Guernsey | C24: GG - Guernsey | D24: GG - Guernsey | E24: GG - Guernsey | F24: GG - Guernsey | G24: GG - Guernsey | H24: GG - Guernsey | I24: GG - Guernsey | J24: GG - Guernsey | K24: GG - Guernsey | L24: GG - Guernsey | M24: GG - Guernsey | N24: GG - Guernsey | O24: GG - Guernsey | P24: GG - Guernsey | Q24: GG - Guernsey
B25: HU - Hungary | C25: HU - Hungary | D25: HU - Hungary | E25: HU - Hungria | F25: HU - Hungary | G25: HU - Hungary | H25: HU - Hungary | I25: HU - Hungary | J25: HU - Unkari | K25: HU - Hungary | L25: HU - Hungary | M25: HU - Hungary | N25: HU - Hungary | O25: HU - Hungary | P25: HU - Hungary | Q25: HU - Hungary
B26: IS - Iceland | C26: IS - Iceland | D26: IS - Iceland | E26: IS - Islândia | F26: IS - Iceland | G26: IS - Iceland | H26: IS - Iceland | I26: IS - Iceland | J26: IS - Islanti | K26: IS - Iceland | L26: IS - Iceland | M26: IS - Iceland | N26: IS - Iceland | O26: IS - Iceland | P26: IS - Iceland | Q26: IS - Iceland
B27: IE - Ireland | C27: IE - Ireland | D27: IE - Ireland | E27: IE - Irlanda | F27: IE - Ireland | G27: IE - Ireland | H27: IE - Ireland | I27: IE - Ireland | J27: IE - Irlanti | K27: IE - Ireland | L27: IE - Ireland | M27: IE - Ireland | N27: IE - Ireland | O27: IE - Ireland | P27: IE - Ireland | Q27: IE - Ireland
B28: IM - Isle of Man | C28: IM - Isle of Man | D28: IM - Isle of Man | E28: IM - Ilha de Man | F28: IM - Isle of Man | G28: IM - Isle of Man | H28: IM - Isle of Man | I28: IM - Isle of Man | J28: IM - Man saaret | K28: IM - Isle of Man | L28: IM - Isle of Man | M28: IM - Isle of Man | N28: IM - Isle of Man | O28: IM - Isle of Man | P28: IM - Isle of Man | Q28: IM - Isle of Man
B29: IT - Italy | C29: IT - Italy | D29: IT - Italy | E29: IT - Itália | F29: IT - Italy | G29: IT - Italy | H29: IT - Italy | I29: IT - Italy | J29: IT - Italia | K29: IT - Italy | L29: IT - Italy | M29: IT - Italy | N29: IT - Italy | O29: IT - Italy | P29: IT - Italy | Q29: IT - Italy
B30: JE - Jersey | C30: JE - Jersey | D30: JE - Jersey | E30: JE - Jersey | F30: JE - Jersey | G30: JE - Jersey | H30: JE - Jersey | I30: JE - Jersey | J30: JE - Jersey | K30: JE - Jersey | L30: JE - Jersey | M30: JE - Jersey | N30: JE - Jersey | O30: JE - Jersey | P30: JE - Jersey | Q30: JE - Jersey
B31: KZ - Kazakhstan | C31: KZ - Kazakhstan | D31: KZ - Kazakhstan | E31: KZ - Cazaquistão | F31: KZ - Kazakhstan | G31: KZ - Kazakhstan | H31: KZ - Kazakhstan | I31: KZ - Kazakhstan | J31: KZ - Kasakstan | K31: KZ - Kazakhstan | L31: KZ - Kazakhstan | M31: KZ - Kazakhstan | N31: KZ - Kazakhstan | O31: KZ - Kazakhstan | P31: KZ - Kazakhstan | Q31: KZ - Kazakhstan
B32: LV - Latvia | C32: LV - Latvia | D32: LV - Latvia | E32: LV - Letónia | F32: LV - Latvia | G32: LV - Latvia | H32: LV - Latvia | I32: LV - Latvia | J32: LV - Latvia | K32: LV - Latvia | L32: LV - Latvia | M32: LV - Latvia | N32: LV - Latvia | O32: LV - Latvia | P32: LV - Latvia | Q32: LV - Latvia
B33: LI - Liechtenstein | C33: LI - Liechtenstein | D33: LI - Liechtenstein | E33: LI - Liechtenstein | F33: LI - Liechtenstein | G33: LI - Liechtenstein | H33: LI - Liechtenstein | I33: LI - Liechtenstein | J33: LI - Liechtenstein | K33: LI - Liechtenstein | L33: LI - Liechtenstein | M33: LI - Liechtenstein | N33: LI - Liechtenstein | O33: LI - Liechtenstein | P33: LI - Liechtenstein | Q33: LI - Liechtenstein
B34: LT - Lithuania | C34: LT - Lithuania | D34: LT - Lithuania | E34: LT - Lituânia | F34: LT - Lithuania | G34: LT - Lithuania | H34: LT - Lithuania | I34: LT - Lithuania | J34: LT - Liettua | K34: LT - Lithuania | L34: LT - Lithuania | M34: LT - Lithuania | N34: LT - Lithuania | O34: LT - Lithuania | P34: LT - Lithuania | Q34: LT - Lithuania
B35: LU - Luxembourg | C35: LU - Luxembourg | D35: LU - Luxembourg | E35: LU - Luxemburgo | F35: LU - Luxembourg | G35: LU - Luxembourg | H35: LU - Luxembourg | I35: LU - Luxembourg | J35: LU - Luxembourg | K35: LU - Luxembourg | L35: LU - Luxembourg | M35: LU - Luxembourg | N35: LU - Luxembourg | O35: LU - Luxembourg | P35: LU - Luxembourg | Q35: LU - Luxembourg
